Workbook

Sheet Index
A1: ='Input| Setup'!E5&" "&'Input| Escalations'!D8 -> Jemena Gas Network 2025-26
B2: AER Capex Forecast Model
B3: =IFERROR(MID(CELL("filename",A2),FIND("]",CELL("filename",A2))+1,255),"") -> Index | C3: Overall Check: | D3: ='Model Validation'!$C$5 -> 0 | E3: NOTE: if there is an error code here you can unhide the Model Validation tab to help you identify the error source.
B5: A guide to the cell colours used in this workbook
B7: Input | C7: This is where you must enter data. Green cells are in all of the green worksheets, and not in any other worksheet.
B8: Input - optional | C8: Entering data into these cells is optional. Most relate to decisions you make about the forecasting and allocation of capitalised overheads.
B9: Do not edit cell | C9: =" These cells are found in table "&LEFT('Input| Escalations'!B23,2)&" only. They cover a dynamic that depends on your selection of base year for inputs. Please only enter data in the green cells." -> These cells are found in table 12 only. They cover a dynamic that depends on your selection of base year for inputs. Please only enter data in the green cells.
B10: Formula - do not edit | C10: These cells have formulas and validations in them, including when they appear blank. Please do not edit these cells. All cells in the blue and orange worksheets are this type.
B12: Worksheet summary
B14: Worksheet name (links) | C14: Check | E14: Input required? | G14: Description
B15: =IFERROR('Input| Setup'!B3,"") -> Input| Setup | C15: N/A | E15: Y | G15: Sets up the model with relevant years and output categories
B16: =IFERROR('Input| Escalations'!B3,"") -> Input| Escalations | C16: =+'Input| Escalations'!E3 -> 0 | E16: Y | G16: Sets up the inflation and labour escalations
B17: =IFERROR('Input| Projects'!C3,"") -> Input| Projects | C17: ='Model Validation'!C9 -> 0 | E17: Y | G17: Forecast direct costs and other relevant forecast parameters are entered here.
B18: =IFERROR('Input| JGN Mapping'!C3,"") -> Input| JGN Mapping | C18: ='Model Validation'!C10 -> N/A | E18: Y | G18: Mapping for use in calculations by project across the workbook
B19: =IFERROR('Input| Disposals'!C3,"") -> Input| Disposals | C19: ='Model Validation'!C11 -> 0 | E19: Y | G19: Input for forecast disposals by PTRM category.
B20: =IFERROR('Input| Type 2 capcons'!B3,"") -> Input| Type 2 capcons | C20: ='Model Validation'!C12 -> 0 | E20: Y | G20: ="Input for type 2 capital contributions (a definition is given at table "&LEFT('Input| Type 2 capcons'!B5,2)&")" -> Input for type 2 capital contributions (a definition is given at table 24)
B21: =IFERROR('Input| Expensing'!B3,"") -> Input| Expensing | C21: ='Model Validation'!C13 -> 0 | E21: Y | G21: Input for forecast immediate expensing by PTRM category.
B22: =IFERROR('Input| Historical Capex'!B3,"") -> Input| Historical Capex | C22: ='Model Validation'!C14 -> 0 | E22: Y | G22: Historical capex data
B23: =IFERROR('Input| Overheads'!B3,"") -> Input| Overheads | C23: ='Model Validation'!C15 -> 0 | E23: Y | G23: Input tables used to calculate forecast capitalised overheads.
B24: =IFERROR('Calc| Overheads Allocation'!B3,"") -> Calc| Overheads Allocation | C24: ='Model Validation'!C16 -> 0 | E24: N | G24: Calculation tables for forecast capitalised overheads and yearly allocation rates.
B25: =IFERROR('Calc| Project Costs'!C3,"") -> Calc| Project Costs | C25: ='Model Validation'!C17 -> 0 | E25: N | G25: Calculation tables for forecast capex outputs.
B26: =IFERROR('Output| PTRM (D)'!C3,"") -> Output| PTRM (D) | C26: ='Model Validation'!C18 -> 0 | E26: N | G26: Produces forecast capex and immediate expensing tables in PTRM format for distribution assets.
B27: Output| PTRM (T) | C27: ='Model Validation'!C19 -> 0 | E27: N | G27: Produces forecast capex and immediate expensing tables in PTRM format for transmission assets.
B28: =IFERROR('Output| RFM (D)'!B3,"") -> Output| RFM (D) | C28: ='Model Validation'!C20 -> 0 | E28: N | G28: Produces historical and forecast capex and immediate expensing tables in RFM format for distribution assets.
B29: =IFERROR('Output| RIN'!B3,"") -> Output| RIN | C29: ='Model Validation'!C21 -> 0 | E29: N | G29: Produces forecast capex tables analogous to Reset RIN table 2.1.1.
B30: Output| Summaries | C30: ='Model Validation'!C22 -> 0 | E30: N | G30: Produces two-period summaries of capex with a variety of split types
B31: =IFERROR('Output| AER'!B3,"") -> Output| AER | C31: ='Model Validation'!C23 -> 0 | E31: N | G31: Produces forecast capex by capex drivers that align with AER's standard assessment approach.
B32: =IFERROR('Model Validation'!B3,"") -> Model Validation | C32: ='Model Validation'!C5 -> 0 | E32: N | G32: Hidden tab. Compiles all validation cells in the model to facilitate troubleshooting.
B34: Table listing and description
B36: Table name | C36: Worksheet | E36: Input required? | G36: Description
B37: ='Input| Setup'!A5 -> 1. Business name | C37: =B15 -> Input| Setup | E37: Y | G37: Please enter your business name. This is shown in cell A1 in each worksheet in the model.
B38: ='Input| Setup'!B7 -> 2. Financial years | C38: =B15 -> Input| Setup | E38: N | G38: ="Provides reference range for FY drop-down boxes, based on your input in table "&LEFT(B46,2)&"." -> Provides reference range for FY drop-down boxes, based on your input in table 10.
B39: ='Input| Setup'!B19 -> 3. RIN categories | C39: =B15 -> Input| Setup | E39: N | G39: Aligns with Reset RIN table 2.1.1.
B40: ='Input| Setup'!B31 -> 4. AER categories | C40: =B15 -> Input| Setup | E40: N | G40: Aligns with AER's current assessment categories.
B41: ='Input| Setup'!B41 -> 5. Months | C41: =B15 -> Input| Setup | E41: N | G41: Provides reference range for month drop-down boxes (i.e. June for end-year and December for mid-year).
B42: ='Input| Setup'!B46 -> 6. Overhead switch | C42: =B15 -> Input| Setup | E42: N | G42: ="Assigns yes or no response in table "&LEFT(B54,2)&" as to whether the project attracts capitalised overheads." -> Assigns yes or no response in table 18 as to whether the project attracts capitalised overheads.
B43: ='Input| Setup'!B50 -> 7. Distribution/transmission switch | C43: =C42 -> Input| Setup | E43: N | G43: ="Assigns Distribution or Transmission response in table "&LEFT(B45,1)&"." -> Assigns Distribution or Transmission response in table 9.
B44: ='Input| Setup'!B54 -> 8. Overhead allocation method | C44: =C43 -> Input| Setup | E44: N | G44: ="Assigns the methodology for allocating overheads in table "&LEFT(B71,2)&"." -> Assigns the methodology for allocating overheads in table 35.
B45: ='Input| Setup'!E7 -> 9. PTRM asset classes | C45: =B15 -> Input| Setup | E45: Y | G45: Please enter your PTRM classes.
B46: ='Input| Escalations'!B5 -> 10. Inflation table setup | C46: =B16 -> Input| Escalations | E46: Y | G46: Please enter the first year of the forecast regulatory control period, and the real year basis for cost inputs. Please ensure it is in YYYY-YY format
B47: ='Input| Escalations'!B12 -> 11. Inflation | C47: =C46 -> Input| Escalations | E47: Y | G47: Calculates CPI escalators. Please enter CPI (year-on-year change, lagged 12-months).
B48: ='Input| Escalations'!B23 -> 12. Forecast real price escalation | C48: =C47 -> Input| Escalations | E48: N | G48: Calculates real price escalators. Please enter forecast yearly escalation for internal labour, contract labour and non-labour.
B49: ='Input| Projects'!C7 -> 13. Project Details | C49: =B17 -> Input| Projects | E49: Y | G49: Please enter full list of forecast projects and programs. The 'Unique ID' input refers to your own internal project code.
B50: ='Input| Projects'!F7 -> 14. RIN and optional DNSP mapping categories | C50: =B17 -> Input| Projects | E50: Y | G50: Please allocate project to a RIN category. You can also add a DNSP-defined category for your internal validation purposes (optional), but note this will not map to an output table.
B51: ='Input| Projects'!I7 -> 15. Unescalated direct costs (excluding type 2 capital contributions) ($'000s 2022-23 December) | C51: =B17 -> Input| Projects | E51: Y | G51: ="Please enter annual forecast direct capex for each project and in real dollars as set out in table "&LEFT(B46,2)&". Where applicable, rebates are to be included in gross connections capex. For clarity, 'direct costs' means all costs excluding capitalised overheads." -> Please enter annual forecast direct capex for each project and in real dollars as set out in table 10. Where applicable, rebates are to be included in gross connections capex. For clarity, 'direct costs' means all costs excluding capitalised overheads.
B52: ='Input| Projects'!Q7 -> 16. Type 1 capital contributions included in table 15 ($'000s 2022-23 December) | C52: =C51 -> Input| Projects | E52: Y | G52: ="Please enter total type 1 capital contributions, as defined in table "&LEFT(B60,2)&"." -> Please enter total type 1 capital contributions, as defined in table 24.
B53: ='Input| Projects'!Y7 -> 17. Cost components as % of direct costs | C53: =B17 -> Input| Projects | E53: Y | G53: Please enter the proportion of internal labour, contract labour and non-labour costs to total direct costs for each project (average over regulatory control period).
B54: ='Input| Projects'!AC7 -> 18. Capitalised overheads allocation | C54: =B17 -> Input| Projects | E54: Y | G54: Please indicate whether each project attracts capitalised network and/or corporate overheads.
B55: ='Input| Projects'!AF7 -> 19. Allocation of capitalised overheads - DNSP defined | C55: =C54 -> Input| Projects | E55: optional | G55: The model allows for allocation of overheads by direct costs, internal labour or a custom allocation method. Please complete this table only if you wish to do a custom allocation method.
B56: ='Input| Projects'!AI7 -> 20. AER categories as % of direct costs (i.e. total costs reported in table 15, excluding capitalised overheads) | C56: =B17 -> Input| Projects | E56: Y | G56: Please enter the proportion of directs costs for each project and program to be allocated to each AER category.
B57: ='Input| Projects'!AR7 -> 21. PTRM asset classes as % of direct costs (i.e. total costs reported in table 15, excluding capitalised overheads) | C57: =B17 -> Input| Projects | E57: Y | G57: Please enter the proportion of directs costs for each project and program to be allocated to each PTRM asset class.
B58: ='Input| Disposals'!D5 -> 22. Forecast asset disposals ($'000s 2022-23 December) | C58: =B19 -> Input| Disposals | E58: Y | G58: Please enter your forecast asset disposals by PTRM asset class.
B59: ='Input| Disposals'!O5 -> 23. Forecast asset disposals ($'000s June 2025) | C59: =B19 -> Input| Disposals | E59: N | G59: ="Converts table "&LEFT(B58,2)&" data to correct real year basis." -> Converts table 22 data to correct real year basis.
B60: ='Input| Type 2 capcons'!B5 -> 24. Forecast type 2 capital contributions ($'000s 2022-23 December) | C60: =B20 -> Input| Type 2 capcons | E60: Y | G60: Please enter your forecast type 2 capital contributions by RIN category. The definitions for type 1 and type 2 capcons are given at this table.
B61: ='Input| Type 2 capcons'!B21 -> 25. Cost components of type 2 capital contributions | C61: =B20 -> Input| Type 2 capcons | E61: Y | G61: Please enter internal labour, contract labour and non-labour costs as a proportion of forecast type 2 capcons.
B62: ='Input| Type 2 capcons'!B27 -> 26. Real price escalators for type 2 capital contributions | C62: =B20 -> Input| Type 2 capcons | E62: N | G62: ="Calculates real price escalation based on the inputs from table "&LEFT(B61,2)&"." -> Calculates real price escalation based on the inputs from table 25.
B63: ='Input| Type 2 capcons'!B33 -> 27. Forecast type 2 capital contributions, escalated ($'000s June 2025) | C63: =B20 -> Input| Type 2 capcons | E63: N | G63: ="Converts table "&LEFT(B60,2)&" data to correct escalated, real year basis." -> Converts table 24 data to correct escalated, real year basis.
B64: ='Input| Expensing'!C5 -> 28. Immediate expensing (% to be immediately expensed) | C64: =B21 -> Input| Expensing | E64: Y | G64: Please enter forecast immediate expensing of capex as a percentage of total gross capex by PTRM asset class.
B65: ='Input| Expensing'!M5 -> 29. Immediate expensing (% to be immediately expensed) - Distribution | C65: =B21 -> Input| Expensing | E65: N | G65: Filters the immediate expensing for distribution assets
B66: ='Input| Expensing'!W5 -> 30. Immediate expensing (% to be immediately expensed) - Transmission | C66: =B21 -> Input| Expensing | E66: N | G66: Filters the immediate expensing for transmission assets
B67: ='Input| Overheads'!B5 -> 31. Forecast capitalised overheads for current period | C67: =B23 -> Input| Overheads | E67: Y | G67: ="Please enter forecast costs for the current period. If costs for year 4 are actuals, please enter them in table "&LEFT(B69,2)&" only." -> Please enter forecast costs for the current period. If costs for year 4 are actuals, please enter them in table 33 only.
B68: ='Input| Overheads'!B13 -> 32. Forecast capitalised overheads for forecast period - alternative method | C68: =B23 -> Input| Overheads | E68: optional | G68: OPTIONAL: please enter unescalated capitalised overheads in this table only if you wish to enter a substitute forecast for capitalised overheads instead of the default methodology (i.e. based on historicals).
B69: ='Input| Overheads'!B21 -> 33. Historical expenditure (nominal) | C69: =B23 -> Input| Overheads | E69: Y | G69: Please enter historical actual gross capex in nominal terms. Do not enter any forecast/estimated current period capex.
B70: ='Input| Overheads'!B33 -> 34. Forecast cost components of capitalised overheads | C70: =B23 -> Input| Overheads | E70: Y | G70: Please enter internal labour, contract labour and non-labour costs as a proportion of capitalised overheads.
B71: ='Input| Overheads'!B40 -> 35. Select an overheads allocation method | C71: =B23 -> Input| Overheads | E71: Y | G71: Please specify method to allocate capitalised overheads: allocation by direct costs, internal labour or own method (if you select own method, than instructions will appear below your selection).
B72: ='Calc| Overheads Allocation'!B5 -> 36. Overheads rate to be applied to forecast escalated direct costs (%) | C72: =$B$24 -> Calc| Overheads Allocation | E72: N | G72: Rate at which capitalised overheads are allocated to costs attracting overheads for each project.
B73: ='Calc| Overheads Allocation'!B14 -> 37. Capitalised overheads ($'000s June 2025) | C73: =$B$24 -> Calc| Overheads Allocation | E73: N | G73: Inflates historical actual capitalised overheads from nominal to real regulatory base dollars using CPI.
B74: ='Calc| Overheads Allocation'!B19 -> 38. Total costs that attract capitalised overheads ($'000s June 2025) | C74: Calc| Overheads Allocation | E74: N | G74: Inflates historical actual costs that attracts capitalised overheads from nominal to real regulatory base dollars using CPI.
B75: ='Calc| Overheads Allocation'!B26 -> 39. Escalated costs that attract overheads ($'000s June 2025) | C75: Calc| Overheads Allocation | E75: N | G75: Default method of forecasting capitalised overheads: compiles forecast direct capex that attracts capitalised overheads.
B76: ='Calc| Overheads Allocation'!B31 -> 40. Escalated capitalised internal labour costs that attract overheads ($'000s June 2025) | C76: Calc| Overheads Allocation | E76: N | G76: Default method of forecasting capitalised overheads: compiles forecast capitalised internal labour that attracts capitalised overheads.
B77: ='Calc| Overheads Allocation'!B35 -> 41. Change in costs attracting capitalised overheads | C77: Calc| Overheads Allocation | E77: N | G77: Default method of forecasting capitalised overheads: calculates the change in costs that attract capitalised overheads between current period actuals and forecast.
B78: ='Calc| Overheads Allocation'!B41 -> 42. Unescalated capitalised overheads ($'000s June 2025) | C78: Calc| Overheads Allocation | E78: N | G78: Default method of forecasting capitalised overheads: calculates forecast capitalised overheads based on the change in costs attracting overheads and assuming 25 per cent of capitalised overheads vary with changes in these costs.
B79: ='Calc| Overheads Allocation'!B47 -> 43. Annual unescalated capitalised overheads ($'000s June 2025) | C79: Calc| Overheads Allocation | E79: N | G79: ="Calculates annual forecast capitalised overheads either using data input by the distributor in table "&LEFT('Input| Overheads'!B21, 2)&" or based on the overhead rate calculated in table "&LEFT('Calc| Overheads Allocation'!B41,2)&"." -> Calculates annual forecast capitalised overheads either using data input by the distributor in table 33 or based on the overhead rate calculated in table 42.
B80: ='Calc| Overheads Allocation'!B53 -> 44. Real cost escalation - cumulative | C80: Calc| Overheads Allocation | E80: N | G80: Calculates real cost escalation applicable to forecast capitalised overheads.
B81: ='Calc| Overheads Allocation'!B58 -> 45. Forecast capitalised overheads | C81: Calc| Overheads Allocation | E81: N | G81: Output: total forecast capitalised overheads to be allocated to gross capex.
B82: ='Calc| Project Costs'!F7 -> 46. Direct unescalated costs, $000s ($2025 June) | C82: =$B$25 -> Calc| Project Costs | E82: N | G82: Inflates forecast direct costs from real base year for inputs to real regulatory base dollars using CPI.
B83: ='Calc| Project Costs'!N7 -> 47. Compound real cost escalation rates | C83: =$B$25 -> Calc| Project Costs | E83: N | G83: Calculates real price escalators for each project and program based on the proportion of internal labour, contract labour and non-labour costs to total gross direct capex.
B84: ='Calc| Project Costs'!V7 -> 48. Direct escalated costs ($'000s June 2025) | C84: =$B$25 -> Calc| Project Costs | E84: N | G84: Escalates direct costs using real price escalators.
B85: ='Calc| Project Costs'!AD7 -> 49. Direct escalated type 1 (cash) capcons ($'000s June 2025) | C85: Calc| Project Costs | E85: N | G85: Calculates escalated type 1 capital contributions.
B86: ='Calc| Project Costs'!AL7 -> 50. Network overheads ($'000s June 2025) | C86: Calc| Project Costs | E86: N | G86: ="Applies overhead rate based on selection in table "&LEFT(B71,2)&" to calculate allocation of capitalised network overheads." -> Applies overhead rate based on selection in table 35 to calculate allocation of capitalised network overheads.
B87: ='Calc| Project Costs'!AT7 -> 51. Corporate overheads ($'000s June 2025) | C87: Calc| Project Costs | E87: N | G87: ="Applies overhead rate based on selection in table "&LEFT(B71,2)&" to calculate allocation of capitalised corporate overheads." -> Applies overhead rate based on selection in table 35 to calculate allocation of capitalised corporate overheads.
B88: ='Calc| Project Costs'!BB7 -> 52. Total capitalised overheads ($'000s June 2025) | C88: Calc| Project Costs | E88: N | G88: Sums the total capitalised overheads.
B89: ='Calc| Project Costs'!BJ7 -> 53. Total overheads allocated to type 1 contributions ($'000s June 2025) | C89: Calc| Project Costs | E89: N | G89: Calculates allocation of capitalised overheads to type 1 capital contributions.
B90: ='Calc| Project Costs'!BR7 -> 54. Total escalated costs (excl. type 2 capcons) ($'000s June 2025) | C90: =$B$25 -> Calc| Project Costs | E90: N | G90: Calculates escalated gross capex (excluding type 2 capital contributions) for input into PTRM table.
B91: ='Calc| Project Costs'!BZ7 -> 55. Allocation to distribution and transmission | C91: =$B$25 -> Calc| Project Costs | E91: N | G91: Calculates proportion of costs allocated to either distribution or transmission, based on the PTRM asset class.
B92: ='Output| PTRM (D)'!C5 -> 56. Forecast gross capital expenditure – as incurred ($millions June 2025) (Distribution) | C92: =$B$26 -> Output| PTRM (D) | E92: N | G92: Output - distribution: gross forecast capex by PTRM asset class.
B93: ='Output| PTRM (D)'!C60 -> 57. Forecast capital contributions – Type 1 – as incurred ($millions June 2025) (Distribution) | C93: =$B$26 -> Output| PTRM (D) | E93: N | G93: Output - distribution: forecast type 1 (cash) capital contributions by PTRM asset class.
B94: ='Output| PTRM (D)'!C115 -> 58. Forecast asset disposals – as incurred ($millions June 2025) (Distribution) | C94: =$B$26 -> Output| PTRM (D) | E94: N | G94: Output - distribution: forecast asset disposals by PTRM asset class.
B95: ='Output| PTRM (D)'!C170 -> 59. Forecast net capital expenditure – as incurred ($millions June 2025) (Distribution) | C95: =$B$26 -> Output| PTRM (D) | E95: N | G95: Output - distribution: net forecast capex by PTRM asset class.
B96: ='Output| PTRM (D)'!L5 -> 60. Forecast immediate expensing of capital expenditure – as incurred ($millions June 2025) (Distribution) | C96: =$B$26 -> Output| PTRM (D) | E96: N | G96: Output - distribution: immediate expensing of capex by PTRM asset class.
B97: ='Output| PTRM (T)'!C5 -> 61. Forecast gross capital expenditure – as incurred ($millions June 2025) (Transmission) | C97: =$B$27 -> Output| PTRM (T) | E97: N | G97: Output - transmission: gross forecast capex by PTRM asset class.
B98: ='Output| PTRM (T)'!C60 -> 62. Forecast capital contributions – Type 1 – as incurred ($millions June 2025) (Transmission) | C98: =$B$27 -> Output| PTRM (T) | E98: N | G98: Output - transmission: forecast type 1 (cash) capital contributions by PTRM asset class.
B99: ='Output| PTRM (T)'!C115 -> 63. Forecast asset disposals – as incurred ($millions June 2025) (Transmission) | C99: =$B$27 -> Output| PTRM (T) | E99: N | G99: Output - transmission: forecast asset disposals by PTRM asset class.
B100: ='Output| PTRM (T)'!C170 -> 64. Forecast net capital expenditure – as incurred ($millions June 2025) (Transmission) | C100: =$B$27 -> Output| PTRM (T) | E100: N | G100: Output - transmission: net forecast capex by PTRM asset class.
B101: ='Output| PTRM (T)'!L5 -> 65. Forecast immediate expensing of capital expenditure – as incurred ($millions June 2025) (Transmission) | C101: =$B$27 -> Output| PTRM (T) | E101: N | G101: Output - transmission: immediate expensing of capex by PTRM asset class.
B102: ='Output| RIN'!B5 -> 66. RIN capex drivers: forecast capex ($000s June 2025) | C102: =B29 -> Output| RIN | E102: N | G102: Output: forecast capex - including gifted assets - by RIN category.
B103: ='Output| AER'!B5 -> 67. AER categories: forecast capex ($000s June 2025) | C103: =B31 -> Output| AER | E103: N | G103: Output: forecast capex by AER category.

Sheet Input| Setup
A1: ='Input| Setup'!E5&" "&'Input| Escalations'!D8 -> Jemena Gas Network 2025-26
B2: =IFERROR(Index!B2,"") -> AER Capex Forecast Model | C2: Key: | E2: Input | F2: Formula - do not edit
B3: =IFERROR(MID(CELL("filename",A2),FIND("]",CELL("filename",A2))+1,255),"") -> Input| Setup
A5: 1. Business name | E5: Jemena Gas Network
B7: =LEFT(A5,1)+1&". Financial years" -> 2. Financial years | E7: =LEFT(B54,1)+1&". PTRM asset classes" -> 9. PTRM asset classes | F7: Distribution or transmission
B8: =LEFT(B9,4)-1&"-"&RIGHT(B9,2)-1 -> 2020-21 | D8: 1 | E8: =+'[4]RFM input'!$F7 -> Trunk Wilton-Sydney | F8: Dx
B9: =LEFT(B10,4)-1&"-"&RIGHT(B10,2)-1 -> 2021-22 | D9: =D8+1 -> 2 | E9: =+'[4]RFM input'!$F8 -> Trunk Sydney-Newcastle | F9: Dx
B10: =LEFT(B11,4)-1&"-"&RIGHT(B11,2)-1 -> 2022-23 | D10: 3 | E10: =+'[4]RFM input'!$F9 -> Trunk Wilton-Wollongong | F10: Dx
B11: =LEFT(B12,4)-1&"-"&RIGHT(B12,2)-1 -> 2023-24 | D11: 4 | E11: =+'[4]RFM input'!$F10 -> Contract Meters | F11: Dx
B12: =LEFT(B13,4)-1&"-"&RIGHT(B13,2)-1 -> 2024-25 | D12: 5 | E12: =+'[4]RFM input'!$F11 -> Fixed Plant - Distribution | F12: Dx
B13: ='Input| Escalations'!$D$8 -> 2025-26 | D13: 6 | E13: =+'[4]RFM input'!$F12 -> HP Mains | F13: Dx
B14: =LEFT(B13,4)+1&"-"&RIGHT(B13,2)+1 -> 2026-27 | D14: 7 | E14: =+'[4]RFM input'!$F13 -> HP Services | F14: Dx
B15: =LEFT(B14,4)+1&"-"&RIGHT(B14,2)+1 -> 2027-28 | D15: 8 | E15: =+'[4]RFM input'!$F14 -> MP Mains | F15: Dx
B16: =LEFT(B15,4)+1&"-"&RIGHT(B15,2)+1 -> 2028-29 | D16: 9 | E16: =+'[4]RFM input'!$F15 -> MP Services | F16: Dx
B17: =LEFT(B16,4)+1&"-"&RIGHT(B16,2)+1 -> 2029-30 | D17: 10 | E17: =+'[4]RFM input'!$F16 -> Meter Reading Devices | F17: Dx
D18: 11 | E18: =+'[4]RFM input'!$F17 -> Country POTS | F18: Dx
B19: =LEFT(B7,1)+1&". RIN categories" -> 3. RIN categories | D19: 12 | E19: =+'[4]RFM input'!$F18 -> Tariff Meters | F19: Dx
B20: Connections | D20: 13 | E20: =+'[4]RFM input'!$F19 -> Computers - IT Infrastructure | F20: Dx
B21: Mains replacement | D21: 14 | E21: =+'[4]RFM input'!$F20 -> Fixed Plant | F21: Dx
B22: Mains augmentation | D22: 15 | E22: =+'[4]RFM input'!$F21 -> Furniture | F22: Dx
B23: Telemetry | D23: 16 | E23: =+'[4]RFM input'!$F22 -> Land | F23: Dx
B24: Meter replacement | D24: 17 | E24: =+'[4]RFM input'!$F23 -> Low value assets | F24: Dx
B25: ICT | D25: 18 | E25: =+'[4]RFM input'!$F24 -> Mobile Plant | F25: Dx
B26: Capitalised network overheads | D26: 19 | E26: =+'[4]RFM input'!$F25 -> Vehicles | F26: Dx
B27: Capitalised corporate overheads | D27: 20 | E27: =+'[4]RFM input'!$F26 -> Existing pigging and inspection costs | F27: Dx
B28: Other capex | D28: 21 | E28: =+'[4]RFM input'!$F53 -> Leasehold Improvements (SL) | F28: Dx
D29: 22 | E29: =+'[4]RFM input'!$F54 -> Buildings (SL) | F29: Dx
D30: 23 | E30: =+'[4]RFM input'!$F55 -> Software - Inhouse (SL) | F30: Dx
B31: =LEFT(B19,1)+1&". AER categories" -> 4. AER categories | D31: 24 | E31: =+'[4]RFM input'!$F56 -> Equity raising costs | F31: Dx
B32: None specified | D32: 25 | E32: [please select from list]
B33: [Spare] | D33: 26
B34: [Spare] | D34: 27
B35: [Spare] | D35: 28
B36: [Spare] | D36: 29
B37: [Spare] | D37: 30
B38: [Spare] | D38: 31
B39: [Spare] | D39: 32
D40: 33
B41: =LEFT(B31,1)+1&". Months" -> 5. Months | D41: 34
B42: June | D42: 35
B43: December | D43: 36
D44: 37
D45: 38
B46: =LEFT(B41,1)+1&". Overhead switch" -> 6. Overhead switch | D46: 39
B47: Yes | D47: 40
B48: No | D48: 41
D49: 42
B50: =LEFT(B46,1)+1&". Distribution/transmission switch" -> 7. Distribution/transmission switch | D50: 43
B51: Dx | D51: 44
B52: Tx | D52: 45
D53: 46
B54: =LEFT(B50,1)+1&". Overhead allocation method" -> 8. Overhead allocation method | D54: 47
B55: Direct costs | D55: 48
B56: Internal labour | D56: 49
B57: DNSP defined | D57: 50

Sheet Input| Escalations
A1: ='Input| Setup'!E5&" "&'Input| Escalations'!D8 -> Jemena Gas Network 2025-26
B2: =IFERROR(Index!B2,"") -> AER Capex Forecast Model | D2: Key: | E2: Input | F2: Do not edit cell | I2: Formula - do not edit
B3: =IFERROR(MID(CELL("filename",A2),FIND("]",CELL("filename",A2))+1,255),"") -> Input| Escalations | D3: Sheet Validation: | E3: =+IF(SUM(A5:A41)<>0,1,0) -> 0
B5: =LEFT('Input| Setup'!E7,1)+1&". Inflation table setup" -> 10. Inflation table setup
D7: Year | E7: Month
B8: First year of forecast regulatory control period (YYYY-YY) | D8: 2025-26
B9: Base year for inputs | D9: 2022-23 | E9: December
B10: Base year for outputs | D10: =IFERROR(LEFT(D8,4),"") -> 2025 | E10: June
B12: =LEFT(B5,2)+1&". Inflation" -> 11. Inflation | D12: NOTE: please use a one year-lagged CPI series.
D14: =IFERROR((LEFT(E14,4)-1&IF(MID(E14,5,1)="","","-"&TEXT(MOD(MID(E14,6,2)-1,100),"00"))),"") -> 2019-20 | E14: 2020-21 | F14: 2021-22 | G14: 2022-23 | H14: 2023-24 | I14: 2024-25 | J14: =D8 -> 2025-26 | K14: =E10&" "&D10 -> June 2025
B15: CPI year on year change (%) - lagged one year (actual/estimate) | D15: =+'[2]Output|Rate of return'!O$34 -> 0.01840490798 | E15: =+'[2]Output|Rate of return'!P$34 -> 0.008605851979 | F15: =+'[2]Output|Rate of return'!Q$34 -> 0.03498293515 | G15: =+'[2]Output|Rate of return'!R$34 -> 0.07831821929 | H15: =+'[2]Output|Rate of return'!S$34 -> 0.04051987768 | I15: =+'[2]Output|Rate of return'!T$34 -> 0.032 | J15: =+[1]!f -> 0.02789756045
B16: =E10&" "&D10&" estimate" -> June 2025 estimate
B17: Cumulative Inflation Index | D17: =IFERROR(1+D15,"") -> 1.018404908 | E17: =IFERROR(D17*(1+E15),"") -> 1.02716915 | F17: =E17*(1+F15) -> 1.063102542 | G17: =F17*(1+G15) -> 1.14636284 | H17: =G17*(1+H15) -> 1.192813322 | I17: =H17*(1+I15) -> 1.230983348 | J17: =I17*(1+J15) -> 1.26532478
B18: =IFERROR("Index: Nominal "&E9&" to "& "Real "&D10 &" "&LEFT(E10,9),"") -> Index: Nominal December to Real 2025 June | D18: =INDEX( $D$17:$J$17, MATCH($D$10- 1,_xlfn.NUMBERVALUE(LEFT($D$14:$J$14,4)),0) ) /D$17 *(1+D$15)^IF($E$9='Input| Setup'!$B$43,0.5,0) -> 1.219809289 | E18: =INDEX( $D$17:$J$17, MATCH($D$10- 1,_xlfn.NUMBERVALUE(LEFT($D$14:$J$14,4)),0) ) /E$17 *(1+E$15)^IF($E$9='Input| Setup'!$B$43,0.5,0) -> 1.203568888 | F18: =INDEX( $D$17:$J$17, MATCH($D$10- 1,_xlfn.NUMBERVALUE(LEFT($D$14:$J$14,4)),0) ) /F$17 *(1+F$15)^IF($E$9='Input| Setup'!$B$43,0.5,0) -> 1.177995459 | G18: =INDEX( $D$17:$J$17, MATCH($D$10- 1,_xlfn.NUMBERVALUE(LEFT($D$14:$J$14,4)),0) ) /G$17 *(1+G$15)^IF($E$9='Input| Setup'!$B$43,0.5,0) -> 1.115073642 | H18: =INDEX( $D$17:$J$17, MATCH($D$10- 1,_xlfn.NUMBERVALUE(LEFT($D$14:$J$14,4)),0) ) /H$17 *(1+H$15)^IF($E$9='Input| Setup'!$B$43,0.5,0) -> 1.052700642 | I18: =INDEX( $D$17:$J$17, MATCH($D$10- 1,_xlfn.NUMBERVALUE(LEFT($D$14:$J$14,4)),0) ) /I$17 *(1+I$15)^IF($E$9='Input| Setup'!$B$43,0.5,0) -> 1.015874008 | J18: =INDEX( $D$17:$J$17, MATCH($D$10- 1,_xlfn.NUMBERVALUE(LEFT($D$14:$J$14,4)),0) ) /J$17 *(1+J$15)^IF($E$9='Input| Setup'!$B$43,0.5,0) -> 0.9863364491
B19: =IFERROR("Real "&D9 &" "&LEFT(E9,9)&" to "& "Real "&D10 &" "&LEFT(E10,9),"") -> Real 2022-23 December to Real 2025 June | K19: =INDEX(D14:J18,5,MATCH(D9,D14:J14)) -> 1.115073642
B20: Cumulative Inflation Index (unlagged for historical escalation) | D20: 1 | E20: =+D20*(1+E15) -> 1.008605852 | F20: 1.043889845 | G20: 1.125645439 | H20: 1.171256454 | I20: 1.208736661 | J20: 1.242457465
B21: Nominal to Real 2025 June (for historical escalation) | D21: =+$I$20/D20*(1+D$15)^0.5 -> 1.219809289 | E21: 1.203568888 | F21: 1.177995459 | G21: 1.115073642 | H21: 1.052700642 | I21: 1.015874008 | J21: 0.9863364491
B23: =LEFT(B12,2)+1&". Forecast real price escalation" -> 12. Forecast real price escalation
D25: =IF(C14<$D$9,"",D14) ->  | H25: 2023-24 | I25: 2024-25 | J25: =J14 -> 2025-26 | K25: =IFERROR((LEFT(J25,4)+1&IF(MID(J25,5,1)="","","-"&TEXT(MOD(MID(J25,6,2)+1,100),"00"))),"") -> 2026-27 | L25: =IFERROR((LEFT(K25,4)+1&IF(MID(K25,5,1)="","","-"&TEXT(MOD(MID(K25,6,2)+1,100),"00"))),"") -> 2027-28 | M25: =IFERROR((LEFT(L25,4)+1&IF(MID(L25,5,1)="","","-"&TEXT(MOD(MID(L25,6,2)+1,100),"00"))),"") -> 2028-29 | N25: =IFERROR((LEFT(M25,4)+1&IF(MID(M25,5,1)="","","-"&TEXT(MOD(MID(M25,6,2)+1,100),"00"))),"") -> 2029-30
B26: Annual escalation
A27: =+IF(ISERROR(SUM(H27:N27)),1,0) -> 0 | B27: Internal labour | H27: 0.005496037201 | I27: 0.01101761158 | J27: 0.01410423958 | K27: 0.009780034371 | L27: 0.009120565513 | M27: 0.01065893064 | N27: 0.01146686671
B28: Contract labour
B29: Non-labour
B30: Index
A31: =+IF(ISERROR(SUM(H31:N31)),1,0) -> 0 | B31: Internal labour | C31: 1 | D31: =IFERROR(C31*(1+D27),"") -> 1 | E31: 1 | F31: 1 | G31: 1 | H31: 1.005496037 | I31: 1.016574202 | J31: 1.030912208 | K31: 1.040994565 | L31: 1.050489024 | M31: 1.061686114 | N31: 1.073860327
A32: =+IF(ISERROR(SUM(H32:N32)),1,0) -> 0 | B32: Contract labour | C32: 1 | D32: =IFERROR(C32*(1+D28),"") -> 1 | E32: 1 | F32: 1 | G32: 1 | H32: 1 | I32: =IFERROR(H32*(1+I28),"") -> 1 | J32: 1 | K32: 1 | L32: 1 | M32: 1 | N32: 1
A33: =+IF(ISERROR(SUM(H33:N33)),1,0) -> 0 | B33: Non-labour | C33: 1 | D33: =IFERROR(C33*(1+D29),"") -> 1 | E33: 1 | F33: 1 | G33: 1 | H33: 1 | I33: 1 | J33: 1 | K33: 1 | L33: 1 | M33: 1 | N33: 1
B34: Cumulative
A35: =+IF(ISERROR(SUM(H35:N35)),1,0) -> 0 | B35: Internal labour | D35: =IF(D31-1=0,0,D31-1) -> 0 | E35: 0 | F35: 0 | G35: =IF(G31-1=0,0,G31-1) -> 0 | H35: 0.005496037201 | I35: 0.01657420199 | J35: 0.03091220808 | K35: 0.04099456491 | L35: 0.05048902404 | M35: 0.06168611368 | N35: 0.07386032684
B36: Contract labour | D36: 0 | E36: 0 | F36: 0 | G36: 0 | H36: 0 | I36: 0 | J36: 0 | K36: 0 | L36: 0 | M36: 0 | N36: 0
B37: Non-labour | D37: 0 | E37: 0 | F37: 0 | G37: 0 | H37: 0 | I37: 0 | J37: 0 | K37: 0 | L37: 0 | M37: 0 | N37: 0
D39: ="Note: the grey cells below the enable conditional formatting in table "&LEFT(B23,2)&". Do not delete." -> Note: the grey cells below the enable conditional formatting in table 12. Do not delete.
D40: =IF(AND(D25="",E25=""),1,"") -> 1 | E40: 1 | F40: 1
D41: =IF(D25="",0,"") -> 0 | E41: 0 | F41: 0 | G41: 0

Sheet Input| Projects
A1: ='Input| Setup'!E5&" "&'Input| Escalations'!D8 -> Jemena Gas Network 2025-26
C2: =IFERROR(Index!B2,"") -> AER Capex Forecast Model | D2: Sheet Validation | E2: ='Model Validation'!$C$9 -> 0 | I2: Key: | J2: Input | K2: Input - optional | L2: Formula - do not edit
C3: =IFERROR(MID(CELL("filename",B2),FIND("]",CELL("filename",B2))+1,255),"") -> Input| Projects
I5: ="Total annual direct costs excl. type 2 capcons, unescalated (note: please include type 1 capital contributions as defined in table "&LEFT('Input| Type 2 capcons'!B5,2)&" and rebates where applicable)" -> Total annual direct costs excl. type 2 capcons, unescalated (note: please include type 1 capital contributions as defined in table 24 and rebates where applicable) | Q5: ="Total annual type 1 capital contributions, direct costs, unescalated (note: see table "&LEFT('Input| Type 2 capcons'!B5,2)&" for definitions of type 1 and 2 capcons)" -> Total annual type 1 capital contributions, direct costs, unescalated (note: see table 24 for definitions of type 1 and 2 capcons) | AF5: =IF(SUM(AF10:AF1009)=0,0,IF(SUM(AF10:AF1009)=1,0,1)) -> 0 | AG5: =IF(SUM(AG10:AG1009)=0,0,IF(SUM(AG10:AG1009)=1,0,1)) -> 0
I6: =SUM(I10:I1009) -> 144361.2528 | J6: 171437.8948 | K6: 164434.0606 | L6: 179775.063 | M6: 154619.3061 | N6: 115108.7725 | O6: 96431.49395 | Q6: =SUM(Q10:Q1009) -> 6271.775508 | R6: 3053.234001 | S6: 3231.465153 | T6: 3049.106201 | U6: 2775.897789 | V6: 2367.246949 | W6: 1973.032648 | AF6: ="NOTE: fill in table only if you select 'DNSP defined' overhead allocation in table "&LEFT('Input| Overheads'!B40,2) -> NOTE: fill in table only if you select 'DNSP defined' overhead allocation in table 35 | AR6: 1 | AS6: =AR6+1 -> 2 | AT6: =AS6+1 -> 3 | AU6: 4 | AV6: 5 | AW6: 6 | AX6: 7 | AY6: 8 | AZ6: 9 | BA6: 10 | BB6: 11 | BC6: 12 | BD6: 13 | BE6: 14 | BF6: 15 | BG6: 16 | BH6: 17 | BI6: 18 | BJ6: 19 | BK6: 20 | BL6: 21 | BM6: 22 | BN6: 23 | BO6: 24 | BP6: 25 | BQ6: =BP6+1 -> 26 | BR6: 27 | BS6: 28 | BT6: 29 | BU6: 30 | BV6: 31 | BW6: 32 | BX6: 33 | BY6: 34 | BZ6: 35 | CA6: 36 | CB6: 37 | CC6: 38 | CD6: 39 | CE6: 40 | CF6: 41 | CG6: 42 | CH6: 43 | CI6: 44 | CJ6: 45 | CK6: 46 | CL6: 47 | CM6: 48 | CN6: 49 | CO6: 50
C7: =LEFT('Input| Escalations'!B23,2)+1&". Project Details" -> 13. Project Details | F7: =LEFT(C7,2)+1&". RIN and optional DNSP mapping categories" -> 14. RIN and optional DNSP mapping categories | I7: =IFERROR(LEFT(F7,2)+1&". Unescalated direct costs (excluding type 2 capital contributions) ($'000s "&'Input| Escalations'!$D$9&" "&'Input| Escalations'!$E$9&")","") -> 15. Unescalated direct costs (excluding type 2 capital contributions) ($'000s 2022-23 December) | Q7: =LEFT(I7,2)+1&". Type 1 capital contributions included in table "&LEFT(I7,2)&" ($'000s "&'Input| Escalations'!$D$9&" "&'Input| Escalations'!$E$9&")" -> 16. Type 1 capital contributions included in table 15 ($'000s 2022-23 December) | Y7: =LEFT(Q7,2)+1&". Cost components as % of direct costs " -> 17. Cost components as % of direct costs | AC7: =LEFT(Y7,2)+1&". Capitalised overheads allocation" -> 18. Capitalised overheads allocation | AF7: =LEFT(AC7,2)+1&". Allocation of capitalised overheads - DNSP defined" -> 19. Allocation of capitalised overheads - DNSP defined | AI7: =LEFT(AF7,2)+1&". AER categories as % of direct costs (i.e. total costs reported in table "&LEFT(I7,2)& ", excluding capitalised overheads)" -> 20. AER categories as % of direct costs (i.e. total costs reported in table 15, excluding capitalised overheads) | AR7: =LEFT(AI7,2)+1&". PTRM asset classes as % of direct costs (i.e. total costs reported in table "&LEFT(I7,2)& ", excluding capitalised overheads)" -> 21. PTRM asset classes as % of direct costs (i.e. total costs reported in table 15, excluding capitalised overheads)
I8: 0 | J8: 0 | K8: 0 | L8: 0 | M8: 0 | N8: 0 | O8: 0 | Q8: 0 | R8: 0 | S8: 0 | T8: 0 | U8: 0 | V8: 0 | W8: 0 | AB8: =IF(SUM(AB10:AB1009)=0,0,1) -> 0 | AF8: % of total capitalised overheads allocated to project: | AQ8: =IF(SUM(AQ10:AQ1009)=0,0,1) -> 0 | AR8: =IFERROR(IF(VLOOKUP(AR$6,'Input| Setup'!$D$8:$F$57,3,0)=0,"",VLOOKUP(AR$6,'Input| Setup'!$D$8:$F$57,3,0)),"") -> Dx | AS8: =IFERROR(IF(VLOOKUP(AS$6,'Input| Setup'!$D$8:$F$57,3,0)=0,"",VLOOKUP(AS$6,'Input| Setup'!$D$8:$F$57,3,0)),"") -> Dx | AT8: =IFERROR(IF(VLOOKUP(AT$6,'Input| Setup'!$D$8:$F$57,3,0)=0,"",VLOOKUP(AT$6,'Input| Setup'!$D$8:$F$57,3,0)),"") -> Dx | AU8: =IFERROR(IF(VLOOKUP(AU$6,'Input| Setup'!$D$8:$F$57,3,0)=0,"",VLOOKUP(AU$6,'Input| Setup'!$D$8:$F$57,3,0)),"") -> Dx | AV8: =IFERROR(IF(VLOOKUP(AV$6,'Input| Setup'!$D$8:$F$57,3,0)=0,"",VLOOKUP(AV$6,'Input| Setup'!$D$8:$F$57,3,0)),"") -> Dx | AW8: =IFERROR(IF(VLOOKUP(AW$6,'Input| Setup'!$D$8:$F$57,3,0)=0,"",VLOOKUP(AW$6,'Input| Setup'!$D$8:$F$57,3,0)),"") -> Dx | AX8: =IFERROR(IF(VLOOKUP(AX$6,'Input| Setup'!$D$8:$F$57,3,0)=0,"",VLOOKUP(AX$6,'Input| Setup'!$D$8:$F$57,3,0)),"") -> Dx | AY8: =IFERROR(IF(VLOOKUP(AY$6,'Input| Setup'!$D$8:$F$57,3,0)=0,"",VLOOKUP(AY$6,'Input| Setup'!$D$8:$F$57,3,0)),"") -> Dx | AZ8: =IFERROR(IF(VLOOKUP(AZ$6,'Input| Setup'!$D$8:$F$57,3,0)=0,"",VLOOKUP(AZ$6,'Input| Setup'!$D$8:$F$57,3,0)),"") -> Dx | BA8: =IFERROR(IF(VLOOKUP(BA$6,'Input| Setup'!$D$8:$F$57,3,0)=0,"",VLOOKUP(BA$6,'Input| Setup'!$D$8:$F$57,3,0)),"") -> Dx | BB8: =IFERROR(IF(VLOOKUP(BB$6,'Input| Setup'!$D$8:$F$57,3,0)=0,"",VLOOKUP(BB$6,'Input| Setup'!$D$8:$F$57,3,0)),"") -> Dx | BC8: =IFERROR(IF(VLOOKUP(BC$6,'Input| Setup'!$D$8:$F$57,3,0)=0,"",VLOOKUP(BC$6,'Input| Setup'!$D$8:$F$57,3,0)),"") -> Dx | BD8: =IFERROR(IF(VLOOKUP(BD$6,'Input| Setup'!$D$8:$F$57,3,0)=0,"",VLOOKUP(BD$6,'Input| Setup'!$D$8:$F$57,3,0)),"") -> Dx | BE8: =IFERROR(IF(VLOOKUP(BE$6,'Input| Setup'!$D$8:$F$57,3,0)=0,"",VLOOKUP(BE$6,'Input| Setup'!$D$8:$F$57,3,0)),"") -> Dx | BF8: =IFERROR(IF(VLOOKUP(BF$6,'Input| Setup'!$D$8:$F$57,3,0)=0,"",VLOOKUP(BF$6,'Input| Setup'!$D$8:$F$57,3,0)),"") -> Dx | BG8: =IFERROR(IF(VLOOKUP(BG$6,'Input| Setup'!$D$8:$F$57,3,0)=0,"",VLOOKUP(BG$6,'Input| Setup'!$D$8:$F$57,3,0)),"") -> Dx | BH8: =IFERROR(IF(VLOOKUP(BH$6,'Input| Setup'!$D$8:$F$57,3,0)=0,"",VLOOKUP(BH$6,'Input| Setup'!$D$8:$F$57,3,0)),"") -> Dx | BI8: =IFERROR(IF(VLOOKUP(BI$6,'Input| Setup'!$D$8:$F$57,3,0)=0,"",VLOOKUP(BI$6,'Input| Setup'!$D$8:$F$57,3,0)),"") -> Dx | BJ8: =IFERROR(IF(VLOOKUP(BJ$6,'Input| Setup'!$D$8:$F$57,3,0)=0,"",VLOOKUP(BJ$6,'Input| Setup'!$D$8:$F$57,3,0)),"") -> Dx | BK8: =IFERROR(IF(VLOOKUP(BK$6,'Input| Setup'!$D$8:$F$57,3,0)=0,"",VLOOKUP(BK$6,'Input| Setup'!$D$8:$F$57,3,0)),"") -> Dx | BL8: =IFERROR(IF(VLOOKUP(BL$6,'Input| Setup'!$D$8:$F$57,3,0)=0,"",VLOOKUP(BL$6,'Input| Setup'!$D$8:$F$57,3,0)),"") -> Dx | BM8: =IFERROR(IF(VLOOKUP(BM$6,'Input| Setup'!$D$8:$F$57,3,0)=0,"",VLOOKUP(BM$6,'Input| Setup'!$D$8:$F$57,3,0)),"") -> Dx | BN8: =IFERROR(IF(VLOOKUP(BN$6,'Input| Setup'!$D$8:$F$57,3,0)=0,"",VLOOKUP(BN$6,'Input| Setup'!$D$8:$F$57,3,0)),"") -> Dx | BO8: =IFERROR(IF(VLOOKUP(BO$6,'Input| Setup'!$D$8:$F$57,3,0)=0,"",VLOOKUP(BO$6,'Input| Setup'!$D$8:$F$57,3,0)),"") -> Dx | BP8: =IFERROR(IF(VLOOKUP(BP$6,'Input| Setup'!$D$8:$F$57,3,0)=0,"",VLOOKUP(BP$6,'Input| Setup'!$D$8:$F$57,3,0)),"") ->  | BQ8: =IFERROR(IF(VLOOKUP(BQ$6,'Input| Setup'!$D$8:$F$57,3,0)=0,"",VLOOKUP(BQ$6,'Input| Setup'!$D$8:$F$57,3,0)),"") ->  | BR8: =IFERROR(IF(VLOOKUP(BR$6,'Input| Setup'!$D$8:$F$57,3,0)=0,"",VLOOKUP(BR$6,'Input| Setup'!$D$8:$F$57,3,0)),"") ->  | BS8: =IFERROR(IF(VLOOKUP(BS$6,'Input| Setup'!$D$8:$F$57,3,0)=0,"",VLOOKUP(BS$6,'Input| Setup'!$D$8:$F$57,3,0)),"") ->  | BT8: =IFERROR(IF(VLOOKUP(BT$6,'Input| Setup'!$D$8:$F$57,3,0)=0,"",VLOOKUP(BT$6,'Input| Setup'!$D$8:$F$57,3,0)),"") ->  | BU8: =IFERROR(IF(VLOOKUP(BU$6,'Input| Setup'!$D$8:$F$57,3,0)=0,"",VLOOKUP(BU$6,'Input| Setup'!$D$8:$F$57,3,0)),"") ->  | BV8: =IFERROR(IF(VLOOKUP(BV$6,'Input| Setup'!$D$8:$F$57,3,0)=0,"",VLOOKUP(BV$6,'Input| Setup'!$D$8:$F$57,3,0)),"") ->  | BW8: =IFERROR(IF(VLOOKUP(BW$6,'Input| Setup'!$D$8:$F$57,3,0)=0,"",VLOOKUP(BW$6,'Input| Setup'!$D$8:$F$57,3,0)),"") ->  | BX8: =IFERROR(IF(VLOOKUP(BX$6,'Input| Setup'!$D$8:$F$57,3,0)=0,"",VLOOKUP(BX$6,'Input| Setup'!$D$8:$F$57,3,0)),"") ->  | BY8: =IFERROR(IF(VLOOKUP(BY$6,'Input| Setup'!$D$8:$F$57,3,0)=0,"",VLOOKUP(BY$6,'Input| Setup'!$D$8:$F$57,3,0)),"") ->  | BZ8: =IFERROR(IF(VLOOKUP(BZ$6,'Input| Setup'!$D$8:$F$57,3,0)=0,"",VLOOKUP(BZ$6,'Input| Setup'!$D$8:$F$57,3,0)),"") ->  | CA8: =IFERROR(IF(VLOOKUP(CA$6,'Input| Setup'!$D$8:$F$57,3,0)=0,"",VLOOKUP(CA$6,'Input| Setup'!$D$8:$F$57,3,0)),"") ->  | CB8: =IFERROR(IF(VLOOKUP(CB$6,'Input| Setup'!$D$8:$F$57,3,0)=0,"",VLOOKUP(CB$6,'Input| Setup'!$D$8:$F$57,3,0)),"") ->  | CC8: =IFERROR(IF(VLOOKUP(CC$6,'Input| Setup'!$D$8:$F$57,3,0)=0,"",VLOOKUP(CC$6,'Input| Setup'!$D$8:$F$57,3,0)),"") ->  | CD8: =IFERROR(IF(VLOOKUP(CD$6,'Input| Setup'!$D$8:$F$57,3,0)=0,"",VLOOKUP(CD$6,'Input| Setup'!$D$8:$F$57,3,0)),"") ->  | CE8: =IFERROR(IF(VLOOKUP(CE$6,'Input| Setup'!$D$8:$F$57,3,0)=0,"",VLOOKUP(CE$6,'Input| Setup'!$D$8:$F$57,3,0)),"") ->  | CF8: =IFERROR(IF(VLOOKUP(CF$6,'Input| Setup'!$D$8:$F$57,3,0)=0,"",VLOOKUP(CF$6,'Input| Setup'!$D$8:$F$57,3,0)),"") ->  | CG8: =IFERROR(IF(VLOOKUP(CG$6,'Input| Setup'!$D$8:$F$57,3,0)=0,"",VLOOKUP(CG$6,'Input| Setup'!$D$8:$F$57,3,0)),"") ->  | CH8: =IFERROR(IF(VLOOKUP(CH$6,'Input| Setup'!$D$8:$F$57,3,0)=0,"",VLOOKUP(CH$6,'Input| Setup'!$D$8:$F$57,3,0)),"") ->  | CI8: =IFERROR(IF(VLOOKUP(CI$6,'Input| Setup'!$D$8:$F$57,3,0)=0,"",VLOOKUP(CI$6,'Input| Setup'!$D$8:$F$57,3,0)),"") ->  | CJ8: =IFERROR(IF(VLOOKUP(CJ$6,'Input| Setup'!$D$8:$F$57,3,0)=0,"",VLOOKUP(CJ$6,'Input| Setup'!$D$8:$F$57,3,0)),"") ->  | CK8: =IFERROR(IF(VLOOKUP(CK$6,'Input| Setup'!$D$8:$F$57,3,0)=0,"",VLOOKUP(CK$6,'Input| Setup'!$D$8:$F$57,3,0)),"") ->  | CL8: =IFERROR(IF(VLOOKUP(CL$6,'Input| Setup'!$D$8:$F$57,3,0)=0,"",VLOOKUP(CL$6,'Input| Setup'!$D$8:$F$57,3,0)),"") ->  | CM8: =IFERROR(IF(VLOOKUP(CM$6,'Input| Setup'!$D$8:$F$57,3,0)=0,"",VLOOKUP(CM$6,'Input| Setup'!$D$8:$F$57,3,0)),"") ->  | CN8: =IFERROR(IF(VLOOKUP(CN$6,'Input| Setup'!$D$8:$F$57,3,0)=0,"",VLOOKUP(CN$6,'Input| Setup'!$D$8:$F$57,3,0)),"") ->  | CO8: =IFERROR(IF(VLOOKUP(CO$6,'Input| Setup'!$D$8:$F$57,3,0)=0,"",VLOOKUP(CO$6,'Input| Setup'!$D$8:$F$57,3,0)),"") ->  | CP8: =IF(SUM(CP10:CP1009)=0,0,1) -> 0
C9: Project/Program Inputs | D9: Unique ID | F9: =MID('Input| Setup'!B19, 4, LEN('Input| Setup'!B19)) -> RIN categories | G9: DNSP category (free-fill) | I9: =IFERROR('Input| Escalations'!H25,"") -> 2023-24 | J9: =IFERROR('Input| Escalations'!I25,"") -> 2024-25 | K9: =IFERROR('Input| Escalations'!J25,"") -> 2025-26 | L9: =IFERROR('Input| Escalations'!K25,"") -> 2026-27 | M9: =IFERROR('Input| Escalations'!L25,"") -> 2027-28 | N9: =IFERROR('Input| Escalations'!M25,"") -> 2028-29 | O9: =IFERROR('Input| Escalations'!N25,"") -> 2029-30 | Q9: =IFERROR('Input| Escalations'!H25,"") -> 2023-24 | R9: =IFERROR('Input| Escalations'!I25,"") -> 2024-25 | S9: =IFERROR('Input| Escalations'!J25,"") -> 2025-26 | T9: =IFERROR('Input| Escalations'!K25,"") -> 2026-27 | U9: =IFERROR('Input| Escalations'!L25,"") -> 2027-28 | V9: =IFERROR('Input| Escalations'!M25,"") -> 2028-29 | W9: =IFERROR('Input| Escalations'!N25,"") -> 2029-30 | Y9: Internal labour | Z9: Contract labour | AA9: Non-labour | AC9: Network Overheads Applies | AD9: Corporate Overheads Applies | AF9: % of total network overheads | AG9: % of total corporate overheads | AI9: =IF('Input| Setup'!B32="","!Check",'Input| Setup'!B32) -> None specified | AJ9: =IF('Input| Setup'!B33="","!Check",'Input| Setup'!B33) -> [Spare] | AK9: =IF('Input| Setup'!B34="","!Check",'Input| Setup'!B34) -> [Spare] | AL9: =IF('Input| Setup'!B35="","!Check",'Input| Setup'!B35) -> [Spare] | AM9: =IF('Input| Setup'!B36="","!Check",'Input| Setup'!B36) -> [Spare] | AN9: =IF('Input| Setup'!B37="","!Check",'Input| Setup'!B37) -> [Spare] | AO9: =IF('Input| Setup'!B38="","!Check",'Input| Setup'!B38) -> [Spare] | AP9: =IF('Input| Setup'!B39="","!Check",'Input| Setup'!B39) -> [Spare] | AR9: =IFERROR(IF(VLOOKUP(AR$6,'Input| Setup'!$D$8:$E$57,2,0)=0,"",VLOOKUP(AR$6,'Input| Setup'!$D$8:$E$57,2,0)),"") -> Trunk Wilton-Sydney | AS9: =IF(VLOOKUP(AS$6,'Input| Setup'!$D$8:$E$57,2,0)=0,"",VLOOKUP(AS$6,'Input| Setup'!$D$8:$E$57,2,0)) -> Trunk Sydney-Newcastle | AT9: =IFERROR(IF(VLOOKUP(AT$6,'Input| Setup'!$D$8:$E$57,2,0)=0,"",VLOOKUP(AT$6,'Input| Setup'!$D$8:$E$57,2,0)),"") -> Trunk Wilton-Wollongong | AU9: =IFERROR(IF(VLOOKUP(AU$6,'Input| Setup'!$D$8:$E$57,2,0)=0,"",VLOOKUP(AU$6,'Input| Setup'!$D$8:$E$57,2,0)),"") -> Contract Meters | AV9: =IFERROR(IF(VLOOKUP(AV$6,'Input| Setup'!$D$8:$E$57,2,0)=0,"",VLOOKUP(AV$6,'Input| Setup'!$D$8:$E$57,2,0)),"") -> Fixed Plant - Distribution | AW9: =IFERROR(IF(VLOOKUP(AW$6,'Input| Setup'!$D$8:$E$57,2,0)=0,"",VLOOKUP(AW$6,'Input| Setup'!$D$8:$E$57,2,0)),"") -> HP Mains | AX9: =IFERROR(IF(VLOOKUP(AX$6,'Input| Setup'!$D$8:$E$57,2,0)=0,"",VLOOKUP(AX$6,'Input| Setup'!$D$8:$E$57,2,0)),"") -> HP Services | AY9: =IFERROR(IF(VLOOKUP(AY$6,'Input| Setup'!$D$8:$E$57,2,0)=0,"",VLOOKUP(AY$6,'Input| Setup'!$D$8:$E$57,2,0)),"") -> MP Mains | AZ9: =IFERROR(IF(VLOOKUP(AZ$6,'Input| Setup'!$D$8:$E$57,2,0)=0,"",VLOOKUP(AZ$6,'Input| Setup'!$D$8:$E$57,2,0)),"") -> MP Services | BA9: =IFERROR(IF(VLOOKUP(BA$6,'Input| Setup'!$D$8:$E$57,2,0)=0,"",VLOOKUP(BA$6,'Input| Setup'!$D$8:$E$57,2,0)),"") -> Meter Reading Devices | BB9: =IFERROR(IF(VLOOKUP(BB$6,'Input| Setup'!$D$8:$E$57,2,0)=0,"",VLOOKUP(BB$6,'Input| Setup'!$D$8:$E$57,2,0)),"") -> Country POTS | BC9: =IFERROR(IF(VLOOKUP(BC$6,'Input| Setup'!$D$8:$E$57,2,0)=0,"",VLOOKUP(BC$6,'Input| Setup'!$D$8:$E$57,2,0)),"") -> Tariff Meters | BD9: =IFERROR(IF(VLOOKUP(BD$6,'Input| Setup'!$D$8:$E$57,2,0)=0,"",VLOOKUP(BD$6,'Input| Setup'!$D$8:$E$57,2,0)),"") -> Computers - IT Infrastructure | BE9: =IFERROR(IF(VLOOKUP(BE$6,'Input| Setup'!$D$8:$E$57,2,0)=0,"",VLOOKUP(BE$6,'Input| Setup'!$D$8:$E$57,2,0)),"") -> Fixed Plant | BF9: =IFERROR(IF(VLOOKUP(BF$6,'Input| Setup'!$D$8:$E$57,2,0)=0,"",VLOOKUP(BF$6,'Input| Setup'!$D$8:$E$57,2,0)),"") -> Furniture | BG9: =IFERROR(IF(VLOOKUP(BG$6,'Input| Setup'!$D$8:$E$57,2,0)=0,"",VLOOKUP(BG$6,'Input| Setup'!$D$8:$E$57,2,0)),"") -> Land | BH9: =IFERROR(IF(VLOOKUP(BH$6,'Input| Setup'!$D$8:$E$57,2,0)=0,"",VLOOKUP(BH$6,'Input| Setup'!$D$8:$E$57,2,0)),"") -> Low value assets | BI9: =IFERROR(IF(VLOOKUP(BI$6,'Input| Setup'!$D$8:$E$57,2,0)=0,"",VLOOKUP(BI$6,'Input| Setup'!$D$8:$E$57,2,0)),"") -> Mobile Plant | BJ9: =IFERROR(IF(VLOOKUP(BJ$6,'Input| Setup'!$D$8:$E$57,2,0)=0,"",VLOOKUP(BJ$6,'Input| Setup'!$D$8:$E$57,2,0)),"") -> Vehicles | BK9: =IFERROR(IF(VLOOKUP(BK$6,'Input| Setup'!$D$8:$E$57,2,0)=0,"",VLOOKUP(BK$6,'Input| Setup'!$D$8:$E$57,2,0)),"") -> Existing pigging and inspection costs | BL9: =IFERROR(IF(VLOOKUP(BL$6,'Input| Setup'!$D$8:$E$57,2,0)=0,"",VLOOKUP(BL$6,'Input| Setup'!$D$8:$E$57,2,0)),"") -> Leasehold Improvements (SL) | BM9: =IFERROR(IF(VLOOKUP(BM$6,'Input| Setup'!$D$8:$E$57,2,0)=0,"",VLOOKUP(BM$6,'Input| Setup'!$D$8:$E$57,2,0)),"") -> Buildings (SL) | BN9: =IFERROR(IF(VLOOKUP(BN$6,'Input| Setup'!$D$8:$E$57,2,0)=0,"",VLOOKUP(BN$6,'Input| Setup'!$D$8:$E$57,2,0)),"") -> Software - Inhouse (SL) | BO9: =IFERROR(IF(VLOOKUP(BO$6,'Input| Setup'!$D$8:$E$57,2,0)=0,"",VLOOKUP(BO$6,'Input| Setup'!$D$8:$E$57,2,0)),"") -> Equity raising costs | BP9: =IFERROR(IF(VLOOKUP(BP$6,'Input| Setup'!$D$8:$E$57,2,0)=0,"",VLOOKUP(BP$6,'Input| Setup'!$D$8:$E$57,2,0)),"") -> [please select from list] | BQ9: =IFERROR(IF(VLOOKUP(BQ$6,'Input| Setup'!$D$8:$E$57,2,0)=0,"",VLOOKUP(BQ$6,'Input| Setup'!$D$8:$E$57,2,0)),"") ->  | BR9: =IFERROR(IF(VLOOKUP(BR$6,'Input| Setup'!$D$8:$E$57,2,0)=0,"",VLOOKUP(BR$6,'Input| Setup'!$D$8:$E$57,2,0)),"") ->  | BS9: =IFERROR(IF(VLOOKUP(BS$6,'Input| Setup'!$D$8:$E$57,2,0)=0,"",VLOOKUP(BS$6,'Input| Setup'!$D$8:$E$57,2,0)),"") ->  | BT9: =IFERROR(IF(VLOOKUP(BT$6,'Input| Setup'!$D$8:$E$57,2,0)=0,"",VLOOKUP(BT$6,'Input| Setup'!$D$8:$E$57,2,0)),"") ->  | BU9: =IFERROR(IF(VLOOKUP(BU$6,'Input| Setup'!$D$8:$E$57,2,0)=0,"",VLOOKUP(BU$6,'Input| Setup'!$D$8:$E$57,2,0)),"") ->  | BV9: =IFERROR(IF(VLOOKUP(BV$6,'Input| Setup'!$D$8:$E$57,2,0)=0,"",VLOOKUP(BV$6,'Input| Setup'!$D$8:$E$57,2,0)),"") ->  | BW9: =IFERROR(IF(VLOOKUP(BW$6,'Input| Setup'!$D$8:$E$57,2,0)=0,"",VLOOKUP(BW$6,'Input| Setup'!$D$8:$E$57,2,0)),"") ->  | BX9: =IFERROR(IF(VLOOKUP(BX$6,'Input| Setup'!$D$8:$E$57,2,0)=0,"",VLOOKUP(BX$6,'Input| Setup'!$D$8:$E$57,2,0)),"") ->  | BY9: =IFERROR(IF(VLOOKUP(BY$6,'Input| Setup'!$D$8:$E$57,2,0)=0,"",VLOOKUP(BY$6,'Input| Setup'!$D$8:$E$57,2,0)),"") ->  | BZ9: =IFERROR(IF(VLOOKUP(BZ$6,'Input| Setup'!$D$8:$E$57,2,0)=0,"",VLOOKUP(BZ$6,'Input| Setup'!$D$8:$E$57,2,0)),"") ->  | CA9: =IFERROR(IF(VLOOKUP(CA$6,'Input| Setup'!$D$8:$E$57,2,0)=0,"",VLOOKUP(CA$6,'Input| Setup'!$D$8:$E$57,2,0)),"") ->  | CB9: =IFERROR(IF(VLOOKUP(CB$6,'Input| Setup'!$D$8:$E$57,2,0)=0,"",VLOOKUP(CB$6,'Input| Setup'!$D$8:$E$57,2,0)),"") ->  | CC9: =IFERROR(IF(VLOOKUP(CC$6,'Input| Setup'!$D$8:$E$57,2,0)=0,"",VLOOKUP(CC$6,'Input| Setup'!$D$8:$E$57,2,0)),"") ->  | CD9: =IFERROR(IF(VLOOKUP(CD$6,'Input| Setup'!$D$8:$E$57,2,0)=0,"",VLOOKUP(CD$6,'Input| Setup'!$D$8:$E$57,2,0)),"") ->  | CE9: =IFERROR(IF(VLOOKUP(CE$6,'Input| Setup'!$D$8:$E$57,2,0)=0,"",VLOOKUP(CE$6,'Input| Setup'!$D$8:$E$57,2,0)),"") ->  | CF9: =IFERROR(IF(VLOOKUP(CF$6,'Input| Setup'!$D$8:$E$57,2,0)=0,"",VLOOKUP(CF$6,'Input| Setup'!$D$8:$E$57,2,0)),"") ->  | CG9: =IFERROR(IF(VLOOKUP(CG$6,'Input| Setup'!$D$8:$E$57,2,0)=0,"",VLOOKUP(CG$6,'Input| Setup'!$D$8:$E$57,2,0)),"") ->  | CH9: =IFERROR(IF(VLOOKUP(CH$6,'Input| Setup'!$D$8:$E$57,2,0)=0,"",VLOOKUP(CH$6,'Input| Setup'!$D$8:$E$57,2,0)),"") ->  | CI9: =IFERROR(IF(VLOOKUP(CI$6,'Input| Setup'!$D$8:$E$57,2,0)=0,"",VLOOKUP(CI$6,'Input| Setup'!$D$8:$E$57,2,0)),"") ->  | CJ9: =IFERROR(IF(VLOOKUP(CJ$6,'Input| Setup'!$D$8:$E$57,2,0)=0,"",VLOOKUP(CJ$6,'Input| Setup'!$D$8:$E$57,2,0)),"") ->  | CK9: =IFERROR(IF(VLOOKUP(CK$6,'Input| Setup'!$D$8:$E$57,2,0)=0,"",VLOOKUP(CK$6,'Input| Setup'!$D$8:$E$57,2,0)),"") ->  | CL9: =IFERROR(IF(VLOOKUP(CL$6,'Input| Setup'!$D$8:$E$57,2,0)=0,"",VLOOKUP(CL$6,'Input| Setup'!$D$8:$E$57,2,0)),"") ->  | CM9: =IFERROR(IF(VLOOKUP(CM$6,'Input| Setup'!$D$8:$E$57,2,0)=0,"",VLOOKUP(CM$6,'Input| Setup'!$D$8:$E$57,2,0)),"") ->  | CN9: =IFERROR(IF(VLOOKUP(CN$6,'Input| Setup'!$D$8:$E$57,2,0)=0,"",VLOOKUP(CN$6,'Input| Setup'!$D$8:$E$57,2,0)),"") ->  | CO9: =IFERROR(IF(VLOOKUP(CO$6,'Input| Setup'!$D$8:$E$57,2,0)=0,"",VLOOKUP(CO$6,'Input| Setup'!$D$8:$E$57,2,0)),"") -> 
B10: 1 | C10: Electricity to Gas Distribution mains | D10: R-CGF | F10: Connections | G10: Refer to sheet 'Input|JGN mapping | I10: 2818.771963 | J10: 2677.833365 | K10: 2410.050029 | L10: 1928.040023 | M10: 1349.628016 | N10: 944.7396113 | O10: 472.3698056 | Q10: 127.6903699 | R10: 121.3058514 | S10: 136.4088316 | T10: 109.1270653 | U10: 76.38894571 | V10: 53.472262 | W10: 26.736131 | Y10: 0.7736161426 | Z10: 0.2263838574 | AA10: 0 | AB10: =IF(SUM(Y10:AA10,I10:O10)=0,"",IF(SUM(Y10:AA10)=1,"",1)) ->  | AC10: Yes | AD10: No | AI10: =+IF(SUM(I10:O10)<>0,1,0) -> 1 | AR10: =IF($C10="","",IF(TRIM('Input| JGN Mapping'!$J10)=TRIM('Input| Projects'!AR$9),1,0)) -> 0 | AS10: =IF($C10="","",IF(TRIM('Input| JGN Mapping'!$J10)=TRIM('Input| Projects'!AS$9),1,0)) -> 0 | AT10: =IF($C10="","",IF(TRIM('Input| JGN Mapping'!$J10)=TRIM('Input| Projects'!AT$9),1,0)) -> 0 | AU10: =IF($C10="","",IF(TRIM('Input| JGN Mapping'!$J10)=TRIM('Input| Projects'!AU$9),1,0)) -> 0 | AV10: =IF($C10="","",IF(TRIM('Input| JGN Mapping'!$J10)=TRIM('Input| Projects'!AV$9),1,0)) -> 0 | AW10: =IF($C10="","",IF(TRIM('Input| JGN Mapping'!$J10)=TRIM('Input| Projects'!AW$9),1,0)) -> 0 | AX10: =IF($C10="","",IF(TRIM('Input| JGN Mapping'!$J10)=TRIM('Input| Projects'!AX$9),1,0)) -> 0 | AY10: =IF($C10="","",IF(TRIM('Input| JGN Mapping'!$J10)=TRIM('Input| Projects'!AY$9),1,0)) -> 1 | AZ10: =IF($C10="","",IF(TRIM('Input| JGN Mapping'!$J10)=TRIM('Input| Projects'!AZ$9),1,0)) -> 0 | BA10: =IF($C10="","",IF(TRIM('Input| JGN Mapping'!$J10)=TRIM('Input| Projects'!BA$9),1,0)) -> 0 | BB10: =IF($C10="","",IF(TRIM('Input| JGN Mapping'!$J10)=TRIM('Input| Projects'!BB$9),1,0)) -> 0 | BC10: =IF($C10="","",IF(TRIM('Input| JGN Mapping'!$J10)=TRIM('Input| Projects'!BC$9),1,0)) -> 0 | BD10: =IF($C10="","",IF(TRIM('Input| JGN Mapping'!$J10)=TRIM('Input| Projects'!BD$9),1,0)) -> 0 | BE10: =IF($C10="","",IF(TRIM('Input| JGN Mapping'!$J10)=TRIM('Input| Projects'!BE$9),1,0)) -> 0 | BF10: =IF($C10="","",IF(TRIM('Input| JGN Mapping'!$J10)=TRIM('Input| Projects'!BF$9),1,0)) -> 0 | BG10: =IF($C10="","",IF(TRIM('Input| JGN Mapping'!$J10)=TRIM('Input| Projects'!BG$9),1,0)) -> 0 | BH10: =IF($C10="","",IF(TRIM('Input| JGN Mapping'!$J10)=TRIM('Input| Projects'!BH$9),1,0)) -> 0 | BI10: =IF($C10="","",IF(TRIM('Input| JGN Mapping'!$J10)=TRIM('Input| Projects'!BI$9),1,0)) -> 0 | BJ10: =IF($C10="","",IF(TRIM('Input| JGN Mapping'!$J10)=TRIM('Input| Projects'!BJ$9),1,0)) -> 0 | BK10: =IF($C10="","",IF(TRIM('Input| JGN Mapping'!$J10)=TRIM('Input| Projects'!BK$9),1,0)) -> 0 | BL10: =IF($C10="","",IF(TRIM('Input| JGN Mapping'!$J10)=TRIM('Input| Projects'!BL$9),1,0)) -> 0 | BM10: =IF($C10="","",IF(TRIM('Input| JGN Mapping'!$J10)=TRIM('Input| Projects'!BM$9),1,0)) -> 0 | BN10: =IF($C10="","",IF(TRIM('Input| JGN Mapping'!$J10)=TRIM('Input| Projects'!BN$9),1,0)) -> 0 | BO10: =IF($C10="","",IF(TRIM('Input| JGN Mapping'!$J10)=TRIM('Input| Projects'!BO$9),1,0)) -> 0 | BP10: =IF($C10="","",IF(TRIM('Input| JGN Mapping'!$J10)=TRIM('Input| Projects'!BP$9),1,0)) -> 0 | BQ10: =IF($C10="","",IF(TRIM('Input| JGN Mapping'!$J10)=TRIM('Input| Projects'!BQ$9),1,0)) -> 0 | BR10: =IF($C10="","",IF(TRIM('Input| JGN Mapping'!$J10)=TRIM('Input| Projects'!BR$9),1,0)) -> 0 | BS10: =IF($C10="","",IF(TRIM('Input| JGN Mapping'!$J10)=TRIM('Input| Projects'!BS$9),1,0)) -> 0 | BT10: =IF($C10="","",IF(TRIM('Input| JGN Mapping'!$J10)=TRIM('Input| Projects'!BT$9),1,0)) -> 0 | BU10: =IF($C10="","",IF(TRIM('Input| JGN Mapping'!$J10)=TRIM('Input| Projects'!BU$9),1,0)) -> 0 | BV10: =IF($C10="","",IF(TRIM('Input| JGN Mapping'!$J10)=TRIM('Input| Projects'!BV$9),1,0)) -> 0 | BW10: =IF($C10="","",IF(TRIM('Input| JGN Mapping'!$J10)=TRIM('Input| Projects'!BW$9),1,0)) -> 0 | BX10: =IF($C10="","",IF(TRIM('Input| JGN Mapping'!$J10)=TRIM('Input| Projects'!BX$9),1,0)) -> 0 | BY10: =IF($C10="","",IF(TRIM('Input| JGN Mapping'!$J10)=TRIM('Input| Projects'!BY$9),1,0)) -> 0 | BZ10: =IF($C10="","",IF(TRIM('Input| JGN Mapping'!$J10)=TRIM('Input| Projects'!BZ$9),1,0)) -> 0 | CA10: =IF($C10="","",IF(TRIM('Input| JGN Mapping'!$J10)=TRIM('Input| Projects'!CA$9),1,0)) -> 0 | CB10: =IF($C10="","",IF(TRIM('Input| JGN Mapping'!$J10)=TRIM('Input| Projects'!CB$9),1,0)) -> 0 | CC10: =IF($C10="","",IF(TRIM('Input| JGN Mapping'!$J10)=TRIM('Input| Projects'!CC$9),1,0)) -> 0 | CD10: =IF($C10="","",IF(TRIM('Input| JGN Mapping'!$J10)=TRIM('Input| Projects'!CD$9),1,0)) -> 0 | CE10: =IF($C10="","",IF(TRIM('Input| JGN Mapping'!$J10)=TRIM('Input| Projects'!CE$9),1,0)) -> 0 | CF10: =IF($C10="","",IF(TRIM('Input| JGN Mapping'!$J10)=TRIM('Input| Projects'!CF$9),1,0)) -> 0 | CG10: =IF($C10="","",IF(TRIM('Input| JGN Mapping'!$J10)=TRIM('Input| Projects'!CG$9),1,0)) -> 0 | CH10: =IF($C10="","",IF(TRIM('Input| JGN Mapping'!$J10)=TRIM('Input| Projects'!CH$9),1,0)) -> 0 | CI10: =IF($C10="","",IF(TRIM('Input| JGN Mapping'!$J10)=TRIM('Input| Projects'!CI$9),1,0)) -> 0 | CJ10: =IF($C10="","",IF(TRIM('Input| JGN Mapping'!$J10)=TRIM('Input| Projects'!CJ$9),1,0)) -> 0 | CK10: =IF($C10="","",IF(TRIM('Input| JGN Mapping'!$J10)=TRIM('Input| Projects'!CK$9),1,0)) -> 0 | CL10: =IF($C10="","",IF(TRIM('Input| JGN Mapping'!$J10)=TRIM('Input| Projects'!CL$9),1,0)) -> 0 | CM10: =IF($C10="","",IF(TRIM('Input| JGN Mapping'!$J10)=TRIM('Input| Projects'!CM$9),1,0)) -> 0 | CN10: =IF($C10="","",IF(TRIM('Input| JGN Mapping'!$J10)=TRIM('Input| Projects'!CN$9),1,0)) -> 0 | CO10: =IF($C10="","",IF(TRIM('Input| JGN Mapping'!$J10)=TRIM('Input| Projects'!CO$9),1,0)) -> 0 | CP10: =_xlfn.SWITCH(TRUE, LEN(C10)<1,0, (SUM(AR10:CO10)<>1)*1) -> 0
B11: =IFERROR(B10+1,"") -> 2 | C11: Industrial & Commercial Contract Distribution mains | D11: R-CGH | F11: Connections | G11: Refer to sheet 'Input|JGN mapping | I11: 2240.087863 | J11: 2240.087863 | K11: 2240.087863 | L11: 2240.087863 | M11: 2240.087863 | N11: 2240.087863 | O11: 2240.087863 | Q11: 101.4759802 | R11: 101.4759802 | S11: 126.7889731 | T11: 126.7889731 | U11: 126.7889731 | V11: 126.7889731 | W11: 126.7889731 | Y11: 0.1688955405 | Z11: 0.793000871 | AA11: 0.03810358843 | AB11: =IF(SUM(Y11:AA11,I11:O11)=0,"",IF(SUM(Y11:AA11)=1,"",1)) ->  | AC11: Yes | AD11: No | AI11: =+IF(SUM(I11:O11)<>0,1,0) -> 1 | AR11: =IF($C11="","",IF(TRIM('Input| JGN Mapping'!$J11)=TRIM('Input| Projects'!AR$9),1,0)) -> 0 | AS11: =IF($C11="","",IF(TRIM('Input| JGN Mapping'!$J11)=TRIM('Input| Projects'!AS$9),1,0)) -> 0 | AT11: =IF($C11="","",IF(TRIM('Input| JGN Mapping'!$J11)=TRIM('Input| Projects'!AT$9),1,0)) -> 0 | AU11: =IF($C11="","",IF(TRIM('Input| JGN Mapping'!$J11)=TRIM('Input| Projects'!AU$9),1,0)) -> 0 | AV11: =IF($C11="","",IF(TRIM('Input| JGN Mapping'!$J11)=TRIM('Input| Projects'!AV$9),1,0)) -> 0 | AW11: =IF($C11="","",IF(TRIM('Input| JGN Mapping'!$J11)=TRIM('Input| Projects'!AW$9),1,0)) -> 1 | AX11: =IF($C11="","",IF(TRIM('Input| JGN Mapping'!$J11)=TRIM('Input| Projects'!AX$9),1,0)) -> 0 | AY11: =IF($C11="","",IF(TRIM('Input| JGN Mapping'!$J11)=TRIM('Input| Projects'!AY$9),1,0)) -> 0 | AZ11: =IF($C11="","",IF(TRIM('Input| JGN Mapping'!$J11)=TRIM('Input| Projects'!AZ$9),1,0)) -> 0 | BA11: =IF($C11="","",IF(TRIM('Input| JGN Mapping'!$J11)=TRIM('Input| Projects'!BA$9),1,0)) -> 0 | BB11: =IF($C11="","",IF(TRIM('Input| JGN Mapping'!$J11)=TRIM('Input| Projects'!BB$9),1,0)) -> 0 | BC11: =IF($C11="","",IF(TRIM('Input| JGN Mapping'!$J11)=TRIM('Input| Projects'!BC$9),1,0)) -> 0 | BD11: =IF($C11="","",IF(TRIM('Input| JGN Mapping'!$J11)=TRIM('Input| Projects'!BD$9),1,0)) -> 0 | BE11: =IF($C11="","",IF(TRIM('Input| JGN Mapping'!$J11)=TRIM('Input| Projects'!BE$9),1,0)) -> 0 | BF11: =IF($C11="","",IF(TRIM('Input| JGN Mapping'!$J11)=TRIM('Input| Projects'!BF$9),1,0)) -> 0 | BG11: =IF($C11="","",IF(TRIM('Input| JGN Mapping'!$J11)=TRIM('Input| Projects'!BG$9),1,0)) -> 0 | BH11: =IF($C11="","",IF(TRIM('Input| JGN Mapping'!$J11)=TRIM('Input| Projects'!BH$9),1,0)) -> 0 | BI11: =IF($C11="","",IF(TRIM('Input| JGN Mapping'!$J11)=TRIM('Input| Projects'!BI$9),1,0)) -> 0 | BJ11: =IF($C11="","",IF(TRIM('Input| JGN Mapping'!$J11)=TRIM('Input| Projects'!BJ$9),1,0)) -> 0 | BK11: =IF($C11="","",IF(TRIM('Input| JGN Mapping'!$J11)=TRIM('Input| Projects'!BK$9),1,0)) -> 0 | BL11: =IF($C11="","",IF(TRIM('Input| JGN Mapping'!$J11)=TRIM('Input| Projects'!BL$9),1,0)) -> 0 | BM11: =IF($C11="","",IF(TRIM('Input| JGN Mapping'!$J11)=TRIM('Input| Projects'!BM$9),1,0)) -> 0 | BN11: =IF($C11="","",IF(TRIM('Input| JGN Mapping'!$J11)=TRIM('Input| Projects'!BN$9),1,0)) -> 0 | BO11: =IF($C11="","",IF(TRIM('Input| JGN Mapping'!$J11)=TRIM('Input| Projects'!BO$9),1,0)) -> 0 | BP11: =IF($C11="","",IF(TRIM('Input| JGN Mapping'!$J11)=TRIM('Input| Projects'!BP$9),1,0)) -> 0 | BQ11: =IF($C11="","",IF(TRIM('Input| JGN Mapping'!$J11)=TRIM('Input| Projects'!BQ$9),1,0)) -> 0 | BR11: =IF($C11="","",IF(TRIM('Input| JGN Mapping'!$J11)=TRIM('Input| Projects'!BR$9),1,0)) -> 0 | BS11: =IF($C11="","",IF(TRIM('Input| JGN Mapping'!$J11)=TRIM('Input| Projects'!BS$9),1,0)) -> 0 | BT11: =IF($C11="","",IF(TRIM('Input| JGN Mapping'!$J11)=TRIM('Input| Projects'!BT$9),1,0)) -> 0 | BU11: =IF($C11="","",IF(TRIM('Input| JGN Mapping'!$J11)=TRIM('Input| Projects'!BU$9),1,0)) -> 0 | BV11: =IF($C11="","",IF(TRIM('Input| JGN Mapping'!$J11)=TRIM('Input| Projects'!BV$9),1,0)) -> 0 | BW11: =IF($C11="","",IF(TRIM('Input| JGN Mapping'!$J11)=TRIM('Input| Projects'!BW$9),1,0)) -> 0 | BX11: =IF($C11="","",IF(TRIM('Input| JGN Mapping'!$J11)=TRIM('Input| Projects'!BX$9),1,0)) -> 0 | BY11: =IF($C11="","",IF(TRIM('Input| JGN Mapping'!$J11)=TRIM('Input| Projects'!BY$9),1,0)) -> 0 | BZ11: =IF($C11="","",IF(TRIM('Input| JGN Mapping'!$J11)=TRIM('Input| Projects'!BZ$9),1,0)) -> 0 | CA11: =IF($C11="","",IF(TRIM('Input| JGN Mapping'!$J11)=TRIM('Input| Projects'!CA$9),1,0)) -> 0 | CB11: =IF($C11="","",IF(TRIM('Input| JGN Mapping'!$J11)=TRIM('Input| Projects'!CB$9),1,0)) -> 0 | CC11: =IF($C11="","",IF(TRIM('Input| JGN Mapping'!$J11)=TRIM('Input| Projects'!CC$9),1,0)) -> 0 | CD11: =IF($C11="","",IF(TRIM('Input| JGN Mapping'!$J11)=TRIM('Input| Projects'!CD$9),1,0)) -> 0 | CE11: =IF($C11="","",IF(TRIM('Input| JGN Mapping'!$J11)=TRIM('Input| Projects'!CE$9),1,0)) -> 0 | CF11: =IF($C11="","",IF(TRIM('Input| JGN Mapping'!$J11)=TRIM('Input| Projects'!CF$9),1,0)) -> 0 | CG11: =IF($C11="","",IF(TRIM('Input| JGN Mapping'!$J11)=TRIM('Input| Projects'!CG$9),1,0)) -> 0 | CH11: =IF($C11="","",IF(TRIM('Input| JGN Mapping'!$J11)=TRIM('Input| Projects'!CH$9),1,0)) -> 0 | CI11: =IF($C11="","",IF(TRIM('Input| JGN Mapping'!$J11)=TRIM('Input| Projects'!CI$9),1,0)) -> 0 | CJ11: =IF($C11="","",IF(TRIM('Input| JGN Mapping'!$J11)=TRIM('Input| Projects'!CJ$9),1,0)) -> 0 | CK11: =IF($C11="","",IF(TRIM('Input| JGN Mapping'!$J11)=TRIM('Input| Projects'!CK$9),1,0)) -> 0 | CL11: =IF($C11="","",IF(TRIM('Input| JGN Mapping'!$J11)=TRIM('Input| Projects'!CL$9),1,0)) -> 0 | CM11: =IF($C11="","",IF(TRIM('Input| JGN Mapping'!$J11)=TRIM('Input| Projects'!CM$9),1,0)) -> 0 | CN11: =IF($C11="","",IF(TRIM('Input| JGN Mapping'!$J11)=TRIM('Input| Projects'!CN$9),1,0)) -> 0 | CO11: =IF($C11="","",IF(TRIM('Input| JGN Mapping'!$J11)=TRIM('Input| Projects'!CO$9),1,0)) -> 0 | CP11: =_xlfn.SWITCH(TRUE, LEN(C11)<1,0, (SUM(AR11:CO11)<>1)*1) -> 0
B12: =IFERROR(B11+1,"") -> 3 | C12: Industrial & Commercial Tariff Distribution mains | D12: R-CGI | F12: Connections | G12: Refer to sheet 'Input|JGN mapping | I12: 3828.00042 | J12: 3878.285062 | K12: 3929.230244 | L12: 3980.844642 | M12: 4033.137047 | N12: 4086.116365 | O12: 4139.791621 | Q12: 173.408419 | R12: 175.6863133 | S12: 222.3944318 | T12: 225.3158067 | U12: 228.2755568 | V12: 231.2741863 | W12: 234.3122057 | Y12: 0.7423215626 | Z12: 0.2576784374 | AA12: 0 | AC12: Yes | AD12: No | AI12: 1 | AR12: =IF($C12="","",IF(TRIM('Input| JGN Mapping'!$J12)=TRIM('Input| Projects'!AR$9),1,0)) -> 0 | AS12: =IF($C12="","",IF(TRIM('Input| JGN Mapping'!$J12)=TRIM('Input| Projects'!AS$9),1,0)) -> 0 | AT12: =IF($C12="","",IF(TRIM('Input| JGN Mapping'!$J12)=TRIM('Input| Projects'!AT$9),1,0)) -> 0 | AU12: =IF($C12="","",IF(TRIM('Input| JGN Mapping'!$J12)=TRIM('Input| Projects'!AU$9),1,0)) -> 0 | AV12: =IF($C12="","",IF(TRIM('Input| JGN Mapping'!$J12)=TRIM('Input| Projects'!AV$9),1,0)) -> 0 | AW12: =IF($C12="","",IF(TRIM('Input| JGN Mapping'!$J12)=TRIM('Input| Projects'!AW$9),1,0)) -> 0 | AX12: =IF($C12="","",IF(TRIM('Input| JGN Mapping'!$J12)=TRIM('Input| Projects'!AX$9),1,0)) -> 0 | AY12: =IF($C12="","",IF(TRIM('Input| JGN Mapping'!$J12)=TRIM('Input| Projects'!AY$9),1,0)) -> 1 | AZ12: =IF($C12="","",IF(TRIM('Input| JGN Mapping'!$J12)=TRIM('Input| Projects'!AZ$9),1,0)) -> 0 | BA12: =IF($C12="","",IF(TRIM('Input| JGN Mapping'!$J12)=TRIM('Input| Projects'!BA$9),1,0)) -> 0 | BB12: =IF($C12="","",IF(TRIM('Input| JGN Mapping'!$J12)=TRIM('Input| Projects'!BB$9),1,0)) -> 0 | BC12: =IF($C12="","",IF(TRIM('Input| JGN Mapping'!$J12)=TRIM('Input| Projects'!BC$9),1,0)) -> 0 | BD12: =IF($C12="","",IF(TRIM('Input| JGN Mapping'!$J12)=TRIM('Input| Projects'!BD$9),1,0)) -> 0 | BE12: =IF($C12="","",IF(TRIM('Input| JGN Mapping'!$J12)=TRIM('Input| Projects'!BE$9),1,0)) -> 0 | BF12: =IF($C12="","",IF(TRIM('Input| JGN Mapping'!$J12)=TRIM('Input| Projects'!BF$9),1,0)) -> 0 | BG12: =IF($C12="","",IF(TRIM('Input| JGN Mapping'!$J12)=TRIM('Input| Projects'!BG$9),1,0)) -> 0 | BH12: =IF($C12="","",IF(TRIM('Input| JGN Mapping'!$J12)=TRIM('Input| Projects'!BH$9),1,0)) -> 0 | BI12: =IF($C12="","",IF(TRIM('Input| JGN Mapping'!$J12)=TRIM('Input| Projects'!BI$9),1,0)) -> 0 | BJ12: =IF($C12="","",IF(TRIM('Input| JGN Mapping'!$J12)=TRIM('Input| Projects'!BJ$9),1,0)) -> 0 | BK12: =IF($C12="","",IF(TRIM('Input| JGN Mapping'!$J12)=TRIM('Input| Projects'!BK$9),1,0)) -> 0 | BL12: =IF($C12="","",IF(TRIM('Input| JGN Mapping'!$J12)=TRIM('Input| Projects'!BL$9),1,0)) -> 0 | BM12: =IF($C12="","",IF(TRIM('Input| JGN Mapping'!$J12)=TRIM('Input| Projects'!BM$9),1,0)) -> 0 | BN12: =IF($C12="","",IF(TRIM('Input| JGN Mapping'!$J12)=TRIM('Input| Projects'!BN$9),1,0)) -> 0 | BO12: =IF($C12="","",IF(TRIM('Input| JGN Mapping'!$J12)=TRIM('Input| Projects'!BO$9),1,0)) -> 0 | BP12: =IF($C12="","",IF(TRIM('Input| JGN Mapping'!$J12)=TRIM('Input| Projects'!BP$9),1,0)) -> 0 | BQ12: =IF($C12="","",IF(TRIM('Input| JGN Mapping'!$J12)=TRIM('Input| Projects'!BQ$9),1,0)) -> 0 | BR12: =IF($C12="","",IF(TRIM('Input| JGN Mapping'!$J12)=TRIM('Input| Projects'!BR$9),1,0)) -> 0 | BS12: =IF($C12="","",IF(TRIM('Input| JGN Mapping'!$J12)=TRIM('Input| Projects'!BS$9),1,0)) -> 0 | BT12: =IF($C12="","",IF(TRIM('Input| JGN Mapping'!$J12)=TRIM('Input| Projects'!BT$9),1,0)) -> 0 | BU12: =IF($C12="","",IF(TRIM('Input| JGN Mapping'!$J12)=TRIM('Input| Projects'!BU$9),1,0)) -> 0 | BV12: =IF($C12="","",IF(TRIM('Input| JGN Mapping'!$J12)=TRIM('Input| Projects'!BV$9),1,0)) -> 0 | BW12: =IF($C12="","",IF(TRIM('Input| JGN Mapping'!$J12)=TRIM('Input| Projects'!BW$9),1,0)) -> 0 | BX12: =IF($C12="","",IF(TRIM('Input| JGN Mapping'!$J12)=TRIM('Input| Projects'!BX$9),1,0)) -> 0 | BY12: =IF($C12="","",IF(TRIM('Input| JGN Mapping'!$J12)=TRIM('Input| Projects'!BY$9),1,0)) -> 0 | BZ12: =IF($C12="","",IF(TRIM('Input| JGN Mapping'!$J12)=TRIM('Input| Projects'!BZ$9),1,0)) -> 0 | CA12: =IF($C12="","",IF(TRIM('Input| JGN Mapping'!$J12)=TRIM('Input| Projects'!CA$9),1,0)) -> 0 | CB12: =IF($C12="","",IF(TRIM('Input| JGN Mapping'!$J12)=TRIM('Input| Projects'!CB$9),1,0)) -> 0 | CC12: =IF($C12="","",IF(TRIM('Input| JGN Mapping'!$J12)=TRIM('Input| Projects'!CC$9),1,0)) -> 0 | CD12: =IF($C12="","",IF(TRIM('Input| JGN Mapping'!$J12)=TRIM('Input| Projects'!CD$9),1,0)) -> 0 | CE12: =IF($C12="","",IF(TRIM('Input| JGN Mapping'!$J12)=TRIM('Input| Projects'!CE$9),1,0)) -> 0 | CF12: =IF($C12="","",IF(TRIM('Input| JGN Mapping'!$J12)=TRIM('Input| Projects'!CF$9),1,0)) -> 0 | CG12: =IF($C12="","",IF(TRIM('Input| JGN Mapping'!$J12)=TRIM('Input| Projects'!CG$9),1,0)) -> 0 | CH12: =IF($C12="","",IF(TRIM('Input| JGN Mapping'!$J12)=TRIM('Input| Projects'!CH$9),1,0)) -> 0 | CI12: =IF($C12="","",IF(TRIM('Input| JGN Mapping'!$J12)=TRIM('Input| Projects'!CI$9),1,0)) -> 0 | CJ12: =IF($C12="","",IF(TRIM('Input| JGN Mapping'!$J12)=TRIM('Input| Projects'!CJ$9),1,0)) -> 0 | CK12: =IF($C12="","",IF(TRIM('Input| JGN Mapping'!$J12)=TRIM('Input| Projects'!CK$9),1,0)) -> 0 | CL12: =IF($C12="","",IF(TRIM('Input| JGN Mapping'!$J12)=TRIM('Input| Projects'!CL$9),1,0)) -> 0 | CM12: =IF($C12="","",IF(TRIM('Input| JGN Mapping'!$J12)=TRIM('Input| Projects'!CM$9),1,0)) -> 0 | CN12: =IF($C12="","",IF(TRIM('Input| JGN Mapping'!$J12)=TRIM('Input| Projects'!CN$9),1,0)) -> 0 | CO12: =IF($C12="","",IF(TRIM('Input| JGN Mapping'!$J12)=TRIM('Input| Projects'!CO$9),1,0)) -> 0 | CP12: =_xlfn.SWITCH(TRUE, LEN(C12)<1,0, (SUM(AR12:CO12)<>1)*1) -> 0
B13: 4 | C13: New Homes Distribution mains | D13: R-CGG | F13: Connections | G13: Refer to sheet 'Input|JGN mapping | I13: 11155.692 | J13: 9212.066072 | K13: 5623.99046 | L13: 6591.779934 | M13: 7028.205506 | N13: 6301.366906 | O13: 5352.06577 | Q13: 505.3528477 | R13: 417.3065931 | S13: 318.31786 | T13: 373.0947442 | U13: 397.7964316 | V13: 356.6573669 | W13: 302.9269226 | Y13: 0.7735575005 | Z13: 0.2264424995 | AA13: 0 | AC13: Yes | AD13: No | AI13: 1 | AR13: =IF($C13="","",IF(TRIM('Input| JGN Mapping'!$J13)=TRIM('Input| Projects'!AR$9),1,0)) -> 0 | AS13: =IF($C13="","",IF(TRIM('Input| JGN Mapping'!$J13)=TRIM('Input| Projects'!AS$9),1,0)) -> 0 | AT13: =IF($C13="","",IF(TRIM('Input| JGN Mapping'!$J13)=TRIM('Input| Projects'!AT$9),1,0)) -> 0 | AU13: =IF($C13="","",IF(TRIM('Input| JGN Mapping'!$J13)=TRIM('Input| Projects'!AU$9),1,0)) -> 0 | AV13: =IF($C13="","",IF(TRIM('Input| JGN Mapping'!$J13)=TRIM('Input| Projects'!AV$9),1,0)) -> 0 | AW13: =IF($C13="","",IF(TRIM('Input| JGN Mapping'!$J13)=TRIM('Input| Projects'!AW$9),1,0)) -> 0 | AX13: =IF($C13="","",IF(TRIM('Input| JGN Mapping'!$J13)=TRIM('Input| Projects'!AX$9),1,0)) -> 0 | AY13: =IF($C13="","",IF(TRIM('Input| JGN Mapping'!$J13)=TRIM('Input| Projects'!AY$9),1,0)) -> 1 | AZ13: =IF($C13="","",IF(TRIM('Input| JGN Mapping'!$J13)=TRIM('Input| Projects'!AZ$9),1,0)) -> 0 | BA13: =IF($C13="","",IF(TRIM('Input| JGN Mapping'!$J13)=TRIM('Input| Projects'!BA$9),1,0)) -> 0 | BB13: =IF($C13="","",IF(TRIM('Input| JGN Mapping'!$J13)=TRIM('Input| Projects'!BB$9),1,0)) -> 0 | BC13: =IF($C13="","",IF(TRIM('Input| JGN Mapping'!$J13)=TRIM('Input| Projects'!BC$9),1,0)) -> 0 | BD13: =IF($C13="","",IF(TRIM('Input| JGN Mapping'!$J13)=TRIM('Input| Projects'!BD$9),1,0)) -> 0 | BE13: =IF($C13="","",IF(TRIM('Input| JGN Mapping'!$J13)=TRIM('Input| Projects'!BE$9),1,0)) -> 0 | BF13: =IF($C13="","",IF(TRIM('Input| JGN Mapping'!$J13)=TRIM('Input| Projects'!BF$9),1,0)) -> 0 | BG13: =IF($C13="","",IF(TRIM('Input| JGN Mapping'!$J13)=TRIM('Input| Projects'!BG$9),1,0)) -> 0 | BH13: =IF($C13="","",IF(TRIM('Input| JGN Mapping'!$J13)=TRIM('Input| Projects'!BH$9),1,0)) -> 0 | BI13: =IF($C13="","",IF(TRIM('Input| JGN Mapping'!$J13)=TRIM('Input| Projects'!BI$9),1,0)) -> 0 | BJ13: =IF($C13="","",IF(TRIM('Input| JGN Mapping'!$J13)=TRIM('Input| Projects'!BJ$9),1,0)) -> 0 | BK13: =IF($C13="","",IF(TRIM('Input| JGN Mapping'!$J13)=TRIM('Input| Projects'!BK$9),1,0)) -> 0 | BL13: =IF($C13="","",IF(TRIM('Input| JGN Mapping'!$J13)=TRIM('Input| Projects'!BL$9),1,0)) -> 0 | BM13: =IF($C13="","",IF(TRIM('Input| JGN Mapping'!$J13)=TRIM('Input| Projects'!BM$9),1,0)) -> 0 | BN13: =IF($C13="","",IF(TRIM('Input| JGN Mapping'!$J13)=TRIM('Input| Projects'!BN$9),1,0)) -> 0 | BO13: =IF($C13="","",IF(TRIM('Input| JGN Mapping'!$J13)=TRIM('Input| Projects'!BO$9),1,0)) -> 0 | BP13: =IF($C13="","",IF(TRIM('Input| JGN Mapping'!$J13)=TRIM('Input| Projects'!BP$9),1,0)) -> 0 | BQ13: =IF($C13="","",IF(TRIM('Input| JGN Mapping'!$J13)=TRIM('Input| Projects'!BQ$9),1,0)) -> 0 | BR13: =IF($C13="","",IF(TRIM('Input| JGN Mapping'!$J13)=TRIM('Input| Projects'!BR$9),1,0)) -> 0 | BS13: =IF($C13="","",IF(TRIM('Input| JGN Mapping'!$J13)=TRIM('Input| Projects'!BS$9),1,0)) -> 0 | BT13: =IF($C13="","",IF(TRIM('Input| JGN Mapping'!$J13)=TRIM('Input| Projects'!BT$9),1,0)) -> 0 | BU13: =IF($C13="","",IF(TRIM('Input| JGN Mapping'!$J13)=TRIM('Input| Projects'!BU$9),1,0)) -> 0 | BV13: =IF($C13="","",IF(TRIM('Input| JGN Mapping'!$J13)=TRIM('Input| Projects'!BV$9),1,0)) -> 0 | BW13: =IF($C13="","",IF(TRIM('Input| JGN Mapping'!$J13)=TRIM('Input| Projects'!BW$9),1,0)) -> 0 | BX13: =IF($C13="","",IF(TRIM('Input| JGN Mapping'!$J13)=TRIM('Input| Projects'!BX$9),1,0)) -> 0 | BY13: =IF($C13="","",IF(TRIM('Input| JGN Mapping'!$J13)=TRIM('Input| Projects'!BY$9),1,0)) -> 0 | BZ13: =IF($C13="","",IF(TRIM('Input| JGN Mapping'!$J13)=TRIM('Input| Projects'!BZ$9),1,0)) -> 0 | CA13: =IF($C13="","",IF(TRIM('Input| JGN Mapping'!$J13)=TRIM('Input| Projects'!CA$9),1,0)) -> 0 | CB13: =IF($C13="","",IF(TRIM('Input| JGN Mapping'!$J13)=TRIM('Input| Projects'!CB$9),1,0)) -> 0 | CC13: =IF($C13="","",IF(TRIM('Input| JGN Mapping'!$J13)=TRIM('Input| Projects'!CC$9),1,0)) -> 0 | CD13: =IF($C13="","",IF(TRIM('Input| JGN Mapping'!$J13)=TRIM('Input| Projects'!CD$9),1,0)) -> 0 | CE13: =IF($C13="","",IF(TRIM('Input| JGN Mapping'!$J13)=TRIM('Input| Projects'!CE$9),1,0)) -> 0 | CF13: =IF($C13="","",IF(TRIM('Input| JGN Mapping'!$J13)=TRIM('Input| Projects'!CF$9),1,0)) -> 0 | CG13: =IF($C13="","",IF(TRIM('Input| JGN Mapping'!$J13)=TRIM('Input| Projects'!CG$9),1,0)) -> 0 | CH13: =IF($C13="","",IF(TRIM('Input| JGN Mapping'!$J13)=TRIM('Input| Projects'!CH$9),1,0)) -> 0 | CI13: =IF($C13="","",IF(TRIM('Input| JGN Mapping'!$J13)=TRIM('Input| Projects'!CI$9),1,0)) -> 0 | CJ13: =IF($C13="","",IF(TRIM('Input| JGN Mapping'!$J13)=TRIM('Input| Projects'!CJ$9),1,0)) -> 0 | CK13: =IF($C13="","",IF(TRIM('Input| JGN Mapping'!$J13)=TRIM('Input| Projects'!CK$9),1,0)) -> 0 | CL13: =IF($C13="","",IF(TRIM('Input| JGN Mapping'!$J13)=TRIM('Input| Projects'!CL$9),1,0)) -> 0 | CM13: =IF($C13="","",IF(TRIM('Input| JGN Mapping'!$J13)=TRIM('Input| Projects'!CM$9),1,0)) -> 0 | CN13: =IF($C13="","",IF(TRIM('Input| JGN Mapping'!$J13)=TRIM('Input| Projects'!CN$9),1,0)) -> 0 | CO13: =IF($C13="","",IF(TRIM('Input| JGN Mapping'!$J13)=TRIM('Input| Projects'!CO$9),1,0)) -> 0 | CP13: =_xlfn.SWITCH(TRUE, LEN(C13)<1,0, (SUM(AR13:CO13)<>1)*1) -> 0
B14: 5 | C14: Medium Density & High Rise Distribution mains | D14: R-CGJ | F14: Connections | G14: Refer to sheet 'Input|JGN mapping | I14: 1323.188767 | J14: 2076.957012 | K14: 3440.596674 | L14: 2125.841815 | M14: 1100.119772 | N14: 339.5393795 | O14: 54.96659169 | Q14: 59.94045116 | R14: 94.08615265 | S14: 194.7377718 | T14: 120.3226467 | U14: 62.2667791 | V14: 19.21792888 | W14: 3.11110909 | Y14: 0.7744929129 | Z14: 0.2255070871 | AA14: 0 | AC14: Yes | AD14: No | AI14: 1 | AR14: =IF($C14="","",IF(TRIM('Input| JGN Mapping'!$J14)=TRIM('Input| Projects'!AR$9),1,0)) -> 0 | AS14: =IF($C14="","",IF(TRIM('Input| JGN Mapping'!$J14)=TRIM('Input| Projects'!AS$9),1,0)) -> 0 | AT14: =IF($C14="","",IF(TRIM('Input| JGN Mapping'!$J14)=TRIM('Input| Projects'!AT$9),1,0)) -> 0 | AU14: =IF($C14="","",IF(TRIM('Input| JGN Mapping'!$J14)=TRIM('Input| Projects'!AU$9),1,0)) -> 0 | AV14: =IF($C14="","",IF(TRIM('Input| JGN Mapping'!$J14)=TRIM('Input| Projects'!AV$9),1,0)) -> 0 | AW14: =IF($C14="","",IF(TRIM('Input| JGN Mapping'!$J14)=TRIM('Input| Projects'!AW$9),1,0)) -> 0 | AX14: =IF($C14="","",IF(TRIM('Input| JGN Mapping'!$J14)=TRIM('Input| Projects'!AX$9),1,0)) -> 0 | AY14: =IF($C14="","",IF(TRIM('Input| JGN Mapping'!$J14)=TRIM('Input| Projects'!AY$9),1,0)) -> 1 | AZ14: =IF($C14="","",IF(TRIM('Input| JGN Mapping'!$J14)=TRIM('Input| Projects'!AZ$9),1,0)) -> 0 | BA14: =IF($C14="","",IF(TRIM('Input| JGN Mapping'!$J14)=TRIM('Input| Projects'!BA$9),1,0)) -> 0 | BB14: =IF($C14="","",IF(TRIM('Input| JGN Mapping'!$J14)=TRIM('Input| Projects'!BB$9),1,0)) -> 0 | BC14: =IF($C14="","",IF(TRIM('Input| JGN Mapping'!$J14)=TRIM('Input| Projects'!BC$9),1,0)) -> 0 | BD14: =IF($C14="","",IF(TRIM('Input| JGN Mapping'!$J14)=TRIM('Input| Projects'!BD$9),1,0)) -> 0 | BE14: =IF($C14="","",IF(TRIM('Input| JGN Mapping'!$J14)=TRIM('Input| Projects'!BE$9),1,0)) -> 0 | BF14: =IF($C14="","",IF(TRIM('Input| JGN Mapping'!$J14)=TRIM('Input| Projects'!BF$9),1,0)) -> 0 | BG14: =IF($C14="","",IF(TRIM('Input| JGN Mapping'!$J14)=TRIM('Input| Projects'!BG$9),1,0)) -> 0 | BH14: =IF($C14="","",IF(TRIM('Input| JGN Mapping'!$J14)=TRIM('Input| Projects'!BH$9),1,0)) -> 0 | BI14: =IF($C14="","",IF(TRIM('Input| JGN Mapping'!$J14)=TRIM('Input| Projects'!BI$9),1,0)) -> 0 | BJ14: =IF($C14="","",IF(TRIM('Input| JGN Mapping'!$J14)=TRIM('Input| Projects'!BJ$9),1,0)) -> 0 | BK14: =IF($C14="","",IF(TRIM('Input| JGN Mapping'!$J14)=TRIM('Input| Projects'!BK$9),1,0)) -> 0 | BL14: =IF($C14="","",IF(TRIM('Input| JGN Mapping'!$J14)=TRIM('Input| Projects'!BL$9),1,0)) -> 0 | BM14: =IF($C14="","",IF(TRIM('Input| JGN Mapping'!$J14)=TRIM('Input| Projects'!BM$9),1,0)) -> 0 | BN14: =IF($C14="","",IF(TRIM('Input| JGN Mapping'!$J14)=TRIM('Input| Projects'!BN$9),1,0)) -> 0 | BO14: =IF($C14="","",IF(TRIM('Input| JGN Mapping'!$J14)=TRIM('Input| Projects'!BO$9),1,0)) -> 0 | BP14: =IF($C14="","",IF(TRIM('Input| JGN Mapping'!$J14)=TRIM('Input| Projects'!BP$9),1,0)) -> 0 | BQ14: =IF($C14="","",IF(TRIM('Input| JGN Mapping'!$J14)=TRIM('Input| Projects'!BQ$9),1,0)) -> 0 | BR14: =IF($C14="","",IF(TRIM('Input| JGN Mapping'!$J14)=TRIM('Input| Projects'!BR$9),1,0)) -> 0 | BS14: =IF($C14="","",IF(TRIM('Input| JGN Mapping'!$J14)=TRIM('Input| Projects'!BS$9),1,0)) -> 0 | BT14: =IF($C14="","",IF(TRIM('Input| JGN Mapping'!$J14)=TRIM('Input| Projects'!BT$9),1,0)) -> 0 | BU14: =IF($C14="","",IF(TRIM('Input| JGN Mapping'!$J14)=TRIM('Input| Projects'!BU$9),1,0)) -> 0 | BV14: =IF($C14="","",IF(TRIM('Input| JGN Mapping'!$J14)=TRIM('Input| Projects'!BV$9),1,0)) -> 0 | BW14: =IF($C14="","",IF(TRIM('Input| JGN Mapping'!$J14)=TRIM('Input| Projects'!BW$9),1,0)) -> 0 | BX14: =IF($C14="","",IF(TRIM('Input| JGN Mapping'!$J14)=TRIM('Input| Projects'!BX$9),1,0)) -> 0 | BY14: =IF($C14="","",IF(TRIM('Input| JGN Mapping'!$J14)=TRIM('Input| Projects'!BY$9),1,0)) -> 0 | BZ14: =IF($C14="","",IF(TRIM('Input| JGN Mapping'!$J14)=TRIM('Input| Projects'!BZ$9),1,0)) -> 0 | CA14: =IF($C14="","",IF(TRIM('Input| JGN Mapping'!$J14)=TRIM('Input| Projects'!CA$9),1,0)) -> 0 | CB14: =IF($C14="","",IF(TRIM('Input| JGN Mapping'!$J14)=TRIM('Input| Projects'!CB$9),1,0)) -> 0 | CC14: =IF($C14="","",IF(TRIM('Input| JGN Mapping'!$J14)=TRIM('Input| Projects'!CC$9),1,0)) -> 0 | CD14: =IF($C14="","",IF(TRIM('Input| JGN Mapping'!$J14)=TRIM('Input| Projects'!CD$9),1,0)) -> 0 | CE14: =IF($C14="","",IF(TRIM('Input| JGN Mapping'!$J14)=TRIM('Input| Projects'!CE$9),1,0)) -> 0 | CF14: =IF($C14="","",IF(TRIM('Input| JGN Mapping'!$J14)=TRIM('Input| Projects'!CF$9),1,0)) -> 0 | CG14: =IF($C14="","",IF(TRIM('Input| JGN Mapping'!$J14)=TRIM('Input| Projects'!CG$9),1,0)) -> 0 | CH14: =IF($C14="","",IF(TRIM('Input| JGN Mapping'!$J14)=TRIM('Input| Projects'!CH$9),1,0)) -> 0 | CI14: =IF($C14="","",IF(TRIM('Input| JGN Mapping'!$J14)=TRIM('Input| Projects'!CI$9),1,0)) -> 0 | CJ14: =IF($C14="","",IF(TRIM('Input| JGN Mapping'!$J14)=TRIM('Input| Projects'!CJ$9),1,0)) -> 0 | CK14: =IF($C14="","",IF(TRIM('Input| JGN Mapping'!$J14)=TRIM('Input| Projects'!CK$9),1,0)) -> 0 | CL14: =IF($C14="","",IF(TRIM('Input| JGN Mapping'!$J14)=TRIM('Input| Projects'!CL$9),1,0)) -> 0 | CM14: =IF($C14="","",IF(TRIM('Input| JGN Mapping'!$J14)=TRIM('Input| Projects'!CM$9),1,0)) -> 0 | CN14: =IF($C14="","",IF(TRIM('Input| JGN Mapping'!$J14)=TRIM('Input| Projects'!CN$9),1,0)) -> 0 | CO14: =IF($C14="","",IF(TRIM('Input| JGN Mapping'!$J14)=TRIM('Input| Projects'!CO$9),1,0)) -> 0 | CP14: =_xlfn.SWITCH(TRUE, LEN(C14)<1,0, (SUM(AR14:CO14)<>1)*1) -> 0
B15: 6 | C15: Electricity to Gas Inlet service pipes | D15: R-CGA | F15: Connections | G15: Refer to sheet 'Input|JGN mapping | I15: 12475.4286 | J15: 11851.65717 | K15: 10666.49145 | L15: 8533.19316 | M15: 5973.235212 | N15: 4181.264648 | O15: 2090.632324 | Q15: 565.1369154 | R15: 536.8800696 | S15: 603.723416 | T15: 482.9787328 | U15: 338.085113 | V15: 236.6595791 | W15: 118.3297895 | Y15: 0.7744929129 | Z15: 0.2255070871 | AA15: 0 | AC15: Yes | AD15: No | AI15: 1 | AR15: =IF($C15="","",IF(TRIM('Input| JGN Mapping'!$J15)=TRIM('Input| Projects'!AR$9),1,0)) -> 0 | AS15: =IF($C15="","",IF(TRIM('Input| JGN Mapping'!$J15)=TRIM('Input| Projects'!AS$9),1,0)) -> 0 | AT15: =IF($C15="","",IF(TRIM('Input| JGN Mapping'!$J15)=TRIM('Input| Projects'!AT$9),1,0)) -> 0 | AU15: =IF($C15="","",IF(TRIM('Input| JGN Mapping'!$J15)=TRIM('Input| Projects'!AU$9),1,0)) -> 0 | AV15: =IF($C15="","",IF(TRIM('Input| JGN Mapping'!$J15)=TRIM('Input| Projects'!AV$9),1,0)) -> 0 | AW15: =IF($C15="","",IF(TRIM('Input| JGN Mapping'!$J15)=TRIM('Input| Projects'!AW$9),1,0)) -> 0 | AX15: =IF($C15="","",IF(TRIM('Input| JGN Mapping'!$J15)=TRIM('Input| Projects'!AX$9),1,0)) -> 0 | AY15: =IF($C15="","",IF(TRIM('Input| JGN Mapping'!$J15)=TRIM('Input| Projects'!AY$9),1,0)) -> 0 | AZ15: =IF($C15="","",IF(TRIM('Input| JGN Mapping'!$J15)=TRIM('Input| Projects'!AZ$9),1,0)) -> 1 | BA15: =IF($C15="","",IF(TRIM('Input| JGN Mapping'!$J15)=TRIM('Input| Projects'!BA$9),1,0)) -> 0 | BB15: =IF($C15="","",IF(TRIM('Input| JGN Mapping'!$J15)=TRIM('Input| Projects'!BB$9),1,0)) -> 0 | BC15: =IF($C15="","",IF(TRIM('Input| JGN Mapping'!$J15)=TRIM('Input| Projects'!BC$9),1,0)) -> 0 | BD15: =IF($C15="","",IF(TRIM('Input| JGN Mapping'!$J15)=TRIM('Input| Projects'!BD$9),1,0)) -> 0 | BE15: =IF($C15="","",IF(TRIM('Input| JGN Mapping'!$J15)=TRIM('Input| Projects'!BE$9),1,0)) -> 0 | BF15: =IF($C15="","",IF(TRIM('Input| JGN Mapping'!$J15)=TRIM('Input| Projects'!BF$9),1,0)) -> 0 | BG15: =IF($C15="","",IF(TRIM('Input| JGN Mapping'!$J15)=TRIM('Input| Projects'!BG$9),1,0)) -> 0 | BH15: =IF($C15="","",IF(TRIM('Input| JGN Mapping'!$J15)=TRIM('Input| Projects'!BH$9),1,0)) -> 0 | BI15: =IF($C15="","",IF(TRIM('Input| JGN Mapping'!$J15)=TRIM('Input| Projects'!BI$9),1,0)) -> 0 | BJ15: =IF($C15="","",IF(TRIM('Input| JGN Mapping'!$J15)=TRIM('Input| Projects'!BJ$9),1,0)) -> 0 | BK15: =IF($C15="","",IF(TRIM('Input| JGN Mapping'!$J15)=TRIM('Input| Projects'!BK$9),1,0)) -> 0 | BL15: =IF($C15="","",IF(TRIM('Input| JGN Mapping'!$J15)=TRIM('Input| Projects'!BL$9),1,0)) -> 0 | BM15: =IF($C15="","",IF(TRIM('Input| JGN Mapping'!$J15)=TRIM('Input| Projects'!BM$9),1,0)) -> 0 | BN15: =IF($C15="","",IF(TRIM('Input| JGN Mapping'!$J15)=TRIM('Input| Projects'!BN$9),1,0)) -> 0 | BO15: =IF($C15="","",IF(TRIM('Input| JGN Mapping'!$J15)=TRIM('Input| Projects'!BO$9),1,0)) -> 0 | BP15: =IF($C15="","",IF(TRIM('Input| JGN Mapping'!$J15)=TRIM('Input| Projects'!BP$9),1,0)) -> 0 | BQ15: =IF($C15="","",IF(TRIM('Input| JGN Mapping'!$J15)=TRIM('Input| Projects'!BQ$9),1,0)) -> 0 | BR15: =IF($C15="","",IF(TRIM('Input| JGN Mapping'!$J15)=TRIM('Input| Projects'!BR$9),1,0)) -> 0 | BS15: =IF($C15="","",IF(TRIM('Input| JGN Mapping'!$J15)=TRIM('Input| Projects'!BS$9),1,0)) -> 0 | BT15: =IF($C15="","",IF(TRIM('Input| JGN Mapping'!$J15)=TRIM('Input| Projects'!BT$9),1,0)) -> 0 | BU15: =IF($C15="","",IF(TRIM('Input| JGN Mapping'!$J15)=TRIM('Input| Projects'!BU$9),1,0)) -> 0 | BV15: =IF($C15="","",IF(TRIM('Input| JGN Mapping'!$J15)=TRIM('Input| Projects'!BV$9),1,0)) -> 0 | BW15: =IF($C15="","",IF(TRIM('Input| JGN Mapping'!$J15)=TRIM('Input| Projects'!BW$9),1,0)) -> 0 | BX15: =IF($C15="","",IF(TRIM('Input| JGN Mapping'!$J15)=TRIM('Input| Projects'!BX$9),1,0)) -> 0 | BY15: =IF($C15="","",IF(TRIM('Input| JGN Mapping'!$J15)=TRIM('Input| Projects'!BY$9),1,0)) -> 0 | BZ15: =IF($C15="","",IF(TRIM('Input| JGN Mapping'!$J15)=TRIM('Input| Projects'!BZ$9),1,0)) -> 0 | CA15: =IF($C15="","",IF(TRIM('Input| JGN Mapping'!$J15)=TRIM('Input| Projects'!CA$9),1,0)) -> 0 | CB15: =IF($C15="","",IF(TRIM('Input| JGN Mapping'!$J15)=TRIM('Input| Projects'!CB$9),1,0)) -> 0 | CC15: =IF($C15="","",IF(TRIM('Input| JGN Mapping'!$J15)=TRIM('Input| Projects'!CC$9),1,0)) -> 0 | CD15: =IF($C15="","",IF(TRIM('Input| JGN Mapping'!$J15)=TRIM('Input| Projects'!CD$9),1,0)) -> 0 | CE15: =IF($C15="","",IF(TRIM('Input| JGN Mapping'!$J15)=TRIM('Input| Projects'!CE$9),1,0)) -> 0 | CF15: =IF($C15="","",IF(TRIM('Input| JGN Mapping'!$J15)=TRIM('Input| Projects'!CF$9),1,0)) -> 0 | CG15: =IF($C15="","",IF(TRIM('Input| JGN Mapping'!$J15)=TRIM('Input| Projects'!CG$9),1,0)) -> 0 | CH15: =IF($C15="","",IF(TRIM('Input| JGN Mapping'!$J15)=TRIM('Input| Projects'!CH$9),1,0)) -> 0 | CI15: =IF($C15="","",IF(TRIM('Input| JGN Mapping'!$J15)=TRIM('Input| Projects'!CI$9),1,0)) -> 0 | CJ15: =IF($C15="","",IF(TRIM('Input| JGN Mapping'!$J15)=TRIM('Input| Projects'!CJ$9),1,0)) -> 0 | CK15: =IF($C15="","",IF(TRIM('Input| JGN Mapping'!$J15)=TRIM('Input| Projects'!CK$9),1,0)) -> 0 | CL15: =IF($C15="","",IF(TRIM('Input| JGN Mapping'!$J15)=TRIM('Input| Projects'!CL$9),1,0)) -> 0 | CM15: =IF($C15="","",IF(TRIM('Input| JGN Mapping'!$J15)=TRIM('Input| Projects'!CM$9),1,0)) -> 0 | CN15: =IF($C15="","",IF(TRIM('Input| JGN Mapping'!$J15)=TRIM('Input| Projects'!CN$9),1,0)) -> 0 | CO15: =IF($C15="","",IF(TRIM('Input| JGN Mapping'!$J15)=TRIM('Input| Projects'!CO$9),1,0)) -> 0 | CP15: =_xlfn.SWITCH(TRUE, LEN(C15)<1,0, (SUM(AR15:CO15)<>1)*1) -> 0
B16: 7 | C16: Industrial & Commercial Contract Inlet service pipes | D16: R-CGC | F16: Connections | G16: Refer to sheet 'Input|JGN mapping | I16: 1327.775198 | J16: 1327.775198 | K16: 1327.775198 | L16: 1327.775198 | M16: 1327.775198 | N16: 1327.775198 | O16: 1327.775198 | Q16: 60.14821649 | R16: 60.14821649 | S16: 75.15207623 | T16: 75.15207623 | U16: 75.15207623 | V16: 75.15207623 | W16: 75.15207623 | Y16: 0.1052027359 | Z16: 0.8947972641 | AA16: 0 | AC16: Yes | AD16: No | AI16: 1 | AR16: =IF($C16="","",IF(TRIM('Input| JGN Mapping'!$J16)=TRIM('Input| Projects'!AR$9),1,0)) -> 0 | AS16: =IF($C16="","",IF(TRIM('Input| JGN Mapping'!$J16)=TRIM('Input| Projects'!AS$9),1,0)) -> 0 | AT16: =IF($C16="","",IF(TRIM('Input| JGN Mapping'!$J16)=TRIM('Input| Projects'!AT$9),1,0)) -> 0 | AU16: =IF($C16="","",IF(TRIM('Input| JGN Mapping'!$J16)=TRIM('Input| Projects'!AU$9),1,0)) -> 0 | AV16: =IF($C16="","",IF(TRIM('Input| JGN Mapping'!$J16)=TRIM('Input| Projects'!AV$9),1,0)) -> 0 | AW16: =IF($C16="","",IF(TRIM('Input| JGN Mapping'!$J16)=TRIM('Input| Projects'!AW$9),1,0)) -> 0 | AX16: =IF($C16="","",IF(TRIM('Input| JGN Mapping'!$J16)=TRIM('Input| Projects'!AX$9),1,0)) -> 1 | AY16: =IF($C16="","",IF(TRIM('Input| JGN Mapping'!$J16)=TRIM('Input| Projects'!AY$9),1,0)) -> 0 | AZ16: =IF($C16="","",IF(TRIM('Input| JGN Mapping'!$J16)=TRIM('Input| Projects'!AZ$9),1,0)) -> 0 | BA16: =IF($C16="","",IF(TRIM('Input| JGN Mapping'!$J16)=TRIM('Input| Projects'!BA$9),1,0)) -> 0 | BB16: =IF($C16="","",IF(TRIM('Input| JGN Mapping'!$J16)=TRIM('Input| Projects'!BB$9),1,0)) -> 0 | BC16: =IF($C16="","",IF(TRIM('Input| JGN Mapping'!$J16)=TRIM('Input| Projects'!BC$9),1,0)) -> 0 | BD16: =IF($C16="","",IF(TRIM('Input| JGN Mapping'!$J16)=TRIM('Input| Projects'!BD$9),1,0)) -> 0 | BE16: =IF($C16="","",IF(TRIM('Input| JGN Mapping'!$J16)=TRIM('Input| Projects'!BE$9),1,0)) -> 0 | BF16: =IF($C16="","",IF(TRIM('Input| JGN Mapping'!$J16)=TRIM('Input| Projects'!BF$9),1,0)) -> 0 | BG16: =IF($C16="","",IF(TRIM('Input| JGN Mapping'!$J16)=TRIM('Input| Projects'!BG$9),1,0)) -> 0 | BH16: =IF($C16="","",IF(TRIM('Input| JGN Mapping'!$J16)=TRIM('Input| Projects'!BH$9),1,0)) -> 0 | BI16: =IF($C16="","",IF(TRIM('Input| JGN Mapping'!$J16)=TRIM('Input| Projects'!BI$9),1,0)) -> 0 | BJ16: =IF($C16="","",IF(TRIM('Input| JGN Mapping'!$J16)=TRIM('Input| Projects'!BJ$9),1,0)) -> 0 | BK16: =IF($C16="","",IF(TRIM('Input| JGN Mapping'!$J16)=TRIM('Input| Projects'!BK$9),1,0)) -> 0 | BL16: =IF($C16="","",IF(TRIM('Input| JGN Mapping'!$J16)=TRIM('Input| Projects'!BL$9),1,0)) -> 0 | BM16: =IF($C16="","",IF(TRIM('Input| JGN Mapping'!$J16)=TRIM('Input| Projects'!BM$9),1,0)) -> 0 | BN16: =IF($C16="","",IF(TRIM('Input| JGN Mapping'!$J16)=TRIM('Input| Projects'!BN$9),1,0)) -> 0 | BO16: =IF($C16="","",IF(TRIM('Input| JGN Mapping'!$J16)=TRIM('Input| Projects'!BO$9),1,0)) -> 0 | BP16: =IF($C16="","",IF(TRIM('Input| JGN Mapping'!$J16)=TRIM('Input| Projects'!BP$9),1,0)) -> 0 | BQ16: =IF($C16="","",IF(TRIM('Input| JGN Mapping'!$J16)=TRIM('Input| Projects'!BQ$9),1,0)) -> 0 | BR16: =IF($C16="","",IF(TRIM('Input| JGN Mapping'!$J16)=TRIM('Input| Projects'!BR$9),1,0)) -> 0 | BS16: =IF($C16="","",IF(TRIM('Input| JGN Mapping'!$J16)=TRIM('Input| Projects'!BS$9),1,0)) -> 0 | BT16: =IF($C16="","",IF(TRIM('Input| JGN Mapping'!$J16)=TRIM('Input| Projects'!BT$9),1,0)) -> 0 | BU16: =IF($C16="","",IF(TRIM('Input| JGN Mapping'!$J16)=TRIM('Input| Projects'!BU$9),1,0)) -> 0 | BV16: =IF($C16="","",IF(TRIM('Input| JGN Mapping'!$J16)=TRIM('Input| Projects'!BV$9),1,0)) -> 0 | BW16: =IF($C16="","",IF(TRIM('Input| JGN Mapping'!$J16)=TRIM('Input| Projects'!BW$9),1,0)) -> 0 | BX16: =IF($C16="","",IF(TRIM('Input| JGN Mapping'!$J16)=TRIM('Input| Projects'!BX$9),1,0)) -> 0 | BY16: =IF($C16="","",IF(TRIM('Input| JGN Mapping'!$J16)=TRIM('Input| Projects'!BY$9),1,0)) -> 0 | BZ16: =IF($C16="","",IF(TRIM('Input| JGN Mapping'!$J16)=TRIM('Input| Projects'!BZ$9),1,0)) -> 0 | CA16: =IF($C16="","",IF(TRIM('Input| JGN Mapping'!$J16)=TRIM('Input| Projects'!CA$9),1,0)) -> 0 | CB16: =IF($C16="","",IF(TRIM('Input| JGN Mapping'!$J16)=TRIM('Input| Projects'!CB$9),1,0)) -> 0 | CC16: =IF($C16="","",IF(TRIM('Input| JGN Mapping'!$J16)=TRIM('Input| Projects'!CC$9),1,0)) -> 0 | CD16: =IF($C16="","",IF(TRIM('Input| JGN Mapping'!$J16)=TRIM('Input| Projects'!CD$9),1,0)) -> 0 | CE16: =IF($C16="","",IF(TRIM('Input| JGN Mapping'!$J16)=TRIM('Input| Projects'!CE$9),1,0)) -> 0 | CF16: =IF($C16="","",IF(TRIM('Input| JGN Mapping'!$J16)=TRIM('Input| Projects'!CF$9),1,0)) -> 0 | CG16: =IF($C16="","",IF(TRIM('Input| JGN Mapping'!$J16)=TRIM('Input| Projects'!CG$9),1,0)) -> 0 | CH16: =IF($C16="","",IF(TRIM('Input| JGN Mapping'!$J16)=TRIM('Input| Projects'!CH$9),1,0)) -> 0 | CI16: =IF($C16="","",IF(TRIM('Input| JGN Mapping'!$J16)=TRIM('Input| Projects'!CI$9),1,0)) -> 0 | CJ16: =IF($C16="","",IF(TRIM('Input| JGN Mapping'!$J16)=TRIM('Input| Projects'!CJ$9),1,0)) -> 0 | CK16: =IF($C16="","",IF(TRIM('Input| JGN Mapping'!$J16)=TRIM('Input| Projects'!CK$9),1,0)) -> 0 | CL16: =IF($C16="","",IF(TRIM('Input| JGN Mapping'!$J16)=TRIM('Input| Projects'!CL$9),1,0)) -> 0 | CM16: =IF($C16="","",IF(TRIM('Input| JGN Mapping'!$J16)=TRIM('Input| Projects'!CM$9),1,0)) -> 0 | CN16: =IF($C16="","",IF(TRIM('Input| JGN Mapping'!$J16)=TRIM('Input| Projects'!CN$9),1,0)) -> 0 | CO16: =IF($C16="","",IF(TRIM('Input| JGN Mapping'!$J16)=TRIM('Input| Projects'!CO$9),1,0)) -> 0 | CP16: =_xlfn.SWITCH(TRUE, LEN(C16)<1,0, (SUM(AR16:CO16)<>1)*1) -> 0
B17: 8 | C17: Industrial & Commercial Tariff Inlet service pipes | D17: R-CGD | F17: Connections | G17: Refer to sheet 'Input|JGN mapping | I17: 2106.897868 | J17: 2134.574094 | K17: 2162.613876 | L17: 2191.021988 | M17: 2219.803269 | N17: 2248.962621 | O17: 2278.505011 | Q17: 95.44247342 | R17: 96.69620647 | S17: 122.4039454 | T17: 124.0118445 | U17: 125.640865 | V17: 127.2912844 | W17: 128.9633836 | Y17: 0.2542239786 | Z17: 0.6012974113 | AA17: 0.1444786101 | AC17: Yes | AD17: No | AI17: 1 | AR17: =IF($C17="","",IF(TRIM('Input| JGN Mapping'!$J17)=TRIM('Input| Projects'!AR$9),1,0)) -> 0 | AS17: =IF($C17="","",IF(TRIM('Input| JGN Mapping'!$J17)=TRIM('Input| Projects'!AS$9),1,0)) -> 0 | AT17: =IF($C17="","",IF(TRIM('Input| JGN Mapping'!$J17)=TRIM('Input| Projects'!AT$9),1,0)) -> 0 | AU17: =IF($C17="","",IF(TRIM('Input| JGN Mapping'!$J17)=TRIM('Input| Projects'!AU$9),1,0)) -> 0 | AV17: =IF($C17="","",IF(TRIM('Input| JGN Mapping'!$J17)=TRIM('Input| Projects'!AV$9),1,0)) -> 0 | AW17: =IF($C17="","",IF(TRIM('Input| JGN Mapping'!$J17)=TRIM('Input| Projects'!AW$9),1,0)) -> 0 | AX17: =IF($C17="","",IF(TRIM('Input| JGN Mapping'!$J17)=TRIM('Input| Projects'!AX$9),1,0)) -> 0 | AY17: =IF($C17="","",IF(TRIM('Input| JGN Mapping'!$J17)=TRIM('Input| Projects'!AY$9),1,0)) -> 0 | AZ17: =IF($C17="","",IF(TRIM('Input| JGN Mapping'!$J17)=TRIM('Input| Projects'!AZ$9),1,0)) -> 1 | BA17: =IF($C17="","",IF(TRIM('Input| JGN Mapping'!$J17)=TRIM('Input| Projects'!BA$9),1,0)) -> 0 | BB17: =IF($C17="","",IF(TRIM('Input| JGN Mapping'!$J17)=TRIM('Input| Projects'!BB$9),1,0)) -> 0 | BC17: =IF($C17="","",IF(TRIM('Input| JGN Mapping'!$J17)=TRIM('Input| Projects'!BC$9),1,0)) -> 0 | BD17: =IF($C17="","",IF(TRIM('Input| JGN Mapping'!$J17)=TRIM('Input| Projects'!BD$9),1,0)) -> 0 | BE17: =IF($C17="","",IF(TRIM('Input| JGN Mapping'!$J17)=TRIM('Input| Projects'!BE$9),1,0)) -> 0 | BF17: =IF($C17="","",IF(TRIM('Input| JGN Mapping'!$J17)=TRIM('Input| Projects'!BF$9),1,0)) -> 0 | BG17: =IF($C17="","",IF(TRIM('Input| JGN Mapping'!$J17)=TRIM('Input| Projects'!BG$9),1,0)) -> 0 | BH17: =IF($C17="","",IF(TRIM('Input| JGN Mapping'!$J17)=TRIM('Input| Projects'!BH$9),1,0)) -> 0 | BI17: =IF($C17="","",IF(TRIM('Input| JGN Mapping'!$J17)=TRIM('Input| Projects'!BI$9),1,0)) -> 0 | BJ17: =IF($C17="","",IF(TRIM('Input| JGN Mapping'!$J17)=TRIM('Input| Projects'!BJ$9),1,0)) -> 0 | BK17: =IF($C17="","",IF(TRIM('Input| JGN Mapping'!$J17)=TRIM('Input| Projects'!BK$9),1,0)) -> 0 | BL17: =IF($C17="","",IF(TRIM('Input| JGN Mapping'!$J17)=TRIM('Input| Projects'!BL$9),1,0)) -> 0 | BM17: =IF($C17="","",IF(TRIM('Input| JGN Mapping'!$J17)=TRIM('Input| Projects'!BM$9),1,0)) -> 0 | BN17: =IF($C17="","",IF(TRIM('Input| JGN Mapping'!$J17)=TRIM('Input| Projects'!BN$9),1,0)) -> 0 | BO17: =IF($C17="","",IF(TRIM('Input| JGN Mapping'!$J17)=TRIM('Input| Projects'!BO$9),1,0)) -> 0 | BP17: =IF($C17="","",IF(TRIM('Input| JGN Mapping'!$J17)=TRIM('Input| Projects'!BP$9),1,0)) -> 0 | BQ17: =IF($C17="","",IF(TRIM('Input| JGN Mapping'!$J17)=TRIM('Input| Projects'!BQ$9),1,0)) -> 0 | BR17: =IF($C17="","",IF(TRIM('Input| JGN Mapping'!$J17)=TRIM('Input| Projects'!BR$9),1,0)) -> 0 | BS17: =IF($C17="","",IF(TRIM('Input| JGN Mapping'!$J17)=TRIM('Input| Projects'!BS$9),1,0)) -> 0 | BT17: =IF($C17="","",IF(TRIM('Input| JGN Mapping'!$J17)=TRIM('Input| Projects'!BT$9),1,0)) -> 0 | BU17: =IF($C17="","",IF(TRIM('Input| JGN Mapping'!$J17)=TRIM('Input| Projects'!BU$9),1,0)) -> 0 | BV17: =IF($C17="","",IF(TRIM('Input| JGN Mapping'!$J17)=TRIM('Input| Projects'!BV$9),1,0)) -> 0 | BW17: =IF($C17="","",IF(TRIM('Input| JGN Mapping'!$J17)=TRIM('Input| Projects'!BW$9),1,0)) -> 0 | BX17: =IF($C17="","",IF(TRIM('Input| JGN Mapping'!$J17)=TRIM('Input| Projects'!BX$9),1,0)) -> 0 | BY17: =IF($C17="","",IF(TRIM('Input| JGN Mapping'!$J17)=TRIM('Input| Projects'!BY$9),1,0)) -> 0 | BZ17: =IF($C17="","",IF(TRIM('Input| JGN Mapping'!$J17)=TRIM('Input| Projects'!BZ$9),1,0)) -> 0 | CA17: =IF($C17="","",IF(TRIM('Input| JGN Mapping'!$J17)=TRIM('Input| Projects'!CA$9),1,0)) -> 0 | CB17: =IF($C17="","",IF(TRIM('Input| JGN Mapping'!$J17)=TRIM('Input| Projects'!CB$9),1,0)) -> 0 | CC17: =IF($C17="","",IF(TRIM('Input| JGN Mapping'!$J17)=TRIM('Input| Projects'!CC$9),1,0)) -> 0 | CD17: =IF($C17="","",IF(TRIM('Input| JGN Mapping'!$J17)=TRIM('Input| Projects'!CD$9),1,0)) -> 0 | CE17: =IF($C17="","",IF(TRIM('Input| JGN Mapping'!$J17)=TRIM('Input| Projects'!CE$9),1,0)) -> 0 | CF17: =IF($C17="","",IF(TRIM('Input| JGN Mapping'!$J17)=TRIM('Input| Projects'!CF$9),1,0)) -> 0 | CG17: =IF($C17="","",IF(TRIM('Input| JGN Mapping'!$J17)=TRIM('Input| Projects'!CG$9),1,0)) -> 0 | CH17: =IF($C17="","",IF(TRIM('Input| JGN Mapping'!$J17)=TRIM('Input| Projects'!CH$9),1,0)) -> 0 | CI17: =IF($C17="","",IF(TRIM('Input| JGN Mapping'!$J17)=TRIM('Input| Projects'!CI$9),1,0)) -> 0 | CJ17: =IF($C17="","",IF(TRIM('Input| JGN Mapping'!$J17)=TRIM('Input| Projects'!CJ$9),1,0)) -> 0 | CK17: =IF($C17="","",IF(TRIM('Input| JGN Mapping'!$J17)=TRIM('Input| Projects'!CK$9),1,0)) -> 0 | CL17: =IF($C17="","",IF(TRIM('Input| JGN Mapping'!$J17)=TRIM('Input| Projects'!CL$9),1,0)) -> 0 | CM17: =IF($C17="","",IF(TRIM('Input| JGN Mapping'!$J17)=TRIM('Input| Projects'!CM$9),1,0)) -> 0 | CN17: =IF($C17="","",IF(TRIM('Input| JGN Mapping'!$J17)=TRIM('Input| Projects'!CN$9),1,0)) -> 0 | CO17: =IF($C17="","",IF(TRIM('Input| JGN Mapping'!$J17)=TRIM('Input| Projects'!CO$9),1,0)) -> 0 | CP17: =_xlfn.SWITCH(TRUE, LEN(C17)<1,0, (SUM(AR17:CO17)<>1)*1) -> 0
B18: 9 | C18: New Homes Inlet service pipes | D18: R-CGB | F18: Connections | G18: Refer to sheet 'Input|JGN mapping | I18: 26890.93724 | J18: 22205.80226 | K18: 13556.70043 | L18: 15889.56924 | M18: 16941.57863 | N18: 15189.52495 | O18: 12901.22251 | Q18: 1218.159457 | R18: 1005.922842 | S18: 767.3092441 | T18: 899.3496191 | U18: 958.8933503 | V18: 859.7271122 | W18: 730.2091939 | Y18: 0.7735214595 | Z18: 0.2264785405 | AA18: 0 | AC18: Yes | AD18: No | AI18: 1 | AR18: =IF($C18="","",IF(TRIM('Input| JGN Mapping'!$J18)=TRIM('Input| Projects'!AR$9),1,0)) -> 0 | AS18: =IF($C18="","",IF(TRIM('Input| JGN Mapping'!$J18)=TRIM('Input| Projects'!AS$9),1,0)) -> 0 | AT18: =IF($C18="","",IF(TRIM('Input| JGN Mapping'!$J18)=TRIM('Input| Projects'!AT$9),1,0)) -> 0 | AU18: =IF($C18="","",IF(TRIM('Input| JGN Mapping'!$J18)=TRIM('Input| Projects'!AU$9),1,0)) -> 0 | AV18: =IF($C18="","",IF(TRIM('Input| JGN Mapping'!$J18)=TRIM('Input| Projects'!AV$9),1,0)) -> 0 | AW18: =IF($C18="","",IF(TRIM('Input| JGN Mapping'!$J18)=TRIM('Input| Projects'!AW$9),1,0)) -> 0 | AX18: =IF($C18="","",IF(TRIM('Input| JGN Mapping'!$J18)=TRIM('Input| Projects'!AX$9),1,0)) -> 0 | AY18: =IF($C18="","",IF(TRIM('Input| JGN Mapping'!$J18)=TRIM('Input| Projects'!AY$9),1,0)) -> 0 | AZ18: =IF($C18="","",IF(TRIM('Input| JGN Mapping'!$J18)=TRIM('Input| Projects'!AZ$9),1,0)) -> 1 | BA18: =IF($C18="","",IF(TRIM('Input| JGN Mapping'!$J18)=TRIM('Input| Projects'!BA$9),1,0)) -> 0 | BB18: =IF($C18="","",IF(TRIM('Input| JGN Mapping'!$J18)=TRIM('Input| Projects'!BB$9),1,0)) -> 0 | BC18: =IF($C18="","",IF(TRIM('Input| JGN Mapping'!$J18)=TRIM('Input| Projects'!BC$9),1,0)) -> 0 | BD18: =IF($C18="","",IF(TRIM('Input| JGN Mapping'!$J18)=TRIM('Input| Projects'!BD$9),1,0)) -> 0 | BE18: =IF($C18="","",IF(TRIM('Input| JGN Mapping'!$J18)=TRIM('Input| Projects'!BE$9),1,0)) -> 0 | BF18: =IF($C18="","",IF(TRIM('Input| JGN Mapping'!$J18)=TRIM('Input| Projects'!BF$9),1,0)) -> 0 | BG18: =IF($C18="","",IF(TRIM('Input| JGN Mapping'!$J18)=TRIM('Input| Projects'!BG$9),1,0)) -> 0 | BH18: =IF($C18="","",IF(TRIM('Input| JGN Mapping'!$J18)=TRIM('Input| Projects'!BH$9),1,0)) -> 0 | BI18: =IF($C18="","",IF(TRIM('Input| JGN Mapping'!$J18)=TRIM('Input| Projects'!BI$9),1,0)) -> 0 | BJ18: =IF($C18="","",IF(TRIM('Input| JGN Mapping'!$J18)=TRIM('Input| Projects'!BJ$9),1,0)) -> 0 | BK18: =IF($C18="","",IF(TRIM('Input| JGN Mapping'!$J18)=TRIM('Input| Projects'!BK$9),1,0)) -> 0 | BL18: =IF($C18="","",IF(TRIM('Input| JGN Mapping'!$J18)=TRIM('Input| Projects'!BL$9),1,0)) -> 0 | BM18: =IF($C18="","",IF(TRIM('Input| JGN Mapping'!$J18)=TRIM('Input| Projects'!BM$9),1,0)) -> 0 | BN18: =IF($C18="","",IF(TRIM('Input| JGN Mapping'!$J18)=TRIM('Input| Projects'!BN$9),1,0)) -> 0 | BO18: =IF($C18="","",IF(TRIM('Input| JGN Mapping'!$J18)=TRIM('Input| Projects'!BO$9),1,0)) -> 0 | BP18: =IF($C18="","",IF(TRIM('Input| JGN Mapping'!$J18)=TRIM('Input| Projects'!BP$9),1,0)) -> 0 | BQ18: =IF($C18="","",IF(TRIM('Input| JGN Mapping'!$J18)=TRIM('Input| Projects'!BQ$9),1,0)) -> 0 | BR18: =IF($C18="","",IF(TRIM('Input| JGN Mapping'!$J18)=TRIM('Input| Projects'!BR$9),1,0)) -> 0 | BS18: =IF($C18="","",IF(TRIM('Input| JGN Mapping'!$J18)=TRIM('Input| Projects'!BS$9),1,0)) -> 0 | BT18: =IF($C18="","",IF(TRIM('Input| JGN Mapping'!$J18)=TRIM('Input| Projects'!BT$9),1,0)) -> 0 | BU18: =IF($C18="","",IF(TRIM('Input| JGN Mapping'!$J18)=TRIM('Input| Projects'!BU$9),1,0)) -> 0 | BV18: =IF($C18="","",IF(TRIM('Input| JGN Mapping'!$J18)=TRIM('Input| Projects'!BV$9),1,0)) -> 0 | BW18: =IF($C18="","",IF(TRIM('Input| JGN Mapping'!$J18)=TRIM('Input| Projects'!BW$9),1,0)) -> 0 | BX18: =IF($C18="","",IF(TRIM('Input| JGN Mapping'!$J18)=TRIM('Input| Projects'!BX$9),1,0)) -> 0 | BY18: =IF($C18="","",IF(TRIM('Input| JGN Mapping'!$J18)=TRIM('Input| Projects'!BY$9),1,0)) -> 0 | BZ18: =IF($C18="","",IF(TRIM('Input| JGN Mapping'!$J18)=TRIM('Input| Projects'!BZ$9),1,0)) -> 0 | CA18: =IF($C18="","",IF(TRIM('Input| JGN Mapping'!$J18)=TRIM('Input| Projects'!CA$9),1,0)) -> 0 | CB18: =IF($C18="","",IF(TRIM('Input| JGN Mapping'!$J18)=TRIM('Input| Projects'!CB$9),1,0)) -> 0 | CC18: =IF($C18="","",IF(TRIM('Input| JGN Mapping'!$J18)=TRIM('Input| Projects'!CC$9),1,0)) -> 0 | CD18: =IF($C18="","",IF(TRIM('Input| JGN Mapping'!$J18)=TRIM('Input| Projects'!CD$9),1,0)) -> 0 | CE18: =IF($C18="","",IF(TRIM('Input| JGN Mapping'!$J18)=TRIM('Input| Projects'!CE$9),1,0)) -> 0 | CF18: =IF($C18="","",IF(TRIM('Input| JGN Mapping'!$J18)=TRIM('Input| Projects'!CF$9),1,0)) -> 0 | CG18: =IF($C18="","",IF(TRIM('Input| JGN Mapping'!$J18)=TRIM('Input| Projects'!CG$9),1,0)) -> 0 | CH18: =IF($C18="","",IF(TRIM('Input| JGN Mapping'!$J18)=TRIM('Input| Projects'!CH$9),1,0)) -> 0 | CI18: =IF($C18="","",IF(TRIM('Input| JGN Mapping'!$J18)=TRIM('Input| Projects'!CI$9),1,0)) -> 0 | CJ18: =IF($C18="","",IF(TRIM('Input| JGN Mapping'!$J18)=TRIM('Input| Projects'!CJ$9),1,0)) -> 0 | CK18: =IF($C18="","",IF(TRIM('Input| JGN Mapping'!$J18)=TRIM('Input| Projects'!CK$9),1,0)) -> 0 | CL18: =IF($C18="","",IF(TRIM('Input| JGN Mapping'!$J18)=TRIM('Input| Projects'!CL$9),1,0)) -> 0 | CM18: =IF($C18="","",IF(TRIM('Input| JGN Mapping'!$J18)=TRIM('Input| Projects'!CM$9),1,0)) -> 0 | CN18: =IF($C18="","",IF(TRIM('Input| JGN Mapping'!$J18)=TRIM('Input| Projects'!CN$9),1,0)) -> 0 | CO18: =IF($C18="","",IF(TRIM('Input| JGN Mapping'!$J18)=TRIM('Input| Projects'!CO$9),1,0)) -> 0 | CP18: =_xlfn.SWITCH(TRUE, LEN(C18)<1,0, (SUM(AR18:CO18)<>1)*1) -> 0
B19: 10 | C19: Medium Density & High Rise Inlet service pipes | D19: R-CGE | F19: Connections | G19: Refer to sheet 'Input|JGN mapping | I19: 973.2322871 | J19: 1527.644183 | K19: 2530.628927 | L19: 1563.599951 | M19: 809.160498 | N19: 249.7381289 | O19: 40.42904767 | Q19: 44.08742261 | R19: 69.20228148 | S19: 143.2335973 | T19: 88.49975721 | U19: 45.79848419 | V19: 14.13517809 | W19: 2.288284098 | Y19: 0.7745588514 | Z19: 0.2254411486 | AA19: 0 | AC19: Yes | AD19: No | AI19: 1 | AR19: =IF($C19="","",IF(TRIM('Input| JGN Mapping'!$J19)=TRIM('Input| Projects'!AR$9),1,0)) -> 0 | AS19: =IF($C19="","",IF(TRIM('Input| JGN Mapping'!$J19)=TRIM('Input| Projects'!AS$9),1,0)) -> 0 | AT19: =IF($C19="","",IF(TRIM('Input| JGN Mapping'!$J19)=TRIM('Input| Projects'!AT$9),1,0)) -> 0 | AU19: =IF($C19="","",IF(TRIM('Input| JGN Mapping'!$J19)=TRIM('Input| Projects'!AU$9),1,0)) -> 0 | AV19: =IF($C19="","",IF(TRIM('Input| JGN Mapping'!$J19)=TRIM('Input| Projects'!AV$9),1,0)) -> 0 | AW19: =IF($C19="","",IF(TRIM('Input| JGN Mapping'!$J19)=TRIM('Input| Projects'!AW$9),1,0)) -> 0 | AX19: =IF($C19="","",IF(TRIM('Input| JGN Mapping'!$J19)=TRIM('Input| Projects'!AX$9),1,0)) -> 0 | AY19: =IF($C19="","",IF(TRIM('Input| JGN Mapping'!$J19)=TRIM('Input| Projects'!AY$9),1,0)) -> 0 | AZ19: =IF($C19="","",IF(TRIM('Input| JGN Mapping'!$J19)=TRIM('Input| Projects'!AZ$9),1,0)) -> 1 | BA19: =IF($C19="","",IF(TRIM('Input| JGN Mapping'!$J19)=TRIM('Input| Projects'!BA$9),1,0)) -> 0 | BB19: =IF($C19="","",IF(TRIM('Input| JGN Mapping'!$J19)=TRIM('Input| Projects'!BB$9),1,0)) -> 0 | BC19: =IF($C19="","",IF(TRIM('Input| JGN Mapping'!$J19)=TRIM('Input| Projects'!BC$9),1,0)) -> 0 | BD19: =IF($C19="","",IF(TRIM('Input| JGN Mapping'!$J19)=TRIM('Input| Projects'!BD$9),1,0)) -> 0 | BE19: =IF($C19="","",IF(TRIM('Input| JGN Mapping'!$J19)=TRIM('Input| Projects'!BE$9),1,0)) -> 0 | BF19: =IF($C19="","",IF(TRIM('Input| JGN Mapping'!$J19)=TRIM('Input| Projects'!BF$9),1,0)) -> 0 | BG19: =IF($C19="","",IF(TRIM('Input| JGN Mapping'!$J19)=TRIM('Input| Projects'!BG$9),1,0)) -> 0 | BH19: =IF($C19="","",IF(TRIM('Input| JGN Mapping'!$J19)=TRIM('Input| Projects'!BH$9),1,0)) -> 0 | BI19: =IF($C19="","",IF(TRIM('Input| JGN Mapping'!$J19)=TRIM('Input| Projects'!BI$9),1,0)) -> 0 | BJ19: =IF($C19="","",IF(TRIM('Input| JGN Mapping'!$J19)=TRIM('Input| Projects'!BJ$9),1,0)) -> 0 | BK19: =IF($C19="","",IF(TRIM('Input| JGN Mapping'!$J19)=TRIM('Input| Projects'!BK$9),1,0)) -> 0 | BL19: =IF($C19="","",IF(TRIM('Input| JGN Mapping'!$J19)=TRIM('Input| Projects'!BL$9),1,0)) -> 0 | BM19: =IF($C19="","",IF(TRIM('Input| JGN Mapping'!$J19)=TRIM('Input| Projects'!BM$9),1,0)) -> 0 | BN19: =IF($C19="","",IF(TRIM('Input| JGN Mapping'!$J19)=TRIM('Input| Projects'!BN$9),1,0)) -> 0 | BO19: =IF($C19="","",IF(TRIM('Input| JGN Mapping'!$J19)=TRIM('Input| Projects'!BO$9),1,0)) -> 0 | BP19: =IF($C19="","",IF(TRIM('Input| JGN Mapping'!$J19)=TRIM('Input| Projects'!BP$9),1,0)) -> 0 | BQ19: =IF($C19="","",IF(TRIM('Input| JGN Mapping'!$J19)=TRIM('Input| Projects'!BQ$9),1,0)) -> 0 | BR19: =IF($C19="","",IF(TRIM('Input| JGN Mapping'!$J19)=TRIM('Input| Projects'!BR$9),1,0)) -> 0 | BS19: =IF($C19="","",IF(TRIM('Input| JGN Mapping'!$J19)=TRIM('Input| Projects'!BS$9),1,0)) -> 0 | BT19: =IF($C19="","",IF(TRIM('Input| JGN Mapping'!$J19)=TRIM('Input| Projects'!BT$9),1,0)) -> 0 | BU19: =IF($C19="","",IF(TRIM('Input| JGN Mapping'!$J19)=TRIM('Input| Projects'!BU$9),1,0)) -> 0 | BV19: =IF($C19="","",IF(TRIM('Input| JGN Mapping'!$J19)=TRIM('Input| Projects'!BV$9),1,0)) -> 0 | BW19: =IF($C19="","",IF(TRIM('Input| JGN Mapping'!$J19)=TRIM('Input| Projects'!BW$9),1,0)) -> 0 | BX19: =IF($C19="","",IF(TRIM('Input| JGN Mapping'!$J19)=TRIM('Input| Projects'!BX$9),1,0)) -> 0 | BY19: =IF($C19="","",IF(TRIM('Input| JGN Mapping'!$J19)=TRIM('Input| Projects'!BY$9),1,0)) -> 0 | BZ19: =IF($C19="","",IF(TRIM('Input| JGN Mapping'!$J19)=TRIM('Input| Projects'!BZ$9),1,0)) -> 0 | CA19: =IF($C19="","",IF(TRIM('Input| JGN Mapping'!$J19)=TRIM('Input| Projects'!CA$9),1,0)) -> 0 | CB19: =IF($C19="","",IF(TRIM('Input| JGN Mapping'!$J19)=TRIM('Input| Projects'!CB$9),1,0)) -> 0 | CC19: =IF($C19="","",IF(TRIM('Input| JGN Mapping'!$J19)=TRIM('Input| Projects'!CC$9),1,0)) -> 0 | CD19: =IF($C19="","",IF(TRIM('Input| JGN Mapping'!$J19)=TRIM('Input| Projects'!CD$9),1,0)) -> 0 | CE19: =IF($C19="","",IF(TRIM('Input| JGN Mapping'!$J19)=TRIM('Input| Projects'!CE$9),1,0)) -> 0 | CF19: =IF($C19="","",IF(TRIM('Input| JGN Mapping'!$J19)=TRIM('Input| Projects'!CF$9),1,0)) -> 0 | CG19: =IF($C19="","",IF(TRIM('Input| JGN Mapping'!$J19)=TRIM('Input| Projects'!CG$9),1,0)) -> 0 | CH19: =IF($C19="","",IF(TRIM('Input| JGN Mapping'!$J19)=TRIM('Input| Projects'!CH$9),1,0)) -> 0 | CI19: =IF($C19="","",IF(TRIM('Input| JGN Mapping'!$J19)=TRIM('Input| Projects'!CI$9),1,0)) -> 0 | CJ19: =IF($C19="","",IF(TRIM('Input| JGN Mapping'!$J19)=TRIM('Input| Projects'!CJ$9),1,0)) -> 0 | CK19: =IF($C19="","",IF(TRIM('Input| JGN Mapping'!$J19)=TRIM('Input| Projects'!CK$9),1,0)) -> 0 | CL19: =IF($C19="","",IF(TRIM('Input| JGN Mapping'!$J19)=TRIM('Input| Projects'!CL$9),1,0)) -> 0 | CM19: =IF($C19="","",IF(TRIM('Input| JGN Mapping'!$J19)=TRIM('Input| Projects'!CM$9),1,0)) -> 0 | CN19: =IF($C19="","",IF(TRIM('Input| JGN Mapping'!$J19)=TRIM('Input| Projects'!CN$9),1,0)) -> 0 | CO19: =IF($C19="","",IF(TRIM('Input| JGN Mapping'!$J19)=TRIM('Input| Projects'!CO$9),1,0)) -> 0 | CP19: =_xlfn.SWITCH(TRUE, LEN(C19)<1,0, (SUM(AR19:CO19)<>1)*1) -> 0
B20: 11 | C20: Electricity to Gas Meters | D20: R-CGK | F20: Connections | G20: Refer to sheet 'Input|JGN mapping | I20: 1165.916866 | J20: 1107.621023 | K20: 996.8589205 | L20: 797.4871364 | M20: 558.2409955 | N20: 390.7686968 | O20: 195.3843484 | Q20: 52.81603403 | R20: 50.17523233 | S20: 56.4222149 | T20: 45.13777192 | U20: 31.59644034 | V20: 22.11750824 | W20: 11.05875412 | Y20: 0.7736164789 | Z20: 0.2263835211 | AA20: 0 | AC20: Yes | AD20: No | AI20: 1 | AR20: =IF($C20="","",IF(TRIM('Input| JGN Mapping'!$J20)=TRIM('Input| Projects'!AR$9),1,0)) -> 0 | AS20: =IF($C20="","",IF(TRIM('Input| JGN Mapping'!$J20)=TRIM('Input| Projects'!AS$9),1,0)) -> 0 | AT20: =IF($C20="","",IF(TRIM('Input| JGN Mapping'!$J20)=TRIM('Input| Projects'!AT$9),1,0)) -> 0 | AU20: =IF($C20="","",IF(TRIM('Input| JGN Mapping'!$J20)=TRIM('Input| Projects'!AU$9),1,0)) -> 0 | AV20: =IF($C20="","",IF(TRIM('Input| JGN Mapping'!$J20)=TRIM('Input| Projects'!AV$9),1,0)) -> 0 | AW20: =IF($C20="","",IF(TRIM('Input| JGN Mapping'!$J20)=TRIM('Input| Projects'!AW$9),1,0)) -> 0 | AX20: =IF($C20="","",IF(TRIM('Input| JGN Mapping'!$J20)=TRIM('Input| Projects'!AX$9),1,0)) -> 0 | AY20: =IF($C20="","",IF(TRIM('Input| JGN Mapping'!$J20)=TRIM('Input| Projects'!AY$9),1,0)) -> 0 | AZ20: =IF($C20="","",IF(TRIM('Input| JGN Mapping'!$J20)=TRIM('Input| Projects'!AZ$9),1,0)) -> 0 | BA20: =IF($C20="","",IF(TRIM('Input| JGN Mapping'!$J20)=TRIM('Input| Projects'!BA$9),1,0)) -> 0 | BB20: =IF($C20="","",IF(TRIM('Input| JGN Mapping'!$J20)=TRIM('Input| Projects'!BB$9),1,0)) -> 0 | BC20: =IF($C20="","",IF(TRIM('Input| JGN Mapping'!$J20)=TRIM('Input| Projects'!BC$9),1,0)) -> 1 | BD20: =IF($C20="","",IF(TRIM('Input| JGN Mapping'!$J20)=TRIM('Input| Projects'!BD$9),1,0)) -> 0 | BE20: =IF($C20="","",IF(TRIM('Input| JGN Mapping'!$J20)=TRIM('Input| Projects'!BE$9),1,0)) -> 0 | BF20: =IF($C20="","",IF(TRIM('Input| JGN Mapping'!$J20)=TRIM('Input| Projects'!BF$9),1,0)) -> 0 | BG20: =IF($C20="","",IF(TRIM('Input| JGN Mapping'!$J20)=TRIM('Input| Projects'!BG$9),1,0)) -> 0 | BH20: =IF($C20="","",IF(TRIM('Input| JGN Mapping'!$J20)=TRIM('Input| Projects'!BH$9),1,0)) -> 0 | BI20: =IF($C20="","",IF(TRIM('Input| JGN Mapping'!$J20)=TRIM('Input| Projects'!BI$9),1,0)) -> 0 | BJ20: =IF($C20="","",IF(TRIM('Input| JGN Mapping'!$J20)=TRIM('Input| Projects'!BJ$9),1,0)) -> 0 | BK20: =IF($C20="","",IF(TRIM('Input| JGN Mapping'!$J20)=TRIM('Input| Projects'!BK$9),1,0)) -> 0 | BL20: =IF($C20="","",IF(TRIM('Input| JGN Mapping'!$J20)=TRIM('Input| Projects'!BL$9),1,0)) -> 0 | BM20: =IF($C20="","",IF(TRIM('Input| JGN Mapping'!$J20)=TRIM('Input| Projects'!BM$9),1,0)) -> 0 | BN20: =IF($C20="","",IF(TRIM('Input| JGN Mapping'!$J20)=TRIM('Input| Projects'!BN$9),1,0)) -> 0 | BO20: =IF($C20="","",IF(TRIM('Input| JGN Mapping'!$J20)=TRIM('Input| Projects'!BO$9),1,0)) -> 0 | BP20: =IF($C20="","",IF(TRIM('Input| JGN Mapping'!$J20)=TRIM('Input| Projects'!BP$9),1,0)) -> 0 | BQ20: =IF($C20="","",IF(TRIM('Input| JGN Mapping'!$J20)=TRIM('Input| Projects'!BQ$9),1,0)) -> 0 | BR20: =IF($C20="","",IF(TRIM('Input| JGN Mapping'!$J20)=TRIM('Input| Projects'!BR$9),1,0)) -> 0 | BS20: =IF($C20="","",IF(TRIM('Input| JGN Mapping'!$J20)=TRIM('Input| Projects'!BS$9),1,0)) -> 0 | BT20: =IF($C20="","",IF(TRIM('Input| JGN Mapping'!$J20)=TRIM('Input| Projects'!BT$9),1,0)) -> 0 | BU20: =IF($C20="","",IF(TRIM('Input| JGN Mapping'!$J20)=TRIM('Input| Projects'!BU$9),1,0)) -> 0 | BV20: =IF($C20="","",IF(TRIM('Input| JGN Mapping'!$J20)=TRIM('Input| Projects'!BV$9),1,0)) -> 0 | BW20: =IF($C20="","",IF(TRIM('Input| JGN Mapping'!$J20)=TRIM('Input| Projects'!BW$9),1,0)) -> 0 | BX20: =IF($C20="","",IF(TRIM('Input| JGN Mapping'!$J20)=TRIM('Input| Projects'!BX$9),1,0)) -> 0 | BY20: =IF($C20="","",IF(TRIM('Input| JGN Mapping'!$J20)=TRIM('Input| Projects'!BY$9),1,0)) -> 0 | BZ20: =IF($C20="","",IF(TRIM('Input| JGN Mapping'!$J20)=TRIM('Input| Projects'!BZ$9),1,0)) -> 0 | CA20: =IF($C20="","",IF(TRIM('Input| JGN Mapping'!$J20)=TRIM('Input| Projects'!CA$9),1,0)) -> 0 | CB20: =IF($C20="","",IF(TRIM('Input| JGN Mapping'!$J20)=TRIM('Input| Projects'!CB$9),1,0)) -> 0 | CC20: =IF($C20="","",IF(TRIM('Input| JGN Mapping'!$J20)=TRIM('Input| Projects'!CC$9),1,0)) -> 0 | CD20: =IF($C20="","",IF(TRIM('Input| JGN Mapping'!$J20)=TRIM('Input| Projects'!CD$9),1,0)) -> 0 | CE20: =IF($C20="","",IF(TRIM('Input| JGN Mapping'!$J20)=TRIM('Input| Projects'!CE$9),1,0)) -> 0 | CF20: =IF($C20="","",IF(TRIM('Input| JGN Mapping'!$J20)=TRIM('Input| Projects'!CF$9),1,0)) -> 0 | CG20: =IF($C20="","",IF(TRIM('Input| JGN Mapping'!$J20)=TRIM('Input| Projects'!CG$9),1,0)) -> 0 | CH20: =IF($C20="","",IF(TRIM('Input| JGN Mapping'!$J20)=TRIM('Input| Projects'!CH$9),1,0)) -> 0 | CI20: =IF($C20="","",IF(TRIM('Input| JGN Mapping'!$J20)=TRIM('Input| Projects'!CI$9),1,0)) -> 0 | CJ20: =IF($C20="","",IF(TRIM('Input| JGN Mapping'!$J20)=TRIM('Input| Projects'!CJ$9),1,0)) -> 0 | CK20: =IF($C20="","",IF(TRIM('Input| JGN Mapping'!$J20)=TRIM('Input| Projects'!CK$9),1,0)) -> 0 | CL20: =IF($C20="","",IF(TRIM('Input| JGN Mapping'!$J20)=TRIM('Input| Projects'!CL$9),1,0)) -> 0 | CM20: =IF($C20="","",IF(TRIM('Input| JGN Mapping'!$J20)=TRIM('Input| Projects'!CM$9),1,0)) -> 0 | CN20: =IF($C20="","",IF(TRIM('Input| JGN Mapping'!$J20)=TRIM('Input| Projects'!CN$9),1,0)) -> 0 | CO20: =IF($C20="","",IF(TRIM('Input| JGN Mapping'!$J20)=TRIM('Input| Projects'!CO$9),1,0)) -> 0 | CP20: =_xlfn.SWITCH(TRUE, LEN(C20)<1,0, (SUM(AR20:CO20)<>1)*1) -> 0
B21: 12 | C21: Industrial & Commercial Contract Meters | D21: R-CGM | F21: Connections | G21: Refer to sheet 'Input|JGN mapping | I21: 346.970995 | J21: 346.970995 | K21: 346.970995 | L21: 346.970995 | M21: 346.970995 | N21: 346.970995 | O21: 346.970995 | Q21: 15.71778607 | R21: 15.71778607 | S21: 19.63855832 | T21: 19.63855832 | U21: 19.63855832 | V21: 19.63855832 | W21: 19.63855832 | Y21: 0.08487244904 | Z21: 0.915127551 | AA21: 0 | AC21: Yes | AD21: No | AI21: 1 | AR21: =IF($C21="","",IF(TRIM('Input| JGN Mapping'!$J21)=TRIM('Input| Projects'!AR$9),1,0)) -> 0 | AS21: =IF($C21="","",IF(TRIM('Input| JGN Mapping'!$J21)=TRIM('Input| Projects'!AS$9),1,0)) -> 0 | AT21: =IF($C21="","",IF(TRIM('Input| JGN Mapping'!$J21)=TRIM('Input| Projects'!AT$9),1,0)) -> 0 | AU21: =IF($C21="","",IF(TRIM('Input| JGN Mapping'!$J21)=TRIM('Input| Projects'!AU$9),1,0)) -> 1 | AV21: =IF($C21="","",IF(TRIM('Input| JGN Mapping'!$J21)=TRIM('Input| Projects'!AV$9),1,0)) -> 0 | AW21: =IF($C21="","",IF(TRIM('Input| JGN Mapping'!$J21)=TRIM('Input| Projects'!AW$9),1,0)) -> 0 | AX21: =IF($C21="","",IF(TRIM('Input| JGN Mapping'!$J21)=TRIM('Input| Projects'!AX$9),1,0)) -> 0 | AY21: =IF($C21="","",IF(TRIM('Input| JGN Mapping'!$J21)=TRIM('Input| Projects'!AY$9),1,0)) -> 0 | AZ21: =IF($C21="","",IF(TRIM('Input| JGN Mapping'!$J21)=TRIM('Input| Projects'!AZ$9),1,0)) -> 0 | BA21: =IF($C21="","",IF(TRIM('Input| JGN Mapping'!$J21)=TRIM('Input| Projects'!BA$9),1,0)) -> 0 | BB21: =IF($C21="","",IF(TRIM('Input| JGN Mapping'!$J21)=TRIM('Input| Projects'!BB$9),1,0)) -> 0 | BC21: =IF($C21="","",IF(TRIM('Input| JGN Mapping'!$J21)=TRIM('Input| Projects'!BC$9),1,0)) -> 0 | BD21: =IF($C21="","",IF(TRIM('Input| JGN Mapping'!$J21)=TRIM('Input| Projects'!BD$9),1,0)) -> 0 | BE21: =IF($C21="","",IF(TRIM('Input| JGN Mapping'!$J21)=TRIM('Input| Projects'!BE$9),1,0)) -> 0 | BF21: =IF($C21="","",IF(TRIM('Input| JGN Mapping'!$J21)=TRIM('Input| Projects'!BF$9),1,0)) -> 0 | BG21: =IF($C21="","",IF(TRIM('Input| JGN Mapping'!$J21)=TRIM('Input| Projects'!BG$9),1,0)) -> 0 | BH21: =IF($C21="","",IF(TRIM('Input| JGN Mapping'!$J21)=TRIM('Input| Projects'!BH$9),1,0)) -> 0 | BI21: =IF($C21="","",IF(TRIM('Input| JGN Mapping'!$J21)=TRIM('Input| Projects'!BI$9),1,0)) -> 0 | BJ21: =IF($C21="","",IF(TRIM('Input| JGN Mapping'!$J21)=TRIM('Input| Projects'!BJ$9),1,0)) -> 0 | BK21: =IF($C21="","",IF(TRIM('Input| JGN Mapping'!$J21)=TRIM('Input| Projects'!BK$9),1,0)) -> 0 | BL21: =IF($C21="","",IF(TRIM('Input| JGN Mapping'!$J21)=TRIM('Input| Projects'!BL$9),1,0)) -> 0 | BM21: =IF($C21="","",IF(TRIM('Input| JGN Mapping'!$J21)=TRIM('Input| Projects'!BM$9),1,0)) -> 0 | BN21: =IF($C21="","",IF(TRIM('Input| JGN Mapping'!$J21)=TRIM('Input| Projects'!BN$9),1,0)) -> 0 | BO21: =IF($C21="","",IF(TRIM('Input| JGN Mapping'!$J21)=TRIM('Input| Projects'!BO$9),1,0)) -> 0 | BP21: =IF($C21="","",IF(TRIM('Input| JGN Mapping'!$J21)=TRIM('Input| Projects'!BP$9),1,0)) -> 0 | BQ21: =IF($C21="","",IF(TRIM('Input| JGN Mapping'!$J21)=TRIM('Input| Projects'!BQ$9),1,0)) -> 0 | BR21: =IF($C21="","",IF(TRIM('Input| JGN Mapping'!$J21)=TRIM('Input| Projects'!BR$9),1,0)) -> 0 | BS21: =IF($C21="","",IF(TRIM('Input| JGN Mapping'!$J21)=TRIM('Input| Projects'!BS$9),1,0)) -> 0 | BT21: =IF($C21="","",IF(TRIM('Input| JGN Mapping'!$J21)=TRIM('Input| Projects'!BT$9),1,0)) -> 0 | BU21: =IF($C21="","",IF(TRIM('Input| JGN Mapping'!$J21)=TRIM('Input| Projects'!BU$9),1,0)) -> 0 | BV21: =IF($C21="","",IF(TRIM('Input| JGN Mapping'!$J21)=TRIM('Input| Projects'!BV$9),1,0)) -> 0 | BW21: =IF($C21="","",IF(TRIM('Input| JGN Mapping'!$J21)=TRIM('Input| Projects'!BW$9),1,0)) -> 0 | BX21: =IF($C21="","",IF(TRIM('Input| JGN Mapping'!$J21)=TRIM('Input| Projects'!BX$9),1,0)) -> 0 | BY21: =IF($C21="","",IF(TRIM('Input| JGN Mapping'!$J21)=TRIM('Input| Projects'!BY$9),1,0)) -> 0 | BZ21: =IF($C21="","",IF(TRIM('Input| JGN Mapping'!$J21)=TRIM('Input| Projects'!BZ$9),1,0)) -> 0 | CA21: =IF($C21="","",IF(TRIM('Input| JGN Mapping'!$J21)=TRIM('Input| Projects'!CA$9),1,0)) -> 0 | CB21: =IF($C21="","",IF(TRIM('Input| JGN Mapping'!$J21)=TRIM('Input| Projects'!CB$9),1,0)) -> 0 | CC21: =IF($C21="","",IF(TRIM('Input| JGN Mapping'!$J21)=TRIM('Input| Projects'!CC$9),1,0)) -> 0 | CD21: =IF($C21="","",IF(TRIM('Input| JGN Mapping'!$J21)=TRIM('Input| Projects'!CD$9),1,0)) -> 0 | CE21: =IF($C21="","",IF(TRIM('Input| JGN Mapping'!$J21)=TRIM('Input| Projects'!CE$9),1,0)) -> 0 | CF21: =IF($C21="","",IF(TRIM('Input| JGN Mapping'!$J21)=TRIM('Input| Projects'!CF$9),1,0)) -> 0 | CG21: =IF($C21="","",IF(TRIM('Input| JGN Mapping'!$J21)=TRIM('Input| Projects'!CG$9),1,0)) -> 0 | CH21: =IF($C21="","",IF(TRIM('Input| JGN Mapping'!$J21)=TRIM('Input| Projects'!CH$9),1,0)) -> 0 | CI21: =IF($C21="","",IF(TRIM('Input| JGN Mapping'!$J21)=TRIM('Input| Projects'!CI$9),1,0)) -> 0 | CJ21: =IF($C21="","",IF(TRIM('Input| JGN Mapping'!$J21)=TRIM('Input| Projects'!CJ$9),1,0)) -> 0 | CK21: =IF($C21="","",IF(TRIM('Input| JGN Mapping'!$J21)=TRIM('Input| Projects'!CK$9),1,0)) -> 0 | CL21: =IF($C21="","",IF(TRIM('Input| JGN Mapping'!$J21)=TRIM('Input| Projects'!CL$9),1,0)) -> 0 | CM21: =IF($C21="","",IF(TRIM('Input| JGN Mapping'!$J21)=TRIM('Input| Projects'!CM$9),1,0)) -> 0 | CN21: =IF($C21="","",IF(TRIM('Input| JGN Mapping'!$J21)=TRIM('Input| Projects'!CN$9),1,0)) -> 0 | CO21: =IF($C21="","",IF(TRIM('Input| JGN Mapping'!$J21)=TRIM('Input| Projects'!CO$9),1,0)) -> 0 | CP21: =_xlfn.SWITCH(TRUE, LEN(C21)<1,0, (SUM(AR21:CO21)<>1)*1) -> 0
B22: 13 | C22: Industrial & Commercial Tariff Meters | D22: R-CGN | F22: Connections | G22: Refer to sheet 'Input|JGN mapping | I22: 1542.353039 | J22: 1562.6134 | K22: 1583.139902 | L22: 1603.936039 | M22: 1625.005355 | N22: 1646.351438 | O22: 1667.977923 | Q22: 69.86859268 | R22: 70.78638704 | S22: 89.60571844 | T22: 90.78277983 | U22: 91.97530311 | V22: 93.18349138 | W22: 94.40755042 | Y22: 0.7744929129 | Z22: 0.2255070871 | AA22: 0 | AC22: Yes | AD22: No | AI22: 1 | AR22: =IF($C22="","",IF(TRIM('Input| JGN Mapping'!$J22)=TRIM('Input| Projects'!AR$9),1,0)) -> 0 | AS22: =IF($C22="","",IF(TRIM('Input| JGN Mapping'!$J22)=TRIM('Input| Projects'!AS$9),1,0)) -> 0 | AT22: =IF($C22="","",IF(TRIM('Input| JGN Mapping'!$J22)=TRIM('Input| Projects'!AT$9),1,0)) -> 0 | AU22: =IF($C22="","",IF(TRIM('Input| JGN Mapping'!$J22)=TRIM('Input| Projects'!AU$9),1,0)) -> 0 | AV22: =IF($C22="","",IF(TRIM('Input| JGN Mapping'!$J22)=TRIM('Input| Projects'!AV$9),1,0)) -> 0 | AW22: =IF($C22="","",IF(TRIM('Input| JGN Mapping'!$J22)=TRIM('Input| Projects'!AW$9),1,0)) -> 0 | AX22: =IF($C22="","",IF(TRIM('Input| JGN Mapping'!$J22)=TRIM('Input| Projects'!AX$9),1,0)) -> 0 | AY22: =IF($C22="","",IF(TRIM('Input| JGN Mapping'!$J22)=TRIM('Input| Projects'!AY$9),1,0)) -> 0 | AZ22: =IF($C22="","",IF(TRIM('Input| JGN Mapping'!$J22)=TRIM('Input| Projects'!AZ$9),1,0)) -> 0 | BA22: =IF($C22="","",IF(TRIM('Input| JGN Mapping'!$J22)=TRIM('Input| Projects'!BA$9),1,0)) -> 0 | BB22: =IF($C22="","",IF(TRIM('Input| JGN Mapping'!$J22)=TRIM('Input| Projects'!BB$9),1,0)) -> 0 | BC22: =IF($C22="","",IF(TRIM('Input| JGN Mapping'!$J22)=TRIM('Input| Projects'!BC$9),1,0)) -> 1 | BD22: =IF($C22="","",IF(TRIM('Input| JGN Mapping'!$J22)=TRIM('Input| Projects'!BD$9),1,0)) -> 0 | BE22: =IF($C22="","",IF(TRIM('Input| JGN Mapping'!$J22)=TRIM('Input| Projects'!BE$9),1,0)) -> 0 | BF22: =IF($C22="","",IF(TRIM('Input| JGN Mapping'!$J22)=TRIM('Input| Projects'!BF$9),1,0)) -> 0 | BG22: =IF($C22="","",IF(TRIM('Input| JGN Mapping'!$J22)=TRIM('Input| Projects'!BG$9),1,0)) -> 0 | BH22: =IF($C22="","",IF(TRIM('Input| JGN Mapping'!$J22)=TRIM('Input| Projects'!BH$9),1,0)) -> 0 | BI22: =IF($C22="","",IF(TRIM('Input| JGN Mapping'!$J22)=TRIM('Input| Projects'!BI$9),1,0)) -> 0 | BJ22: =IF($C22="","",IF(TRIM('Input| JGN Mapping'!$J22)=TRIM('Input| Projects'!BJ$9),1,0)) -> 0 | BK22: =IF($C22="","",IF(TRIM('Input| JGN Mapping'!$J22)=TRIM('Input| Projects'!BK$9),1,0)) -> 0 | BL22: =IF($C22="","",IF(TRIM('Input| JGN Mapping'!$J22)=TRIM('Input| Projects'!BL$9),1,0)) -> 0 | BM22: =IF($C22="","",IF(TRIM('Input| JGN Mapping'!$J22)=TRIM('Input| Projects'!BM$9),1,0)) -> 0 | BN22: =IF($C22="","",IF(TRIM('Input| JGN Mapping'!$J22)=TRIM('Input| Projects'!BN$9),1,0)) -> 0 | BO22: =IF($C22="","",IF(TRIM('Input| JGN Mapping'!$J22)=TRIM('Input| Projects'!BO$9),1,0)) -> 0 | BP22: =IF($C22="","",IF(TRIM('Input| JGN Mapping'!$J22)=TRIM('Input| Projects'!BP$9),1,0)) -> 0 | BQ22: =IF($C22="","",IF(TRIM('Input| JGN Mapping'!$J22)=TRIM('Input| Projects'!BQ$9),1,0)) -> 0 | BR22: =IF($C22="","",IF(TRIM('Input| JGN Mapping'!$J22)=TRIM('Input| Projects'!BR$9),1,0)) -> 0 | BS22: =IF($C22="","",IF(TRIM('Input| JGN Mapping'!$J22)=TRIM('Input| Projects'!BS$9),1,0)) -> 0 | BT22: =IF($C22="","",IF(TRIM('Input| JGN Mapping'!$J22)=TRIM('Input| Projects'!BT$9),1,0)) -> 0 | BU22: =IF($C22="","",IF(TRIM('Input| JGN Mapping'!$J22)=TRIM('Input| Projects'!BU$9),1,0)) -> 0 | BV22: =IF($C22="","",IF(TRIM('Input| JGN Mapping'!$J22)=TRIM('Input| Projects'!BV$9),1,0)) -> 0 | BW22: =IF($C22="","",IF(TRIM('Input| JGN Mapping'!$J22)=TRIM('Input| Projects'!BW$9),1,0)) -> 0 | BX22: =IF($C22="","",IF(TRIM('Input| JGN Mapping'!$J22)=TRIM('Input| Projects'!BX$9),1,0)) -> 0 | BY22: =IF($C22="","",IF(TRIM('Input| JGN Mapping'!$J22)=TRIM('Input| Projects'!BY$9),1,0)) -> 0 | BZ22: =IF($C22="","",IF(TRIM('Input| JGN Mapping'!$J22)=TRIM('Input| Projects'!BZ$9),1,0)) -> 0 | CA22: =IF($C22="","",IF(TRIM('Input| JGN Mapping'!$J22)=TRIM('Input| Projects'!CA$9),1,0)) -> 0 | CB22: =IF($C22="","",IF(TRIM('Input| JGN Mapping'!$J22)=TRIM('Input| Projects'!CB$9),1,0)) -> 0 | CC22: =IF($C22="","",IF(TRIM('Input| JGN Mapping'!$J22)=TRIM('Input| Projects'!CC$9),1,0)) -> 0 | CD22: =IF($C22="","",IF(TRIM('Input| JGN Mapping'!$J22)=TRIM('Input| Projects'!CD$9),1,0)) -> 0 | CE22: =IF($C22="","",IF(TRIM('Input| JGN Mapping'!$J22)=TRIM('Input| Projects'!CE$9),1,0)) -> 0 | CF22: =IF($C22="","",IF(TRIM('Input| JGN Mapping'!$J22)=TRIM('Input| Projects'!CF$9),1,0)) -> 0 | CG22: =IF($C22="","",IF(TRIM('Input| JGN Mapping'!$J22)=TRIM('Input| Projects'!CG$9),1,0)) -> 0 | CH22: =IF($C22="","",IF(TRIM('Input| JGN Mapping'!$J22)=TRIM('Input| Projects'!CH$9),1,0)) -> 0 | CI22: =IF($C22="","",IF(TRIM('Input| JGN Mapping'!$J22)=TRIM('Input| Projects'!CI$9),1,0)) -> 0 | CJ22: =IF($C22="","",IF(TRIM('Input| JGN Mapping'!$J22)=TRIM('Input| Projects'!CJ$9),1,0)) -> 0 | CK22: =IF($C22="","",IF(TRIM('Input| JGN Mapping'!$J22)=TRIM('Input| Projects'!CK$9),1,0)) -> 0 | CL22: =IF($C22="","",IF(TRIM('Input| JGN Mapping'!$J22)=TRIM('Input| Projects'!CL$9),1,0)) -> 0 | CM22: =IF($C22="","",IF(TRIM('Input| JGN Mapping'!$J22)=TRIM('Input| Projects'!CM$9),1,0)) -> 0 | CN22: =IF($C22="","",IF(TRIM('Input| JGN Mapping'!$J22)=TRIM('Input| Projects'!CN$9),1,0)) -> 0 | CO22: =IF($C22="","",IF(TRIM('Input| JGN Mapping'!$J22)=TRIM('Input| Projects'!CO$9),1,0)) -> 0 | CP22: =_xlfn.SWITCH(TRUE, LEN(C22)<1,0, (SUM(AR22:CO22)<>1)*1) -> 0
B23: 14 | C23: New Homes Meters | D23: R-CGL | F23: Connections | G23: Refer to sheet 'Input|JGN mapping | I23: 2400.990102 | J23: 1982.672115 | K23: 1210.426518 | L23: 1418.719553 | M23: 1512.649493 | N23: 1356.215246 | O23: 1151.901373 | Q23: 108.7648516 | R23: 89.81504681 | S23: 68.51014092 | T23: 80.29952672 | U23: 85.61596131 | V23: 76.7617829 | W23: 65.19761773 | Y23: 0.7735215441 | Z23: 0.2264784559 | AA23: 0 | AC23: Yes | AD23: No | AI23: 1 | AR23: =IF($C23="","",IF(TRIM('Input| JGN Mapping'!$J23)=TRIM('Input| Projects'!AR$9),1,0)) -> 0 | AS23: =IF($C23="","",IF(TRIM('Input| JGN Mapping'!$J23)=TRIM('Input| Projects'!AS$9),1,0)) -> 0 | AT23: =IF($C23="","",IF(TRIM('Input| JGN Mapping'!$J23)=TRIM('Input| Projects'!AT$9),1,0)) -> 0 | AU23: =IF($C23="","",IF(TRIM('Input| JGN Mapping'!$J23)=TRIM('Input| Projects'!AU$9),1,0)) -> 0 | AV23: =IF($C23="","",IF(TRIM('Input| JGN Mapping'!$J23)=TRIM('Input| Projects'!AV$9),1,0)) -> 0 | AW23: =IF($C23="","",IF(TRIM('Input| JGN Mapping'!$J23)=TRIM('Input| Projects'!AW$9),1,0)) -> 0 | AX23: =IF($C23="","",IF(TRIM('Input| JGN Mapping'!$J23)=TRIM('Input| Projects'!AX$9),1,0)) -> 0 | AY23: =IF($C23="","",IF(TRIM('Input| JGN Mapping'!$J23)=TRIM('Input| Projects'!AY$9),1,0)) -> 0 | AZ23: =IF($C23="","",IF(TRIM('Input| JGN Mapping'!$J23)=TRIM('Input| Projects'!AZ$9),1,0)) -> 0 | BA23: =IF($C23="","",IF(TRIM('Input| JGN Mapping'!$J23)=TRIM('Input| Projects'!BA$9),1,0)) -> 0 | BB23: =IF($C23="","",IF(TRIM('Input| JGN Mapping'!$J23)=TRIM('Input| Projects'!BB$9),1,0)) -> 0 | BC23: =IF($C23="","",IF(TRIM('Input| JGN Mapping'!$J23)=TRIM('Input| Projects'!BC$9),1,0)) -> 1 | BD23: =IF($C23="","",IF(TRIM('Input| JGN Mapping'!$J23)=TRIM('Input| Projects'!BD$9),1,0)) -> 0 | BE23: =IF($C23="","",IF(TRIM('Input| JGN Mapping'!$J23)=TRIM('Input| Projects'!BE$9),1,0)) -> 0 | BF23: =IF($C23="","",IF(TRIM('Input| JGN Mapping'!$J23)=TRIM('Input| Projects'!BF$9),1,0)) -> 0 | BG23: =IF($C23="","",IF(TRIM('Input| JGN Mapping'!$J23)=TRIM('Input| Projects'!BG$9),1,0)) -> 0 | BH23: =IF($C23="","",IF(TRIM('Input| JGN Mapping'!$J23)=TRIM('Input| Projects'!BH$9),1,0)) -> 0 | BI23: =IF($C23="","",IF(TRIM('Input| JGN Mapping'!$J23)=TRIM('Input| Projects'!BI$9),1,0)) -> 0 | BJ23: =IF($C23="","",IF(TRIM('Input| JGN Mapping'!$J23)=TRIM('Input| Projects'!BJ$9),1,0)) -> 0 | BK23: =IF($C23="","",IF(TRIM('Input| JGN Mapping'!$J23)=TRIM('Input| Projects'!BK$9),1,0)) -> 0 | BL23: =IF($C23="","",IF(TRIM('Input| JGN Mapping'!$J23)=TRIM('Input| Projects'!BL$9),1,0)) -> 0 | BM23: =IF($C23="","",IF(TRIM('Input| JGN Mapping'!$J23)=TRIM('Input| Projects'!BM$9),1,0)) -> 0 | BN23: =IF($C23="","",IF(TRIM('Input| JGN Mapping'!$J23)=TRIM('Input| Projects'!BN$9),1,0)) -> 0 | BO23: =IF($C23="","",IF(TRIM('Input| JGN Mapping'!$J23)=TRIM('Input| Projects'!BO$9),1,0)) -> 0 | BP23: =IF($C23="","",IF(TRIM('Input| JGN Mapping'!$J23)=TRIM('Input| Projects'!BP$9),1,0)) -> 0 | BQ23: =IF($C23="","",IF(TRIM('Input| JGN Mapping'!$J23)=TRIM('Input| Projects'!BQ$9),1,0)) -> 0 | BR23: =IF($C23="","",IF(TRIM('Input| JGN Mapping'!$J23)=TRIM('Input| Projects'!BR$9),1,0)) -> 0 | BS23: =IF($C23="","",IF(TRIM('Input| JGN Mapping'!$J23)=TRIM('Input| Projects'!BS$9),1,0)) -> 0 | BT23: =IF($C23="","",IF(TRIM('Input| JGN Mapping'!$J23)=TRIM('Input| Projects'!BT$9),1,0)) -> 0 | BU23: =IF($C23="","",IF(TRIM('Input| JGN Mapping'!$J23)=TRIM('Input| Projects'!BU$9),1,0)) -> 0 | BV23: =IF($C23="","",IF(TRIM('Input| JGN Mapping'!$J23)=TRIM('Input| Projects'!BV$9),1,0)) -> 0 | BW23: =IF($C23="","",IF(TRIM('Input| JGN Mapping'!$J23)=TRIM('Input| Projects'!BW$9),1,0)) -> 0 | BX23: =IF($C23="","",IF(TRIM('Input| JGN Mapping'!$J23)=TRIM('Input| Projects'!BX$9),1,0)) -> 0 | BY23: =IF($C23="","",IF(TRIM('Input| JGN Mapping'!$J23)=TRIM('Input| Projects'!BY$9),1,0)) -> 0 | BZ23: =IF($C23="","",IF(TRIM('Input| JGN Mapping'!$J23)=TRIM('Input| Projects'!BZ$9),1,0)) -> 0 | CA23: =IF($C23="","",IF(TRIM('Input| JGN Mapping'!$J23)=TRIM('Input| Projects'!CA$9),1,0)) -> 0 | CB23: =IF($C23="","",IF(TRIM('Input| JGN Mapping'!$J23)=TRIM('Input| Projects'!CB$9),1,0)) -> 0 | CC23: =IF($C23="","",IF(TRIM('Input| JGN Mapping'!$J23)=TRIM('Input| Projects'!CC$9),1,0)) -> 0 | CD23: =IF($C23="","",IF(TRIM('Input| JGN Mapping'!$J23)=TRIM('Input| Projects'!CD$9),1,0)) -> 0 | CE23: =IF($C23="","",IF(TRIM('Input| JGN Mapping'!$J23)=TRIM('Input| Projects'!CE$9),1,0)) -> 0 | CF23: =IF($C23="","",IF(TRIM('Input| JGN Mapping'!$J23)=TRIM('Input| Projects'!CF$9),1,0)) -> 0 | CG23: =IF($C23="","",IF(TRIM('Input| JGN Mapping'!$J23)=TRIM('Input| Projects'!CG$9),1,0)) -> 0 | CH23: =IF($C23="","",IF(TRIM('Input| JGN Mapping'!$J23)=TRIM('Input| Projects'!CH$9),1,0)) -> 0 | CI23: =IF($C23="","",IF(TRIM('Input| JGN Mapping'!$J23)=TRIM('Input| Projects'!CI$9),1,0)) -> 0 | CJ23: =IF($C23="","",IF(TRIM('Input| JGN Mapping'!$J23)=TRIM('Input| Projects'!CJ$9),1,0)) -> 0 | CK23: =IF($C23="","",IF(TRIM('Input| JGN Mapping'!$J23)=TRIM('Input| Projects'!CK$9),1,0)) -> 0 | CL23: =IF($C23="","",IF(TRIM('Input| JGN Mapping'!$J23)=TRIM('Input| Projects'!CL$9),1,0)) -> 0 | CM23: =IF($C23="","",IF(TRIM('Input| JGN Mapping'!$J23)=TRIM('Input| Projects'!CM$9),1,0)) -> 0 | CN23: =IF($C23="","",IF(TRIM('Input| JGN Mapping'!$J23)=TRIM('Input| Projects'!CN$9),1,0)) -> 0 | CO23: =IF($C23="","",IF(TRIM('Input| JGN Mapping'!$J23)=TRIM('Input| Projects'!CO$9),1,0)) -> 0 | CP23: =_xlfn.SWITCH(TRUE, LEN(C23)<1,0, (SUM(AR23:CO23)<>1)*1) -> 0
B24: 15 | C24: Medium Density Meters | D24: R-CGO | F24: Connections | G24: Refer to sheet 'Input|JGN mapping | I24: 178.7545127 | J24: 280.5838802 | K24: 464.8030554 | L24: 287.1879108 | M24: 148.619289 | N24: 45.86964296 | O24: 7.425642172 | Q24: 8.097579425 | R24: 12.71044977 | S24: 26.30785293 | T24: 16.25483575 | U24: 8.411851755 | V24: 2.596221792 | W24: 0.420291347 | Y24: 0.7744929129 | Z24: 0.2255070871 | AA24: 0 | AC24: Yes | AD24: No | AI24: 1 | AR24: =IF($C24="","",IF(TRIM('Input| JGN Mapping'!$J24)=TRIM('Input| Projects'!AR$9),1,0)) -> 0 | AS24: =IF($C24="","",IF(TRIM('Input| JGN Mapping'!$J24)=TRIM('Input| Projects'!AS$9),1,0)) -> 0 | AT24: =IF($C24="","",IF(TRIM('Input| JGN Mapping'!$J24)=TRIM('Input| Projects'!AT$9),1,0)) -> 0 | AU24: =IF($C24="","",IF(TRIM('Input| JGN Mapping'!$J24)=TRIM('Input| Projects'!AU$9),1,0)) -> 0 | AV24: =IF($C24="","",IF(TRIM('Input| JGN Mapping'!$J24)=TRIM('Input| Projects'!AV$9),1,0)) -> 0 | AW24: =IF($C24="","",IF(TRIM('Input| JGN Mapping'!$J24)=TRIM('Input| Projects'!AW$9),1,0)) -> 0 | AX24: =IF($C24="","",IF(TRIM('Input| JGN Mapping'!$J24)=TRIM('Input| Projects'!AX$9),1,0)) -> 0 | AY24: =IF($C24="","",IF(TRIM('Input| JGN Mapping'!$J24)=TRIM('Input| Projects'!AY$9),1,0)) -> 0 | AZ24: =IF($C24="","",IF(TRIM('Input| JGN Mapping'!$J24)=TRIM('Input| Projects'!AZ$9),1,0)) -> 0 | BA24: =IF($C24="","",IF(TRIM('Input| JGN Mapping'!$J24)=TRIM('Input| Projects'!BA$9),1,0)) -> 0 | BB24: =IF($C24="","",IF(TRIM('Input| JGN Mapping'!$J24)=TRIM('Input| Projects'!BB$9),1,0)) -> 0 | BC24: =IF($C24="","",IF(TRIM('Input| JGN Mapping'!$J24)=TRIM('Input| Projects'!BC$9),1,0)) -> 1 | BD24: =IF($C24="","",IF(TRIM('Input| JGN Mapping'!$J24)=TRIM('Input| Projects'!BD$9),1,0)) -> 0 | BE24: =IF($C24="","",IF(TRIM('Input| JGN Mapping'!$J24)=TRIM('Input| Projects'!BE$9),1,0)) -> 0 | BF24: =IF($C24="","",IF(TRIM('Input| JGN Mapping'!$J24)=TRIM('Input| Projects'!BF$9),1,0)) -> 0 | BG24: =IF($C24="","",IF(TRIM('Input| JGN Mapping'!$J24)=TRIM('Input| Projects'!BG$9),1,0)) -> 0 | BH24: =IF($C24="","",IF(TRIM('Input| JGN Mapping'!$J24)=TRIM('Input| Projects'!BH$9),1,0)) -> 0 | BI24: =IF($C24="","",IF(TRIM('Input| JGN Mapping'!$J24)=TRIM('Input| Projects'!BI$9),1,0)) -> 0 | BJ24: =IF($C24="","",IF(TRIM('Input| JGN Mapping'!$J24)=TRIM('Input| Projects'!BJ$9),1,0)) -> 0 | BK24: =IF($C24="","",IF(TRIM('Input| JGN Mapping'!$J24)=TRIM('Input| Projects'!BK$9),1,0)) -> 0 | BL24: =IF($C24="","",IF(TRIM('Input| JGN Mapping'!$J24)=TRIM('Input| Projects'!BL$9),1,0)) -> 0 | BM24: =IF($C24="","",IF(TRIM('Input| JGN Mapping'!$J24)=TRIM('Input| Projects'!BM$9),1,0)) -> 0 | BN24: =IF($C24="","",IF(TRIM('Input| JGN Mapping'!$J24)=TRIM('Input| Projects'!BN$9),1,0)) -> 0 | BO24: =IF($C24="","",IF(TRIM('Input| JGN Mapping'!$J24)=TRIM('Input| Projects'!BO$9),1,0)) -> 0 | BP24: =IF($C24="","",IF(TRIM('Input| JGN Mapping'!$J24)=TRIM('Input| Projects'!BP$9),1,0)) -> 0 | BQ24: =IF($C24="","",IF(TRIM('Input| JGN Mapping'!$J24)=TRIM('Input| Projects'!BQ$9),1,0)) -> 0 | BR24: =IF($C24="","",IF(TRIM('Input| JGN Mapping'!$J24)=TRIM('Input| Projects'!BR$9),1,0)) -> 0 | BS24: =IF($C24="","",IF(TRIM('Input| JGN Mapping'!$J24)=TRIM('Input| Projects'!BS$9),1,0)) -> 0 | BT24: =IF($C24="","",IF(TRIM('Input| JGN Mapping'!$J24)=TRIM('Input| Projects'!BT$9),1,0)) -> 0 | BU24: =IF($C24="","",IF(TRIM('Input| JGN Mapping'!$J24)=TRIM('Input| Projects'!BU$9),1,0)) -> 0 | BV24: =IF($C24="","",IF(TRIM('Input| JGN Mapping'!$J24)=TRIM('Input| Projects'!BV$9),1,0)) -> 0 | BW24: =IF($C24="","",IF(TRIM('Input| JGN Mapping'!$J24)=TRIM('Input| Projects'!BW$9),1,0)) -> 0 | BX24: =IF($C24="","",IF(TRIM('Input| JGN Mapping'!$J24)=TRIM('Input| Projects'!BX$9),1,0)) -> 0 | BY24: =IF($C24="","",IF(TRIM('Input| JGN Mapping'!$J24)=TRIM('Input| Projects'!BY$9),1,0)) -> 0 | BZ24: =IF($C24="","",IF(TRIM('Input| JGN Mapping'!$J24)=TRIM('Input| Projects'!BZ$9),1,0)) -> 0 | CA24: =IF($C24="","",IF(TRIM('Input| JGN Mapping'!$J24)=TRIM('Input| Projects'!CA$9),1,0)) -> 0 | CB24: =IF($C24="","",IF(TRIM('Input| JGN Mapping'!$J24)=TRIM('Input| Projects'!CB$9),1,0)) -> 0 | CC24: =IF($C24="","",IF(TRIM('Input| JGN Mapping'!$J24)=TRIM('Input| Projects'!CC$9),1,0)) -> 0 | CD24: =IF($C24="","",IF(TRIM('Input| JGN Mapping'!$J24)=TRIM('Input| Projects'!CD$9),1,0)) -> 0 | CE24: =IF($C24="","",IF(TRIM('Input| JGN Mapping'!$J24)=TRIM('Input| Projects'!CE$9),1,0)) -> 0 | CF24: =IF($C24="","",IF(TRIM('Input| JGN Mapping'!$J24)=TRIM('Input| Projects'!CF$9),1,0)) -> 0 | CG24: =IF($C24="","",IF(TRIM('Input| JGN Mapping'!$J24)=TRIM('Input| Projects'!CG$9),1,0)) -> 0 | CH24: =IF($C24="","",IF(TRIM('Input| JGN Mapping'!$J24)=TRIM('Input| Projects'!CH$9),1,0)) -> 0 | CI24: =IF($C24="","",IF(TRIM('Input| JGN Mapping'!$J24)=TRIM('Input| Projects'!CI$9),1,0)) -> 0 | CJ24: =IF($C24="","",IF(TRIM('Input| JGN Mapping'!$J24)=TRIM('Input| Projects'!CJ$9),1,0)) -> 0 | CK24: =IF($C24="","",IF(TRIM('Input| JGN Mapping'!$J24)=TRIM('Input| Projects'!CK$9),1,0)) -> 0 | CL24: =IF($C24="","",IF(TRIM('Input| JGN Mapping'!$J24)=TRIM('Input| Projects'!CL$9),1,0)) -> 0 | CM24: =IF($C24="","",IF(TRIM('Input| JGN Mapping'!$J24)=TRIM('Input| Projects'!CM$9),1,0)) -> 0 | CN24: =IF($C24="","",IF(TRIM('Input| JGN Mapping'!$J24)=TRIM('Input| Projects'!CN$9),1,0)) -> 0 | CO24: =IF($C24="","",IF(TRIM('Input| JGN Mapping'!$J24)=TRIM('Input| Projects'!CO$9),1,0)) -> 0 | CP24: =_xlfn.SWITCH(TRUE, LEN(C24)<1,0, (SUM(AR24:CO24)<>1)*1) -> 0
B25: 16 | C25: High Rise Individually Metered Meters | D25: R-CGU | F25: Connections | G25: Refer to sheet 'Input|JGN mapping | I25: 1512.023134 | J25: 2405.00689 | K25: 4020.500877 | L25: 2462.92036 | M25: 1247.754919 | N25: 346.700861 | O25: 9.569549691 | Q25: 68.49464798 | R25: 108.9468121 | S25: 227.5603496 | T25: 139.4012924 | U25: 70.62292839 | V25: 19.62326873 | W25: 0.5416365125 | Y25: 0.775597742 | Z25: 0.224402258 | AA25: 0 | AC25: Yes | AD25: No | AI25: 1 | AR25: =IF($C25="","",IF(TRIM('Input| JGN Mapping'!$J25)=TRIM('Input| Projects'!AR$9),1,0)) -> 0 | AS25: =IF($C25="","",IF(TRIM('Input| JGN Mapping'!$J25)=TRIM('Input| Projects'!AS$9),1,0)) -> 0 | AT25: =IF($C25="","",IF(TRIM('Input| JGN Mapping'!$J25)=TRIM('Input| Projects'!AT$9),1,0)) -> 0 | AU25: =IF($C25="","",IF(TRIM('Input| JGN Mapping'!$J25)=TRIM('Input| Projects'!AU$9),1,0)) -> 0 | AV25: =IF($C25="","",IF(TRIM('Input| JGN Mapping'!$J25)=TRIM('Input| Projects'!AV$9),1,0)) -> 0 | AW25: =IF($C25="","",IF(TRIM('Input| JGN Mapping'!$J25)=TRIM('Input| Projects'!AW$9),1,0)) -> 0 | AX25: =IF($C25="","",IF(TRIM('Input| JGN Mapping'!$J25)=TRIM('Input| Projects'!AX$9),1,0)) -> 0 | AY25: =IF($C25="","",IF(TRIM('Input| JGN Mapping'!$J25)=TRIM('Input| Projects'!AY$9),1,0)) -> 0 | AZ25: =IF($C25="","",IF(TRIM('Input| JGN Mapping'!$J25)=TRIM('Input| Projects'!AZ$9),1,0)) -> 0 | BA25: =IF($C25="","",IF(TRIM('Input| JGN Mapping'!$J25)=TRIM('Input| Projects'!BA$9),1,0)) -> 0 | BB25: =IF($C25="","",IF(TRIM('Input| JGN Mapping'!$J25)=TRIM('Input| Projects'!BB$9),1,0)) -> 0 | BC25: =IF($C25="","",IF(TRIM('Input| JGN Mapping'!$J25)=TRIM('Input| Projects'!BC$9),1,0)) -> 1 | BD25: =IF($C25="","",IF(TRIM('Input| JGN Mapping'!$J25)=TRIM('Input| Projects'!BD$9),1,0)) -> 0 | BE25: =IF($C25="","",IF(TRIM('Input| JGN Mapping'!$J25)=TRIM('Input| Projects'!BE$9),1,0)) -> 0 | BF25: =IF($C25="","",IF(TRIM('Input| JGN Mapping'!$J25)=TRIM('Input| Projects'!BF$9),1,0)) -> 0 | BG25: =IF($C25="","",IF(TRIM('Input| JGN Mapping'!$J25)=TRIM('Input| Projects'!BG$9),1,0)) -> 0 | BH25: =IF($C25="","",IF(TRIM('Input| JGN Mapping'!$J25)=TRIM('Input| Projects'!BH$9),1,0)) -> 0 | BI25: =IF($C25="","",IF(TRIM('Input| JGN Mapping'!$J25)=TRIM('Input| Projects'!BI$9),1,0)) -> 0 | BJ25: =IF($C25="","",IF(TRIM('Input| JGN Mapping'!$J25)=TRIM('Input| Projects'!BJ$9),1,0)) -> 0 | BK25: =IF($C25="","",IF(TRIM('Input| JGN Mapping'!$J25)=TRIM('Input| Projects'!BK$9),1,0)) -> 0 | BL25: =IF($C25="","",IF(TRIM('Input| JGN Mapping'!$J25)=TRIM('Input| Projects'!BL$9),1,0)) -> 0 | BM25: =IF($C25="","",IF(TRIM('Input| JGN Mapping'!$J25)=TRIM('Input| Projects'!BM$9),1,0)) -> 0 | BN25: =IF($C25="","",IF(TRIM('Input| JGN Mapping'!$J25)=TRIM('Input| Projects'!BN$9),1,0)) -> 0 | BO25: =IF($C25="","",IF(TRIM('Input| JGN Mapping'!$J25)=TRIM('Input| Projects'!BO$9),1,0)) -> 0 | BP25: =IF($C25="","",IF(TRIM('Input| JGN Mapping'!$J25)=TRIM('Input| Projects'!BP$9),1,0)) -> 0 | BQ25: =IF($C25="","",IF(TRIM('Input| JGN Mapping'!$J25)=TRIM('Input| Projects'!BQ$9),1,0)) -> 0 | BR25: =IF($C25="","",IF(TRIM('Input| JGN Mapping'!$J25)=TRIM('Input| Projects'!BR$9),1,0)) -> 0 | BS25: =IF($C25="","",IF(TRIM('Input| JGN Mapping'!$J25)=TRIM('Input| Projects'!BS$9),1,0)) -> 0 | BT25: =IF($C25="","",IF(TRIM('Input| JGN Mapping'!$J25)=TRIM('Input| Projects'!BT$9),1,0)) -> 0 | BU25: =IF($C25="","",IF(TRIM('Input| JGN Mapping'!$J25)=TRIM('Input| Projects'!BU$9),1,0)) -> 0 | BV25: =IF($C25="","",IF(TRIM('Input| JGN Mapping'!$J25)=TRIM('Input| Projects'!BV$9),1,0)) -> 0 | BW25: =IF($C25="","",IF(TRIM('Input| JGN Mapping'!$J25)=TRIM('Input| Projects'!BW$9),1,0)) -> 0 | BX25: =IF($C25="","",IF(TRIM('Input| JGN Mapping'!$J25)=TRIM('Input| Projects'!BX$9),1,0)) -> 0 | BY25: =IF($C25="","",IF(TRIM('Input| JGN Mapping'!$J25)=TRIM('Input| Projects'!BY$9),1,0)) -> 0 | BZ25: =IF($C25="","",IF(TRIM('Input| JGN Mapping'!$J25)=TRIM('Input| Projects'!BZ$9),1,0)) -> 0 | CA25: =IF($C25="","",IF(TRIM('Input| JGN Mapping'!$J25)=TRIM('Input| Projects'!CA$9),1,0)) -> 0 | CB25: =IF($C25="","",IF(TRIM('Input| JGN Mapping'!$J25)=TRIM('Input| Projects'!CB$9),1,0)) -> 0 | CC25: =IF($C25="","",IF(TRIM('Input| JGN Mapping'!$J25)=TRIM('Input| Projects'!CC$9),1,0)) -> 0 | CD25: =IF($C25="","",IF(TRIM('Input| JGN Mapping'!$J25)=TRIM('Input| Projects'!CD$9),1,0)) -> 0 | CE25: =IF($C25="","",IF(TRIM('Input| JGN Mapping'!$J25)=TRIM('Input| Projects'!CE$9),1,0)) -> 0 | CF25: =IF($C25="","",IF(TRIM('Input| JGN Mapping'!$J25)=TRIM('Input| Projects'!CF$9),1,0)) -> 0 | CG25: =IF($C25="","",IF(TRIM('Input| JGN Mapping'!$J25)=TRIM('Input| Projects'!CG$9),1,0)) -> 0 | CH25: =IF($C25="","",IF(TRIM('Input| JGN Mapping'!$J25)=TRIM('Input| Projects'!CH$9),1,0)) -> 0 | CI25: =IF($C25="","",IF(TRIM('Input| JGN Mapping'!$J25)=TRIM('Input| Projects'!CI$9),1,0)) -> 0 | CJ25: =IF($C25="","",IF(TRIM('Input| JGN Mapping'!$J25)=TRIM('Input| Projects'!CJ$9),1,0)) -> 0 | CK25: =IF($C25="","",IF(TRIM('Input| JGN Mapping'!$J25)=TRIM('Input| Projects'!CK$9),1,0)) -> 0 | CL25: =IF($C25="","",IF(TRIM('Input| JGN Mapping'!$J25)=TRIM('Input| Projects'!CL$9),1,0)) -> 0 | CM25: =IF($C25="","",IF(TRIM('Input| JGN Mapping'!$J25)=TRIM('Input| Projects'!CM$9),1,0)) -> 0 | CN25: =IF($C25="","",IF(TRIM('Input| JGN Mapping'!$J25)=TRIM('Input| Projects'!CN$9),1,0)) -> 0 | CO25: =IF($C25="","",IF(TRIM('Input| JGN Mapping'!$J25)=TRIM('Input| Projects'!CO$9),1,0)) -> 0 | CP25: =_xlfn.SWITCH(TRUE, LEN(C25)<1,0, (SUM(AR25:CO25)<>1)*1) -> 0
B26: 17 | C26: High Rise Volume Boundary Meters | D26: R-CGW | F26: Connections | G26: Refer to sheet 'Input|JGN mapping | I26: 582.1584873 | J26: 582.1584873 | K26: 582.1584873 | L26: 582.1584873 | M26: 582.1584873 | N26: 582.1584873 | O26: 582.1584873 | Q26: 26.37177947 | R26: 26.37177947 | S26: 32.95017038 | T26: 32.95017038 | U26: 32.95017038 | V26: 32.95017038 | W26: 32.95017038 | Y26: 0.7755748654 | Z26: 0.2244251346 | AA26: 0 | AC26: Yes | AD26: No | AI26: 1 | AR26: =IF($C26="","",IF(TRIM('Input| JGN Mapping'!$J26)=TRIM('Input| Projects'!AR$9),1,0)) -> 0 | AS26: =IF($C26="","",IF(TRIM('Input| JGN Mapping'!$J26)=TRIM('Input| Projects'!AS$9),1,0)) -> 0 | AT26: =IF($C26="","",IF(TRIM('Input| JGN Mapping'!$J26)=TRIM('Input| Projects'!AT$9),1,0)) -> 0 | AU26: =IF($C26="","",IF(TRIM('Input| JGN Mapping'!$J26)=TRIM('Input| Projects'!AU$9),1,0)) -> 0 | AV26: =IF($C26="","",IF(TRIM('Input| JGN Mapping'!$J26)=TRIM('Input| Projects'!AV$9),1,0)) -> 0 | AW26: =IF($C26="","",IF(TRIM('Input| JGN Mapping'!$J26)=TRIM('Input| Projects'!AW$9),1,0)) -> 0 | AX26: =IF($C26="","",IF(TRIM('Input| JGN Mapping'!$J26)=TRIM('Input| Projects'!AX$9),1,0)) -> 0 | AY26: =IF($C26="","",IF(TRIM('Input| JGN Mapping'!$J26)=TRIM('Input| Projects'!AY$9),1,0)) -> 0 | AZ26: =IF($C26="","",IF(TRIM('Input| JGN Mapping'!$J26)=TRIM('Input| Projects'!AZ$9),1,0)) -> 0 | BA26: =IF($C26="","",IF(TRIM('Input| JGN Mapping'!$J26)=TRIM('Input| Projects'!BA$9),1,0)) -> 0 | BB26: =IF($C26="","",IF(TRIM('Input| JGN Mapping'!$J26)=TRIM('Input| Projects'!BB$9),1,0)) -> 0 | BC26: =IF($C26="","",IF(TRIM('Input| JGN Mapping'!$J26)=TRIM('Input| Projects'!BC$9),1,0)) -> 1 | BD26: =IF($C26="","",IF(TRIM('Input| JGN Mapping'!$J26)=TRIM('Input| Projects'!BD$9),1,0)) -> 0 | BE26: =IF($C26="","",IF(TRIM('Input| JGN Mapping'!$J26)=TRIM('Input| Projects'!BE$9),1,0)) -> 0 | BF26: =IF($C26="","",IF(TRIM('Input| JGN Mapping'!$J26)=TRIM('Input| Projects'!BF$9),1,0)) -> 0 | BG26: =IF($C26="","",IF(TRIM('Input| JGN Mapping'!$J26)=TRIM('Input| Projects'!BG$9),1,0)) -> 0 | BH26: =IF($C26="","",IF(TRIM('Input| JGN Mapping'!$J26)=TRIM('Input| Projects'!BH$9),1,0)) -> 0 | BI26: =IF($C26="","",IF(TRIM('Input| JGN Mapping'!$J26)=TRIM('Input| Projects'!BI$9),1,0)) -> 0 | BJ26: =IF($C26="","",IF(TRIM('Input| JGN Mapping'!$J26)=TRIM('Input| Projects'!BJ$9),1,0)) -> 0 | BK26: =IF($C26="","",IF(TRIM('Input| JGN Mapping'!$J26)=TRIM('Input| Projects'!BK$9),1,0)) -> 0 | BL26: =IF($C26="","",IF(TRIM('Input| JGN Mapping'!$J26)=TRIM('Input| Projects'!BL$9),1,0)) -> 0 | BM26: =IF($C26="","",IF(TRIM('Input| JGN Mapping'!$J26)=TRIM('Input| Projects'!BM$9),1,0)) -> 0 | BN26: =IF($C26="","",IF(TRIM('Input| JGN Mapping'!$J26)=TRIM('Input| Projects'!BN$9),1,0)) -> 0 | BO26: =IF($C26="","",IF(TRIM('Input| JGN Mapping'!$J26)=TRIM('Input| Projects'!BO$9),1,0)) -> 0 | BP26: =IF($C26="","",IF(TRIM('Input| JGN Mapping'!$J26)=TRIM('Input| Projects'!BP$9),1,0)) -> 0 | BQ26: =IF($C26="","",IF(TRIM('Input| JGN Mapping'!$J26)=TRIM('Input| Projects'!BQ$9),1,0)) -> 0 | BR26: =IF($C26="","",IF(TRIM('Input| JGN Mapping'!$J26)=TRIM('Input| Projects'!BR$9),1,0)) -> 0 | BS26: =IF($C26="","",IF(TRIM('Input| JGN Mapping'!$J26)=TRIM('Input| Projects'!BS$9),1,0)) -> 0 | BT26: =IF($C26="","",IF(TRIM('Input| JGN Mapping'!$J26)=TRIM('Input| Projects'!BT$9),1,0)) -> 0 | BU26: =IF($C26="","",IF(TRIM('Input| JGN Mapping'!$J26)=TRIM('Input| Projects'!BU$9),1,0)) -> 0 | BV26: =IF($C26="","",IF(TRIM('Input| JGN Mapping'!$J26)=TRIM('Input| Projects'!BV$9),1,0)) -> 0 | BW26: =IF($C26="","",IF(TRIM('Input| JGN Mapping'!$J26)=TRIM('Input| Projects'!BW$9),1,0)) -> 0 | BX26: =IF($C26="","",IF(TRIM('Input| JGN Mapping'!$J26)=TRIM('Input| Projects'!BX$9),1,0)) -> 0 | BY26: =IF($C26="","",IF(TRIM('Input| JGN Mapping'!$J26)=TRIM('Input| Projects'!BY$9),1,0)) -> 0 | BZ26: =IF($C26="","",IF(TRIM('Input| JGN Mapping'!$J26)=TRIM('Input| Projects'!BZ$9),1,0)) -> 0 | CA26: =IF($C26="","",IF(TRIM('Input| JGN Mapping'!$J26)=TRIM('Input| Projects'!CA$9),1,0)) -> 0 | CB26: =IF($C26="","",IF(TRIM('Input| JGN Mapping'!$J26)=TRIM('Input| Projects'!CB$9),1,0)) -> 0 | CC26: =IF($C26="","",IF(TRIM('Input| JGN Mapping'!$J26)=TRIM('Input| Projects'!CC$9),1,0)) -> 0 | CD26: =IF($C26="","",IF(TRIM('Input| JGN Mapping'!$J26)=TRIM('Input| Projects'!CD$9),1,0)) -> 0 | CE26: =IF($C26="","",IF(TRIM('Input| JGN Mapping'!$J26)=TRIM('Input| Projects'!CE$9),1,0)) -> 0 | CF26: =IF($C26="","",IF(TRIM('Input| JGN Mapping'!$J26)=TRIM('Input| Projects'!CF$9),1,0)) -> 0 | CG26: =IF($C26="","",IF(TRIM('Input| JGN Mapping'!$J26)=TRIM('Input| Projects'!CG$9),1,0)) -> 0 | CH26: =IF($C26="","",IF(TRIM('Input| JGN Mapping'!$J26)=TRIM('Input| Projects'!CH$9),1,0)) -> 0 | CI26: =IF($C26="","",IF(TRIM('Input| JGN Mapping'!$J26)=TRIM('Input| Projects'!CI$9),1,0)) -> 0 | CJ26: =IF($C26="","",IF(TRIM('Input| JGN Mapping'!$J26)=TRIM('Input| Projects'!CJ$9),1,0)) -> 0 | CK26: =IF($C26="","",IF(TRIM('Input| JGN Mapping'!$J26)=TRIM('Input| Projects'!CK$9),1,0)) -> 0 | CL26: =IF($C26="","",IF(TRIM('Input| JGN Mapping'!$J26)=TRIM('Input| Projects'!CL$9),1,0)) -> 0 | CM26: =IF($C26="","",IF(TRIM('Input| JGN Mapping'!$J26)=TRIM('Input| Projects'!CM$9),1,0)) -> 0 | CN26: =IF($C26="","",IF(TRIM('Input| JGN Mapping'!$J26)=TRIM('Input| Projects'!CN$9),1,0)) -> 0 | CO26: =IF($C26="","",IF(TRIM('Input| JGN Mapping'!$J26)=TRIM('Input| Projects'!CO$9),1,0)) -> 0 | CP26: =_xlfn.SWITCH(TRUE, LEN(C26)<1,0, (SUM(AR26:CO26)<>1)*1) -> 0
B27: 18 | C27: Trial of Remote Reading Technology for Large I&C Meters RY-First Half | D27: 10068368 | F27: Meter replacement | G27: Refer to sheet 'Input|JGN mapping | I27: 0 | J27: 0 | K27: 49.75408212 | L27: 290.4693248 | M27: 0 | N27: 0 | O27: 0 | Q27: 0 | R27: 0 | S27: 0 | T27: 0 | U27: 0 | V27: 0 | W27: 0 | Y27: 0.2714665434 | Z27: 0.7285334566 | AA27: 0 | AC27: Yes | AD27: No | AI27: 1 | AR27: =IF($C27="","",IF(TRIM('Input| JGN Mapping'!$J27)=TRIM('Input| Projects'!AR$9),1,0)) -> 0 | AS27: =IF($C27="","",IF(TRIM('Input| JGN Mapping'!$J27)=TRIM('Input| Projects'!AS$9),1,0)) -> 0 | AT27: =IF($C27="","",IF(TRIM('Input| JGN Mapping'!$J27)=TRIM('Input| Projects'!AT$9),1,0)) -> 0 | AU27: =IF($C27="","",IF(TRIM('Input| JGN Mapping'!$J27)=TRIM('Input| Projects'!AU$9),1,0)) -> 1 | AV27: =IF($C27="","",IF(TRIM('Input| JGN Mapping'!$J27)=TRIM('Input| Projects'!AV$9),1,0)) -> 0 | AW27: =IF($C27="","",IF(TRIM('Input| JGN Mapping'!$J27)=TRIM('Input| Projects'!AW$9),1,0)) -> 0 | AX27: =IF($C27="","",IF(TRIM('Input| JGN Mapping'!$J27)=TRIM('Input| Projects'!AX$9),1,0)) -> 0 | AY27: =IF($C27="","",IF(TRIM('Input| JGN Mapping'!$J27)=TRIM('Input| Projects'!AY$9),1,0)) -> 0 | AZ27: =IF($C27="","",IF(TRIM('Input| JGN Mapping'!$J27)=TRIM('Input| Projects'!AZ$9),1,0)) -> 0 | BA27: =IF($C27="","",IF(TRIM('Input| JGN Mapping'!$J27)=TRIM('Input| Projects'!BA$9),1,0)) -> 0 | BB27: =IF($C27="","",IF(TRIM('Input| JGN Mapping'!$J27)=TRIM('Input| Projects'!BB$9),1,0)) -> 0 | BC27: =IF($C27="","",IF(TRIM('Input| JGN Mapping'!$J27)=TRIM('Input| Projects'!BC$9),1,0)) -> 0 | BD27: =IF($C27="","",IF(TRIM('Input| JGN Mapping'!$J27)=TRIM('Input| Projects'!BD$9),1,0)) -> 0 | BE27: =IF($C27="","",IF(TRIM('Input| JGN Mapping'!$J27)=TRIM('Input| Projects'!BE$9),1,0)) -> 0 | BF27: =IF($C27="","",IF(TRIM('Input| JGN Mapping'!$J27)=TRIM('Input| Projects'!BF$9),1,0)) -> 0 | BG27: =IF($C27="","",IF(TRIM('Input| JGN Mapping'!$J27)=TRIM('Input| Projects'!BG$9),1,0)) -> 0 | BH27: =IF($C27="","",IF(TRIM('Input| JGN Mapping'!$J27)=TRIM('Input| Projects'!BH$9),1,0)) -> 0 | BI27: =IF($C27="","",IF(TRIM('Input| JGN Mapping'!$J27)=TRIM('Input| Projects'!BI$9),1,0)) -> 0 | BJ27: =IF($C27="","",IF(TRIM('Input| JGN Mapping'!$J27)=TRIM('Input| Projects'!BJ$9),1,0)) -> 0 | BK27: =IF($C27="","",IF(TRIM('Input| JGN Mapping'!$J27)=TRIM('Input| Projects'!BK$9),1,0)) -> 0 | BL27: =IF($C27="","",IF(TRIM('Input| JGN Mapping'!$J27)=TRIM('Input| Projects'!BL$9),1,0)) -> 0 | BM27: =IF($C27="","",IF(TRIM('Input| JGN Mapping'!$J27)=TRIM('Input| Projects'!BM$9),1,0)) -> 0 | BN27: =IF($C27="","",IF(TRIM('Input| JGN Mapping'!$J27)=TRIM('Input| Projects'!BN$9),1,0)) -> 0 | BO27: =IF($C27="","",IF(TRIM('Input| JGN Mapping'!$J27)=TRIM('Input| Projects'!BO$9),1,0)) -> 0 | BP27: =IF($C27="","",IF(TRIM('Input| JGN Mapping'!$J27)=TRIM('Input| Projects'!BP$9),1,0)) -> 0 | BQ27: =IF($C27="","",IF(TRIM('Input| JGN Mapping'!$J27)=TRIM('Input| Projects'!BQ$9),1,0)) -> 0 | BR27: =IF($C27="","",IF(TRIM('Input| JGN Mapping'!$J27)=TRIM('Input| Projects'!BR$9),1,0)) -> 0 | BS27: =IF($C27="","",IF(TRIM('Input| JGN Mapping'!$J27)=TRIM('Input| Projects'!BS$9),1,0)) -> 0 | BT27: =IF($C27="","",IF(TRIM('Input| JGN Mapping'!$J27)=TRIM('Input| Projects'!BT$9),1,0)) -> 0 | BU27: =IF($C27="","",IF(TRIM('Input| JGN Mapping'!$J27)=TRIM('Input| Projects'!BU$9),1,0)) -> 0 | BV27: =IF($C27="","",IF(TRIM('Input| JGN Mapping'!$J27)=TRIM('Input| Projects'!BV$9),1,0)) -> 0 | BW27: =IF($C27="","",IF(TRIM('Input| JGN Mapping'!$J27)=TRIM('Input| Projects'!BW$9),1,0)) -> 0 | BX27: =IF($C27="","",IF(TRIM('Input| JGN Mapping'!$J27)=TRIM('Input| Projects'!BX$9),1,0)) -> 0 | BY27: =IF($C27="","",IF(TRIM('Input| JGN Mapping'!$J27)=TRIM('Input| Projects'!BY$9),1,0)) -> 0 | BZ27: =IF($C27="","",IF(TRIM('Input| JGN Mapping'!$J27)=TRIM('Input| Projects'!BZ$9),1,0)) -> 0 | CA27: =IF($C27="","",IF(TRIM('Input| JGN Mapping'!$J27)=TRIM('Input| Projects'!CA$9),1,0)) -> 0 | CB27: =IF($C27="","",IF(TRIM('Input| JGN Mapping'!$J27)=TRIM('Input| Projects'!CB$9),1,0)) -> 0 | CC27: =IF($C27="","",IF(TRIM('Input| JGN Mapping'!$J27)=TRIM('Input| Projects'!CC$9),1,0)) -> 0 | CD27: =IF($C27="","",IF(TRIM('Input| JGN Mapping'!$J27)=TRIM('Input| Projects'!CD$9),1,0)) -> 0 | CE27: =IF($C27="","",IF(TRIM('Input| JGN Mapping'!$J27)=TRIM('Input| Projects'!CE$9),1,0)) -> 0 | CF27: =IF($C27="","",IF(TRIM('Input| JGN Mapping'!$J27)=TRIM('Input| Projects'!CF$9),1,0)) -> 0 | CG27: =IF($C27="","",IF(TRIM('Input| JGN Mapping'!$J27)=TRIM('Input| Projects'!CG$9),1,0)) -> 0 | CH27: =IF($C27="","",IF(TRIM('Input| JGN Mapping'!$J27)=TRIM('Input| Projects'!CH$9),1,0)) -> 0 | CI27: =IF($C27="","",IF(TRIM('Input| JGN Mapping'!$J27)=TRIM('Input| Projects'!CI$9),1,0)) -> 0 | CJ27: =IF($C27="","",IF(TRIM('Input| JGN Mapping'!$J27)=TRIM('Input| Projects'!CJ$9),1,0)) -> 0 | CK27: =IF($C27="","",IF(TRIM('Input| JGN Mapping'!$J27)=TRIM('Input| Projects'!CK$9),1,0)) -> 0 | CL27: =IF($C27="","",IF(TRIM('Input| JGN Mapping'!$J27)=TRIM('Input| Projects'!CL$9),1,0)) -> 0 | CM27: =IF($C27="","",IF(TRIM('Input| JGN Mapping'!$J27)=TRIM('Input| Projects'!CM$9),1,0)) -> 0 | CN27: =IF($C27="","",IF(TRIM('Input| JGN Mapping'!$J27)=TRIM('Input| Projects'!CN$9),1,0)) -> 0 | CO27: =IF($C27="","",IF(TRIM('Input| JGN Mapping'!$J27)=TRIM('Input| Projects'!CO$9),1,0)) -> 0 | CP27: =_xlfn.SWITCH(TRUE, LEN(C27)<1,0, (SUM(AR27:CO27)<>1)*1) -> 0
B28: 19 | C28: Trial of Remote Reading Technology for Large I&C Meters RY-Second Half | D28: 10068368 | F28: Meter replacement | G28: Refer to sheet 'Input|JGN mapping | I28: 0 | J28: 0 | K28: 80.1069091 | L28: 0 | M28: 0 | N28: 0 | O28: 0 | Q28: 0 | R28: 0 | S28: 0 | T28: 0 | U28: 0 | V28: 0 | W28: 0 | Y28: 0.2714665434 | Z28: 0.7285334566 | AA28: 0 | AC28: Yes | AD28: No | AI28: 1 | AR28: =IF($C28="","",IF(TRIM('Input| JGN Mapping'!$J28)=TRIM('Input| Projects'!AR$9),1,0)) -> 0 | AS28: =IF($C28="","",IF(TRIM('Input| JGN Mapping'!$J28)=TRIM('Input| Projects'!AS$9),1,0)) -> 0 | AT28: =IF($C28="","",IF(TRIM('Input| JGN Mapping'!$J28)=TRIM('Input| Projects'!AT$9),1,0)) -> 0 | AU28: =IF($C28="","",IF(TRIM('Input| JGN Mapping'!$J28)=TRIM('Input| Projects'!AU$9),1,0)) -> 1 | AV28: =IF($C28="","",IF(TRIM('Input| JGN Mapping'!$J28)=TRIM('Input| Projects'!AV$9),1,0)) -> 0 | AW28: =IF($C28="","",IF(TRIM('Input| JGN Mapping'!$J28)=TRIM('Input| Projects'!AW$9),1,0)) -> 0 | AX28: =IF($C28="","",IF(TRIM('Input| JGN Mapping'!$J28)=TRIM('Input| Projects'!AX$9),1,0)) -> 0 | AY28: =IF($C28="","",IF(TRIM('Input| JGN Mapping'!$J28)=TRIM('Input| Projects'!AY$9),1,0)) -> 0 | AZ28: =IF($C28="","",IF(TRIM('Input| JGN Mapping'!$J28)=TRIM('Input| Projects'!AZ$9),1,0)) -> 0 | BA28: =IF($C28="","",IF(TRIM('Input| JGN Mapping'!$J28)=TRIM('Input| Projects'!BA$9),1,0)) -> 0 | BB28: =IF($C28="","",IF(TRIM('Input| JGN Mapping'!$J28)=TRIM('Input| Projects'!BB$9),1,0)) -> 0 | BC28: =IF($C28="","",IF(TRIM('Input| JGN Mapping'!$J28)=TRIM('Input| Projects'!BC$9),1,0)) -> 0 | BD28: =IF($C28="","",IF(TRIM('Input| JGN Mapping'!$J28)=TRIM('Input| Projects'!BD$9),1,0)) -> 0 | BE28: =IF($C28="","",IF(TRIM('Input| JGN Mapping'!$J28)=TRIM('Input| Projects'!BE$9),1,0)) -> 0 | BF28: =IF($C28="","",IF(TRIM('Input| JGN Mapping'!$J28)=TRIM('Input| Projects'!BF$9),1,0)) -> 0 | BG28: =IF($C28="","",IF(TRIM('Input| JGN Mapping'!$J28)=TRIM('Input| Projects'!BG$9),1,0)) -> 0 | BH28: =IF($C28="","",IF(TRIM('Input| JGN Mapping'!$J28)=TRIM('Input| Projects'!BH$9),1,0)) -> 0 | BI28: =IF($C28="","",IF(TRIM('Input| JGN Mapping'!$J28)=TRIM('Input| Projects'!BI$9),1,0)) -> 0 | BJ28: =IF($C28="","",IF(TRIM('Input| JGN Mapping'!$J28)=TRIM('Input| Projects'!BJ$9),1,0)) -> 0 | BK28: =IF($C28="","",IF(TRIM('Input| JGN Mapping'!$J28)=TRIM('Input| Projects'!BK$9),1,0)) -> 0 | BL28: =IF($C28="","",IF(TRIM('Input| JGN Mapping'!$J28)=TRIM('Input| Projects'!BL$9),1,0)) -> 0 | BM28: =IF($C28="","",IF(TRIM('Input| JGN Mapping'!$J28)=TRIM('Input| Projects'!BM$9),1,0)) -> 0 | BN28: =IF($C28="","",IF(TRIM('Input| JGN Mapping'!$J28)=TRIM('Input| Projects'!BN$9),1,0)) -> 0 | BO28: =IF($C28="","",IF(TRIM('Input| JGN Mapping'!$J28)=TRIM('Input| Projects'!BO$9),1,0)) -> 0 | BP28: =IF($C28="","",IF(TRIM('Input| JGN Mapping'!$J28)=TRIM('Input| Projects'!BP$9),1,0)) -> 0 | BQ28: =IF($C28="","",IF(TRIM('Input| JGN Mapping'!$J28)=TRIM('Input| Projects'!BQ$9),1,0)) -> 0 | BR28: =IF($C28="","",IF(TRIM('Input| JGN Mapping'!$J28)=TRIM('Input| Projects'!BR$9),1,0)) -> 0 | BS28: =IF($C28="","",IF(TRIM('Input| JGN Mapping'!$J28)=TRIM('Input| Projects'!BS$9),1,0)) -> 0 | BT28: =IF($C28="","",IF(TRIM('Input| JGN Mapping'!$J28)=TRIM('Input| Projects'!BT$9),1,0)) -> 0 | BU28: =IF($C28="","",IF(TRIM('Input| JGN Mapping'!$J28)=TRIM('Input| Projects'!BU$9),1,0)) -> 0 | BV28: =IF($C28="","",IF(TRIM('Input| JGN Mapping'!$J28)=TRIM('Input| Projects'!BV$9),1,0)) -> 0 | BW28: =IF($C28="","",IF(TRIM('Input| JGN Mapping'!$J28)=TRIM('Input| Projects'!BW$9),1,0)) -> 0 | BX28: =IF($C28="","",IF(TRIM('Input| JGN Mapping'!$J28)=TRIM('Input| Projects'!BX$9),1,0)) -> 0 | BY28: =IF($C28="","",IF(TRIM('Input| JGN Mapping'!$J28)=TRIM('Input| Projects'!BY$9),1,0)) -> 0 | BZ28: =IF($C28="","",IF(TRIM('Input| JGN Mapping'!$J28)=TRIM('Input| Projects'!BZ$9),1,0)) -> 0 | CA28: =IF($C28="","",IF(TRIM('Input| JGN Mapping'!$J28)=TRIM('Input| Projects'!CA$9),1,0)) -> 0 | CB28: =IF($C28="","",IF(TRIM('Input| JGN Mapping'!$J28)=TRIM('Input| Projects'!CB$9),1,0)) -> 0 | CC28: =IF($C28="","",IF(TRIM('Input| JGN Mapping'!$J28)=TRIM('Input| Projects'!CC$9),1,0)) -> 0 | CD28: =IF($C28="","",IF(TRIM('Input| JGN Mapping'!$J28)=TRIM('Input| Projects'!CD$9),1,0)) -> 0 | CE28: =IF($C28="","",IF(TRIM('Input| JGN Mapping'!$J28)=TRIM('Input| Projects'!CE$9),1,0)) -> 0 | CF28: =IF($C28="","",IF(TRIM('Input| JGN Mapping'!$J28)=TRIM('Input| Projects'!CF$9),1,0)) -> 0 | CG28: =IF($C28="","",IF(TRIM('Input| JGN Mapping'!$J28)=TRIM('Input| Projects'!CG$9),1,0)) -> 0 | CH28: =IF($C28="","",IF(TRIM('Input| JGN Mapping'!$J28)=TRIM('Input| Projects'!CH$9),1,0)) -> 0 | CI28: =IF($C28="","",IF(TRIM('Input| JGN Mapping'!$J28)=TRIM('Input| Projects'!CI$9),1,0)) -> 0 | CJ28: =IF($C28="","",IF(TRIM('Input| JGN Mapping'!$J28)=TRIM('Input| Projects'!CJ$9),1,0)) -> 0 | CK28: =IF($C28="","",IF(TRIM('Input| JGN Mapping'!$J28)=TRIM('Input| Projects'!CK$9),1,0)) -> 0 | CL28: =IF($C28="","",IF(TRIM('Input| JGN Mapping'!$J28)=TRIM('Input| Projects'!CL$9),1,0)) -> 0 | CM28: =IF($C28="","",IF(TRIM('Input| JGN Mapping'!$J28)=TRIM('Input| Projects'!CM$9),1,0)) -> 0 | CN28: =IF($C28="","",IF(TRIM('Input| JGN Mapping'!$J28)=TRIM('Input| Projects'!CN$9),1,0)) -> 0 | CO28: =IF($C28="","",IF(TRIM('Input| JGN Mapping'!$J28)=TRIM('Input| Projects'!CO$9),1,0)) -> 0 | CP28: =_xlfn.SWITCH(TRUE, LEN(C28)<1,0, (SUM(AR28:CO28)<>1)*1) -> 0
B29: 20 | C29: End of Life Replacement of Meter Data Logger Batteries | D29: R-RA1 | F29: Meter replacement | G29: Refer to sheet 'Input|JGN mapping | I29: 980 | J29: 925.6 | K29: 943.8 | L29: 1076.9 | M29: 1086.3 | N29: 1007.6 | O29: 925.6 | Q29: 0 | R29: 0 | S29: 0 | T29: 0 | U29: 0 | V29: 0 | W29: 0 | Y29: 0.4144135682 | Z29: 0.5855864318 | AA29: 0 | AC29: Yes | AD29: No | AI29: 1 | AR29: =IF($C29="","",IF(TRIM('Input| JGN Mapping'!$J29)=TRIM('Input| Projects'!AR$9),1,0)) -> 0 | AS29: =IF($C29="","",IF(TRIM('Input| JGN Mapping'!$J29)=TRIM('Input| Projects'!AS$9),1,0)) -> 0 | AT29: =IF($C29="","",IF(TRIM('Input| JGN Mapping'!$J29)=TRIM('Input| Projects'!AT$9),1,0)) -> 0 | AU29: =IF($C29="","",IF(TRIM('Input| JGN Mapping'!$J29)=TRIM('Input| Projects'!AU$9),1,0)) -> 0 | AV29: =IF($C29="","",IF(TRIM('Input| JGN Mapping'!$J29)=TRIM('Input| Projects'!AV$9),1,0)) -> 0 | AW29: =IF($C29="","",IF(TRIM('Input| JGN Mapping'!$J29)=TRIM('Input| Projects'!AW$9),1,0)) -> 0 | AX29: =IF($C29="","",IF(TRIM('Input| JGN Mapping'!$J29)=TRIM('Input| Projects'!AX$9),1,0)) -> 0 | AY29: =IF($C29="","",IF(TRIM('Input| JGN Mapping'!$J29)=TRIM('Input| Projects'!AY$9),1,0)) -> 0 | AZ29: =IF($C29="","",IF(TRIM('Input| JGN Mapping'!$J29)=TRIM('Input| Projects'!AZ$9),1,0)) -> 0 | BA29: =IF($C29="","",IF(TRIM('Input| JGN Mapping'!$J29)=TRIM('Input| Projects'!BA$9),1,0)) -> 1 | BB29: =IF($C29="","",IF(TRIM('Input| JGN Mapping'!$J29)=TRIM('Input| Projects'!BB$9),1,0)) -> 0 | BC29: =IF($C29="","",IF(TRIM('Input| JGN Mapping'!$J29)=TRIM('Input| Projects'!BC$9),1,0)) -> 0 | BD29: =IF($C29="","",IF(TRIM('Input| JGN Mapping'!$J29)=TRIM('Input| Projects'!BD$9),1,0)) -> 0 | BE29: =IF($C29="","",IF(TRIM('Input| JGN Mapping'!$J29)=TRIM('Input| Projects'!BE$9),1,0)) -> 0 | BF29: =IF($C29="","",IF(TRIM('Input| JGN Mapping'!$J29)=TRIM('Input| Projects'!BF$9),1,0)) -> 0 | BG29: =IF($C29="","",IF(TRIM('Input| JGN Mapping'!$J29)=TRIM('Input| Projects'!BG$9),1,0)) -> 0 | BH29: =IF($C29="","",IF(TRIM('Input| JGN Mapping'!$J29)=TRIM('Input| Projects'!BH$9),1,0)) -> 0 | BI29: =IF($C29="","",IF(TRIM('Input| JGN Mapping'!$J29)=TRIM('Input| Projects'!BI$9),1,0)) -> 0 | BJ29: =IF($C29="","",IF(TRIM('Input| JGN Mapping'!$J29)=TRIM('Input| Projects'!BJ$9),1,0)) -> 0 | BK29: =IF($C29="","",IF(TRIM('Input| JGN Mapping'!$J29)=TRIM('Input| Projects'!BK$9),1,0)) -> 0 | BL29: =IF($C29="","",IF(TRIM('Input| JGN Mapping'!$J29)=TRIM('Input| Projects'!BL$9),1,0)) -> 0 | BM29: =IF($C29="","",IF(TRIM('Input| JGN Mapping'!$J29)=TRIM('Input| Projects'!BM$9),1,0)) -> 0 | BN29: =IF($C29="","",IF(TRIM('Input| JGN Mapping'!$J29)=TRIM('Input| Projects'!BN$9),1,0)) -> 0 | BO29: =IF($C29="","",IF(TRIM('Input| JGN Mapping'!$J29)=TRIM('Input| Projects'!BO$9),1,0)) -> 0 | BP29: =IF($C29="","",IF(TRIM('Input| JGN Mapping'!$J29)=TRIM('Input| Projects'!BP$9),1,0)) -> 0 | BQ29: =IF($C29="","",IF(TRIM('Input| JGN Mapping'!$J29)=TRIM('Input| Projects'!BQ$9),1,0)) -> 0 | BR29: =IF($C29="","",IF(TRIM('Input| JGN Mapping'!$J29)=TRIM('Input| Projects'!BR$9),1,0)) -> 0 | BS29: =IF($C29="","",IF(TRIM('Input| JGN Mapping'!$J29)=TRIM('Input| Projects'!BS$9),1,0)) -> 0 | BT29: =IF($C29="","",IF(TRIM('Input| JGN Mapping'!$J29)=TRIM('Input| Projects'!BT$9),1,0)) -> 0 | BU29: =IF($C29="","",IF(TRIM('Input| JGN Mapping'!$J29)=TRIM('Input| Projects'!BU$9),1,0)) -> 0 | BV29: =IF($C29="","",IF(TRIM('Input| JGN Mapping'!$J29)=TRIM('Input| Projects'!BV$9),1,0)) -> 0 | BW29: =IF($C29="","",IF(TRIM('Input| JGN Mapping'!$J29)=TRIM('Input| Projects'!BW$9),1,0)) -> 0 | BX29: =IF($C29="","",IF(TRIM('Input| JGN Mapping'!$J29)=TRIM('Input| Projects'!BX$9),1,0)) -> 0 | BY29: =IF($C29="","",IF(TRIM('Input| JGN Mapping'!$J29)=TRIM('Input| Projects'!BY$9),1,0)) -> 0 | BZ29: =IF($C29="","",IF(TRIM('Input| JGN Mapping'!$J29)=TRIM('Input| Projects'!BZ$9),1,0)) -> 0 | CA29: =IF($C29="","",IF(TRIM('Input| JGN Mapping'!$J29)=TRIM('Input| Projects'!CA$9),1,0)) -> 0 | CB29: =IF($C29="","",IF(TRIM('Input| JGN Mapping'!$J29)=TRIM('Input| Projects'!CB$9),1,0)) -> 0 | CC29: =IF($C29="","",IF(TRIM('Input| JGN Mapping'!$J29)=TRIM('Input| Projects'!CC$9),1,0)) -> 0 | CD29: =IF($C29="","",IF(TRIM('Input| JGN Mapping'!$J29)=TRIM('Input| Projects'!CD$9),1,0)) -> 0 | CE29: =IF($C29="","",IF(TRIM('Input| JGN Mapping'!$J29)=TRIM('Input| Projects'!CE$9),1,0)) -> 0 | CF29: =IF($C29="","",IF(TRIM('Input| JGN Mapping'!$J29)=TRIM('Input| Projects'!CF$9),1,0)) -> 0 | CG29: =IF($C29="","",IF(TRIM('Input| JGN Mapping'!$J29)=TRIM('Input| Projects'!CG$9),1,0)) -> 0 | CH29: =IF($C29="","",IF(TRIM('Input| JGN Mapping'!$J29)=TRIM('Input| Projects'!CH$9),1,0)) -> 0 | CI29: =IF($C29="","",IF(TRIM('Input| JGN Mapping'!$J29)=TRIM('Input| Projects'!CI$9),1,0)) -> 0 | CJ29: =IF($C29="","",IF(TRIM('Input| JGN Mapping'!$J29)=TRIM('Input| Projects'!CJ$9),1,0)) -> 0 | CK29: =IF($C29="","",IF(TRIM('Input| JGN Mapping'!$J29)=TRIM('Input| Projects'!CK$9),1,0)) -> 0 | CL29: =IF($C29="","",IF(TRIM('Input| JGN Mapping'!$J29)=TRIM('Input| Projects'!CL$9),1,0)) -> 0 | CM29: =IF($C29="","",IF(TRIM('Input| JGN Mapping'!$J29)=TRIM('Input| Projects'!CM$9),1,0)) -> 0 | CN29: =IF($C29="","",IF(TRIM('Input| JGN Mapping'!$J29)=TRIM('Input| Projects'!CN$9),1,0)) -> 0 | CO29: =IF($C29="","",IF(TRIM('Input| JGN Mapping'!$J29)=TRIM('Input| Projects'!CO$9),1,0)) -> 0 | CP29: =_xlfn.SWITCH(TRUE, LEN(C29)<1,0, (SUM(AR29:CO29)<>1)*1) -> 0
B30: 21 | C30: Replacement of Testing Sample of I&C Diaphragm Gas Meters | D30: R-RA2 | F30: Meter replacement | G30: Refer to sheet 'Input|JGN mapping | I30: 381.8846103 | J30: 437.576116 | K30: 636.4743506 | L30: 686.1989092 | M30: 572.8269155 | N30: 595.5615311 | O30: 643.6949039 | Q30: 0 | R30: 0 | S30: 0 | T30: 0 | U30: 0 | V30: 0 | W30: 0 | Y30: 0.7722283267 | Z30: 0.2277716733 | AA30: 0 | AC30: Yes | AD30: No | AI30: 1 | AR30: =IF($C30="","",IF(TRIM('Input| JGN Mapping'!$J30)=TRIM('Input| Projects'!AR$9),1,0)) -> 0 | AS30: =IF($C30="","",IF(TRIM('Input| JGN Mapping'!$J30)=TRIM('Input| Projects'!AS$9),1,0)) -> 0 | AT30: =IF($C30="","",IF(TRIM('Input| JGN Mapping'!$J30)=TRIM('Input| Projects'!AT$9),1,0)) -> 0 | AU30: =IF($C30="","",IF(TRIM('Input| JGN Mapping'!$J30)=TRIM('Input| Projects'!AU$9),1,0)) -> 0 | AV30: =IF($C30="","",IF(TRIM('Input| JGN Mapping'!$J30)=TRIM('Input| Projects'!AV$9),1,0)) -> 0 | AW30: =IF($C30="","",IF(TRIM('Input| JGN Mapping'!$J30)=TRIM('Input| Projects'!AW$9),1,0)) -> 0 | AX30: =IF($C30="","",IF(TRIM('Input| JGN Mapping'!$J30)=TRIM('Input| Projects'!AX$9),1,0)) -> 0 | AY30: =IF($C30="","",IF(TRIM('Input| JGN Mapping'!$J30)=TRIM('Input| Projects'!AY$9),1,0)) -> 0 | AZ30: =IF($C30="","",IF(TRIM('Input| JGN Mapping'!$J30)=TRIM('Input| Projects'!AZ$9),1,0)) -> 0 | BA30: =IF($C30="","",IF(TRIM('Input| JGN Mapping'!$J30)=TRIM('Input| Projects'!BA$9),1,0)) -> 0 | BB30: =IF($C30="","",IF(TRIM('Input| JGN Mapping'!$J30)=TRIM('Input| Projects'!BB$9),1,0)) -> 0 | BC30: =IF($C30="","",IF(TRIM('Input| JGN Mapping'!$J30)=TRIM('Input| Projects'!BC$9),1,0)) -> 1 | BD30: =IF($C30="","",IF(TRIM('Input| JGN Mapping'!$J30)=TRIM('Input| Projects'!BD$9),1,0)) -> 0 | BE30: =IF($C30="","",IF(TRIM('Input| JGN Mapping'!$J30)=TRIM('Input| Projects'!BE$9),1,0)) -> 0 | BF30: =IF($C30="","",IF(TRIM('Input| JGN Mapping'!$J30)=TRIM('Input| Projects'!BF$9),1,0)) -> 0 | BG30: =IF($C30="","",IF(TRIM('Input| JGN Mapping'!$J30)=TRIM('Input| Projects'!BG$9),1,0)) -> 0 | BH30: =IF($C30="","",IF(TRIM('Input| JGN Mapping'!$J30)=TRIM('Input| Projects'!BH$9),1,0)) -> 0 | BI30: =IF($C30="","",IF(TRIM('Input| JGN Mapping'!$J30)=TRIM('Input| Projects'!BI$9),1,0)) -> 0 | BJ30: =IF($C30="","",IF(TRIM('Input| JGN Mapping'!$J30)=TRIM('Input| Projects'!BJ$9),1,0)) -> 0 | BK30: =IF($C30="","",IF(TRIM('Input| JGN Mapping'!$J30)=TRIM('Input| Projects'!BK$9),1,0)) -> 0 | BL30: =IF($C30="","",IF(TRIM('Input| JGN Mapping'!$J30)=TRIM('Input| Projects'!BL$9),1,0)) -> 0 | BM30: =IF($C30="","",IF(TRIM('Input| JGN Mapping'!$J30)=TRIM('Input| Projects'!BM$9),1,0)) -> 0 | BN30: =IF($C30="","",IF(TRIM('Input| JGN Mapping'!$J30)=TRIM('Input| Projects'!BN$9),1,0)) -> 0 | BO30: =IF($C30="","",IF(TRIM('Input| JGN Mapping'!$J30)=TRIM('Input| Projects'!BO$9),1,0)) -> 0 | BP30: =IF($C30="","",IF(TRIM('Input| JGN Mapping'!$J30)=TRIM('Input| Projects'!BP$9),1,0)) -> 0 | BQ30: =IF($C30="","",IF(TRIM('Input| JGN Mapping'!$J30)=TRIM('Input| Projects'!BQ$9),1,0)) -> 0 | BR30: =IF($C30="","",IF(TRIM('Input| JGN Mapping'!$J30)=TRIM('Input| Projects'!BR$9),1,0)) -> 0 | BS30: =IF($C30="","",IF(TRIM('Input| JGN Mapping'!$J30)=TRIM('Input| Projects'!BS$9),1,0)) -> 0 | BT30: =IF($C30="","",IF(TRIM('Input| JGN Mapping'!$J30)=TRIM('Input| Projects'!BT$9),1,0)) -> 0 | BU30: =IF($C30="","",IF(TRIM('Input| JGN Mapping'!$J30)=TRIM('Input| Projects'!BU$9),1,0)) -> 0 | BV30: =IF($C30="","",IF(TRIM('Input| JGN Mapping'!$J30)=TRIM('Input| Projects'!BV$9),1,0)) -> 0 | BW30: =IF($C30="","",IF(TRIM('Input| JGN Mapping'!$J30)=TRIM('Input| Projects'!BW$9),1,0)) -> 0 | BX30: =IF($C30="","",IF(TRIM('Input| JGN Mapping'!$J30)=TRIM('Input| Projects'!BX$9),1,0)) -> 0 | BY30: =IF($C30="","",IF(TRIM('Input| JGN Mapping'!$J30)=TRIM('Input| Projects'!BY$9),1,0)) -> 0 | BZ30: =IF($C30="","",IF(TRIM('Input| JGN Mapping'!$J30)=TRIM('Input| Projects'!BZ$9),1,0)) -> 0 | CA30: =IF($C30="","",IF(TRIM('Input| JGN Mapping'!$J30)=TRIM('Input| Projects'!CA$9),1,0)) -> 0 | CB30: =IF($C30="","",IF(TRIM('Input| JGN Mapping'!$J30)=TRIM('Input| Projects'!CB$9),1,0)) -> 0 | CC30: =IF($C30="","",IF(TRIM('Input| JGN Mapping'!$J30)=TRIM('Input| Projects'!CC$9),1,0)) -> 0 | CD30: =IF($C30="","",IF(TRIM('Input| JGN Mapping'!$J30)=TRIM('Input| Projects'!CD$9),1,0)) -> 0 | CE30: =IF($C30="","",IF(TRIM('Input| JGN Mapping'!$J30)=TRIM('Input| Projects'!CE$9),1,0)) -> 0 | CF30: =IF($C30="","",IF(TRIM('Input| JGN Mapping'!$J30)=TRIM('Input| Projects'!CF$9),1,0)) -> 0 | CG30: =IF($C30="","",IF(TRIM('Input| JGN Mapping'!$J30)=TRIM('Input| Projects'!CG$9),1,0)) -> 0 | CH30: =IF($C30="","",IF(TRIM('Input| JGN Mapping'!$J30)=TRIM('Input| Projects'!CH$9),1,0)) -> 0 | CI30: =IF($C30="","",IF(TRIM('Input| JGN Mapping'!$J30)=TRIM('Input| Projects'!CI$9),1,0)) -> 0 | CJ30: =IF($C30="","",IF(TRIM('Input| JGN Mapping'!$J30)=TRIM('Input| Projects'!CJ$9),1,0)) -> 0 | CK30: =IF($C30="","",IF(TRIM('Input| JGN Mapping'!$J30)=TRIM('Input| Projects'!CK$9),1,0)) -> 0 | CL30: =IF($C30="","",IF(TRIM('Input| JGN Mapping'!$J30)=TRIM('Input| Projects'!CL$9),1,0)) -> 0 | CM30: =IF($C30="","",IF(TRIM('Input| JGN Mapping'!$J30)=TRIM('Input| Projects'!CM$9),1,0)) -> 0 | CN30: =IF($C30="","",IF(TRIM('Input| JGN Mapping'!$J30)=TRIM('Input| Projects'!CN$9),1,0)) -> 0 | CO30: =IF($C30="","",IF(TRIM('Input| JGN Mapping'!$J30)=TRIM('Input| Projects'!CO$9),1,0)) -> 0 | CP30: =_xlfn.SWITCH(TRUE, LEN(C30)<1,0, (SUM(AR30:CO30)<>1)*1) -> 0
B31: 22 | C31: Replacement of Defective Residential Hot Water Meters | D31: R-RA4 | F31: Meter replacement | G31: Refer to sheet 'Input|JGN mapping | I31: 2185.006692 | J31: 2185.006692 | K31: 2185.006692 | L31: 2185.006692 | M31: 2185.006692 | N31: 2185.006692 | O31: 2185.006692 | Q31: 0 | R31: 0 | S31: 0 | T31: 0 | U31: 0 | V31: 0 | W31: 0 | Y31: 0.7744929129 | Z31: 0.2255070871 | AA31: 0 | AC31: Yes | AD31: No | AI31: 1 | AR31: =IF($C31="","",IF(TRIM('Input| JGN Mapping'!$J31)=TRIM('Input| Projects'!AR$9),1,0)) -> 0 | AS31: =IF($C31="","",IF(TRIM('Input| JGN Mapping'!$J31)=TRIM('Input| Projects'!AS$9),1,0)) -> 0 | AT31: =IF($C31="","",IF(TRIM('Input| JGN Mapping'!$J31)=TRIM('Input| Projects'!AT$9),1,0)) -> 0 | AU31: =IF($C31="","",IF(TRIM('Input| JGN Mapping'!$J31)=TRIM('Input| Projects'!AU$9),1,0)) -> 0 | AV31: =IF($C31="","",IF(TRIM('Input| JGN Mapping'!$J31)=TRIM('Input| Projects'!AV$9),1,0)) -> 0 | AW31: =IF($C31="","",IF(TRIM('Input| JGN Mapping'!$J31)=TRIM('Input| Projects'!AW$9),1,0)) -> 0 | AX31: =IF($C31="","",IF(TRIM('Input| JGN Mapping'!$J31)=TRIM('Input| Projects'!AX$9),1,0)) -> 0 | AY31: =IF($C31="","",IF(TRIM('Input| JGN Mapping'!$J31)=TRIM('Input| Projects'!AY$9),1,0)) -> 0 | AZ31: =IF($C31="","",IF(TRIM('Input| JGN Mapping'!$J31)=TRIM('Input| Projects'!AZ$9),1,0)) -> 0 | BA31: =IF($C31="","",IF(TRIM('Input| JGN Mapping'!$J31)=TRIM('Input| Projects'!BA$9),1,0)) -> 0 | BB31: =IF($C31="","",IF(TRIM('Input| JGN Mapping'!$J31)=TRIM('Input| Projects'!BB$9),1,0)) -> 0 | BC31: =IF($C31="","",IF(TRIM('Input| JGN Mapping'!$J31)=TRIM('Input| Projects'!BC$9),1,0)) -> 1 | BD31: =IF($C31="","",IF(TRIM('Input| JGN Mapping'!$J31)=TRIM('Input| Projects'!BD$9),1,0)) -> 0 | BE31: =IF($C31="","",IF(TRIM('Input| JGN Mapping'!$J31)=TRIM('Input| Projects'!BE$9),1,0)) -> 0 | BF31: =IF($C31="","",IF(TRIM('Input| JGN Mapping'!$J31)=TRIM('Input| Projects'!BF$9),1,0)) -> 0 | BG31: =IF($C31="","",IF(TRIM('Input| JGN Mapping'!$J31)=TRIM('Input| Projects'!BG$9),1,0)) -> 0 | BH31: =IF($C31="","",IF(TRIM('Input| JGN Mapping'!$J31)=TRIM('Input| Projects'!BH$9),1,0)) -> 0 | BI31: =IF($C31="","",IF(TRIM('Input| JGN Mapping'!$J31)=TRIM('Input| Projects'!BI$9),1,0)) -> 0 | BJ31: =IF($C31="","",IF(TRIM('Input| JGN Mapping'!$J31)=TRIM('Input| Projects'!BJ$9),1,0)) -> 0 | BK31: =IF($C31="","",IF(TRIM('Input| JGN Mapping'!$J31)=TRIM('Input| Projects'!BK$9),1,0)) -> 0 | BL31: =IF($C31="","",IF(TRIM('Input| JGN Mapping'!$J31)=TRIM('Input| Projects'!BL$9),1,0)) -> 0 | BM31: =IF($C31="","",IF(TRIM('Input| JGN Mapping'!$J31)=TRIM('Input| Projects'!BM$9),1,0)) -> 0 | BN31: =IF($C31="","",IF(TRIM('Input| JGN Mapping'!$J31)=TRIM('Input| Projects'!BN$9),1,0)) -> 0 | BO31: =IF($C31="","",IF(TRIM('Input| JGN Mapping'!$J31)=TRIM('Input| Projects'!BO$9),1,0)) -> 0 | BP31: =IF($C31="","",IF(TRIM('Input| JGN Mapping'!$J31)=TRIM('Input| Projects'!BP$9),1,0)) -> 0 | BQ31: =IF($C31="","",IF(TRIM('Input| JGN Mapping'!$J31)=TRIM('Input| Projects'!BQ$9),1,0)) -> 0 | BR31: =IF($C31="","",IF(TRIM('Input| JGN Mapping'!$J31)=TRIM('Input| Projects'!BR$9),1,0)) -> 0 | BS31: =IF($C31="","",IF(TRIM('Input| JGN Mapping'!$J31)=TRIM('Input| Projects'!BS$9),1,0)) -> 0 | BT31: =IF($C31="","",IF(TRIM('Input| JGN Mapping'!$J31)=TRIM('Input| Projects'!BT$9),1,0)) -> 0 | BU31: =IF($C31="","",IF(TRIM('Input| JGN Mapping'!$J31)=TRIM('Input| Projects'!BU$9),1,0)) -> 0 | BV31: =IF($C31="","",IF(TRIM('Input| JGN Mapping'!$J31)=TRIM('Input| Projects'!BV$9),1,0)) -> 0 | BW31: =IF($C31="","",IF(TRIM('Input| JGN Mapping'!$J31)=TRIM('Input| Projects'!BW$9),1,0)) -> 0 | BX31: =IF($C31="","",IF(TRIM('Input| JGN Mapping'!$J31)=TRIM('Input| Projects'!BX$9),1,0)) -> 0 | BY31: =IF($C31="","",IF(TRIM('Input| JGN Mapping'!$J31)=TRIM('Input| Projects'!BY$9),1,0)) -> 0 | BZ31: =IF($C31="","",IF(TRIM('Input| JGN Mapping'!$J31)=TRIM('Input| Projects'!BZ$9),1,0)) -> 0 | CA31: =IF($C31="","",IF(TRIM('Input| JGN Mapping'!$J31)=TRIM('Input| Projects'!CA$9),1,0)) -> 0 | CB31: =IF($C31="","",IF(TRIM('Input| JGN Mapping'!$J31)=TRIM('Input| Projects'!CB$9),1,0)) -> 0 | CC31: =IF($C31="","",IF(TRIM('Input| JGN Mapping'!$J31)=TRIM('Input| Projects'!CC$9),1,0)) -> 0 | CD31: =IF($C31="","",IF(TRIM('Input| JGN Mapping'!$J31)=TRIM('Input| Projects'!CD$9),1,0)) -> 0 | CE31: =IF($C31="","",IF(TRIM('Input| JGN Mapping'!$J31)=TRIM('Input| Projects'!CE$9),1,0)) -> 0 | CF31: =IF($C31="","",IF(TRIM('Input| JGN Mapping'!$J31)=TRIM('Input| Projects'!CF$9),1,0)) -> 0 | CG31: =IF($C31="","",IF(TRIM('Input| JGN Mapping'!$J31)=TRIM('Input| Projects'!CG$9),1,0)) -> 0 | CH31: =IF($C31="","",IF(TRIM('Input| JGN Mapping'!$J31)=TRIM('Input| Projects'!CH$9),1,0)) -> 0 | CI31: =IF($C31="","",IF(TRIM('Input| JGN Mapping'!$J31)=TRIM('Input| Projects'!CI$9),1,0)) -> 0 | CJ31: =IF($C31="","",IF(TRIM('Input| JGN Mapping'!$J31)=TRIM('Input| Projects'!CJ$9),1,0)) -> 0 | CK31: =IF($C31="","",IF(TRIM('Input| JGN Mapping'!$J31)=TRIM('Input| Projects'!CK$9),1,0)) -> 0 | CL31: =IF($C31="","",IF(TRIM('Input| JGN Mapping'!$J31)=TRIM('Input| Projects'!CL$9),1,0)) -> 0 | CM31: =IF($C31="","",IF(TRIM('Input| JGN Mapping'!$J31)=TRIM('Input| Projects'!CM$9),1,0)) -> 0 | CN31: =IF($C31="","",IF(TRIM('Input| JGN Mapping'!$J31)=TRIM('Input| Projects'!CN$9),1,0)) -> 0 | CO31: =IF($C31="","",IF(TRIM('Input| JGN Mapping'!$J31)=TRIM('Input| Projects'!CO$9),1,0)) -> 0 | CP31: =_xlfn.SWITCH(TRUE, LEN(C31)<1,0, (SUM(AR31:CO31)<>1)*1) -> 0
B32: 23 | C32: End of Life Replacement of Residential and Small I&C Meter Remote Reading Technology RY-First Half | D32: R-RA5-AA | F32: Meter replacement | G32: Refer to sheet 'Input|JGN mapping | I32: 0 | J32: 0 | K32: 0 | L32: 212.3197954 | M32: 108.471361 | N32: 108.471361 | O32: 113.8539419 | Q32: 0 | R32: 0 | S32: 0 | T32: 0 | U32: 0 | V32: 0 | W32: 0 | Y32: 0.2124743478 | Z32: 0.7875256522 | AA32: 0 | AC32: Yes | AD32: No | AI32: 1 | AR32: =IF($C32="","",IF(TRIM('Input| JGN Mapping'!$J32)=TRIM('Input| Projects'!AR$9),1,0)) -> 0 | AS32: =IF($C32="","",IF(TRIM('Input| JGN Mapping'!$J32)=TRIM('Input| Projects'!AS$9),1,0)) -> 0 | AT32: =IF($C32="","",IF(TRIM('Input| JGN Mapping'!$J32)=TRIM('Input| Projects'!AT$9),1,0)) -> 0 | AU32: =IF($C32="","",IF(TRIM('Input| JGN Mapping'!$J32)=TRIM('Input| Projects'!AU$9),1,0)) -> 0 | AV32: =IF($C32="","",IF(TRIM('Input| JGN Mapping'!$J32)=TRIM('Input| Projects'!AV$9),1,0)) -> 0 | AW32: =IF($C32="","",IF(TRIM('Input| JGN Mapping'!$J32)=TRIM('Input| Projects'!AW$9),1,0)) -> 0 | AX32: =IF($C32="","",IF(TRIM('Input| JGN Mapping'!$J32)=TRIM('Input| Projects'!AX$9),1,0)) -> 0 | AY32: =IF($C32="","",IF(TRIM('Input| JGN Mapping'!$J32)=TRIM('Input| Projects'!AY$9),1,0)) -> 0 | AZ32: =IF($C32="","",IF(TRIM('Input| JGN Mapping'!$J32)=TRIM('Input| Projects'!AZ$9),1,0)) -> 0 | BA32: =IF($C32="","",IF(TRIM('Input| JGN Mapping'!$J32)=TRIM('Input| Projects'!BA$9),1,0)) -> 1 | BB32: =IF($C32="","",IF(TRIM('Input| JGN Mapping'!$J32)=TRIM('Input| Projects'!BB$9),1,0)) -> 0 | BC32: =IF($C32="","",IF(TRIM('Input| JGN Mapping'!$J32)=TRIM('Input| Projects'!BC$9),1,0)) -> 0 | BD32: =IF($C32="","",IF(TRIM('Input| JGN Mapping'!$J32)=TRIM('Input| Projects'!BD$9),1,0)) -> 0 | BE32: =IF($C32="","",IF(TRIM('Input| JGN Mapping'!$J32)=TRIM('Input| Projects'!BE$9),1,0)) -> 0 | BF32: =IF($C32="","",IF(TRIM('Input| JGN Mapping'!$J32)=TRIM('Input| Projects'!BF$9),1,0)) -> 0 | BG32: =IF($C32="","",IF(TRIM('Input| JGN Mapping'!$J32)=TRIM('Input| Projects'!BG$9),1,0)) -> 0 | BH32: =IF($C32="","",IF(TRIM('Input| JGN Mapping'!$J32)=TRIM('Input| Projects'!BH$9),1,0)) -> 0 | BI32: =IF($C32="","",IF(TRIM('Input| JGN Mapping'!$J32)=TRIM('Input| Projects'!BI$9),1,0)) -> 0 | BJ32: =IF($C32="","",IF(TRIM('Input| JGN Mapping'!$J32)=TRIM('Input| Projects'!BJ$9),1,0)) -> 0 | BK32: =IF($C32="","",IF(TRIM('Input| JGN Mapping'!$J32)=TRIM('Input| Projects'!BK$9),1,0)) -> 0 | BL32: =IF($C32="","",IF(TRIM('Input| JGN Mapping'!$J32)=TRIM('Input| Projects'!BL$9),1,0)) -> 0 | BM32: =IF($C32="","",IF(TRIM('Input| JGN Mapping'!$J32)=TRIM('Input| Projects'!BM$9),1,0)) -> 0 | BN32: =IF($C32="","",IF(TRIM('Input| JGN Mapping'!$J32)=TRIM('Input| Projects'!BN$9),1,0)) -> 0 | BO32: =IF($C32="","",IF(TRIM('Input| JGN Mapping'!$J32)=TRIM('Input| Projects'!BO$9),1,0)) -> 0 | BP32: =IF($C32="","",IF(TRIM('Input| JGN Mapping'!$J32)=TRIM('Input| Projects'!BP$9),1,0)) -> 0 | BQ32: =IF($C32="","",IF(TRIM('Input| JGN Mapping'!$J32)=TRIM('Input| Projects'!BQ$9),1,0)) -> 0 | BR32: =IF($C32="","",IF(TRIM('Input| JGN Mapping'!$J32)=TRIM('Input| Projects'!BR$9),1,0)) -> 0 | BS32: =IF($C32="","",IF(TRIM('Input| JGN Mapping'!$J32)=TRIM('Input| Projects'!BS$9),1,0)) -> 0 | BT32: =IF($C32="","",IF(TRIM('Input| JGN Mapping'!$J32)=TRIM('Input| Projects'!BT$9),1,0)) -> 0 | BU32: =IF($C32="","",IF(TRIM('Input| JGN Mapping'!$J32)=TRIM('Input| Projects'!BU$9),1,0)) -> 0 | BV32: =IF($C32="","",IF(TRIM('Input| JGN Mapping'!$J32)=TRIM('Input| Projects'!BV$9),1,0)) -> 0 | BW32: =IF($C32="","",IF(TRIM('Input| JGN Mapping'!$J32)=TRIM('Input| Projects'!BW$9),1,0)) -> 0 | BX32: =IF($C32="","",IF(TRIM('Input| JGN Mapping'!$J32)=TRIM('Input| Projects'!BX$9),1,0)) -> 0 | BY32: =IF($C32="","",IF(TRIM('Input| JGN Mapping'!$J32)=TRIM('Input| Projects'!BY$9),1,0)) -> 0 | BZ32: =IF($C32="","",IF(TRIM('Input| JGN Mapping'!$J32)=TRIM('Input| Projects'!BZ$9),1,0)) -> 0 | CA32: =IF($C32="","",IF(TRIM('Input| JGN Mapping'!$J32)=TRIM('Input| Projects'!CA$9),1,0)) -> 0 | CB32: =IF($C32="","",IF(TRIM('Input| JGN Mapping'!$J32)=TRIM('Input| Projects'!CB$9),1,0)) -> 0 | CC32: =IF($C32="","",IF(TRIM('Input| JGN Mapping'!$J32)=TRIM('Input| Projects'!CC$9),1,0)) -> 0 | CD32: =IF($C32="","",IF(TRIM('Input| JGN Mapping'!$J32)=TRIM('Input| Projects'!CD$9),1,0)) -> 0 | CE32: =IF($C32="","",IF(TRIM('Input| JGN Mapping'!$J32)=TRIM('Input| Projects'!CE$9),1,0)) -> 0 | CF32: =IF($C32="","",IF(TRIM('Input| JGN Mapping'!$J32)=TRIM('Input| Projects'!CF$9),1,0)) -> 0 | CG32: =IF($C32="","",IF(TRIM('Input| JGN Mapping'!$J32)=TRIM('Input| Projects'!CG$9),1,0)) -> 0 | CH32: =IF($C32="","",IF(TRIM('Input| JGN Mapping'!$J32)=TRIM('Input| Projects'!CH$9),1,0)) -> 0 | CI32: =IF($C32="","",IF(TRIM('Input| JGN Mapping'!$J32)=TRIM('Input| Projects'!CI$9),1,0)) -> 0 | CJ32: =IF($C32="","",IF(TRIM('Input| JGN Mapping'!$J32)=TRIM('Input| Projects'!CJ$9),1,0)) -> 0 | CK32: =IF($C32="","",IF(TRIM('Input| JGN Mapping'!$J32)=TRIM('Input| Projects'!CK$9),1,0)) -> 0 | CL32: =IF($C32="","",IF(TRIM('Input| JGN Mapping'!$J32)=TRIM('Input| Projects'!CL$9),1,0)) -> 0 | CM32: =IF($C32="","",IF(TRIM('Input| JGN Mapping'!$J32)=TRIM('Input| Projects'!CM$9),1,0)) -> 0 | CN32: =IF($C32="","",IF(TRIM('Input| JGN Mapping'!$J32)=TRIM('Input| Projects'!CN$9),1,0)) -> 0 | CO32: =IF($C32="","",IF(TRIM('Input| JGN Mapping'!$J32)=TRIM('Input| Projects'!CO$9),1,0)) -> 0 | CP32: =_xlfn.SWITCH(TRUE, LEN(C32)<1,0, (SUM(AR32:CO32)<>1)*1) -> 0
B33: 24 | C33: End of Life Replacement of Residential and Small I&C Meter Remote Reading Technology RY-Second Half | D33: R-RA5-AA | F33: Meter replacement | G33: Refer to sheet 'Input|JGN mapping | I33: 0 | J33: 0 | K33: 145.6322038 | L33: 108.471361 | M33: 108.471361 | N33: 108.471361 | O33: 108.471361 | Q33: 0 | R33: 0 | S33: 0 | T33: 0 | U33: 0 | V33: 0 | W33: 0 | Y33: 0.2124743478 | Z33: 0.7875256522 | AA33: 0 | AC33: Yes | AD33: No | AI33: 1 | AR33: =IF($C33="","",IF(TRIM('Input| JGN Mapping'!$J33)=TRIM('Input| Projects'!AR$9),1,0)) -> 0 | AS33: =IF($C33="","",IF(TRIM('Input| JGN Mapping'!$J33)=TRIM('Input| Projects'!AS$9),1,0)) -> 0 | AT33: =IF($C33="","",IF(TRIM('Input| JGN Mapping'!$J33)=TRIM('Input| Projects'!AT$9),1,0)) -> 0 | AU33: =IF($C33="","",IF(TRIM('Input| JGN Mapping'!$J33)=TRIM('Input| Projects'!AU$9),1,0)) -> 0 | AV33: =IF($C33="","",IF(TRIM('Input| JGN Mapping'!$J33)=TRIM('Input| Projects'!AV$9),1,0)) -> 0 | AW33: =IF($C33="","",IF(TRIM('Input| JGN Mapping'!$J33)=TRIM('Input| Projects'!AW$9),1,0)) -> 0 | AX33: =IF($C33="","",IF(TRIM('Input| JGN Mapping'!$J33)=TRIM('Input| Projects'!AX$9),1,0)) -> 0 | AY33: =IF($C33="","",IF(TRIM('Input| JGN Mapping'!$J33)=TRIM('Input| Projects'!AY$9),1,0)) -> 0 | AZ33: =IF($C33="","",IF(TRIM('Input| JGN Mapping'!$J33)=TRIM('Input| Projects'!AZ$9),1,0)) -> 0 | BA33: =IF($C33="","",IF(TRIM('Input| JGN Mapping'!$J33)=TRIM('Input| Projects'!BA$9),1,0)) -> 1 | BB33: =IF($C33="","",IF(TRIM('Input| JGN Mapping'!$J33)=TRIM('Input| Projects'!BB$9),1,0)) -> 0 | BC33: =IF($C33="","",IF(TRIM('Input| JGN Mapping'!$J33)=TRIM('Input| Projects'!BC$9),1,0)) -> 0 | BD33: =IF($C33="","",IF(TRIM('Input| JGN Mapping'!$J33)=TRIM('Input| Projects'!BD$9),1,0)) -> 0 | BE33: =IF($C33="","",IF(TRIM('Input| JGN Mapping'!$J33)=TRIM('Input| Projects'!BE$9),1,0)) -> 0 | BF33: =IF($C33="","",IF(TRIM('Input| JGN Mapping'!$J33)=TRIM('Input| Projects'!BF$9),1,0)) -> 0 | BG33: =IF($C33="","",IF(TRIM('Input| JGN Mapping'!$J33)=TRIM('Input| Projects'!BG$9),1,0)) -> 0 | BH33: =IF($C33="","",IF(TRIM('Input| JGN Mapping'!$J33)=TRIM('Input| Projects'!BH$9),1,0)) -> 0 | BI33: =IF($C33="","",IF(TRIM('Input| JGN Mapping'!$J33)=TRIM('Input| Projects'!BI$9),1,0)) -> 0 | BJ33: =IF($C33="","",IF(TRIM('Input| JGN Mapping'!$J33)=TRIM('Input| Projects'!BJ$9),1,0)) -> 0 | BK33: =IF($C33="","",IF(TRIM('Input| JGN Mapping'!$J33)=TRIM('Input| Projects'!BK$9),1,0)) -> 0 | BL33: =IF($C33="","",IF(TRIM('Input| JGN Mapping'!$J33)=TRIM('Input| Projects'!BL$9),1,0)) -> 0 | BM33: =IF($C33="","",IF(TRIM('Input| JGN Mapping'!$J33)=TRIM('Input| Projects'!BM$9),1,0)) -> 0 | BN33: =IF($C33="","",IF(TRIM('Input| JGN Mapping'!$J33)=TRIM('Input| Projects'!BN$9),1,0)) -> 0 | BO33: =IF($C33="","",IF(TRIM('Input| JGN Mapping'!$J33)=TRIM('Input| Projects'!BO$9),1,0)) -> 0 | BP33: =IF($C33="","",IF(TRIM('Input| JGN Mapping'!$J33)=TRIM('Input| Projects'!BP$9),1,0)) -> 0 | BQ33: =IF($C33="","",IF(TRIM('Input| JGN Mapping'!$J33)=TRIM('Input| Projects'!BQ$9),1,0)) -> 0 | BR33: =IF($C33="","",IF(TRIM('Input| JGN Mapping'!$J33)=TRIM('Input| Projects'!BR$9),1,0)) -> 0 | BS33: =IF($C33="","",IF(TRIM('Input| JGN Mapping'!$J33)=TRIM('Input| Projects'!BS$9),1,0)) -> 0 | BT33: =IF($C33="","",IF(TRIM('Input| JGN Mapping'!$J33)=TRIM('Input| Projects'!BT$9),1,0)) -> 0 | BU33: =IF($C33="","",IF(TRIM('Input| JGN Mapping'!$J33)=TRIM('Input| Projects'!BU$9),1,0)) -> 0 | BV33: =IF($C33="","",IF(TRIM('Input| JGN Mapping'!$J33)=TRIM('Input| Projects'!BV$9),1,0)) -> 0 | BW33: =IF($C33="","",IF(TRIM('Input| JGN Mapping'!$J33)=TRIM('Input| Projects'!BW$9),1,0)) -> 0 | BX33: =IF($C33="","",IF(TRIM('Input| JGN Mapping'!$J33)=TRIM('Input| Projects'!BX$9),1,0)) -> 0 | BY33: =IF($C33="","",IF(TRIM('Input| JGN Mapping'!$J33)=TRIM('Input| Projects'!BY$9),1,0)) -> 0 | BZ33: =IF($C33="","",IF(TRIM('Input| JGN Mapping'!$J33)=TRIM('Input| Projects'!BZ$9),1,0)) -> 0 | CA33: =IF($C33="","",IF(TRIM('Input| JGN Mapping'!$J33)=TRIM('Input| Projects'!CA$9),1,0)) -> 0 | CB33: =IF($C33="","",IF(TRIM('Input| JGN Mapping'!$J33)=TRIM('Input| Projects'!CB$9),1,0)) -> 0 | CC33: =IF($C33="","",IF(TRIM('Input| JGN Mapping'!$J33)=TRIM('Input| Projects'!CC$9),1,0)) -> 0 | CD33: =IF($C33="","",IF(TRIM('Input| JGN Mapping'!$J33)=TRIM('Input| Projects'!CD$9),1,0)) -> 0 | CE33: =IF($C33="","",IF(TRIM('Input| JGN Mapping'!$J33)=TRIM('Input| Projects'!CE$9),1,0)) -> 0 | CF33: =IF($C33="","",IF(TRIM('Input| JGN Mapping'!$J33)=TRIM('Input| Projects'!CF$9),1,0)) -> 0 | CG33: =IF($C33="","",IF(TRIM('Input| JGN Mapping'!$J33)=TRIM('Input| Projects'!CG$9),1,0)) -> 0 | CH33: =IF($C33="","",IF(TRIM('Input| JGN Mapping'!$J33)=TRIM('Input| Projects'!CH$9),1,0)) -> 0 | CI33: =IF($C33="","",IF(TRIM('Input| JGN Mapping'!$J33)=TRIM('Input| Projects'!CI$9),1,0)) -> 0 | CJ33: =IF($C33="","",IF(TRIM('Input| JGN Mapping'!$J33)=TRIM('Input| Projects'!CJ$9),1,0)) -> 0 | CK33: =IF($C33="","",IF(TRIM('Input| JGN Mapping'!$J33)=TRIM('Input| Projects'!CK$9),1,0)) -> 0 | CL33: =IF($C33="","",IF(TRIM('Input| JGN Mapping'!$J33)=TRIM('Input| Projects'!CL$9),1,0)) -> 0 | CM33: =IF($C33="","",IF(TRIM('Input| JGN Mapping'!$J33)=TRIM('Input| Projects'!CM$9),1,0)) -> 0 | CN33: =IF($C33="","",IF(TRIM('Input| JGN Mapping'!$J33)=TRIM('Input| Projects'!CN$9),1,0)) -> 0 | CO33: =IF($C33="","",IF(TRIM('Input| JGN Mapping'!$J33)=TRIM('Input| Projects'!CO$9),1,0)) -> 0 | CP33: =_xlfn.SWITCH(TRUE, LEN(C33)<1,0, (SUM(AR33:CO33)<>1)*1) -> 0
B34: 25 | C34: End of Life Replacement of Metreteks RY-First Half | D34: R-RA6 | F34: Meter replacement | G34: Refer to sheet 'Input|JGN mapping | I34: 2693.87029 | J34: 1148.52929 | K34: 0 | L34: 5395.110619 | M34: 541.3351495 | N34: 379.6702274 | O34: 0 | Q34: 0 | R34: 0 | S34: 0 | T34: 0 | U34: 0 | V34: 0 | W34: 0 | Y34: 0.2714665434 | Z34: 0.7285334566 | AA34: 0 | AC34: Yes | AD34: No | AI34: 1 | AR34: =IF($C34="","",IF(TRIM('Input| JGN Mapping'!$J34)=TRIM('Input| Projects'!AR$9),1,0)) -> 0 | AS34: =IF($C34="","",IF(TRIM('Input| JGN Mapping'!$J34)=TRIM('Input| Projects'!AS$9),1,0)) -> 0 | AT34: =IF($C34="","",IF(TRIM('Input| JGN Mapping'!$J34)=TRIM('Input| Projects'!AT$9),1,0)) -> 0 | AU34: =IF($C34="","",IF(TRIM('Input| JGN Mapping'!$J34)=TRIM('Input| Projects'!AU$9),1,0)) -> 1 | AV34: =IF($C34="","",IF(TRIM('Input| JGN Mapping'!$J34)=TRIM('Input| Projects'!AV$9),1,0)) -> 0 | AW34: =IF($C34="","",IF(TRIM('Input| JGN Mapping'!$J34)=TRIM('Input| Projects'!AW$9),1,0)) -> 0 | AX34: =IF($C34="","",IF(TRIM('Input| JGN Mapping'!$J34)=TRIM('Input| Projects'!AX$9),1,0)) -> 0 | AY34: =IF($C34="","",IF(TRIM('Input| JGN Mapping'!$J34)=TRIM('Input| Projects'!AY$9),1,0)) -> 0 | AZ34: =IF($C34="","",IF(TRIM('Input| JGN Mapping'!$J34)=TRIM('Input| Projects'!AZ$9),1,0)) -> 0 | BA34: =IF($C34="","",IF(TRIM('Input| JGN Mapping'!$J34)=TRIM('Input| Projects'!BA$9),1,0)) -> 0 | BB34: =IF($C34="","",IF(TRIM('Input| JGN Mapping'!$J34)=TRIM('Input| Projects'!BB$9),1,0)) -> 0 | BC34: =IF($C34="","",IF(TRIM('Input| JGN Mapping'!$J34)=TRIM('Input| Projects'!BC$9),1,0)) -> 0 | BD34: =IF($C34="","",IF(TRIM('Input| JGN Mapping'!$J34)=TRIM('Input| Projects'!BD$9),1,0)) -> 0 | BE34: =IF($C34="","",IF(TRIM('Input| JGN Mapping'!$J34)=TRIM('Input| Projects'!BE$9),1,0)) -> 0 | BF34: =IF($C34="","",IF(TRIM('Input| JGN Mapping'!$J34)=TRIM('Input| Projects'!BF$9),1,0)) -> 0 | BG34: =IF($C34="","",IF(TRIM('Input| JGN Mapping'!$J34)=TRIM('Input| Projects'!BG$9),1,0)) -> 0 | BH34: =IF($C34="","",IF(TRIM('Input| JGN Mapping'!$J34)=TRIM('Input| Projects'!BH$9),1,0)) -> 0 | BI34: =IF($C34="","",IF(TRIM('Input| JGN Mapping'!$J34)=TRIM('Input| Projects'!BI$9),1,0)) -> 0 | BJ34: =IF($C34="","",IF(TRIM('Input| JGN Mapping'!$J34)=TRIM('Input| Projects'!BJ$9),1,0)) -> 0 | BK34: =IF($C34="","",IF(TRIM('Input| JGN Mapping'!$J34)=TRIM('Input| Projects'!BK$9),1,0)) -> 0 | BL34: =IF($C34="","",IF(TRIM('Input| JGN Mapping'!$J34)=TRIM('Input| Projects'!BL$9),1,0)) -> 0 | BM34: =IF($C34="","",IF(TRIM('Input| JGN Mapping'!$J34)=TRIM('Input| Projects'!BM$9),1,0)) -> 0 | BN34: =IF($C34="","",IF(TRIM('Input| JGN Mapping'!$J34)=TRIM('Input| Projects'!BN$9),1,0)) -> 0 | BO34: =IF($C34="","",IF(TRIM('Input| JGN Mapping'!$J34)=TRIM('Input| Projects'!BO$9),1,0)) -> 0 | BP34: =IF($C34="","",IF(TRIM('Input| JGN Mapping'!$J34)=TRIM('Input| Projects'!BP$9),1,0)) -> 0 | BQ34: =IF($C34="","",IF(TRIM('Input| JGN Mapping'!$J34)=TRIM('Input| Projects'!BQ$9),1,0)) -> 0 | BR34: =IF($C34="","",IF(TRIM('Input| JGN Mapping'!$J34)=TRIM('Input| Projects'!BR$9),1,0)) -> 0 | BS34: =IF($C34="","",IF(TRIM('Input| JGN Mapping'!$J34)=TRIM('Input| Projects'!BS$9),1,0)) -> 0 | BT34: =IF($C34="","",IF(TRIM('Input| JGN Mapping'!$J34)=TRIM('Input| Projects'!BT$9),1,0)) -> 0 | BU34: =IF($C34="","",IF(TRIM('Input| JGN Mapping'!$J34)=TRIM('Input| Projects'!BU$9),1,0)) -> 0 | BV34: =IF($C34="","",IF(TRIM('Input| JGN Mapping'!$J34)=TRIM('Input| Projects'!BV$9),1,0)) -> 0 | BW34: =IF($C34="","",IF(TRIM('Input| JGN Mapping'!$J34)=TRIM('Input| Projects'!BW$9),1,0)) -> 0 | BX34: =IF($C34="","",IF(TRIM('Input| JGN Mapping'!$J34)=TRIM('Input| Projects'!BX$9),1,0)) -> 0 | BY34: =IF($C34="","",IF(TRIM('Input| JGN Mapping'!$J34)=TRIM('Input| Projects'!BY$9),1,0)) -> 0 | BZ34: =IF($C34="","",IF(TRIM('Input| JGN Mapping'!$J34)=TRIM('Input| Projects'!BZ$9),1,0)) -> 0 | CA34: =IF($C34="","",IF(TRIM('Input| JGN Mapping'!$J34)=TRIM('Input| Projects'!CA$9),1,0)) -> 0 | CB34: =IF($C34="","",IF(TRIM('Input| JGN Mapping'!$J34)=TRIM('Input| Projects'!CB$9),1,0)) -> 0 | CC34: =IF($C34="","",IF(TRIM('Input| JGN Mapping'!$J34)=TRIM('Input| Projects'!CC$9),1,0)) -> 0 | CD34: =IF($C34="","",IF(TRIM('Input| JGN Mapping'!$J34)=TRIM('Input| Projects'!CD$9),1,0)) -> 0 | CE34: =IF($C34="","",IF(TRIM('Input| JGN Mapping'!$J34)=TRIM('Input| Projects'!CE$9),1,0)) -> 0 | CF34: =IF($C34="","",IF(TRIM('Input| JGN Mapping'!$J34)=TRIM('Input| Projects'!CF$9),1,0)) -> 0 | CG34: =IF($C34="","",IF(TRIM('Input| JGN Mapping'!$J34)=TRIM('Input| Projects'!CG$9),1,0)) -> 0 | CH34: =IF($C34="","",IF(TRIM('Input| JGN Mapping'!$J34)=TRIM('Input| Projects'!CH$9),1,0)) -> 0 | CI34: =IF($C34="","",IF(TRIM('Input| JGN Mapping'!$J34)=TRIM('Input| Projects'!CI$9),1,0)) -> 0 | CJ34: =IF($C34="","",IF(TRIM('Input| JGN Mapping'!$J34)=TRIM('Input| Projects'!CJ$9),1,0)) -> 0 | CK34: =IF($C34="","",IF(TRIM('Input| JGN Mapping'!$J34)=TRIM('Input| Projects'!CK$9),1,0)) -> 0 | CL34: =IF($C34="","",IF(TRIM('Input| JGN Mapping'!$J34)=TRIM('Input| Projects'!CL$9),1,0)) -> 0 | CM34: =IF($C34="","",IF(TRIM('Input| JGN Mapping'!$J34)=TRIM('Input| Projects'!CM$9),1,0)) -> 0 | CN34: =IF($C34="","",IF(TRIM('Input| JGN Mapping'!$J34)=TRIM('Input| Projects'!CN$9),1,0)) -> 0 | CO34: =IF($C34="","",IF(TRIM('Input| JGN Mapping'!$J34)=TRIM('Input| Projects'!CO$9),1,0)) -> 0 | CP34: =_xlfn.SWITCH(TRUE, LEN(C34)<1,0, (SUM(AR34:CO34)<>1)*1) -> 0
B35: 26 | C35: End of Life Replacement of Metreteks RY-Second Half | D35: R-RA6 | F35: Meter replacement | G35: Refer to sheet 'Input|JGN mapping | I35: 0 | J35: 0 | K35: 1087.004251 | L35: 541.3351495 | M35: 374.2876465 | N35: 0 | O35: 0 | Q35: 0 | R35: 0 | S35: 0 | T35: 0 | U35: 0 | V35: 0 | W35: 0 | Y35: 0.2714665434 | Z35: 0.7285334566 | AA35: 0 | AC35: Yes | AD35: No | AI35: 1 | AR35: =IF($C35="","",IF(TRIM('Input| JGN Mapping'!$J35)=TRIM('Input| Projects'!AR$9),1,0)) -> 0 | AS35: =IF($C35="","",IF(TRIM('Input| JGN Mapping'!$J35)=TRIM('Input| Projects'!AS$9),1,0)) -> 0 | AT35: =IF($C35="","",IF(TRIM('Input| JGN Mapping'!$J35)=TRIM('Input| Projects'!AT$9),1,0)) -> 0 | AU35: =IF($C35="","",IF(TRIM('Input| JGN Mapping'!$J35)=TRIM('Input| Projects'!AU$9),1,0)) -> 1 | AV35: =IF($C35="","",IF(TRIM('Input| JGN Mapping'!$J35)=TRIM('Input| Projects'!AV$9),1,0)) -> 0 | AW35: =IF($C35="","",IF(TRIM('Input| JGN Mapping'!$J35)=TRIM('Input| Projects'!AW$9),1,0)) -> 0 | AX35: =IF($C35="","",IF(TRIM('Input| JGN Mapping'!$J35)=TRIM('Input| Projects'!AX$9),1,0)) -> 0 | AY35: =IF($C35="","",IF(TRIM('Input| JGN Mapping'!$J35)=TRIM('Input| Projects'!AY$9),1,0)) -> 0 | AZ35: =IF($C35="","",IF(TRIM('Input| JGN Mapping'!$J35)=TRIM('Input| Projects'!AZ$9),1,0)) -> 0 | BA35: =IF($C35="","",IF(TRIM('Input| JGN Mapping'!$J35)=TRIM('Input| Projects'!BA$9),1,0)) -> 0 | BB35: =IF($C35="","",IF(TRIM('Input| JGN Mapping'!$J35)=TRIM('Input| Projects'!BB$9),1,0)) -> 0 | BC35: =IF($C35="","",IF(TRIM('Input| JGN Mapping'!$J35)=TRIM('Input| Projects'!BC$9),1,0)) -> 0 | BD35: =IF($C35="","",IF(TRIM('Input| JGN Mapping'!$J35)=TRIM('Input| Projects'!BD$9),1,0)) -> 0 | BE35: =IF($C35="","",IF(TRIM('Input| JGN Mapping'!$J35)=TRIM('Input| Projects'!BE$9),1,0)) -> 0 | BF35: =IF($C35="","",IF(TRIM('Input| JGN Mapping'!$J35)=TRIM('Input| Projects'!BF$9),1,0)) -> 0 | BG35: =IF($C35="","",IF(TRIM('Input| JGN Mapping'!$J35)=TRIM('Input| Projects'!BG$9),1,0)) -> 0 | BH35: =IF($C35="","",IF(TRIM('Input| JGN Mapping'!$J35)=TRIM('Input| Projects'!BH$9),1,0)) -> 0 | BI35: =IF($C35="","",IF(TRIM('Input| JGN Mapping'!$J35)=TRIM('Input| Projects'!BI$9),1,0)) -> 0 | BJ35: =IF($C35="","",IF(TRIM('Input| JGN Mapping'!$J35)=TRIM('Input| Projects'!BJ$9),1,0)) -> 0 | BK35: =IF($C35="","",IF(TRIM('Input| JGN Mapping'!$J35)=TRIM('Input| Projects'!BK$9),1,0)) -> 0 | BL35: =IF($C35="","",IF(TRIM('Input| JGN Mapping'!$J35)=TRIM('Input| Projects'!BL$9),1,0)) -> 0 | BM35: =IF($C35="","",IF(TRIM('Input| JGN Mapping'!$J35)=TRIM('Input| Projects'!BM$9),1,0)) -> 0 | BN35: =IF($C35="","",IF(TRIM('Input| JGN Mapping'!$J35)=TRIM('Input| Projects'!BN$9),1,0)) -> 0 | BO35: =IF($C35="","",IF(TRIM('Input| JGN Mapping'!$J35)=TRIM('Input| Projects'!BO$9),1,0)) -> 0 | BP35: =IF($C35="","",IF(TRIM('Input| JGN Mapping'!$J35)=TRIM('Input| Projects'!BP$9),1,0)) -> 0 | BQ35: =IF($C35="","",IF(TRIM('Input| JGN Mapping'!$J35)=TRIM('Input| Projects'!BQ$9),1,0)) -> 0 | BR35: =IF($C35="","",IF(TRIM('Input| JGN Mapping'!$J35)=TRIM('Input| Projects'!BR$9),1,0)) -> 0 | BS35: =IF($C35="","",IF(TRIM('Input| JGN Mapping'!$J35)=TRIM('Input| Projects'!BS$9),1,0)) -> 0 | BT35: =IF($C35="","",IF(TRIM('Input| JGN Mapping'!$J35)=TRIM('Input| Projects'!BT$9),1,0)) -> 0 | BU35: =IF($C35="","",IF(TRIM('Input| JGN Mapping'!$J35)=TRIM('Input| Projects'!BU$9),1,0)) -> 0 | BV35: =IF($C35="","",IF(TRIM('Input| JGN Mapping'!$J35)=TRIM('Input| Projects'!BV$9),1,0)) -> 0 | BW35: =IF($C35="","",IF(TRIM('Input| JGN Mapping'!$J35)=TRIM('Input| Projects'!BW$9),1,0)) -> 0 | BX35: =IF($C35="","",IF(TRIM('Input| JGN Mapping'!$J35)=TRIM('Input| Projects'!BX$9),1,0)) -> 0 | BY35: =IF($C35="","",IF(TRIM('Input| JGN Mapping'!$J35)=TRIM('Input| Projects'!BY$9),1,0)) -> 0 | BZ35: =IF($C35="","",IF(TRIM('Input| JGN Mapping'!$J35)=TRIM('Input| Projects'!BZ$9),1,0)) -> 0 | CA35: =IF($C35="","",IF(TRIM('Input| JGN Mapping'!$J35)=TRIM('Input| Projects'!CA$9),1,0)) -> 0 | CB35: =IF($C35="","",IF(TRIM('Input| JGN Mapping'!$J35)=TRIM('Input| Projects'!CB$9),1,0)) -> 0 | CC35: =IF($C35="","",IF(TRIM('Input| JGN Mapping'!$J35)=TRIM('Input| Projects'!CC$9),1,0)) -> 0 | CD35: =IF($C35="","",IF(TRIM('Input| JGN Mapping'!$J35)=TRIM('Input| Projects'!CD$9),1,0)) -> 0 | CE35: =IF($C35="","",IF(TRIM('Input| JGN Mapping'!$J35)=TRIM('Input| Projects'!CE$9),1,0)) -> 0 | CF35: =IF($C35="","",IF(TRIM('Input| JGN Mapping'!$J35)=TRIM('Input| Projects'!CF$9),1,0)) -> 0 | CG35: =IF($C35="","",IF(TRIM('Input| JGN Mapping'!$J35)=TRIM('Input| Projects'!CG$9),1,0)) -> 0 | CH35: =IF($C35="","",IF(TRIM('Input| JGN Mapping'!$J35)=TRIM('Input| Projects'!CH$9),1,0)) -> 0 | CI35: =IF($C35="","",IF(TRIM('Input| JGN Mapping'!$J35)=TRIM('Input| Projects'!CI$9),1,0)) -> 0 | CJ35: =IF($C35="","",IF(TRIM('Input| JGN Mapping'!$J35)=TRIM('Input| Projects'!CJ$9),1,0)) -> 0 | CK35: =IF($C35="","",IF(TRIM('Input| JGN Mapping'!$J35)=TRIM('Input| Projects'!CK$9),1,0)) -> 0 | CL35: =IF($C35="","",IF(TRIM('Input| JGN Mapping'!$J35)=TRIM('Input| Projects'!CL$9),1,0)) -> 0 | CM35: =IF($C35="","",IF(TRIM('Input| JGN Mapping'!$J35)=TRIM('Input| Projects'!CM$9),1,0)) -> 0 | CN35: =IF($C35="","",IF(TRIM('Input| JGN Mapping'!$J35)=TRIM('Input| Projects'!CN$9),1,0)) -> 0 | CO35: =IF($C35="","",IF(TRIM('Input| JGN Mapping'!$J35)=TRIM('Input| Projects'!CO$9),1,0)) -> 0 | CP35: =_xlfn.SWITCH(TRUE, LEN(C35)<1,0, (SUM(AR35:CO35)<>1)*1) -> 0
B36: 27 | C36: End of Life Replacement of I&C Turbine Gas Meters RY-First Half | D36: R-RA7 | F36: Meter replacement | G36: Refer to sheet 'Input|JGN mapping | I36: 0 | J36: 163.9391301 | K36: 37.9126911 | L36: 99.42281742 | M36: 38.50848405 | N36: 17.38433238 | O36: 166.446339 | Q36: 0 | R36: 0 | S36: 0 | T36: 0 | U36: 0 | V36: 0 | W36: 0 | Y36: 0.7774737064 | Z36: 0.2225262936 | AA36: 0 | AC36: Yes | AD36: No | AI36: 1 | AR36: =IF($C36="","",IF(TRIM('Input| JGN Mapping'!$J36)=TRIM('Input| Projects'!AR$9),1,0)) -> 0 | AS36: =IF($C36="","",IF(TRIM('Input| JGN Mapping'!$J36)=TRIM('Input| Projects'!AS$9),1,0)) -> 0 | AT36: =IF($C36="","",IF(TRIM('Input| JGN Mapping'!$J36)=TRIM('Input| Projects'!AT$9),1,0)) -> 0 | AU36: =IF($C36="","",IF(TRIM('Input| JGN Mapping'!$J36)=TRIM('Input| Projects'!AU$9),1,0)) -> 0 | AV36: =IF($C36="","",IF(TRIM('Input| JGN Mapping'!$J36)=TRIM('Input| Projects'!AV$9),1,0)) -> 0 | AW36: =IF($C36="","",IF(TRIM('Input| JGN Mapping'!$J36)=TRIM('Input| Projects'!AW$9),1,0)) -> 0 | AX36: =IF($C36="","",IF(TRIM('Input| JGN Mapping'!$J36)=TRIM('Input| Projects'!AX$9),1,0)) -> 0 | AY36: =IF($C36="","",IF(TRIM('Input| JGN Mapping'!$J36)=TRIM('Input| Projects'!AY$9),1,0)) -> 0 | AZ36: =IF($C36="","",IF(TRIM('Input| JGN Mapping'!$J36)=TRIM('Input| Projects'!AZ$9),1,0)) -> 0 | BA36: =IF($C36="","",IF(TRIM('Input| JGN Mapping'!$J36)=TRIM('Input| Projects'!BA$9),1,0)) -> 0 | BB36: =IF($C36="","",IF(TRIM('Input| JGN Mapping'!$J36)=TRIM('Input| Projects'!BB$9),1,0)) -> 0 | BC36: =IF($C36="","",IF(TRIM('Input| JGN Mapping'!$J36)=TRIM('Input| Projects'!BC$9),1,0)) -> 1 | BD36: =IF($C36="","",IF(TRIM('Input| JGN Mapping'!$J36)=TRIM('Input| Projects'!BD$9),1,0)) -> 0 | BE36: =IF($C36="","",IF(TRIM('Input| JGN Mapping'!$J36)=TRIM('Input| Projects'!BE$9),1,0)) -> 0 | BF36: =IF($C36="","",IF(TRIM('Input| JGN Mapping'!$J36)=TRIM('Input| Projects'!BF$9),1,0)) -> 0 | BG36: =IF($C36="","",IF(TRIM('Input| JGN Mapping'!$J36)=TRIM('Input| Projects'!BG$9),1,0)) -> 0 | BH36: =IF($C36="","",IF(TRIM('Input| JGN Mapping'!$J36)=TRIM('Input| Projects'!BH$9),1,0)) -> 0 | BI36: =IF($C36="","",IF(TRIM('Input| JGN Mapping'!$J36)=TRIM('Input| Projects'!BI$9),1,0)) -> 0 | BJ36: =IF($C36="","",IF(TRIM('Input| JGN Mapping'!$J36)=TRIM('Input| Projects'!BJ$9),1,0)) -> 0 | BK36: =IF($C36="","",IF(TRIM('Input| JGN Mapping'!$J36)=TRIM('Input| Projects'!BK$9),1,0)) -> 0 | BL36: =IF($C36="","",IF(TRIM('Input| JGN Mapping'!$J36)=TRIM('Input| Projects'!BL$9),1,0)) -> 0 | BM36: =IF($C36="","",IF(TRIM('Input| JGN Mapping'!$J36)=TRIM('Input| Projects'!BM$9),1,0)) -> 0 | BN36: =IF($C36="","",IF(TRIM('Input| JGN Mapping'!$J36)=TRIM('Input| Projects'!BN$9),1,0)) -> 0 | BO36: =IF($C36="","",IF(TRIM('Input| JGN Mapping'!$J36)=TRIM('Input| Projects'!BO$9),1,0)) -> 0 | BP36: =IF($C36="","",IF(TRIM('Input| JGN Mapping'!$J36)=TRIM('Input| Projects'!BP$9),1,0)) -> 0 | BQ36: =IF($C36="","",IF(TRIM('Input| JGN Mapping'!$J36)=TRIM('Input| Projects'!BQ$9),1,0)) -> 0 | BR36: =IF($C36="","",IF(TRIM('Input| JGN Mapping'!$J36)=TRIM('Input| Projects'!BR$9),1,0)) -> 0 | BS36: =IF($C36="","",IF(TRIM('Input| JGN Mapping'!$J36)=TRIM('Input| Projects'!BS$9),1,0)) -> 0 | BT36: =IF($C36="","",IF(TRIM('Input| JGN Mapping'!$J36)=TRIM('Input| Projects'!BT$9),1,0)) -> 0 | BU36: =IF($C36="","",IF(TRIM('Input| JGN Mapping'!$J36)=TRIM('Input| Projects'!BU$9),1,0)) -> 0 | BV36: =IF($C36="","",IF(TRIM('Input| JGN Mapping'!$J36)=TRIM('Input| Projects'!BV$9),1,0)) -> 0 | BW36: =IF($C36="","",IF(TRIM('Input| JGN Mapping'!$J36)=TRIM('Input| Projects'!BW$9),1,0)) -> 0 | BX36: =IF($C36="","",IF(TRIM('Input| JGN Mapping'!$J36)=TRIM('Input| Projects'!BX$9),1,0)) -> 0 | BY36: =IF($C36="","",IF(TRIM('Input| JGN Mapping'!$J36)=TRIM('Input| Projects'!BY$9),1,0)) -> 0 | BZ36: =IF($C36="","",IF(TRIM('Input| JGN Mapping'!$J36)=TRIM('Input| Projects'!BZ$9),1,0)) -> 0 | CA36: =IF($C36="","",IF(TRIM('Input| JGN Mapping'!$J36)=TRIM('Input| Projects'!CA$9),1,0)) -> 0 | CB36: =IF($C36="","",IF(TRIM('Input| JGN Mapping'!$J36)=TRIM('Input| Projects'!CB$9),1,0)) -> 0 | CC36: =IF($C36="","",IF(TRIM('Input| JGN Mapping'!$J36)=TRIM('Input| Projects'!CC$9),1,0)) -> 0 | CD36: =IF($C36="","",IF(TRIM('Input| JGN Mapping'!$J36)=TRIM('Input| Projects'!CD$9),1,0)) -> 0 | CE36: =IF($C36="","",IF(TRIM('Input| JGN Mapping'!$J36)=TRIM('Input| Projects'!CE$9),1,0)) -> 0 | CF36: =IF($C36="","",IF(TRIM('Input| JGN Mapping'!$J36)=TRIM('Input| Projects'!CF$9),1,0)) -> 0 | CG36: =IF($C36="","",IF(TRIM('Input| JGN Mapping'!$J36)=TRIM('Input| Projects'!CG$9),1,0)) -> 0 | CH36: =IF($C36="","",IF(TRIM('Input| JGN Mapping'!$J36)=TRIM('Input| Projects'!CH$9),1,0)) -> 0 | CI36: =IF($C36="","",IF(TRIM('Input| JGN Mapping'!$J36)=TRIM('Input| Projects'!CI$9),1,0)) -> 0 | CJ36: =IF($C36="","",IF(TRIM('Input| JGN Mapping'!$J36)=TRIM('Input| Projects'!CJ$9),1,0)) -> 0 | CK36: =IF($C36="","",IF(TRIM('Input| JGN Mapping'!$J36)=TRIM('Input| Projects'!CK$9),1,0)) -> 0 | CL36: =IF($C36="","",IF(TRIM('Input| JGN Mapping'!$J36)=TRIM('Input| Projects'!CL$9),1,0)) -> 0 | CM36: =IF($C36="","",IF(TRIM('Input| JGN Mapping'!$J36)=TRIM('Input| Projects'!CM$9),1,0)) -> 0 | CN36: =IF($C36="","",IF(TRIM('Input| JGN Mapping'!$J36)=TRIM('Input| Projects'!CN$9),1,0)) -> 0 | CO36: =IF($C36="","",IF(TRIM('Input| JGN Mapping'!$J36)=TRIM('Input| Projects'!CO$9),1,0)) -> 0 | CP36: =_xlfn.SWITCH(TRUE, LEN(C36)<1,0, (SUM(AR36:CO36)<>1)*1) -> 0
B37: 28 | C37: End of Life Replacement of I&C Turbine Gas Meters RY-Second Half | D37: R-RA7 | F37: Meter replacement | G37: Refer to sheet 'Input|JGN mapping | I37: 163.9391301 | J37: 37.9126911 | K37: 99.42281742 | L37: 38.50848405 | M37: 17.38433238 | N37: 166.446339 | O37: 11.05714847 | Q37: 0 | R37: 0 | S37: 0 | T37: 0 | U37: 0 | V37: 0 | W37: 0 | Y37: 0.7774737064 | Z37: 0.2225262936 | AA37: 0 | AC37: Yes | AD37: No | AI37: 1 | AR37: =IF($C37="","",IF(TRIM('Input| JGN Mapping'!$J37)=TRIM('Input| Projects'!AR$9),1,0)) -> 0 | AS37: =IF($C37="","",IF(TRIM('Input| JGN Mapping'!$J37)=TRIM('Input| Projects'!AS$9),1,0)) -> 0 | AT37: =IF($C37="","",IF(TRIM('Input| JGN Mapping'!$J37)=TRIM('Input| Projects'!AT$9),1,0)) -> 0 | AU37: =IF($C37="","",IF(TRIM('Input| JGN Mapping'!$J37)=TRIM('Input| Projects'!AU$9),1,0)) -> 0 | AV37: =IF($C37="","",IF(TRIM('Input| JGN Mapping'!$J37)=TRIM('Input| Projects'!AV$9),1,0)) -> 0 | AW37: =IF($C37="","",IF(TRIM('Input| JGN Mapping'!$J37)=TRIM('Input| Projects'!AW$9),1,0)) -> 0 | AX37: =IF($C37="","",IF(TRIM('Input| JGN Mapping'!$J37)=TRIM('Input| Projects'!AX$9),1,0)) -> 0 | AY37: =IF($C37="","",IF(TRIM('Input| JGN Mapping'!$J37)=TRIM('Input| Projects'!AY$9),1,0)) -> 0 | AZ37: =IF($C37="","",IF(TRIM('Input| JGN Mapping'!$J37)=TRIM('Input| Projects'!AZ$9),1,0)) -> 0 | BA37: =IF($C37="","",IF(TRIM('Input| JGN Mapping'!$J37)=TRIM('Input| Projects'!BA$9),1,0)) -> 0 | BB37: =IF($C37="","",IF(TRIM('Input| JGN Mapping'!$J37)=TRIM('Input| Projects'!BB$9),1,0)) -> 0 | BC37: =IF($C37="","",IF(TRIM('Input| JGN Mapping'!$J37)=TRIM('Input| Projects'!BC$9),1,0)) -> 1 | BD37: =IF($C37="","",IF(TRIM('Input| JGN Mapping'!$J37)=TRIM('Input| Projects'!BD$9),1,0)) -> 0 | BE37: =IF($C37="","",IF(TRIM('Input| JGN Mapping'!$J37)=TRIM('Input| Projects'!BE$9),1,0)) -> 0 | BF37: =IF($C37="","",IF(TRIM('Input| JGN Mapping'!$J37)=TRIM('Input| Projects'!BF$9),1,0)) -> 0 | BG37: =IF($C37="","",IF(TRIM('Input| JGN Mapping'!$J37)=TRIM('Input| Projects'!BG$9),1,0)) -> 0 | BH37: =IF($C37="","",IF(TRIM('Input| JGN Mapping'!$J37)=TRIM('Input| Projects'!BH$9),1,0)) -> 0 | BI37: =IF($C37="","",IF(TRIM('Input| JGN Mapping'!$J37)=TRIM('Input| Projects'!BI$9),1,0)) -> 0 | BJ37: =IF($C37="","",IF(TRIM('Input| JGN Mapping'!$J37)=TRIM('Input| Projects'!BJ$9),1,0)) -> 0 | BK37: =IF($C37="","",IF(TRIM('Input| JGN Mapping'!$J37)=TRIM('Input| Projects'!BK$9),1,0)) -> 0 | BL37: =IF($C37="","",IF(TRIM('Input| JGN Mapping'!$J37)=TRIM('Input| Projects'!BL$9),1,0)) -> 0 | BM37: =IF($C37="","",IF(TRIM('Input| JGN Mapping'!$J37)=TRIM('Input| Projects'!BM$9),1,0)) -> 0 | BN37: =IF($C37="","",IF(TRIM('Input| JGN Mapping'!$J37)=TRIM('Input| Projects'!BN$9),1,0)) -> 0 | BO37: =IF($C37="","",IF(TRIM('Input| JGN Mapping'!$J37)=TRIM('Input| Projects'!BO$9),1,0)) -> 0 | BP37: =IF($C37="","",IF(TRIM('Input| JGN Mapping'!$J37)=TRIM('Input| Projects'!BP$9),1,0)) -> 0 | BQ37: =IF($C37="","",IF(TRIM('Input| JGN Mapping'!$J37)=TRIM('Input| Projects'!BQ$9),1,0)) -> 0 | BR37: =IF($C37="","",IF(TRIM('Input| JGN Mapping'!$J37)=TRIM('Input| Projects'!BR$9),1,0)) -> 0 | BS37: =IF($C37="","",IF(TRIM('Input| JGN Mapping'!$J37)=TRIM('Input| Projects'!BS$9),1,0)) -> 0 | BT37: =IF($C37="","",IF(TRIM('Input| JGN Mapping'!$J37)=TRIM('Input| Projects'!BT$9),1,0)) -> 0 | BU37: =IF($C37="","",IF(TRIM('Input| JGN Mapping'!$J37)=TRIM('Input| Projects'!BU$9),1,0)) -> 0 | BV37: =IF($C37="","",IF(TRIM('Input| JGN Mapping'!$J37)=TRIM('Input| Projects'!BV$9),1,0)) -> 0 | BW37: =IF($C37="","",IF(TRIM('Input| JGN Mapping'!$J37)=TRIM('Input| Projects'!BW$9),1,0)) -> 0 | BX37: =IF($C37="","",IF(TRIM('Input| JGN Mapping'!$J37)=TRIM('Input| Projects'!BX$9),1,0)) -> 0 | BY37: =IF($C37="","",IF(TRIM('Input| JGN Mapping'!$J37)=TRIM('Input| Projects'!BY$9),1,0)) -> 0 | BZ37: =IF($C37="","",IF(TRIM('Input| JGN Mapping'!$J37)=TRIM('Input| Projects'!BZ$9),1,0)) -> 0 | CA37: =IF($C37="","",IF(TRIM('Input| JGN Mapping'!$J37)=TRIM('Input| Projects'!CA$9),1,0)) -> 0 | CB37: =IF($C37="","",IF(TRIM('Input| JGN Mapping'!$J37)=TRIM('Input| Projects'!CB$9),1,0)) -> 0 | CC37: =IF($C37="","",IF(TRIM('Input| JGN Mapping'!$J37)=TRIM('Input| Projects'!CC$9),1,0)) -> 0 | CD37: =IF($C37="","",IF(TRIM('Input| JGN Mapping'!$J37)=TRIM('Input| Projects'!CD$9),1,0)) -> 0 | CE37: =IF($C37="","",IF(TRIM('Input| JGN Mapping'!$J37)=TRIM('Input| Projects'!CE$9),1,0)) -> 0 | CF37: =IF($C37="","",IF(TRIM('Input| JGN Mapping'!$J37)=TRIM('Input| Projects'!CF$9),1,0)) -> 0 | CG37: =IF($C37="","",IF(TRIM('Input| JGN Mapping'!$J37)=TRIM('Input| Projects'!CG$9),1,0)) -> 0 | CH37: =IF($C37="","",IF(TRIM('Input| JGN Mapping'!$J37)=TRIM('Input| Projects'!CH$9),1,0)) -> 0 | CI37: =IF($C37="","",IF(TRIM('Input| JGN Mapping'!$J37)=TRIM('Input| Projects'!CI$9),1,0)) -> 0 | CJ37: =IF($C37="","",IF(TRIM('Input| JGN Mapping'!$J37)=TRIM('Input| Projects'!CJ$9),1,0)) -> 0 | CK37: =IF($C37="","",IF(TRIM('Input| JGN Mapping'!$J37)=TRIM('Input| Projects'!CK$9),1,0)) -> 0 | CL37: =IF($C37="","",IF(TRIM('Input| JGN Mapping'!$J37)=TRIM('Input| Projects'!CL$9),1,0)) -> 0 | CM37: =IF($C37="","",IF(TRIM('Input| JGN Mapping'!$J37)=TRIM('Input| Projects'!CM$9),1,0)) -> 0 | CN37: =IF($C37="","",IF(TRIM('Input| JGN Mapping'!$J37)=TRIM('Input| Projects'!CN$9),1,0)) -> 0 | CO37: =IF($C37="","",IF(TRIM('Input| JGN Mapping'!$J37)=TRIM('Input| Projects'!CO$9),1,0)) -> 0 | CP37: =_xlfn.SWITCH(TRUE, LEN(C37)<1,0, (SUM(AR37:CO37)<>1)*1) -> 0
B38: 29 | C38: Replacement of Defective I&C Gas Regulators | D38: R-RA8 | F38: Meter replacement | G38: Refer to sheet 'Input|JGN mapping | I38: 115.3331187 | J38: 115.3331187 | K38: 115.3331187 | L38: 115.3331187 | M38: 115.3331187 | N38: 115.3331187 | O38: 115.3331187 | Q38: 0 | R38: 0 | S38: 0 | T38: 0 | U38: 0 | V38: 0 | W38: 0 | Y38: 0.7040844663 | Z38: 0.2959155337 | AA38: 0 | AC38: Yes | AD38: No | AI38: 1 | AR38: =IF($C38="","",IF(TRIM('Input| JGN Mapping'!$J38)=TRIM('Input| Projects'!AR$9),1,0)) -> 0 | AS38: =IF($C38="","",IF(TRIM('Input| JGN Mapping'!$J38)=TRIM('Input| Projects'!AS$9),1,0)) -> 0 | AT38: =IF($C38="","",IF(TRIM('Input| JGN Mapping'!$J38)=TRIM('Input| Projects'!AT$9),1,0)) -> 0 | AU38: =IF($C38="","",IF(TRIM('Input| JGN Mapping'!$J38)=TRIM('Input| Projects'!AU$9),1,0)) -> 0 | AV38: =IF($C38="","",IF(TRIM('Input| JGN Mapping'!$J38)=TRIM('Input| Projects'!AV$9),1,0)) -> 0 | AW38: =IF($C38="","",IF(TRIM('Input| JGN Mapping'!$J38)=TRIM('Input| Projects'!AW$9),1,0)) -> 0 | AX38: =IF($C38="","",IF(TRIM('Input| JGN Mapping'!$J38)=TRIM('Input| Projects'!AX$9),1,0)) -> 0 | AY38: =IF($C38="","",IF(TRIM('Input| JGN Mapping'!$J38)=TRIM('Input| Projects'!AY$9),1,0)) -> 0 | AZ38: =IF($C38="","",IF(TRIM('Input| JGN Mapping'!$J38)=TRIM('Input| Projects'!AZ$9),1,0)) -> 0 | BA38: =IF($C38="","",IF(TRIM('Input| JGN Mapping'!$J38)=TRIM('Input| Projects'!BA$9),1,0)) -> 0 | BB38: =IF($C38="","",IF(TRIM('Input| JGN Mapping'!$J38)=TRIM('Input| Projects'!BB$9),1,0)) -> 0 | BC38: =IF($C38="","",IF(TRIM('Input| JGN Mapping'!$J38)=TRIM('Input| Projects'!BC$9),1,0)) -> 1 | BD38: =IF($C38="","",IF(TRIM('Input| JGN Mapping'!$J38)=TRIM('Input| Projects'!BD$9),1,0)) -> 0 | BE38: =IF($C38="","",IF(TRIM('Input| JGN Mapping'!$J38)=TRIM('Input| Projects'!BE$9),1,0)) -> 0 | BF38: =IF($C38="","",IF(TRIM('Input| JGN Mapping'!$J38)=TRIM('Input| Projects'!BF$9),1,0)) -> 0 | BG38: =IF($C38="","",IF(TRIM('Input| JGN Mapping'!$J38)=TRIM('Input| Projects'!BG$9),1,0)) -> 0 | BH38: =IF($C38="","",IF(TRIM('Input| JGN Mapping'!$J38)=TRIM('Input| Projects'!BH$9),1,0)) -> 0 | BI38: =IF($C38="","",IF(TRIM('Input| JGN Mapping'!$J38)=TRIM('Input| Projects'!BI$9),1,0)) -> 0 | BJ38: =IF($C38="","",IF(TRIM('Input| JGN Mapping'!$J38)=TRIM('Input| Projects'!BJ$9),1,0)) -> 0 | BK38: =IF($C38="","",IF(TRIM('Input| JGN Mapping'!$J38)=TRIM('Input| Projects'!BK$9),1,0)) -> 0 | BL38: =IF($C38="","",IF(TRIM('Input| JGN Mapping'!$J38)=TRIM('Input| Projects'!BL$9),1,0)) -> 0 | BM38: =IF($C38="","",IF(TRIM('Input| JGN Mapping'!$J38)=TRIM('Input| Projects'!BM$9),1,0)) -> 0 | BN38: =IF($C38="","",IF(TRIM('Input| JGN Mapping'!$J38)=TRIM('Input| Projects'!BN$9),1,0)) -> 0 | BO38: =IF($C38="","",IF(TRIM('Input| JGN Mapping'!$J38)=TRIM('Input| Projects'!BO$9),1,0)) -> 0 | BP38: =IF($C38="","",IF(TRIM('Input| JGN Mapping'!$J38)=TRIM('Input| Projects'!BP$9),1,0)) -> 0 | BQ38: =IF($C38="","",IF(TRIM('Input| JGN Mapping'!$J38)=TRIM('Input| Projects'!BQ$9),1,0)) -> 0 | BR38: =IF($C38="","",IF(TRIM('Input| JGN Mapping'!$J38)=TRIM('Input| Projects'!BR$9),1,0)) -> 0 | BS38: =IF($C38="","",IF(TRIM('Input| JGN Mapping'!$J38)=TRIM('Input| Projects'!BS$9),1,0)) -> 0 | BT38: =IF($C38="","",IF(TRIM('Input| JGN Mapping'!$J38)=TRIM('Input| Projects'!BT$9),1,0)) -> 0 | BU38: =IF($C38="","",IF(TRIM('Input| JGN Mapping'!$J38)=TRIM('Input| Projects'!BU$9),1,0)) -> 0 | BV38: =IF($C38="","",IF(TRIM('Input| JGN Mapping'!$J38)=TRIM('Input| Projects'!BV$9),1,0)) -> 0 | BW38: =IF($C38="","",IF(TRIM('Input| JGN Mapping'!$J38)=TRIM('Input| Projects'!BW$9),1,0)) -> 0 | BX38: =IF($C38="","",IF(TRIM('Input| JGN Mapping'!$J38)=TRIM('Input| Projects'!BX$9),1,0)) -> 0 | BY38: =IF($C38="","",IF(TRIM('Input| JGN Mapping'!$J38)=TRIM('Input| Projects'!BY$9),1,0)) -> 0 | BZ38: =IF($C38="","",IF(TRIM('Input| JGN Mapping'!$J38)=TRIM('Input| Projects'!BZ$9),1,0)) -> 0 | CA38: =IF($C38="","",IF(TRIM('Input| JGN Mapping'!$J38)=TRIM('Input| Projects'!CA$9),1,0)) -> 0 | CB38: =IF($C38="","",IF(TRIM('Input| JGN Mapping'!$J38)=TRIM('Input| Projects'!CB$9),1,0)) -> 0 | CC38: =IF($C38="","",IF(TRIM('Input| JGN Mapping'!$J38)=TRIM('Input| Projects'!CC$9),1,0)) -> 0 | CD38: =IF($C38="","",IF(TRIM('Input| JGN Mapping'!$J38)=TRIM('Input| Projects'!CD$9),1,0)) -> 0 | CE38: =IF($C38="","",IF(TRIM('Input| JGN Mapping'!$J38)=TRIM('Input| Projects'!CE$9),1,0)) -> 0 | CF38: =IF($C38="","",IF(TRIM('Input| JGN Mapping'!$J38)=TRIM('Input| Projects'!CF$9),1,0)) -> 0 | CG38: =IF($C38="","",IF(TRIM('Input| JGN Mapping'!$J38)=TRIM('Input| Projects'!CG$9),1,0)) -> 0 | CH38: =IF($C38="","",IF(TRIM('Input| JGN Mapping'!$J38)=TRIM('Input| Projects'!CH$9),1,0)) -> 0 | CI38: =IF($C38="","",IF(TRIM('Input| JGN Mapping'!$J38)=TRIM('Input| Projects'!CI$9),1,0)) -> 0 | CJ38: =IF($C38="","",IF(TRIM('Input| JGN Mapping'!$J38)=TRIM('Input| Projects'!CJ$9),1,0)) -> 0 | CK38: =IF($C38="","",IF(TRIM('Input| JGN Mapping'!$J38)=TRIM('Input| Projects'!CK$9),1,0)) -> 0 | CL38: =IF($C38="","",IF(TRIM('Input| JGN Mapping'!$J38)=TRIM('Input| Projects'!CL$9),1,0)) -> 0 | CM38: =IF($C38="","",IF(TRIM('Input| JGN Mapping'!$J38)=TRIM('Input| Projects'!CM$9),1,0)) -> 0 | CN38: =IF($C38="","",IF(TRIM('Input| JGN Mapping'!$J38)=TRIM('Input| Projects'!CN$9),1,0)) -> 0 | CO38: =IF($C38="","",IF(TRIM('Input| JGN Mapping'!$J38)=TRIM('Input| Projects'!CO$9),1,0)) -> 0 | CP38: =_xlfn.SWITCH(TRUE, LEN(C38)<1,0, (SUM(AR38:CO38)<>1)*1) -> 0
B39: 30 | C39: Upgrade or downgrade of Meter Capacity | D39: R-RAE | F39: Meter replacement | G39: Refer to sheet 'Input|JGN mapping | I39: 1105.330212 | J39: 1105.330212 | K39: 1105.330212 | L39: 1105.330212 | M39: 1105.330212 | N39: 1105.330212 | O39: 1105.330212 | Q39: 0 | R39: 0 | S39: 0 | T39: 0 | U39: 0 | V39: 0 | W39: 0 | Y39: 0.7744929129 | Z39: 0.2255070871 | AA39: 0 | AC39: Yes | AD39: No | AI39: 1 | AR39: =IF($C39="","",IF(TRIM('Input| JGN Mapping'!$J39)=TRIM('Input| Projects'!AR$9),1,0)) -> 0 | AS39: =IF($C39="","",IF(TRIM('Input| JGN Mapping'!$J39)=TRIM('Input| Projects'!AS$9),1,0)) -> 0 | AT39: =IF($C39="","",IF(TRIM('Input| JGN Mapping'!$J39)=TRIM('Input| Projects'!AT$9),1,0)) -> 0 | AU39: =IF($C39="","",IF(TRIM('Input| JGN Mapping'!$J39)=TRIM('Input| Projects'!AU$9),1,0)) -> 0 | AV39: =IF($C39="","",IF(TRIM('Input| JGN Mapping'!$J39)=TRIM('Input| Projects'!AV$9),1,0)) -> 0 | AW39: =IF($C39="","",IF(TRIM('Input| JGN Mapping'!$J39)=TRIM('Input| Projects'!AW$9),1,0)) -> 0 | AX39: =IF($C39="","",IF(TRIM('Input| JGN Mapping'!$J39)=TRIM('Input| Projects'!AX$9),1,0)) -> 0 | AY39: =IF($C39="","",IF(TRIM('Input| JGN Mapping'!$J39)=TRIM('Input| Projects'!AY$9),1,0)) -> 0 | AZ39: =IF($C39="","",IF(TRIM('Input| JGN Mapping'!$J39)=TRIM('Input| Projects'!AZ$9),1,0)) -> 0 | BA39: =IF($C39="","",IF(TRIM('Input| JGN Mapping'!$J39)=TRIM('Input| Projects'!BA$9),1,0)) -> 0 | BB39: =IF($C39="","",IF(TRIM('Input| JGN Mapping'!$J39)=TRIM('Input| Projects'!BB$9),1,0)) -> 0 | BC39: =IF($C39="","",IF(TRIM('Input| JGN Mapping'!$J39)=TRIM('Input| Projects'!BC$9),1,0)) -> 1 | BD39: =IF($C39="","",IF(TRIM('Input| JGN Mapping'!$J39)=TRIM('Input| Projects'!BD$9),1,0)) -> 0 | BE39: =IF($C39="","",IF(TRIM('Input| JGN Mapping'!$J39)=TRIM('Input| Projects'!BE$9),1,0)) -> 0 | BF39: =IF($C39="","",IF(TRIM('Input| JGN Mapping'!$J39)=TRIM('Input| Projects'!BF$9),1,0)) -> 0 | BG39: =IF($C39="","",IF(TRIM('Input| JGN Mapping'!$J39)=TRIM('Input| Projects'!BG$9),1,0)) -> 0 | BH39: =IF($C39="","",IF(TRIM('Input| JGN Mapping'!$J39)=TRIM('Input| Projects'!BH$9),1,0)) -> 0 | BI39: =IF($C39="","",IF(TRIM('Input| JGN Mapping'!$J39)=TRIM('Input| Projects'!BI$9),1,0)) -> 0 | BJ39: =IF($C39="","",IF(TRIM('Input| JGN Mapping'!$J39)=TRIM('Input| Projects'!BJ$9),1,0)) -> 0 | BK39: =IF($C39="","",IF(TRIM('Input| JGN Mapping'!$J39)=TRIM('Input| Projects'!BK$9),1,0)) -> 0 | BL39: =IF($C39="","",IF(TRIM('Input| JGN Mapping'!$J39)=TRIM('Input| Projects'!BL$9),1,0)) -> 0 | BM39: =IF($C39="","",IF(TRIM('Input| JGN Mapping'!$J39)=TRIM('Input| Projects'!BM$9),1,0)) -> 0 | BN39: =IF($C39="","",IF(TRIM('Input| JGN Mapping'!$J39)=TRIM('Input| Projects'!BN$9),1,0)) -> 0 | BO39: =IF($C39="","",IF(TRIM('Input| JGN Mapping'!$J39)=TRIM('Input| Projects'!BO$9),1,0)) -> 0 | BP39: =IF($C39="","",IF(TRIM('Input| JGN Mapping'!$J39)=TRIM('Input| Projects'!BP$9),1,0)) -> 0 | BQ39: =IF($C39="","",IF(TRIM('Input| JGN Mapping'!$J39)=TRIM('Input| Projects'!BQ$9),1,0)) -> 0 | BR39: =IF($C39="","",IF(TRIM('Input| JGN Mapping'!$J39)=TRIM('Input| Projects'!BR$9),1,0)) -> 0 | BS39: =IF($C39="","",IF(TRIM('Input| JGN Mapping'!$J39)=TRIM('Input| Projects'!BS$9),1,0)) -> 0 | BT39: =IF($C39="","",IF(TRIM('Input| JGN Mapping'!$J39)=TRIM('Input| Projects'!BT$9),1,0)) -> 0 | BU39: =IF($C39="","",IF(TRIM('Input| JGN Mapping'!$J39)=TRIM('Input| Projects'!BU$9),1,0)) -> 0 | BV39: =IF($C39="","",IF(TRIM('Input| JGN Mapping'!$J39)=TRIM('Input| Projects'!BV$9),1,0)) -> 0 | BW39: =IF($C39="","",IF(TRIM('Input| JGN Mapping'!$J39)=TRIM('Input| Projects'!BW$9),1,0)) -> 0 | BX39: =IF($C39="","",IF(TRIM('Input| JGN Mapping'!$J39)=TRIM('Input| Projects'!BX$9),1,0)) -> 0 | BY39: =IF($C39="","",IF(TRIM('Input| JGN Mapping'!$J39)=TRIM('Input| Projects'!BY$9),1,0)) -> 0 | BZ39: =IF($C39="","",IF(TRIM('Input| JGN Mapping'!$J39)=TRIM('Input| Projects'!BZ$9),1,0)) -> 0 | CA39: =IF($C39="","",IF(TRIM('Input| JGN Mapping'!$J39)=TRIM('Input| Projects'!CA$9),1,0)) -> 0 | CB39: =IF($C39="","",IF(TRIM('Input| JGN Mapping'!$J39)=TRIM('Input| Projects'!CB$9),1,0)) -> 0 | CC39: =IF($C39="","",IF(TRIM('Input| JGN Mapping'!$J39)=TRIM('Input| Projects'!CC$9),1,0)) -> 0 | CD39: =IF($C39="","",IF(TRIM('Input| JGN Mapping'!$J39)=TRIM('Input| Projects'!CD$9),1,0)) -> 0 | CE39: =IF($C39="","",IF(TRIM('Input| JGN Mapping'!$J39)=TRIM('Input| Projects'!CE$9),1,0)) -> 0 | CF39: =IF($C39="","",IF(TRIM('Input| JGN Mapping'!$J39)=TRIM('Input| Projects'!CF$9),1,0)) -> 0 | CG39: =IF($C39="","",IF(TRIM('Input| JGN Mapping'!$J39)=TRIM('Input| Projects'!CG$9),1,0)) -> 0 | CH39: =IF($C39="","",IF(TRIM('Input| JGN Mapping'!$J39)=TRIM('Input| Projects'!CH$9),1,0)) -> 0 | CI39: =IF($C39="","",IF(TRIM('Input| JGN Mapping'!$J39)=TRIM('Input| Projects'!CI$9),1,0)) -> 0 | CJ39: =IF($C39="","",IF(TRIM('Input| JGN Mapping'!$J39)=TRIM('Input| Projects'!CJ$9),1,0)) -> 0 | CK39: =IF($C39="","",IF(TRIM('Input| JGN Mapping'!$J39)=TRIM('Input| Projects'!CK$9),1,0)) -> 0 | CL39: =IF($C39="","",IF(TRIM('Input| JGN Mapping'!$J39)=TRIM('Input| Projects'!CL$9),1,0)) -> 0 | CM39: =IF($C39="","",IF(TRIM('Input| JGN Mapping'!$J39)=TRIM('Input| Projects'!CM$9),1,0)) -> 0 | CN39: =IF($C39="","",IF(TRIM('Input| JGN Mapping'!$J39)=TRIM('Input| Projects'!CN$9),1,0)) -> 0 | CO39: =IF($C39="","",IF(TRIM('Input| JGN Mapping'!$J39)=TRIM('Input| Projects'!CO$9),1,0)) -> 0 | CP39: =_xlfn.SWITCH(TRUE, LEN(C39)<1,0, (SUM(AR39:CO39)<>1)*1) -> 0
B40: 31 | C40: End of Life Replacement of Indstrial & Commercial Diaphragm Gas Meters Sets RY-First Half | D40: R-RAF | F40: Meter replacement | G40: Refer to sheet 'Input|JGN mapping | I40: 0 | J40: 1299.378704 | K40: 661.3508706 | L40: 1290.428408 | M40: 2006.407428 | N40: 3374.181879 | O40: 1878.286259 | Q40: 0 | R40: 0 | S40: 0 | T40: 0 | U40: 0 | V40: 0 | W40: 0 | Y40: 0.3693344734 | Z40: 0.6306655266 | AA40: 0 | AC40: Yes | AD40: No | AI40: 1 | AR40: =IF($C40="","",IF(TRIM('Input| JGN Mapping'!$J40)=TRIM('Input| Projects'!AR$9),1,0)) -> 0 | AS40: =IF($C40="","",IF(TRIM('Input| JGN Mapping'!$J40)=TRIM('Input| Projects'!AS$9),1,0)) -> 0 | AT40: =IF($C40="","",IF(TRIM('Input| JGN Mapping'!$J40)=TRIM('Input| Projects'!AT$9),1,0)) -> 0 | AU40: =IF($C40="","",IF(TRIM('Input| JGN Mapping'!$J40)=TRIM('Input| Projects'!AU$9),1,0)) -> 0 | AV40: =IF($C40="","",IF(TRIM('Input| JGN Mapping'!$J40)=TRIM('Input| Projects'!AV$9),1,0)) -> 0 | AW40: =IF($C40="","",IF(TRIM('Input| JGN Mapping'!$J40)=TRIM('Input| Projects'!AW$9),1,0)) -> 0 | AX40: =IF($C40="","",IF(TRIM('Input| JGN Mapping'!$J40)=TRIM('Input| Projects'!AX$9),1,0)) -> 0 | AY40: =IF($C40="","",IF(TRIM('Input| JGN Mapping'!$J40)=TRIM('Input| Projects'!AY$9),1,0)) -> 0 | AZ40: =IF($C40="","",IF(TRIM('Input| JGN Mapping'!$J40)=TRIM('Input| Projects'!AZ$9),1,0)) -> 0 | BA40: =IF($C40="","",IF(TRIM('Input| JGN Mapping'!$J40)=TRIM('Input| Projects'!BA$9),1,0)) -> 0 | BB40: =IF($C40="","",IF(TRIM('Input| JGN Mapping'!$J40)=TRIM('Input| Projects'!BB$9),1,0)) -> 0 | BC40: =IF($C40="","",IF(TRIM('Input| JGN Mapping'!$J40)=TRIM('Input| Projects'!BC$9),1,0)) -> 1 | BD40: =IF($C40="","",IF(TRIM('Input| JGN Mapping'!$J40)=TRIM('Input| Projects'!BD$9),1,0)) -> 0 | BE40: =IF($C40="","",IF(TRIM('Input| JGN Mapping'!$J40)=TRIM('Input| Projects'!BE$9),1,0)) -> 0 | BF40: =IF($C40="","",IF(TRIM('Input| JGN Mapping'!$J40)=TRIM('Input| Projects'!BF$9),1,0)) -> 0 | BG40: =IF($C40="","",IF(TRIM('Input| JGN Mapping'!$J40)=TRIM('Input| Projects'!BG$9),1,0)) -> 0 | BH40: =IF($C40="","",IF(TRIM('Input| JGN Mapping'!$J40)=TRIM('Input| Projects'!BH$9),1,0)) -> 0 | BI40: =IF($C40="","",IF(TRIM('Input| JGN Mapping'!$J40)=TRIM('Input| Projects'!BI$9),1,0)) -> 0 | BJ40: =IF($C40="","",IF(TRIM('Input| JGN Mapping'!$J40)=TRIM('Input| Projects'!BJ$9),1,0)) -> 0 | BK40: =IF($C40="","",IF(TRIM('Input| JGN Mapping'!$J40)=TRIM('Input| Projects'!BK$9),1,0)) -> 0 | BL40: =IF($C40="","",IF(TRIM('Input| JGN Mapping'!$J40)=TRIM('Input| Projects'!BL$9),1,0)) -> 0 | BM40: =IF($C40="","",IF(TRIM('Input| JGN Mapping'!$J40)=TRIM('Input| Projects'!BM$9),1,0)) -> 0 | BN40: =IF($C40="","",IF(TRIM('Input| JGN Mapping'!$J40)=TRIM('Input| Projects'!BN$9),1,0)) -> 0 | BO40: =IF($C40="","",IF(TRIM('Input| JGN Mapping'!$J40)=TRIM('Input| Projects'!BO$9),1,0)) -> 0 | BP40: =IF($C40="","",IF(TRIM('Input| JGN Mapping'!$J40)=TRIM('Input| Projects'!BP$9),1,0)) -> 0 | BQ40: =IF($C40="","",IF(TRIM('Input| JGN Mapping'!$J40)=TRIM('Input| Projects'!BQ$9),1,0)) -> 0 | BR40: =IF($C40="","",IF(TRIM('Input| JGN Mapping'!$J40)=TRIM('Input| Projects'!BR$9),1,0)) -> 0 | BS40: =IF($C40="","",IF(TRIM('Input| JGN Mapping'!$J40)=TRIM('Input| Projects'!BS$9),1,0)) -> 0 | BT40: =IF($C40="","",IF(TRIM('Input| JGN Mapping'!$J40)=TRIM('Input| Projects'!BT$9),1,0)) -> 0 | BU40: =IF($C40="","",IF(TRIM('Input| JGN Mapping'!$J40)=TRIM('Input| Projects'!BU$9),1,0)) -> 0 | BV40: =IF($C40="","",IF(TRIM('Input| JGN Mapping'!$J40)=TRIM('Input| Projects'!BV$9),1,0)) -> 0 | BW40: =IF($C40="","",IF(TRIM('Input| JGN Mapping'!$J40)=TRIM('Input| Projects'!BW$9),1,0)) -> 0 | BX40: =IF($C40="","",IF(TRIM('Input| JGN Mapping'!$J40)=TRIM('Input| Projects'!BX$9),1,0)) -> 0 | BY40: =IF($C40="","",IF(TRIM('Input| JGN Mapping'!$J40)=TRIM('Input| Projects'!BY$9),1,0)) -> 0 | BZ40: =IF($C40="","",IF(TRIM('Input| JGN Mapping'!$J40)=TRIM('Input| Projects'!BZ$9),1,0)) -> 0 | CA40: =IF($C40="","",IF(TRIM('Input| JGN Mapping'!$J40)=TRIM('Input| Projects'!CA$9),1,0)) -> 0 | CB40: =IF($C40="","",IF(TRIM('Input| JGN Mapping'!$J40)=TRIM('Input| Projects'!CB$9),1,0)) -> 0 | CC40: =IF($C40="","",IF(TRIM('Input| JGN Mapping'!$J40)=TRIM('Input| Projects'!CC$9),1,0)) -> 0 | CD40: =IF($C40="","",IF(TRIM('Input| JGN Mapping'!$J40)=TRIM('Input| Projects'!CD$9),1,0)) -> 0 | CE40: =IF($C40="","",IF(TRIM('Input| JGN Mapping'!$J40)=TRIM('Input| Projects'!CE$9),1,0)) -> 0 | CF40: =IF($C40="","",IF(TRIM('Input| JGN Mapping'!$J40)=TRIM('Input| Projects'!CF$9),1,0)) -> 0 | CG40: =IF($C40="","",IF(TRIM('Input| JGN Mapping'!$J40)=TRIM('Input| Projects'!CG$9),1,0)) -> 0 | CH40: =IF($C40="","",IF(TRIM('Input| JGN Mapping'!$J40)=TRIM('Input| Projects'!CH$9),1,0)) -> 0 | CI40: =IF($C40="","",IF(TRIM('Input| JGN Mapping'!$J40)=TRIM('Input| Projects'!CI$9),1,0)) -> 0 | CJ40: =IF($C40="","",IF(TRIM('Input| JGN Mapping'!$J40)=TRIM('Input| Projects'!CJ$9),1,0)) -> 0 | CK40: =IF($C40="","",IF(TRIM('Input| JGN Mapping'!$J40)=TRIM('Input| Projects'!CK$9),1,0)) -> 0 | CL40: =IF($C40="","",IF(TRIM('Input| JGN Mapping'!$J40)=TRIM('Input| Projects'!CL$9),1,0)) -> 0 | CM40: =IF($C40="","",IF(TRIM('Input| JGN Mapping'!$J40)=TRIM('Input| Projects'!CM$9),1,0)) -> 0 | CN40: =IF($C40="","",IF(TRIM('Input| JGN Mapping'!$J40)=TRIM('Input| Projects'!CN$9),1,0)) -> 0 | CO40: =IF($C40="","",IF(TRIM('Input| JGN Mapping'!$J40)=TRIM('Input| Projects'!CO$9),1,0)) -> 0 | CP40: =_xlfn.SWITCH(TRUE, LEN(C40)<1,0, (SUM(AR40:CO40)<>1)*1) -> 0
B41: 32 | C41: End of Life Replacement of Indstrial & Commercial Diaphragm Gas Meters Sets RY-Second Half | D41: R-RAF | F41: Meter replacement | G41: Refer to sheet 'Input|JGN mapping | I41: 1299.378704 | J41: 661.3508706 | K41: 1290.428408 | L41: 2006.407428 | M41: 3374.181879 | N41: 1878.286259 | O41: 856.0016843 | Q41: 0 | R41: 0 | S41: 0 | T41: 0 | U41: 0 | V41: 0 | W41: 0 | Y41: 0.3693344734 | Z41: 0.6306655266 | AA41: 0 | AC41: Yes | AD41: No | AI41: 1 | AR41: =IF($C41="","",IF(TRIM('Input| JGN Mapping'!$J41)=TRIM('Input| Projects'!AR$9),1,0)) -> 0 | AS41: =IF($C41="","",IF(TRIM('Input| JGN Mapping'!$J41)=TRIM('Input| Projects'!AS$9),1,0)) -> 0 | AT41: =IF($C41="","",IF(TRIM('Input| JGN Mapping'!$J41)=TRIM('Input| Projects'!AT$9),1,0)) -> 0 | AU41: =IF($C41="","",IF(TRIM('Input| JGN Mapping'!$J41)=TRIM('Input| Projects'!AU$9),1,0)) -> 0 | AV41: =IF($C41="","",IF(TRIM('Input| JGN Mapping'!$J41)=TRIM('Input| Projects'!AV$9),1,0)) -> 0 | AW41: =IF($C41="","",IF(TRIM('Input| JGN Mapping'!$J41)=TRIM('Input| Projects'!AW$9),1,0)) -> 0 | AX41: =IF($C41="","",IF(TRIM('Input| JGN Mapping'!$J41)=TRIM('Input| Projects'!AX$9),1,0)) -> 0 | AY41: =IF($C41="","",IF(TRIM('Input| JGN Mapping'!$J41)=TRIM('Input| Projects'!AY$9),1,0)) -> 0 | AZ41: =IF($C41="","",IF(TRIM('Input| JGN Mapping'!$J41)=TRIM('Input| Projects'!AZ$9),1,0)) -> 0 | BA41: =IF($C41="","",IF(TRIM('Input| JGN Mapping'!$J41)=TRIM('Input| Projects'!BA$9),1,0)) -> 0 | BB41: =IF($C41="","",IF(TRIM('Input| JGN Mapping'!$J41)=TRIM('Input| Projects'!BB$9),1,0)) -> 0 | BC41: =IF($C41="","",IF(TRIM('Input| JGN Mapping'!$J41)=TRIM('Input| Projects'!BC$9),1,0)) -> 1 | BD41: =IF($C41="","",IF(TRIM('Input| JGN Mapping'!$J41)=TRIM('Input| Projects'!BD$9),1,0)) -> 0 | BE41: =IF($C41="","",IF(TRIM('Input| JGN Mapping'!$J41)=TRIM('Input| Projects'!BE$9),1,0)) -> 0 | BF41: =IF($C41="","",IF(TRIM('Input| JGN Mapping'!$J41)=TRIM('Input| Projects'!BF$9),1,0)) -> 0 | BG41: =IF($C41="","",IF(TRIM('Input| JGN Mapping'!$J41)=TRIM('Input| Projects'!BG$9),1,0)) -> 0 | BH41: =IF($C41="","",IF(TRIM('Input| JGN Mapping'!$J41)=TRIM('Input| Projects'!BH$9),1,0)) -> 0 | BI41: =IF($C41="","",IF(TRIM('Input| JGN Mapping'!$J41)=TRIM('Input| Projects'!BI$9),1,0)) -> 0 | BJ41: =IF($C41="","",IF(TRIM('Input| JGN Mapping'!$J41)=TRIM('Input| Projects'!BJ$9),1,0)) -> 0 | BK41: =IF($C41="","",IF(TRIM('Input| JGN Mapping'!$J41)=TRIM('Input| Projects'!BK$9),1,0)) -> 0 | BL41: =IF($C41="","",IF(TRIM('Input| JGN Mapping'!$J41)=TRIM('Input| Projects'!BL$9),1,0)) -> 0 | BM41: =IF($C41="","",IF(TRIM('Input| JGN Mapping'!$J41)=TRIM('Input| Projects'!BM$9),1,0)) -> 0 | BN41: =IF($C41="","",IF(TRIM('Input| JGN Mapping'!$J41)=TRIM('Input| Projects'!BN$9),1,0)) -> 0 | BO41: =IF($C41="","",IF(TRIM('Input| JGN Mapping'!$J41)=TRIM('Input| Projects'!BO$9),1,0)) -> 0 | BP41: =IF($C41="","",IF(TRIM('Input| JGN Mapping'!$J41)=TRIM('Input| Projects'!BP$9),1,0)) -> 0 | BQ41: =IF($C41="","",IF(TRIM('Input| JGN Mapping'!$J41)=TRIM('Input| Projects'!BQ$9),1,0)) -> 0 | BR41: =IF($C41="","",IF(TRIM('Input| JGN Mapping'!$J41)=TRIM('Input| Projects'!BR$9),1,0)) -> 0 | BS41: =IF($C41="","",IF(TRIM('Input| JGN Mapping'!$J41)=TRIM('Input| Projects'!BS$9),1,0)) -> 0 | BT41: =IF($C41="","",IF(TRIM('Input| JGN Mapping'!$J41)=TRIM('Input| Projects'!BT$9),1,0)) -> 0 | BU41: =IF($C41="","",IF(TRIM('Input| JGN Mapping'!$J41)=TRIM('Input| Projects'!BU$9),1,0)) -> 0 | BV41: =IF($C41="","",IF(TRIM('Input| JGN Mapping'!$J41)=TRIM('Input| Projects'!BV$9),1,0)) -> 0 | BW41: =IF($C41="","",IF(TRIM('Input| JGN Mapping'!$J41)=TRIM('Input| Projects'!BW$9),1,0)) -> 0 | BX41: =IF($C41="","",IF(TRIM('Input| JGN Mapping'!$J41)=TRIM('Input| Projects'!BX$9),1,0)) -> 0 | BY41: =IF($C41="","",IF(TRIM('Input| JGN Mapping'!$J41)=TRIM('Input| Projects'!BY$9),1,0)) -> 0 | BZ41: =IF($C41="","",IF(TRIM('Input| JGN Mapping'!$J41)=TRIM('Input| Projects'!BZ$9),1,0)) -> 0 | CA41: =IF($C41="","",IF(TRIM('Input| JGN Mapping'!$J41)=TRIM('Input| Projects'!CA$9),1,0)) -> 0 | CB41: =IF($C41="","",IF(TRIM('Input| JGN Mapping'!$J41)=TRIM('Input| Projects'!CB$9),1,0)) -> 0 | CC41: =IF($C41="","",IF(TRIM('Input| JGN Mapping'!$J41)=TRIM('Input| Projects'!CC$9),1,0)) -> 0 | CD41: =IF($C41="","",IF(TRIM('Input| JGN Mapping'!$J41)=TRIM('Input| Projects'!CD$9),1,0)) -> 0 | CE41: =IF($C41="","",IF(TRIM('Input| JGN Mapping'!$J41)=TRIM('Input| Projects'!CE$9),1,0)) -> 0 | CF41: =IF($C41="","",IF(TRIM('Input| JGN Mapping'!$J41)=TRIM('Input| Projects'!CF$9),1,0)) -> 0 | CG41: =IF($C41="","",IF(TRIM('Input| JGN Mapping'!$J41)=TRIM('Input| Projects'!CG$9),1,0)) -> 0 | CH41: =IF($C41="","",IF(TRIM('Input| JGN Mapping'!$J41)=TRIM('Input| Projects'!CH$9),1,0)) -> 0 | CI41: =IF($C41="","",IF(TRIM('Input| JGN Mapping'!$J41)=TRIM('Input| Projects'!CI$9),1,0)) -> 0 | CJ41: =IF($C41="","",IF(TRIM('Input| JGN Mapping'!$J41)=TRIM('Input| Projects'!CJ$9),1,0)) -> 0 | CK41: =IF($C41="","",IF(TRIM('Input| JGN Mapping'!$J41)=TRIM('Input| Projects'!CK$9),1,0)) -> 0 | CL41: =IF($C41="","",IF(TRIM('Input| JGN Mapping'!$J41)=TRIM('Input| Projects'!CL$9),1,0)) -> 0 | CM41: =IF($C41="","",IF(TRIM('Input| JGN Mapping'!$J41)=TRIM('Input| Projects'!CM$9),1,0)) -> 0 | CN41: =IF($C41="","",IF(TRIM('Input| JGN Mapping'!$J41)=TRIM('Input| Projects'!CN$9),1,0)) -> 0 | CO41: =IF($C41="","",IF(TRIM('Input| JGN Mapping'!$J41)=TRIM('Input| Projects'!CO$9),1,0)) -> 0 | CP41: =_xlfn.SWITCH(TRUE, LEN(C41)<1,0, (SUM(AR41:CO41)<>1)*1) -> 0
B42: 33 | C42: Replacement of Defective Mercury/Metretek Equipment | D42: R-RAG | F42: Meter replacement | G42: Refer to sheet 'Input|JGN mapping | I42: 241.3453201 | J42: 241.3453201 | K42: 241.3453201 | L42: 241.3453201 | M42: 241.3453201 | N42: 241.3453201 | O42: 241.3453201 | Q42: 0 | R42: 0 | S42: 0 | T42: 0 | U42: 0 | V42: 0 | W42: 0 | Y42: 0.3589113499 | Z42: 0.6410886501 | AA42: 0 | AC42: Yes | AD42: No | AI42: 1 | AR42: =IF($C42="","",IF(TRIM('Input| JGN Mapping'!$J42)=TRIM('Input| Projects'!AR$9),1,0)) -> 0 | AS42: =IF($C42="","",IF(TRIM('Input| JGN Mapping'!$J42)=TRIM('Input| Projects'!AS$9),1,0)) -> 0 | AT42: =IF($C42="","",IF(TRIM('Input| JGN Mapping'!$J42)=TRIM('Input| Projects'!AT$9),1,0)) -> 0 | AU42: =IF($C42="","",IF(TRIM('Input| JGN Mapping'!$J42)=TRIM('Input| Projects'!AU$9),1,0)) -> 1 | AV42: =IF($C42="","",IF(TRIM('Input| JGN Mapping'!$J42)=TRIM('Input| Projects'!AV$9),1,0)) -> 0 | AW42: =IF($C42="","",IF(TRIM('Input| JGN Mapping'!$J42)=TRIM('Input| Projects'!AW$9),1,0)) -> 0 | AX42: =IF($C42="","",IF(TRIM('Input| JGN Mapping'!$J42)=TRIM('Input| Projects'!AX$9),1,0)) -> 0 | AY42: =IF($C42="","",IF(TRIM('Input| JGN Mapping'!$J42)=TRIM('Input| Projects'!AY$9),1,0)) -> 0 | AZ42: =IF($C42="","",IF(TRIM('Input| JGN Mapping'!$J42)=TRIM('Input| Projects'!AZ$9),1,0)) -> 0 | BA42: =IF($C42="","",IF(TRIM('Input| JGN Mapping'!$J42)=TRIM('Input| Projects'!BA$9),1,0)) -> 0 | BB42: =IF($C42="","",IF(TRIM('Input| JGN Mapping'!$J42)=TRIM('Input| Projects'!BB$9),1,0)) -> 0 | BC42: =IF($C42="","",IF(TRIM('Input| JGN Mapping'!$J42)=TRIM('Input| Projects'!BC$9),1,0)) -> 0 | BD42: =IF($C42="","",IF(TRIM('Input| JGN Mapping'!$J42)=TRIM('Input| Projects'!BD$9),1,0)) -> 0 | BE42: =IF($C42="","",IF(TRIM('Input| JGN Mapping'!$J42)=TRIM('Input| Projects'!BE$9),1,0)) -> 0 | BF42: =IF($C42="","",IF(TRIM('Input| JGN Mapping'!$J42)=TRIM('Input| Projects'!BF$9),1,0)) -> 0 | BG42: =IF($C42="","",IF(TRIM('Input| JGN Mapping'!$J42)=TRIM('Input| Projects'!BG$9),1,0)) -> 0 | BH42: =IF($C42="","",IF(TRIM('Input| JGN Mapping'!$J42)=TRIM('Input| Projects'!BH$9),1,0)) -> 0 | BI42: =IF($C42="","",IF(TRIM('Input| JGN Mapping'!$J42)=TRIM('Input| Projects'!BI$9),1,0)) -> 0 | BJ42: =IF($C42="","",IF(TRIM('Input| JGN Mapping'!$J42)=TRIM('Input| Projects'!BJ$9),1,0)) -> 0 | BK42: =IF($C42="","",IF(TRIM('Input| JGN Mapping'!$J42)=TRIM('Input| Projects'!BK$9),1,0)) -> 0 | BL42: =IF($C42="","",IF(TRIM('Input| JGN Mapping'!$J42)=TRIM('Input| Projects'!BL$9),1,0)) -> 0 | BM42: =IF($C42="","",IF(TRIM('Input| JGN Mapping'!$J42)=TRIM('Input| Projects'!BM$9),1,0)) -> 0 | BN42: =IF($C42="","",IF(TRIM('Input| JGN Mapping'!$J42)=TRIM('Input| Projects'!BN$9),1,0)) -> 0 | BO42: =IF($C42="","",IF(TRIM('Input| JGN Mapping'!$J42)=TRIM('Input| Projects'!BO$9),1,0)) -> 0 | BP42: =IF($C42="","",IF(TRIM('Input| JGN Mapping'!$J42)=TRIM('Input| Projects'!BP$9),1,0)) -> 0 | BQ42: =IF($C42="","",IF(TRIM('Input| JGN Mapping'!$J42)=TRIM('Input| Projects'!BQ$9),1,0)) -> 0 | BR42: =IF($C42="","",IF(TRIM('Input| JGN Mapping'!$J42)=TRIM('Input| Projects'!BR$9),1,0)) -> 0 | BS42: =IF($C42="","",IF(TRIM('Input| JGN Mapping'!$J42)=TRIM('Input| Projects'!BS$9),1,0)) -> 0 | BT42: =IF($C42="","",IF(TRIM('Input| JGN Mapping'!$J42)=TRIM('Input| Projects'!BT$9),1,0)) -> 0 | BU42: =IF($C42="","",IF(TRIM('Input| JGN Mapping'!$J42)=TRIM('Input| Projects'!BU$9),1,0)) -> 0 | BV42: =IF($C42="","",IF(TRIM('Input| JGN Mapping'!$J42)=TRIM('Input| Projects'!BV$9),1,0)) -> 0 | BW42: =IF($C42="","",IF(TRIM('Input| JGN Mapping'!$J42)=TRIM('Input| Projects'!BW$9),1,0)) -> 0 | BX42: =IF($C42="","",IF(TRIM('Input| JGN Mapping'!$J42)=TRIM('Input| Projects'!BX$9),1,0)) -> 0 | BY42: =IF($C42="","",IF(TRIM('Input| JGN Mapping'!$J42)=TRIM('Input| Projects'!BY$9),1,0)) -> 0 | BZ42: =IF($C42="","",IF(TRIM('Input| JGN Mapping'!$J42)=TRIM('Input| Projects'!BZ$9),1,0)) -> 0 | CA42: =IF($C42="","",IF(TRIM('Input| JGN Mapping'!$J42)=TRIM('Input| Projects'!CA$9),1,0)) -> 0 | CB42: =IF($C42="","",IF(TRIM('Input| JGN Mapping'!$J42)=TRIM('Input| Projects'!CB$9),1,0)) -> 0 | CC42: =IF($C42="","",IF(TRIM('Input| JGN Mapping'!$J42)=TRIM('Input| Projects'!CC$9),1,0)) -> 0 | CD42: =IF($C42="","",IF(TRIM('Input| JGN Mapping'!$J42)=TRIM('Input| Projects'!CD$9),1,0)) -> 0 | CE42: =IF($C42="","",IF(TRIM('Input| JGN Mapping'!$J42)=TRIM('Input| Projects'!CE$9),1,0)) -> 0 | CF42: =IF($C42="","",IF(TRIM('Input| JGN Mapping'!$J42)=TRIM('Input| Projects'!CF$9),1,0)) -> 0 | CG42: =IF($C42="","",IF(TRIM('Input| JGN Mapping'!$J42)=TRIM('Input| Projects'!CG$9),1,0)) -> 0 | CH42: =IF($C42="","",IF(TRIM('Input| JGN Mapping'!$J42)=TRIM('Input| Projects'!CH$9),1,0)) -> 0 | CI42: =IF($C42="","",IF(TRIM('Input| JGN Mapping'!$J42)=TRIM('Input| Projects'!CI$9),1,0)) -> 0 | CJ42: =IF($C42="","",IF(TRIM('Input| JGN Mapping'!$J42)=TRIM('Input| Projects'!CJ$9),1,0)) -> 0 | CK42: =IF($C42="","",IF(TRIM('Input| JGN Mapping'!$J42)=TRIM('Input| Projects'!CK$9),1,0)) -> 0 | CL42: =IF($C42="","",IF(TRIM('Input| JGN Mapping'!$J42)=TRIM('Input| Projects'!CL$9),1,0)) -> 0 | CM42: =IF($C42="","",IF(TRIM('Input| JGN Mapping'!$J42)=TRIM('Input| Projects'!CM$9),1,0)) -> 0 | CN42: =IF($C42="","",IF(TRIM('Input| JGN Mapping'!$J42)=TRIM('Input| Projects'!CN$9),1,0)) -> 0 | CO42: =IF($C42="","",IF(TRIM('Input| JGN Mapping'!$J42)=TRIM('Input| Projects'!CO$9),1,0)) -> 0 | CP42: =_xlfn.SWITCH(TRUE, LEN(C42)<1,0, (SUM(AR42:CO42)<>1)*1) -> 0
B43: 34 | C43: Replacement of Defective Meter Data Loggers | D43: R-RAI | F43: Meter replacement | G43: Refer to sheet 'Input|JGN mapping | I43: 606.1709784 | J43: 606.1709784 | K43: 606.1709784 | L43: 606.1709784 | M43: 606.1709784 | N43: 606.1709784 | O43: 606.1709784 | Q43: 0 | R43: 0 | S43: 0 | T43: 0 | U43: 0 | V43: 0 | W43: 0 | Y43: 0.3652370573 | Z43: 0.6347629427 | AA43: 0 | AC43: Yes | AD43: No | AI43: 1 | AR43: =IF($C43="","",IF(TRIM('Input| JGN Mapping'!$J43)=TRIM('Input| Projects'!AR$9),1,0)) -> 0 | AS43: =IF($C43="","",IF(TRIM('Input| JGN Mapping'!$J43)=TRIM('Input| Projects'!AS$9),1,0)) -> 0 | AT43: =IF($C43="","",IF(TRIM('Input| JGN Mapping'!$J43)=TRIM('Input| Projects'!AT$9),1,0)) -> 0 | AU43: =IF($C43="","",IF(TRIM('Input| JGN Mapping'!$J43)=TRIM('Input| Projects'!AU$9),1,0)) -> 0 | AV43: =IF($C43="","",IF(TRIM('Input| JGN Mapping'!$J43)=TRIM('Input| Projects'!AV$9),1,0)) -> 0 | AW43: =IF($C43="","",IF(TRIM('Input| JGN Mapping'!$J43)=TRIM('Input| Projects'!AW$9),1,0)) -> 0 | AX43: =IF($C43="","",IF(TRIM('Input| JGN Mapping'!$J43)=TRIM('Input| Projects'!AX$9),1,0)) -> 0 | AY43: =IF($C43="","",IF(TRIM('Input| JGN Mapping'!$J43)=TRIM('Input| Projects'!AY$9),1,0)) -> 0 | AZ43: =IF($C43="","",IF(TRIM('Input| JGN Mapping'!$J43)=TRIM('Input| Projects'!AZ$9),1,0)) -> 0 | BA43: =IF($C43="","",IF(TRIM('Input| JGN Mapping'!$J43)=TRIM('Input| Projects'!BA$9),1,0)) -> 1 | BB43: =IF($C43="","",IF(TRIM('Input| JGN Mapping'!$J43)=TRIM('Input| Projects'!BB$9),1,0)) -> 0 | BC43: =IF($C43="","",IF(TRIM('Input| JGN Mapping'!$J43)=TRIM('Input| Projects'!BC$9),1,0)) -> 0 | BD43: =IF($C43="","",IF(TRIM('Input| JGN Mapping'!$J43)=TRIM('Input| Projects'!BD$9),1,0)) -> 0 | BE43: =IF($C43="","",IF(TRIM('Input| JGN Mapping'!$J43)=TRIM('Input| Projects'!BE$9),1,0)) -> 0 | BF43: =IF($C43="","",IF(TRIM('Input| JGN Mapping'!$J43)=TRIM('Input| Projects'!BF$9),1,0)) -> 0 | BG43: =IF($C43="","",IF(TRIM('Input| JGN Mapping'!$J43)=TRIM('Input| Projects'!BG$9),1,0)) -> 0 | BH43: =IF($C43="","",IF(TRIM('Input| JGN Mapping'!$J43)=TRIM('Input| Projects'!BH$9),1,0)) -> 0 | BI43: =IF($C43="","",IF(TRIM('Input| JGN Mapping'!$J43)=TRIM('Input| Projects'!BI$9),1,0)) -> 0 | BJ43: =IF($C43="","",IF(TRIM('Input| JGN Mapping'!$J43)=TRIM('Input| Projects'!BJ$9),1,0)) -> 0 | BK43: =IF($C43="","",IF(TRIM('Input| JGN Mapping'!$J43)=TRIM('Input| Projects'!BK$9),1,0)) -> 0 | BL43: =IF($C43="","",IF(TRIM('Input| JGN Mapping'!$J43)=TRIM('Input| Projects'!BL$9),1,0)) -> 0 | BM43: =IF($C43="","",IF(TRIM('Input| JGN Mapping'!$J43)=TRIM('Input| Projects'!BM$9),1,0)) -> 0 | BN43: =IF($C43="","",IF(TRIM('Input| JGN Mapping'!$J43)=TRIM('Input| Projects'!BN$9),1,0)) -> 0 | BO43: =IF($C43="","",IF(TRIM('Input| JGN Mapping'!$J43)=TRIM('Input| Projects'!BO$9),1,0)) -> 0 | BP43: =IF($C43="","",IF(TRIM('Input| JGN Mapping'!$J43)=TRIM('Input| Projects'!BP$9),1,0)) -> 0 | BQ43: =IF($C43="","",IF(TRIM('Input| JGN Mapping'!$J43)=TRIM('Input| Projects'!BQ$9),1,0)) -> 0 | BR43: =IF($C43="","",IF(TRIM('Input| JGN Mapping'!$J43)=TRIM('Input| Projects'!BR$9),1,0)) -> 0 | BS43: =IF($C43="","",IF(TRIM('Input| JGN Mapping'!$J43)=TRIM('Input| Projects'!BS$9),1,0)) -> 0 | BT43: =IF($C43="","",IF(TRIM('Input| JGN Mapping'!$J43)=TRIM('Input| Projects'!BT$9),1,0)) -> 0 | BU43: =IF($C43="","",IF(TRIM('Input| JGN Mapping'!$J43)=TRIM('Input| Projects'!BU$9),1,0)) -> 0 | BV43: =IF($C43="","",IF(TRIM('Input| JGN Mapping'!$J43)=TRIM('Input| Projects'!BV$9),1,0)) -> 0 | BW43: =IF($C43="","",IF(TRIM('Input| JGN Mapping'!$J43)=TRIM('Input| Projects'!BW$9),1,0)) -> 0 | BX43: =IF($C43="","",IF(TRIM('Input| JGN Mapping'!$J43)=TRIM('Input| Projects'!BX$9),1,0)) -> 0 | BY43: =IF($C43="","",IF(TRIM('Input| JGN Mapping'!$J43)=TRIM('Input| Projects'!BY$9),1,0)) -> 0 | BZ43: =IF($C43="","",IF(TRIM('Input| JGN Mapping'!$J43)=TRIM('Input| Projects'!BZ$9),1,0)) -> 0 | CA43: =IF($C43="","",IF(TRIM('Input| JGN Mapping'!$J43)=TRIM('Input| Projects'!CA$9),1,0)) -> 0 | CB43: =IF($C43="","",IF(TRIM('Input| JGN Mapping'!$J43)=TRIM('Input| Projects'!CB$9),1,0)) -> 0 | CC43: =IF($C43="","",IF(TRIM('Input| JGN Mapping'!$J43)=TRIM('Input| Projects'!CC$9),1,0)) -> 0 | CD43: =IF($C43="","",IF(TRIM('Input| JGN Mapping'!$J43)=TRIM('Input| Projects'!CD$9),1,0)) -> 0 | CE43: =IF($C43="","",IF(TRIM('Input| JGN Mapping'!$J43)=TRIM('Input| Projects'!CE$9),1,0)) -> 0 | CF43: =IF($C43="","",IF(TRIM('Input| JGN Mapping'!$J43)=TRIM('Input| Projects'!CF$9),1,0)) -> 0 | CG43: =IF($C43="","",IF(TRIM('Input| JGN Mapping'!$J43)=TRIM('Input| Projects'!CG$9),1,0)) -> 0 | CH43: =IF($C43="","",IF(TRIM('Input| JGN Mapping'!$J43)=TRIM('Input| Projects'!CH$9),1,0)) -> 0 | CI43: =IF($C43="","",IF(TRIM('Input| JGN Mapping'!$J43)=TRIM('Input| Projects'!CI$9),1,0)) -> 0 | CJ43: =IF($C43="","",IF(TRIM('Input| JGN Mapping'!$J43)=TRIM('Input| Projects'!CJ$9),1,0)) -> 0 | CK43: =IF($C43="","",IF(TRIM('Input| JGN Mapping'!$J43)=TRIM('Input| Projects'!CK$9),1,0)) -> 0 | CL43: =IF($C43="","",IF(TRIM('Input| JGN Mapping'!$J43)=TRIM('Input| Projects'!CL$9),1,0)) -> 0 | CM43: =IF($C43="","",IF(TRIM('Input| JGN Mapping'!$J43)=TRIM('Input| Projects'!CM$9),1,0)) -> 0 | CN43: =IF($C43="","",IF(TRIM('Input| JGN Mapping'!$J43)=TRIM('Input| Projects'!CN$9),1,0)) -> 0 | CO43: =IF($C43="","",IF(TRIM('Input| JGN Mapping'!$J43)=TRIM('Input| Projects'!CO$9),1,0)) -> 0 | CP43: =_xlfn.SWITCH(TRUE, LEN(C43)<1,0, (SUM(AR43:CO43)<>1)*1) -> 0
B44: 35 | C44: Replacement of Defective Regulators | D44: R-RAJ | F44: Meter replacement | G44: Refer to sheet 'Input|JGN mapping | I44: 872.1911916 | J44: 872.1911916 | K44: 872.1911916 | L44: 872.1911916 | M44: 872.1911916 | N44: 872.1911916 | O44: 872.1911916 | Q44: 0 | R44: 0 | S44: 0 | T44: 0 | U44: 0 | V44: 0 | W44: 0 | Y44: 0.7744929129 | Z44: 0.2255070871 | AA44: 0 | AC44: Yes | AD44: No | AI44: 1 | AR44: =IF($C44="","",IF(TRIM('Input| JGN Mapping'!$J44)=TRIM('Input| Projects'!AR$9),1,0)) -> 0 | AS44: =IF($C44="","",IF(TRIM('Input| JGN Mapping'!$J44)=TRIM('Input| Projects'!AS$9),1,0)) -> 0 | AT44: =IF($C44="","",IF(TRIM('Input| JGN Mapping'!$J44)=TRIM('Input| Projects'!AT$9),1,0)) -> 0 | AU44: =IF($C44="","",IF(TRIM('Input| JGN Mapping'!$J44)=TRIM('Input| Projects'!AU$9),1,0)) -> 0 | AV44: =IF($C44="","",IF(TRIM('Input| JGN Mapping'!$J44)=TRIM('Input| Projects'!AV$9),1,0)) -> 0 | AW44: =IF($C44="","",IF(TRIM('Input| JGN Mapping'!$J44)=TRIM('Input| Projects'!AW$9),1,0)) -> 0 | AX44: =IF($C44="","",IF(TRIM('Input| JGN Mapping'!$J44)=TRIM('Input| Projects'!AX$9),1,0)) -> 0 | AY44: =IF($C44="","",IF(TRIM('Input| JGN Mapping'!$J44)=TRIM('Input| Projects'!AY$9),1,0)) -> 0 | AZ44: =IF($C44="","",IF(TRIM('Input| JGN Mapping'!$J44)=TRIM('Input| Projects'!AZ$9),1,0)) -> 0 | BA44: =IF($C44="","",IF(TRIM('Input| JGN Mapping'!$J44)=TRIM('Input| Projects'!BA$9),1,0)) -> 0 | BB44: =IF($C44="","",IF(TRIM('Input| JGN Mapping'!$J44)=TRIM('Input| Projects'!BB$9),1,0)) -> 0 | BC44: =IF($C44="","",IF(TRIM('Input| JGN Mapping'!$J44)=TRIM('Input| Projects'!BC$9),1,0)) -> 1 | BD44: =IF($C44="","",IF(TRIM('Input| JGN Mapping'!$J44)=TRIM('Input| Projects'!BD$9),1,0)) -> 0 | BE44: =IF($C44="","",IF(TRIM('Input| JGN Mapping'!$J44)=TRIM('Input| Projects'!BE$9),1,0)) -> 0 | BF44: =IF($C44="","",IF(TRIM('Input| JGN Mapping'!$J44)=TRIM('Input| Projects'!BF$9),1,0)) -> 0 | BG44: =IF($C44="","",IF(TRIM('Input| JGN Mapping'!$J44)=TRIM('Input| Projects'!BG$9),1,0)) -> 0 | BH44: =IF($C44="","",IF(TRIM('Input| JGN Mapping'!$J44)=TRIM('Input| Projects'!BH$9),1,0)) -> 0 | BI44: =IF($C44="","",IF(TRIM('Input| JGN Mapping'!$J44)=TRIM('Input| Projects'!BI$9),1,0)) -> 0 | BJ44: =IF($C44="","",IF(TRIM('Input| JGN Mapping'!$J44)=TRIM('Input| Projects'!BJ$9),1,0)) -> 0 | BK44: =IF($C44="","",IF(TRIM('Input| JGN Mapping'!$J44)=TRIM('Input| Projects'!BK$9),1,0)) -> 0 | BL44: =IF($C44="","",IF(TRIM('Input| JGN Mapping'!$J44)=TRIM('Input| Projects'!BL$9),1,0)) -> 0 | BM44: =IF($C44="","",IF(TRIM('Input| JGN Mapping'!$J44)=TRIM('Input| Projects'!BM$9),1,0)) -> 0 | BN44: =IF($C44="","",IF(TRIM('Input| JGN Mapping'!$J44)=TRIM('Input| Projects'!BN$9),1,0)) -> 0 | BO44: =IF($C44="","",IF(TRIM('Input| JGN Mapping'!$J44)=TRIM('Input| Projects'!BO$9),1,0)) -> 0 | BP44: =IF($C44="","",IF(TRIM('Input| JGN Mapping'!$J44)=TRIM('Input| Projects'!BP$9),1,0)) -> 0 | BQ44: =IF($C44="","",IF(TRIM('Input| JGN Mapping'!$J44)=TRIM('Input| Projects'!BQ$9),1,0)) -> 0 | BR44: =IF($C44="","",IF(TRIM('Input| JGN Mapping'!$J44)=TRIM('Input| Projects'!BR$9),1,0)) -> 0 | BS44: =IF($C44="","",IF(TRIM('Input| JGN Mapping'!$J44)=TRIM('Input| Projects'!BS$9),1,0)) -> 0 | BT44: =IF($C44="","",IF(TRIM('Input| JGN Mapping'!$J44)=TRIM('Input| Projects'!BT$9),1,0)) -> 0 | BU44: =IF($C44="","",IF(TRIM('Input| JGN Mapping'!$J44)=TRIM('Input| Projects'!BU$9),1,0)) -> 0 | BV44: =IF($C44="","",IF(TRIM('Input| JGN Mapping'!$J44)=TRIM('Input| Projects'!BV$9),1,0)) -> 0 | BW44: =IF($C44="","",IF(TRIM('Input| JGN Mapping'!$J44)=TRIM('Input| Projects'!BW$9),1,0)) -> 0 | BX44: =IF($C44="","",IF(TRIM('Input| JGN Mapping'!$J44)=TRIM('Input| Projects'!BX$9),1,0)) -> 0 | BY44: =IF($C44="","",IF(TRIM('Input| JGN Mapping'!$J44)=TRIM('Input| Projects'!BY$9),1,0)) -> 0 | BZ44: =IF($C44="","",IF(TRIM('Input| JGN Mapping'!$J44)=TRIM('Input| Projects'!BZ$9),1,0)) -> 0 | CA44: =IF($C44="","",IF(TRIM('Input| JGN Mapping'!$J44)=TRIM('Input| Projects'!CA$9),1,0)) -> 0 | CB44: =IF($C44="","",IF(TRIM('Input| JGN Mapping'!$J44)=TRIM('Input| Projects'!CB$9),1,0)) -> 0 | CC44: =IF($C44="","",IF(TRIM('Input| JGN Mapping'!$J44)=TRIM('Input| Projects'!CC$9),1,0)) -> 0 | CD44: =IF($C44="","",IF(TRIM('Input| JGN Mapping'!$J44)=TRIM('Input| Projects'!CD$9),1,0)) -> 0 | CE44: =IF($C44="","",IF(TRIM('Input| JGN Mapping'!$J44)=TRIM('Input| Projects'!CE$9),1,0)) -> 0 | CF44: =IF($C44="","",IF(TRIM('Input| JGN Mapping'!$J44)=TRIM('Input| Projects'!CF$9),1,0)) -> 0 | CG44: =IF($C44="","",IF(TRIM('Input| JGN Mapping'!$J44)=TRIM('Input| Projects'!CG$9),1,0)) -> 0 | CH44: =IF($C44="","",IF(TRIM('Input| JGN Mapping'!$J44)=TRIM('Input| Projects'!CH$9),1,0)) -> 0 | CI44: =IF($C44="","",IF(TRIM('Input| JGN Mapping'!$J44)=TRIM('Input| Projects'!CI$9),1,0)) -> 0 | CJ44: =IF($C44="","",IF(TRIM('Input| JGN Mapping'!$J44)=TRIM('Input| Projects'!CJ$9),1,0)) -> 0 | CK44: =IF($C44="","",IF(TRIM('Input| JGN Mapping'!$J44)=TRIM('Input| Projects'!CK$9),1,0)) -> 0 | CL44: =IF($C44="","",IF(TRIM('Input| JGN Mapping'!$J44)=TRIM('Input| Projects'!CL$9),1,0)) -> 0 | CM44: =IF($C44="","",IF(TRIM('Input| JGN Mapping'!$J44)=TRIM('Input| Projects'!CM$9),1,0)) -> 0 | CN44: =IF($C44="","",IF(TRIM('Input| JGN Mapping'!$J44)=TRIM('Input| Projects'!CN$9),1,0)) -> 0 | CO44: =IF($C44="","",IF(TRIM('Input| JGN Mapping'!$J44)=TRIM('Input| Projects'!CO$9),1,0)) -> 0 | CP44: =_xlfn.SWITCH(TRUE, LEN(C44)<1,0, (SUM(AR44:CO44)<>1)*1) -> 0
B45: 36 | C45: End of Life Testing & Replacement of I&C Rotary Gas Meter Sets incl FEED RY-First Half | D45: R-RAM | F45: Meter replacement | G45: Refer to sheet 'Input|JGN mapping | I45: 0 | J45: 77.32177431 | K45: 122.7651157 | L45: 215.2092266 | M45: 729.2518645 | N45: 669.1303442 | O45: 1968.402757 | Q45: 0 | R45: 0 | S45: 0 | T45: 0 | U45: 0 | V45: 0 | W45: 0 | Y45: 0.2865015059 | Z45: 0.7134984941 | AA45: 0 | AC45: Yes | AD45: No | AI45: 1 | AR45: =IF($C45="","",IF(TRIM('Input| JGN Mapping'!$J45)=TRIM('Input| Projects'!AR$9),1,0)) -> 0 | AS45: =IF($C45="","",IF(TRIM('Input| JGN Mapping'!$J45)=TRIM('Input| Projects'!AS$9),1,0)) -> 0 | AT45: =IF($C45="","",IF(TRIM('Input| JGN Mapping'!$J45)=TRIM('Input| Projects'!AT$9),1,0)) -> 0 | AU45: =IF($C45="","",IF(TRIM('Input| JGN Mapping'!$J45)=TRIM('Input| Projects'!AU$9),1,0)) -> 0 | AV45: =IF($C45="","",IF(TRIM('Input| JGN Mapping'!$J45)=TRIM('Input| Projects'!AV$9),1,0)) -> 0 | AW45: =IF($C45="","",IF(TRIM('Input| JGN Mapping'!$J45)=TRIM('Input| Projects'!AW$9),1,0)) -> 0 | AX45: =IF($C45="","",IF(TRIM('Input| JGN Mapping'!$J45)=TRIM('Input| Projects'!AX$9),1,0)) -> 0 | AY45: =IF($C45="","",IF(TRIM('Input| JGN Mapping'!$J45)=TRIM('Input| Projects'!AY$9),1,0)) -> 0 | AZ45: =IF($C45="","",IF(TRIM('Input| JGN Mapping'!$J45)=TRIM('Input| Projects'!AZ$9),1,0)) -> 0 | BA45: =IF($C45="","",IF(TRIM('Input| JGN Mapping'!$J45)=TRIM('Input| Projects'!BA$9),1,0)) -> 0 | BB45: =IF($C45="","",IF(TRIM('Input| JGN Mapping'!$J45)=TRIM('Input| Projects'!BB$9),1,0)) -> 0 | BC45: =IF($C45="","",IF(TRIM('Input| JGN Mapping'!$J45)=TRIM('Input| Projects'!BC$9),1,0)) -> 1 | BD45: =IF($C45="","",IF(TRIM('Input| JGN Mapping'!$J45)=TRIM('Input| Projects'!BD$9),1,0)) -> 0 | BE45: =IF($C45="","",IF(TRIM('Input| JGN Mapping'!$J45)=TRIM('Input| Projects'!BE$9),1,0)) -> 0 | BF45: =IF($C45="","",IF(TRIM('Input| JGN Mapping'!$J45)=TRIM('Input| Projects'!BF$9),1,0)) -> 0 | BG45: =IF($C45="","",IF(TRIM('Input| JGN Mapping'!$J45)=TRIM('Input| Projects'!BG$9),1,0)) -> 0 | BH45: =IF($C45="","",IF(TRIM('Input| JGN Mapping'!$J45)=TRIM('Input| Projects'!BH$9),1,0)) -> 0 | BI45: =IF($C45="","",IF(TRIM('Input| JGN Mapping'!$J45)=TRIM('Input| Projects'!BI$9),1,0)) -> 0 | BJ45: =IF($C45="","",IF(TRIM('Input| JGN Mapping'!$J45)=TRIM('Input| Projects'!BJ$9),1,0)) -> 0 | BK45: =IF($C45="","",IF(TRIM('Input| JGN Mapping'!$J45)=TRIM('Input| Projects'!BK$9),1,0)) -> 0 | BL45: =IF($C45="","",IF(TRIM('Input| JGN Mapping'!$J45)=TRIM('Input| Projects'!BL$9),1,0)) -> 0 | BM45: =IF($C45="","",IF(TRIM('Input| JGN Mapping'!$J45)=TRIM('Input| Projects'!BM$9),1,0)) -> 0 | BN45: =IF($C45="","",IF(TRIM('Input| JGN Mapping'!$J45)=TRIM('Input| Projects'!BN$9),1,0)) -> 0 | BO45: =IF($C45="","",IF(TRIM('Input| JGN Mapping'!$J45)=TRIM('Input| Projects'!BO$9),1,0)) -> 0 | BP45: =IF($C45="","",IF(TRIM('Input| JGN Mapping'!$J45)=TRIM('Input| Projects'!BP$9),1,0)) -> 0 | BQ45: =IF($C45="","",IF(TRIM('Input| JGN Mapping'!$J45)=TRIM('Input| Projects'!BQ$9),1,0)) -> 0 | BR45: =IF($C45="","",IF(TRIM('Input| JGN Mapping'!$J45)=TRIM('Input| Projects'!BR$9),1,0)) -> 0 | BS45: =IF($C45="","",IF(TRIM('Input| JGN Mapping'!$J45)=TRIM('Input| Projects'!BS$9),1,0)) -> 0 | BT45: =IF($C45="","",IF(TRIM('Input| JGN Mapping'!$J45)=TRIM('Input| Projects'!BT$9),1,0)) -> 0 | BU45: =IF($C45="","",IF(TRIM('Input| JGN Mapping'!$J45)=TRIM('Input| Projects'!BU$9),1,0)) -> 0 | BV45: =IF($C45="","",IF(TRIM('Input| JGN Mapping'!$J45)=TRIM('Input| Projects'!BV$9),1,0)) -> 0 | BW45: =IF($C45="","",IF(TRIM('Input| JGN Mapping'!$J45)=TRIM('Input| Projects'!BW$9),1,0)) -> 0 | BX45: =IF($C45="","",IF(TRIM('Input| JGN Mapping'!$J45)=TRIM('Input| Projects'!BX$9),1,0)) -> 0 | BY45: =IF($C45="","",IF(TRIM('Input| JGN Mapping'!$J45)=TRIM('Input| Projects'!BY$9),1,0)) -> 0 | BZ45: =IF($C45="","",IF(TRIM('Input| JGN Mapping'!$J45)=TRIM('Input| Projects'!BZ$9),1,0)) -> 0 | CA45: =IF($C45="","",IF(TRIM('Input| JGN Mapping'!$J45)=TRIM('Input| Projects'!CA$9),1,0)) -> 0 | CB45: =IF($C45="","",IF(TRIM('Input| JGN Mapping'!$J45)=TRIM('Input| Projects'!CB$9),1,0)) -> 0 | CC45: =IF($C45="","",IF(TRIM('Input| JGN Mapping'!$J45)=TRIM('Input| Projects'!CC$9),1,0)) -> 0 | CD45: =IF($C45="","",IF(TRIM('Input| JGN Mapping'!$J45)=TRIM('Input| Projects'!CD$9),1,0)) -> 0 | CE45: =IF($C45="","",IF(TRIM('Input| JGN Mapping'!$J45)=TRIM('Input| Projects'!CE$9),1,0)) -> 0 | CF45: =IF($C45="","",IF(TRIM('Input| JGN Mapping'!$J45)=TRIM('Input| Projects'!CF$9),1,0)) -> 0 | CG45: =IF($C45="","",IF(TRIM('Input| JGN Mapping'!$J45)=TRIM('Input| Projects'!CG$9),1,0)) -> 0 | CH45: =IF($C45="","",IF(TRIM('Input| JGN Mapping'!$J45)=TRIM('Input| Projects'!CH$9),1,0)) -> 0 | CI45: =IF($C45="","",IF(TRIM('Input| JGN Mapping'!$J45)=TRIM('Input| Projects'!CI$9),1,0)) -> 0 | CJ45: =IF($C45="","",IF(TRIM('Input| JGN Mapping'!$J45)=TRIM('Input| Projects'!CJ$9),1,0)) -> 0 | CK45: =IF($C45="","",IF(TRIM('Input| JGN Mapping'!$J45)=TRIM('Input| Projects'!CK$9),1,0)) -> 0 | CL45: =IF($C45="","",IF(TRIM('Input| JGN Mapping'!$J45)=TRIM('Input| Projects'!CL$9),1,0)) -> 0 | CM45: =IF($C45="","",IF(TRIM('Input| JGN Mapping'!$J45)=TRIM('Input| Projects'!CM$9),1,0)) -> 0 | CN45: =IF($C45="","",IF(TRIM('Input| JGN Mapping'!$J45)=TRIM('Input| Projects'!CN$9),1,0)) -> 0 | CO45: =IF($C45="","",IF(TRIM('Input| JGN Mapping'!$J45)=TRIM('Input| Projects'!CO$9),1,0)) -> 0 | CP45: =_xlfn.SWITCH(TRUE, LEN(C45)<1,0, (SUM(AR45:CO45)<>1)*1) -> 0
B46: 37 | C46: End of Life Testing & Replacement of I&C Rotary Gas Meter Sets incl FEED RY-Second Half | D46: R-RAM | F46: Meter replacement | G46: Refer to sheet 'Input|JGN mapping | I46: 77.32177431 | J46: 122.7651157 | K46: 215.2092266 | L46: 729.2518645 | M46: 669.1303442 | N46: 1968.402757 | O46: 901.8405579 | Q46: 0 | R46: 0 | S46: 0 | T46: 0 | U46: 0 | V46: 0 | W46: 0 | Y46: 0.2865015059 | Z46: 0.7134984941 | AA46: 0 | AC46: Yes | AD46: No | AI46: 1 | AR46: =IF($C46="","",IF(TRIM('Input| JGN Mapping'!$J46)=TRIM('Input| Projects'!AR$9),1,0)) -> 0 | AS46: =IF($C46="","",IF(TRIM('Input| JGN Mapping'!$J46)=TRIM('Input| Projects'!AS$9),1,0)) -> 0 | AT46: =IF($C46="","",IF(TRIM('Input| JGN Mapping'!$J46)=TRIM('Input| Projects'!AT$9),1,0)) -> 0 | AU46: =IF($C46="","",IF(TRIM('Input| JGN Mapping'!$J46)=TRIM('Input| Projects'!AU$9),1,0)) -> 0 | AV46: =IF($C46="","",IF(TRIM('Input| JGN Mapping'!$J46)=TRIM('Input| Projects'!AV$9),1,0)) -> 0 | AW46: =IF($C46="","",IF(TRIM('Input| JGN Mapping'!$J46)=TRIM('Input| Projects'!AW$9),1,0)) -> 0 | AX46: =IF($C46="","",IF(TRIM('Input| JGN Mapping'!$J46)=TRIM('Input| Projects'!AX$9),1,0)) -> 0 | AY46: =IF($C46="","",IF(TRIM('Input| JGN Mapping'!$J46)=TRIM('Input| Projects'!AY$9),1,0)) -> 0 | AZ46: =IF($C46="","",IF(TRIM('Input| JGN Mapping'!$J46)=TRIM('Input| Projects'!AZ$9),1,0)) -> 0 | BA46: =IF($C46="","",IF(TRIM('Input| JGN Mapping'!$J46)=TRIM('Input| Projects'!BA$9),1,0)) -> 0 | BB46: =IF($C46="","",IF(TRIM('Input| JGN Mapping'!$J46)=TRIM('Input| Projects'!BB$9),1,0)) -> 0 | BC46: =IF($C46="","",IF(TRIM('Input| JGN Mapping'!$J46)=TRIM('Input| Projects'!BC$9),1,0)) -> 1 | BD46: =IF($C46="","",IF(TRIM('Input| JGN Mapping'!$J46)=TRIM('Input| Projects'!BD$9),1,0)) -> 0 | BE46: =IF($C46="","",IF(TRIM('Input| JGN Mapping'!$J46)=TRIM('Input| Projects'!BE$9),1,0)) -> 0 | BF46: =IF($C46="","",IF(TRIM('Input| JGN Mapping'!$J46)=TRIM('Input| Projects'!BF$9),1,0)) -> 0 | BG46: =IF($C46="","",IF(TRIM('Input| JGN Mapping'!$J46)=TRIM('Input| Projects'!BG$9),1,0)) -> 0 | BH46: =IF($C46="","",IF(TRIM('Input| JGN Mapping'!$J46)=TRIM('Input| Projects'!BH$9),1,0)) -> 0 | BI46: =IF($C46="","",IF(TRIM('Input| JGN Mapping'!$J46)=TRIM('Input| Projects'!BI$9),1,0)) -> 0 | BJ46: =IF($C46="","",IF(TRIM('Input| JGN Mapping'!$J46)=TRIM('Input| Projects'!BJ$9),1,0)) -> 0 | BK46: =IF($C46="","",IF(TRIM('Input| JGN Mapping'!$J46)=TRIM('Input| Projects'!BK$9),1,0)) -> 0 | BL46: =IF($C46="","",IF(TRIM('Input| JGN Mapping'!$J46)=TRIM('Input| Projects'!BL$9),1,0)) -> 0 | BM46: =IF($C46="","",IF(TRIM('Input| JGN Mapping'!$J46)=TRIM('Input| Projects'!BM$9),1,0)) -> 0 | BN46: =IF($C46="","",IF(TRIM('Input| JGN Mapping'!$J46)=TRIM('Input| Projects'!BN$9),1,0)) -> 0 | BO46: =IF($C46="","",IF(TRIM('Input| JGN Mapping'!$J46)=TRIM('Input| Projects'!BO$9),1,0)) -> 0 | BP46: =IF($C46="","",IF(TRIM('Input| JGN Mapping'!$J46)=TRIM('Input| Projects'!BP$9),1,0)) -> 0 | BQ46: =IF($C46="","",IF(TRIM('Input| JGN Mapping'!$J46)=TRIM('Input| Projects'!BQ$9),1,0)) -> 0 | BR46: =IF($C46="","",IF(TRIM('Input| JGN Mapping'!$J46)=TRIM('Input| Projects'!BR$9),1,0)) -> 0 | BS46: =IF($C46="","",IF(TRIM('Input| JGN Mapping'!$J46)=TRIM('Input| Projects'!BS$9),1,0)) -> 0 | BT46: =IF($C46="","",IF(TRIM('Input| JGN Mapping'!$J46)=TRIM('Input| Projects'!BT$9),1,0)) -> 0 | BU46: =IF($C46="","",IF(TRIM('Input| JGN Mapping'!$J46)=TRIM('Input| Projects'!BU$9),1,0)) -> 0 | BV46: =IF($C46="","",IF(TRIM('Input| JGN Mapping'!$J46)=TRIM('Input| Projects'!BV$9),1,0)) -> 0 | BW46: =IF($C46="","",IF(TRIM('Input| JGN Mapping'!$J46)=TRIM('Input| Projects'!BW$9),1,0)) -> 0 | BX46: =IF($C46="","",IF(TRIM('Input| JGN Mapping'!$J46)=TRIM('Input| Projects'!BX$9),1,0)) -> 0 | BY46: =IF($C46="","",IF(TRIM('Input| JGN Mapping'!$J46)=TRIM('Input| Projects'!BY$9),1,0)) -> 0 | BZ46: =IF($C46="","",IF(TRIM('Input| JGN Mapping'!$J46)=TRIM('Input| Projects'!BZ$9),1,0)) -> 0 | CA46: =IF($C46="","",IF(TRIM('Input| JGN Mapping'!$J46)=TRIM('Input| Projects'!CA$9),1,0)) -> 0 | CB46: =IF($C46="","",IF(TRIM('Input| JGN Mapping'!$J46)=TRIM('Input| Projects'!CB$9),1,0)) -> 0 | CC46: =IF($C46="","",IF(TRIM('Input| JGN Mapping'!$J46)=TRIM('Input| Projects'!CC$9),1,0)) -> 0 | CD46: =IF($C46="","",IF(TRIM('Input| JGN Mapping'!$J46)=TRIM('Input| Projects'!CD$9),1,0)) -> 0 | CE46: =IF($C46="","",IF(TRIM('Input| JGN Mapping'!$J46)=TRIM('Input| Projects'!CE$9),1,0)) -> 0 | CF46: =IF($C46="","",IF(TRIM('Input| JGN Mapping'!$J46)=TRIM('Input| Projects'!CF$9),1,0)) -> 0 | CG46: =IF($C46="","",IF(TRIM('Input| JGN Mapping'!$J46)=TRIM('Input| Projects'!CG$9),1,0)) -> 0 | CH46: =IF($C46="","",IF(TRIM('Input| JGN Mapping'!$J46)=TRIM('Input| Projects'!CH$9),1,0)) -> 0 | CI46: =IF($C46="","",IF(TRIM('Input| JGN Mapping'!$J46)=TRIM('Input| Projects'!CI$9),1,0)) -> 0 | CJ46: =IF($C46="","",IF(TRIM('Input| JGN Mapping'!$J46)=TRIM('Input| Projects'!CJ$9),1,0)) -> 0 | CK46: =IF($C46="","",IF(TRIM('Input| JGN Mapping'!$J46)=TRIM('Input| Projects'!CK$9),1,0)) -> 0 | CL46: =IF($C46="","",IF(TRIM('Input| JGN Mapping'!$J46)=TRIM('Input| Projects'!CL$9),1,0)) -> 0 | CM46: =IF($C46="","",IF(TRIM('Input| JGN Mapping'!$J46)=TRIM('Input| Projects'!CM$9),1,0)) -> 0 | CN46: =IF($C46="","",IF(TRIM('Input| JGN Mapping'!$J46)=TRIM('Input| Projects'!CN$9),1,0)) -> 0 | CO46: =IF($C46="","",IF(TRIM('Input| JGN Mapping'!$J46)=TRIM('Input| Projects'!CO$9),1,0)) -> 0 | CP46: =_xlfn.SWITCH(TRUE, LEN(C46)<1,0, (SUM(AR46:CO46)<>1)*1) -> 0
B47: 38 | C47: Replacement of Defective I&C Turbine Gas Meters | D47: R-RAN | F47: Meter replacement | G47: Refer to sheet 'Input|JGN mapping | I47: 26.30138056 | J47: 26.30138056 | K47: 26.30138056 | L47: 26.30138056 | M47: 26.30138056 | N47: 26.30138056 | O47: 26.30138056 | Q47: 0 | R47: 0 | S47: 0 | T47: 0 | U47: 0 | V47: 0 | W47: 0 | Y47: 0.7744929129 | Z47: 0.2255070871 | AA47: 0 | AC47: Yes | AD47: No | AI47: 1 | AR47: =IF($C47="","",IF(TRIM('Input| JGN Mapping'!$J47)=TRIM('Input| Projects'!AR$9),1,0)) -> 0 | AS47: =IF($C47="","",IF(TRIM('Input| JGN Mapping'!$J47)=TRIM('Input| Projects'!AS$9),1,0)) -> 0 | AT47: =IF($C47="","",IF(TRIM('Input| JGN Mapping'!$J47)=TRIM('Input| Projects'!AT$9),1,0)) -> 0 | AU47: =IF($C47="","",IF(TRIM('Input| JGN Mapping'!$J47)=TRIM('Input| Projects'!AU$9),1,0)) -> 0 | AV47: =IF($C47="","",IF(TRIM('Input| JGN Mapping'!$J47)=TRIM('Input| Projects'!AV$9),1,0)) -> 0 | AW47: =IF($C47="","",IF(TRIM('Input| JGN Mapping'!$J47)=TRIM('Input| Projects'!AW$9),1,0)) -> 0 | AX47: =IF($C47="","",IF(TRIM('Input| JGN Mapping'!$J47)=TRIM('Input| Projects'!AX$9),1,0)) -> 0 | AY47: =IF($C47="","",IF(TRIM('Input| JGN Mapping'!$J47)=TRIM('Input| Projects'!AY$9),1,0)) -> 0 | AZ47: =IF($C47="","",IF(TRIM('Input| JGN Mapping'!$J47)=TRIM('Input| Projects'!AZ$9),1,0)) -> 0 | BA47: =IF($C47="","",IF(TRIM('Input| JGN Mapping'!$J47)=TRIM('Input| Projects'!BA$9),1,0)) -> 0 | BB47: =IF($C47="","",IF(TRIM('Input| JGN Mapping'!$J47)=TRIM('Input| Projects'!BB$9),1,0)) -> 0 | BC47: =IF($C47="","",IF(TRIM('Input| JGN Mapping'!$J47)=TRIM('Input| Projects'!BC$9),1,0)) -> 1 | BD47: =IF($C47="","",IF(TRIM('Input| JGN Mapping'!$J47)=TRIM('Input| Projects'!BD$9),1,0)) -> 0 | BE47: =IF($C47="","",IF(TRIM('Input| JGN Mapping'!$J47)=TRIM('Input| Projects'!BE$9),1,0)) -> 0 | BF47: =IF($C47="","",IF(TRIM('Input| JGN Mapping'!$J47)=TRIM('Input| Projects'!BF$9),1,0)) -> 0 | BG47: =IF($C47="","",IF(TRIM('Input| JGN Mapping'!$J47)=TRIM('Input| Projects'!BG$9),1,0)) -> 0 | BH47: =IF($C47="","",IF(TRIM('Input| JGN Mapping'!$J47)=TRIM('Input| Projects'!BH$9),1,0)) -> 0 | BI47: =IF($C47="","",IF(TRIM('Input| JGN Mapping'!$J47)=TRIM('Input| Projects'!BI$9),1,0)) -> 0 | BJ47: =IF($C47="","",IF(TRIM('Input| JGN Mapping'!$J47)=TRIM('Input| Projects'!BJ$9),1,0)) -> 0 | BK47: =IF($C47="","",IF(TRIM('Input| JGN Mapping'!$J47)=TRIM('Input| Projects'!BK$9),1,0)) -> 0 | BL47: =IF($C47="","",IF(TRIM('Input| JGN Mapping'!$J47)=TRIM('Input| Projects'!BL$9),1,0)) -> 0 | BM47: =IF($C47="","",IF(TRIM('Input| JGN Mapping'!$J47)=TRIM('Input| Projects'!BM$9),1,0)) -> 0 | BN47: =IF($C47="","",IF(TRIM('Input| JGN Mapping'!$J47)=TRIM('Input| Projects'!BN$9),1,0)) -> 0 | BO47: =IF($C47="","",IF(TRIM('Input| JGN Mapping'!$J47)=TRIM('Input| Projects'!BO$9),1,0)) -> 0 | BP47: =IF($C47="","",IF(TRIM('Input| JGN Mapping'!$J47)=TRIM('Input| Projects'!BP$9),1,0)) -> 0 | BQ47: =IF($C47="","",IF(TRIM('Input| JGN Mapping'!$J47)=TRIM('Input| Projects'!BQ$9),1,0)) -> 0 | BR47: =IF($C47="","",IF(TRIM('Input| JGN Mapping'!$J47)=TRIM('Input| Projects'!BR$9),1,0)) -> 0 | BS47: =IF($C47="","",IF(TRIM('Input| JGN Mapping'!$J47)=TRIM('Input| Projects'!BS$9),1,0)) -> 0 | BT47: =IF($C47="","",IF(TRIM('Input| JGN Mapping'!$J47)=TRIM('Input| Projects'!BT$9),1,0)) -> 0 | BU47: =IF($C47="","",IF(TRIM('Input| JGN Mapping'!$J47)=TRIM('Input| Projects'!BU$9),1,0)) -> 0 | BV47: =IF($C47="","",IF(TRIM('Input| JGN Mapping'!$J47)=TRIM('Input| Projects'!BV$9),1,0)) -> 0 | BW47: =IF($C47="","",IF(TRIM('Input| JGN Mapping'!$J47)=TRIM('Input| Projects'!BW$9),1,0)) -> 0 | BX47: =IF($C47="","",IF(TRIM('Input| JGN Mapping'!$J47)=TRIM('Input| Projects'!BX$9),1,0)) -> 0 | BY47: =IF($C47="","",IF(TRIM('Input| JGN Mapping'!$J47)=TRIM('Input| Projects'!BY$9),1,0)) -> 0 | BZ47: =IF($C47="","",IF(TRIM('Input| JGN Mapping'!$J47)=TRIM('Input| Projects'!BZ$9),1,0)) -> 0 | CA47: =IF($C47="","",IF(TRIM('Input| JGN Mapping'!$J47)=TRIM('Input| Projects'!CA$9),1,0)) -> 0 | CB47: =IF($C47="","",IF(TRIM('Input| JGN Mapping'!$J47)=TRIM('Input| Projects'!CB$9),1,0)) -> 0 | CC47: =IF($C47="","",IF(TRIM('Input| JGN Mapping'!$J47)=TRIM('Input| Projects'!CC$9),1,0)) -> 0 | CD47: =IF($C47="","",IF(TRIM('Input| JGN Mapping'!$J47)=TRIM('Input| Projects'!CD$9),1,0)) -> 0 | CE47: =IF($C47="","",IF(TRIM('Input| JGN Mapping'!$J47)=TRIM('Input| Projects'!CE$9),1,0)) -> 0 | CF47: =IF($C47="","",IF(TRIM('Input| JGN Mapping'!$J47)=TRIM('Input| Projects'!CF$9),1,0)) -> 0 | CG47: =IF($C47="","",IF(TRIM('Input| JGN Mapping'!$J47)=TRIM('Input| Projects'!CG$9),1,0)) -> 0 | CH47: =IF($C47="","",IF(TRIM('Input| JGN Mapping'!$J47)=TRIM('Input| Projects'!CH$9),1,0)) -> 0 | CI47: =IF($C47="","",IF(TRIM('Input| JGN Mapping'!$J47)=TRIM('Input| Projects'!CI$9),1,0)) -> 0 | CJ47: =IF($C47="","",IF(TRIM('Input| JGN Mapping'!$J47)=TRIM('Input| Projects'!CJ$9),1,0)) -> 0 | CK47: =IF($C47="","",IF(TRIM('Input| JGN Mapping'!$J47)=TRIM('Input| Projects'!CK$9),1,0)) -> 0 | CL47: =IF($C47="","",IF(TRIM('Input| JGN Mapping'!$J47)=TRIM('Input| Projects'!CL$9),1,0)) -> 0 | CM47: =IF($C47="","",IF(TRIM('Input| JGN Mapping'!$J47)=TRIM('Input| Projects'!CM$9),1,0)) -> 0 | CN47: =IF($C47="","",IF(TRIM('Input| JGN Mapping'!$J47)=TRIM('Input| Projects'!CN$9),1,0)) -> 0 | CO47: =IF($C47="","",IF(TRIM('Input| JGN Mapping'!$J47)=TRIM('Input| Projects'!CO$9),1,0)) -> 0 | CP47: =_xlfn.SWITCH(TRUE, LEN(C47)<1,0, (SUM(AR47:CO47)<>1)*1) -> 0
B48: 39 | C48: Replacement of Defective I&C Rotary Gas Meters | D48: R-RAO | F48: Meter replacement | G48: Refer to sheet 'Input|JGN mapping | I48: 83.93066814 | J48: 83.93066814 | K48: 83.93066814 | L48: 83.93066814 | M48: 83.93066814 | N48: 83.93066814 | O48: 83.93066814 | Q48: 0 | R48: 0 | S48: 0 | T48: 0 | U48: 0 | V48: 0 | W48: 0 | Y48: 0.7744929129 | Z48: 0.2255070871 | AA48: 0 | AC48: Yes | AD48: No | AI48: 1 | AR48: =IF($C48="","",IF(TRIM('Input| JGN Mapping'!$J48)=TRIM('Input| Projects'!AR$9),1,0)) -> 0 | AS48: =IF($C48="","",IF(TRIM('Input| JGN Mapping'!$J48)=TRIM('Input| Projects'!AS$9),1,0)) -> 0 | AT48: =IF($C48="","",IF(TRIM('Input| JGN Mapping'!$J48)=TRIM('Input| Projects'!AT$9),1,0)) -> 0 | AU48: =IF($C48="","",IF(TRIM('Input| JGN Mapping'!$J48)=TRIM('Input| Projects'!AU$9),1,0)) -> 0 | AV48: =IF($C48="","",IF(TRIM('Input| JGN Mapping'!$J48)=TRIM('Input| Projects'!AV$9),1,0)) -> 0 | AW48: =IF($C48="","",IF(TRIM('Input| JGN Mapping'!$J48)=TRIM('Input| Projects'!AW$9),1,0)) -> 0 | AX48: =IF($C48="","",IF(TRIM('Input| JGN Mapping'!$J48)=TRIM('Input| Projects'!AX$9),1,0)) -> 0 | AY48: =IF($C48="","",IF(TRIM('Input| JGN Mapping'!$J48)=TRIM('Input| Projects'!AY$9),1,0)) -> 0 | AZ48: =IF($C48="","",IF(TRIM('Input| JGN Mapping'!$J48)=TRIM('Input| Projects'!AZ$9),1,0)) -> 0 | BA48: =IF($C48="","",IF(TRIM('Input| JGN Mapping'!$J48)=TRIM('Input| Projects'!BA$9),1,0)) -> 0 | BB48: =IF($C48="","",IF(TRIM('Input| JGN Mapping'!$J48)=TRIM('Input| Projects'!BB$9),1,0)) -> 0 | BC48: =IF($C48="","",IF(TRIM('Input| JGN Mapping'!$J48)=TRIM('Input| Projects'!BC$9),1,0)) -> 1 | BD48: =IF($C48="","",IF(TRIM('Input| JGN Mapping'!$J48)=TRIM('Input| Projects'!BD$9),1,0)) -> 0 | BE48: =IF($C48="","",IF(TRIM('Input| JGN Mapping'!$J48)=TRIM('Input| Projects'!BE$9),1,0)) -> 0 | BF48: =IF($C48="","",IF(TRIM('Input| JGN Mapping'!$J48)=TRIM('Input| Projects'!BF$9),1,0)) -> 0 | BG48: =IF($C48="","",IF(TRIM('Input| JGN Mapping'!$J48)=TRIM('Input| Projects'!BG$9),1,0)) -> 0 | BH48: =IF($C48="","",IF(TRIM('Input| JGN Mapping'!$J48)=TRIM('Input| Projects'!BH$9),1,0)) -> 0 | BI48: =IF($C48="","",IF(TRIM('Input| JGN Mapping'!$J48)=TRIM('Input| Projects'!BI$9),1,0)) -> 0 | BJ48: =IF($C48="","",IF(TRIM('Input| JGN Mapping'!$J48)=TRIM('Input| Projects'!BJ$9),1,0)) -> 0 | BK48: =IF($C48="","",IF(TRIM('Input| JGN Mapping'!$J48)=TRIM('Input| Projects'!BK$9),1,0)) -> 0 | BL48: =IF($C48="","",IF(TRIM('Input| JGN Mapping'!$J48)=TRIM('Input| Projects'!BL$9),1,0)) -> 0 | BM48: =IF($C48="","",IF(TRIM('Input| JGN Mapping'!$J48)=TRIM('Input| Projects'!BM$9),1,0)) -> 0 | BN48: =IF($C48="","",IF(TRIM('Input| JGN Mapping'!$J48)=TRIM('Input| Projects'!BN$9),1,0)) -> 0 | BO48: =IF($C48="","",IF(TRIM('Input| JGN Mapping'!$J48)=TRIM('Input| Projects'!BO$9),1,0)) -> 0 | BP48: =IF($C48="","",IF(TRIM('Input| JGN Mapping'!$J48)=TRIM('Input| Projects'!BP$9),1,0)) -> 0 | BQ48: =IF($C48="","",IF(TRIM('Input| JGN Mapping'!$J48)=TRIM('Input| Projects'!BQ$9),1,0)) -> 0 | BR48: =IF($C48="","",IF(TRIM('Input| JGN Mapping'!$J48)=TRIM('Input| Projects'!BR$9),1,0)) -> 0 | BS48: =IF($C48="","",IF(TRIM('Input| JGN Mapping'!$J48)=TRIM('Input| Projects'!BS$9),1,0)) -> 0 | BT48: =IF($C48="","",IF(TRIM('Input| JGN Mapping'!$J48)=TRIM('Input| Projects'!BT$9),1,0)) -> 0 | BU48: =IF($C48="","",IF(TRIM('Input| JGN Mapping'!$J48)=TRIM('Input| Projects'!BU$9),1,0)) -> 0 | BV48: =IF($C48="","",IF(TRIM('Input| JGN Mapping'!$J48)=TRIM('Input| Projects'!BV$9),1,0)) -> 0 | BW48: =IF($C48="","",IF(TRIM('Input| JGN Mapping'!$J48)=TRIM('Input| Projects'!BW$9),1,0)) -> 0 | BX48: =IF($C48="","",IF(TRIM('Input| JGN Mapping'!$J48)=TRIM('Input| Projects'!BX$9),1,0)) -> 0 | BY48: =IF($C48="","",IF(TRIM('Input| JGN Mapping'!$J48)=TRIM('Input| Projects'!BY$9),1,0)) -> 0 | BZ48: =IF($C48="","",IF(TRIM('Input| JGN Mapping'!$J48)=TRIM('Input| Projects'!BZ$9),1,0)) -> 0 | CA48: =IF($C48="","",IF(TRIM('Input| JGN Mapping'!$J48)=TRIM('Input| Projects'!CA$9),1,0)) -> 0 | CB48: =IF($C48="","",IF(TRIM('Input| JGN Mapping'!$J48)=TRIM('Input| Projects'!CB$9),1,0)) -> 0 | CC48: =IF($C48="","",IF(TRIM('Input| JGN Mapping'!$J48)=TRIM('Input| Projects'!CC$9),1,0)) -> 0 | CD48: =IF($C48="","",IF(TRIM('Input| JGN Mapping'!$J48)=TRIM('Input| Projects'!CD$9),1,0)) -> 0 | CE48: =IF($C48="","",IF(TRIM('Input| JGN Mapping'!$J48)=TRIM('Input| Projects'!CE$9),1,0)) -> 0 | CF48: =IF($C48="","",IF(TRIM('Input| JGN Mapping'!$J48)=TRIM('Input| Projects'!CF$9),1,0)) -> 0 | CG48: =IF($C48="","",IF(TRIM('Input| JGN Mapping'!$J48)=TRIM('Input| Projects'!CG$9),1,0)) -> 0 | CH48: =IF($C48="","",IF(TRIM('Input| JGN Mapping'!$J48)=TRIM('Input| Projects'!CH$9),1,0)) -> 0 | CI48: =IF($C48="","",IF(TRIM('Input| JGN Mapping'!$J48)=TRIM('Input| Projects'!CI$9),1,0)) -> 0 | CJ48: =IF($C48="","",IF(TRIM('Input| JGN Mapping'!$J48)=TRIM('Input| Projects'!CJ$9),1,0)) -> 0 | CK48: =IF($C48="","",IF(TRIM('Input| JGN Mapping'!$J48)=TRIM('Input| Projects'!CK$9),1,0)) -> 0 | CL48: =IF($C48="","",IF(TRIM('Input| JGN Mapping'!$J48)=TRIM('Input| Projects'!CL$9),1,0)) -> 0 | CM48: =IF($C48="","",IF(TRIM('Input| JGN Mapping'!$J48)=TRIM('Input| Projects'!CM$9),1,0)) -> 0 | CN48: =IF($C48="","",IF(TRIM('Input| JGN Mapping'!$J48)=TRIM('Input| Projects'!CN$9),1,0)) -> 0 | CO48: =IF($C48="","",IF(TRIM('Input| JGN Mapping'!$J48)=TRIM('Input| Projects'!CO$9),1,0)) -> 0 | CP48: =_xlfn.SWITCH(TRUE, LEN(C48)<1,0, (SUM(AR48:CO48)<>1)*1) -> 0
B49: 40 | C49: Replacement of Defective Diaphragm Gas Meters | D49: R-RAP | F49: Meter replacement | G49: Refer to sheet 'Input|JGN mapping | I49: 206.4789874 | J49: 206.4789874 | K49: 206.4789874 | L49: 206.4789874 | M49: 206.4789874 | N49: 206.4789874 | O49: 206.4789874 | Q49: 0 | R49: 0 | S49: 0 | T49: 0 | U49: 0 | V49: 0 | W49: 0 | Y49: 0.7744929129 | Z49: 0.2255070871 | AA49: 0 | AC49: Yes | AD49: No | AI49: 1 | AR49: =IF($C49="","",IF(TRIM('Input| JGN Mapping'!$J49)=TRIM('Input| Projects'!AR$9),1,0)) -> 0 | AS49: =IF($C49="","",IF(TRIM('Input| JGN Mapping'!$J49)=TRIM('Input| Projects'!AS$9),1,0)) -> 0 | AT49: =IF($C49="","",IF(TRIM('Input| JGN Mapping'!$J49)=TRIM('Input| Projects'!AT$9),1,0)) -> 0 | AU49: =IF($C49="","",IF(TRIM('Input| JGN Mapping'!$J49)=TRIM('Input| Projects'!AU$9),1,0)) -> 0 | AV49: =IF($C49="","",IF(TRIM('Input| JGN Mapping'!$J49)=TRIM('Input| Projects'!AV$9),1,0)) -> 0 | AW49: =IF($C49="","",IF(TRIM('Input| JGN Mapping'!$J49)=TRIM('Input| Projects'!AW$9),1,0)) -> 0 | AX49: =IF($C49="","",IF(TRIM('Input| JGN Mapping'!$J49)=TRIM('Input| Projects'!AX$9),1,0)) -> 0 | AY49: =IF($C49="","",IF(TRIM('Input| JGN Mapping'!$J49)=TRIM('Input| Projects'!AY$9),1,0)) -> 0 | AZ49: =IF($C49="","",IF(TRIM('Input| JGN Mapping'!$J49)=TRIM('Input| Projects'!AZ$9),1,0)) -> 0 | BA49: =IF($C49="","",IF(TRIM('Input| JGN Mapping'!$J49)=TRIM('Input| Projects'!BA$9),1,0)) -> 0 | BB49: =IF($C49="","",IF(TRIM('Input| JGN Mapping'!$J49)=TRIM('Input| Projects'!BB$9),1,0)) -> 0 | BC49: =IF($C49="","",IF(TRIM('Input| JGN Mapping'!$J49)=TRIM('Input| Projects'!BC$9),1,0)) -> 1 | BD49: =IF($C49="","",IF(TRIM('Input| JGN Mapping'!$J49)=TRIM('Input| Projects'!BD$9),1,0)) -> 0 | BE49: =IF($C49="","",IF(TRIM('Input| JGN Mapping'!$J49)=TRIM('Input| Projects'!BE$9),1,0)) -> 0 | BF49: =IF($C49="","",IF(TRIM('Input| JGN Mapping'!$J49)=TRIM('Input| Projects'!BF$9),1,0)) -> 0 | BG49: =IF($C49="","",IF(TRIM('Input| JGN Mapping'!$J49)=TRIM('Input| Projects'!BG$9),1,0)) -> 0 | BH49: =IF($C49="","",IF(TRIM('Input| JGN Mapping'!$J49)=TRIM('Input| Projects'!BH$9),1,0)) -> 0 | BI49: =IF($C49="","",IF(TRIM('Input| JGN Mapping'!$J49)=TRIM('Input| Projects'!BI$9),1,0)) -> 0 | BJ49: =IF($C49="","",IF(TRIM('Input| JGN Mapping'!$J49)=TRIM('Input| Projects'!BJ$9),1,0)) -> 0 | BK49: =IF($C49="","",IF(TRIM('Input| JGN Mapping'!$J49)=TRIM('Input| Projects'!BK$9),1,0)) -> 0 | BL49: =IF($C49="","",IF(TRIM('Input| JGN Mapping'!$J49)=TRIM('Input| Projects'!BL$9),1,0)) -> 0 | BM49: =IF($C49="","",IF(TRIM('Input| JGN Mapping'!$J49)=TRIM('Input| Projects'!BM$9),1,0)) -> 0 | BN49: =IF($C49="","",IF(TRIM('Input| JGN Mapping'!$J49)=TRIM('Input| Projects'!BN$9),1,0)) -> 0 | BO49: =IF($C49="","",IF(TRIM('Input| JGN Mapping'!$J49)=TRIM('Input| Projects'!BO$9),1,0)) -> 0 | BP49: =IF($C49="","",IF(TRIM('Input| JGN Mapping'!$J49)=TRIM('Input| Projects'!BP$9),1,0)) -> 0 | BQ49: =IF($C49="","",IF(TRIM('Input| JGN Mapping'!$J49)=TRIM('Input| Projects'!BQ$9),1,0)) -> 0 | BR49: =IF($C49="","",IF(TRIM('Input| JGN Mapping'!$J49)=TRIM('Input| Projects'!BR$9),1,0)) -> 0 | BS49: =IF($C49="","",IF(TRIM('Input| JGN Mapping'!$J49)=TRIM('Input| Projects'!BS$9),1,0)) -> 0 | BT49: =IF($C49="","",IF(TRIM('Input| JGN Mapping'!$J49)=TRIM('Input| Projects'!BT$9),1,0)) -> 0 | BU49: =IF($C49="","",IF(TRIM('Input| JGN Mapping'!$J49)=TRIM('Input| Projects'!BU$9),1,0)) -> 0 | BV49: =IF($C49="","",IF(TRIM('Input| JGN Mapping'!$J49)=TRIM('Input| Projects'!BV$9),1,0)) -> 0 | BW49: =IF($C49="","",IF(TRIM('Input| JGN Mapping'!$J49)=TRIM('Input| Projects'!BW$9),1,0)) -> 0 | BX49: =IF($C49="","",IF(TRIM('Input| JGN Mapping'!$J49)=TRIM('Input| Projects'!BX$9),1,0)) -> 0 | BY49: =IF($C49="","",IF(TRIM('Input| JGN Mapping'!$J49)=TRIM('Input| Projects'!BY$9),1,0)) -> 0 | BZ49: =IF($C49="","",IF(TRIM('Input| JGN Mapping'!$J49)=TRIM('Input| Projects'!BZ$9),1,0)) -> 0 | CA49: =IF($C49="","",IF(TRIM('Input| JGN Mapping'!$J49)=TRIM('Input| Projects'!CA$9),1,0)) -> 0 | CB49: =IF($C49="","",IF(TRIM('Input| JGN Mapping'!$J49)=TRIM('Input| Projects'!CB$9),1,0)) -> 0 | CC49: =IF($C49="","",IF(TRIM('Input| JGN Mapping'!$J49)=TRIM('Input| Projects'!CC$9),1,0)) -> 0 | CD49: =IF($C49="","",IF(TRIM('Input| JGN Mapping'!$J49)=TRIM('Input| Projects'!CD$9),1,0)) -> 0 | CE49: =IF($C49="","",IF(TRIM('Input| JGN Mapping'!$J49)=TRIM('Input| Projects'!CE$9),1,0)) -> 0 | CF49: =IF($C49="","",IF(TRIM('Input| JGN Mapping'!$J49)=TRIM('Input| Projects'!CF$9),1,0)) -> 0 | CG49: =IF($C49="","",IF(TRIM('Input| JGN Mapping'!$J49)=TRIM('Input| Projects'!CG$9),1,0)) -> 0 | CH49: =IF($C49="","",IF(TRIM('Input| JGN Mapping'!$J49)=TRIM('Input| Projects'!CH$9),1,0)) -> 0 | CI49: =IF($C49="","",IF(TRIM('Input| JGN Mapping'!$J49)=TRIM('Input| Projects'!CI$9),1,0)) -> 0 | CJ49: =IF($C49="","",IF(TRIM('Input| JGN Mapping'!$J49)=TRIM('Input| Projects'!CJ$9),1,0)) -> 0 | CK49: =IF($C49="","",IF(TRIM('Input| JGN Mapping'!$J49)=TRIM('Input| Projects'!CK$9),1,0)) -> 0 | CL49: =IF($C49="","",IF(TRIM('Input| JGN Mapping'!$J49)=TRIM('Input| Projects'!CL$9),1,0)) -> 0 | CM49: =IF($C49="","",IF(TRIM('Input| JGN Mapping'!$J49)=TRIM('Input| Projects'!CM$9),1,0)) -> 0 | CN49: =IF($C49="","",IF(TRIM('Input| JGN Mapping'!$J49)=TRIM('Input| Projects'!CN$9),1,0)) -> 0 | CO49: =IF($C49="","",IF(TRIM('Input| JGN Mapping'!$J49)=TRIM('Input| Projects'!CO$9),1,0)) -> 0 | CP49: =_xlfn.SWITCH(TRUE, LEN(C49)<1,0, (SUM(AR49:CO49)<>1)*1) -> 0
B50: 41 | C50: End of Life Replacement of Residential Hot Water Meters | D50: R-RAQ | F50: Meter replacement | G50: Refer to sheet 'Input|JGN mapping | I50: 1489.01242 | J50: 871.1664168 | K50: 126.660207 | L50: 0 | M50: 1117.025781 | N50: 2826.316821 | O50: 3209.139747 | Q50: 0 | R50: 0 | S50: 0 | T50: 0 | U50: 0 | V50: 0 | W50: 0 | Y50: 0.7738340259 | Z50: 0.2261659741 | AA50: 0 | AC50: Yes | AD50: No | AI50: 1 | AR50: =IF($C50="","",IF(TRIM('Input| JGN Mapping'!$J50)=TRIM('Input| Projects'!AR$9),1,0)) -> 0 | AS50: =IF($C50="","",IF(TRIM('Input| JGN Mapping'!$J50)=TRIM('Input| Projects'!AS$9),1,0)) -> 0 | AT50: =IF($C50="","",IF(TRIM('Input| JGN Mapping'!$J50)=TRIM('Input| Projects'!AT$9),1,0)) -> 0 | AU50: =IF($C50="","",IF(TRIM('Input| JGN Mapping'!$J50)=TRIM('Input| Projects'!AU$9),1,0)) -> 0 | AV50: =IF($C50="","",IF(TRIM('Input| JGN Mapping'!$J50)=TRIM('Input| Projects'!AV$9),1,0)) -> 0 | AW50: =IF($C50="","",IF(TRIM('Input| JGN Mapping'!$J50)=TRIM('Input| Projects'!AW$9),1,0)) -> 0 | AX50: =IF($C50="","",IF(TRIM('Input| JGN Mapping'!$J50)=TRIM('Input| Projects'!AX$9),1,0)) -> 0 | AY50: =IF($C50="","",IF(TRIM('Input| JGN Mapping'!$J50)=TRIM('Input| Projects'!AY$9),1,0)) -> 0 | AZ50: =IF($C50="","",IF(TRIM('Input| JGN Mapping'!$J50)=TRIM('Input| Projects'!AZ$9),1,0)) -> 0 | BA50: =IF($C50="","",IF(TRIM('Input| JGN Mapping'!$J50)=TRIM('Input| Projects'!BA$9),1,0)) -> 0 | BB50: =IF($C50="","",IF(TRIM('Input| JGN Mapping'!$J50)=TRIM('Input| Projects'!BB$9),1,0)) -> 0 | BC50: =IF($C50="","",IF(TRIM('Input| JGN Mapping'!$J50)=TRIM('Input| Projects'!BC$9),1,0)) -> 1 | BD50: =IF($C50="","",IF(TRIM('Input| JGN Mapping'!$J50)=TRIM('Input| Projects'!BD$9),1,0)) -> 0 | BE50: =IF($C50="","",IF(TRIM('Input| JGN Mapping'!$J50)=TRIM('Input| Projects'!BE$9),1,0)) -> 0 | BF50: =IF($C50="","",IF(TRIM('Input| JGN Mapping'!$J50)=TRIM('Input| Projects'!BF$9),1,0)) -> 0 | BG50: =IF($C50="","",IF(TRIM('Input| JGN Mapping'!$J50)=TRIM('Input| Projects'!BG$9),1,0)) -> 0 | BH50: =IF($C50="","",IF(TRIM('Input| JGN Mapping'!$J50)=TRIM('Input| Projects'!BH$9),1,0)) -> 0 | BI50: =IF($C50="","",IF(TRIM('Input| JGN Mapping'!$J50)=TRIM('Input| Projects'!BI$9),1,0)) -> 0 | BJ50: =IF($C50="","",IF(TRIM('Input| JGN Mapping'!$J50)=TRIM('Input| Projects'!BJ$9),1,0)) -> 0 | BK50: =IF($C50="","",IF(TRIM('Input| JGN Mapping'!$J50)=TRIM('Input| Projects'!BK$9),1,0)) -> 0 | BL50: =IF($C50="","",IF(TRIM('Input| JGN Mapping'!$J50)=TRIM('Input| Projects'!BL$9),1,0)) -> 0 | BM50: =IF($C50="","",IF(TRIM('Input| JGN Mapping'!$J50)=TRIM('Input| Projects'!BM$9),1,0)) -> 0 | BN50: =IF($C50="","",IF(TRIM('Input| JGN Mapping'!$J50)=TRIM('Input| Projects'!BN$9),1,0)) -> 0 | BO50: =IF($C50="","",IF(TRIM('Input| JGN Mapping'!$J50)=TRIM('Input| Projects'!BO$9),1,0)) -> 0 | BP50: =IF($C50="","",IF(TRIM('Input| JGN Mapping'!$J50)=TRIM('Input| Projects'!BP$9),1,0)) -> 0 | BQ50: =IF($C50="","",IF(TRIM('Input| JGN Mapping'!$J50)=TRIM('Input| Projects'!BQ$9),1,0)) -> 0 | BR50: =IF($C50="","",IF(TRIM('Input| JGN Mapping'!$J50)=TRIM('Input| Projects'!BR$9),1,0)) -> 0 | BS50: =IF($C50="","",IF(TRIM('Input| JGN Mapping'!$J50)=TRIM('Input| Projects'!BS$9),1,0)) -> 0 | BT50: =IF($C50="","",IF(TRIM('Input| JGN Mapping'!$J50)=TRIM('Input| Projects'!BT$9),1,0)) -> 0 | BU50: =IF($C50="","",IF(TRIM('Input| JGN Mapping'!$J50)=TRIM('Input| Projects'!BU$9),1,0)) -> 0 | BV50: =IF($C50="","",IF(TRIM('Input| JGN Mapping'!$J50)=TRIM('Input| Projects'!BV$9),1,0)) -> 0 | BW50: =IF($C50="","",IF(TRIM('Input| JGN Mapping'!$J50)=TRIM('Input| Projects'!BW$9),1,0)) -> 0 | BX50: =IF($C50="","",IF(TRIM('Input| JGN Mapping'!$J50)=TRIM('Input| Projects'!BX$9),1,0)) -> 0 | BY50: =IF($C50="","",IF(TRIM('Input| JGN Mapping'!$J50)=TRIM('Input| Projects'!BY$9),1,0)) -> 0 | BZ50: =IF($C50="","",IF(TRIM('Input| JGN Mapping'!$J50)=TRIM('Input| Projects'!BZ$9),1,0)) -> 0 | CA50: =IF($C50="","",IF(TRIM('Input| JGN Mapping'!$J50)=TRIM('Input| Projects'!CA$9),1,0)) -> 0 | CB50: =IF($C50="","",IF(TRIM('Input| JGN Mapping'!$J50)=TRIM('Input| Projects'!CB$9),1,0)) -> 0 | CC50: =IF($C50="","",IF(TRIM('Input| JGN Mapping'!$J50)=TRIM('Input| Projects'!CC$9),1,0)) -> 0 | CD50: =IF($C50="","",IF(TRIM('Input| JGN Mapping'!$J50)=TRIM('Input| Projects'!CD$9),1,0)) -> 0 | CE50: =IF($C50="","",IF(TRIM('Input| JGN Mapping'!$J50)=TRIM('Input| Projects'!CE$9),1,0)) -> 0 | CF50: =IF($C50="","",IF(TRIM('Input| JGN Mapping'!$J50)=TRIM('Input| Projects'!CF$9),1,0)) -> 0 | CG50: =IF($C50="","",IF(TRIM('Input| JGN Mapping'!$J50)=TRIM('Input| Projects'!CG$9),1,0)) -> 0 | CH50: =IF($C50="","",IF(TRIM('Input| JGN Mapping'!$J50)=TRIM('Input| Projects'!CH$9),1,0)) -> 0 | CI50: =IF($C50="","",IF(TRIM('Input| JGN Mapping'!$J50)=TRIM('Input| Projects'!CI$9),1,0)) -> 0 | CJ50: =IF($C50="","",IF(TRIM('Input| JGN Mapping'!$J50)=TRIM('Input| Projects'!CJ$9),1,0)) -> 0 | CK50: =IF($C50="","",IF(TRIM('Input| JGN Mapping'!$J50)=TRIM('Input| Projects'!CK$9),1,0)) -> 0 | CL50: =IF($C50="","",IF(TRIM('Input| JGN Mapping'!$J50)=TRIM('Input| Projects'!CL$9),1,0)) -> 0 | CM50: =IF($C50="","",IF(TRIM('Input| JGN Mapping'!$J50)=TRIM('Input| Projects'!CM$9),1,0)) -> 0 | CN50: =IF($C50="","",IF(TRIM('Input| JGN Mapping'!$J50)=TRIM('Input| Projects'!CN$9),1,0)) -> 0 | CO50: =IF($C50="","",IF(TRIM('Input| JGN Mapping'!$J50)=TRIM('Input| Projects'!CO$9),1,0)) -> 0 | CP50: =_xlfn.SWITCH(TRUE, LEN(C50)<1,0, (SUM(AR50:CO50)<>1)*1) -> 0
B51: 42 | C51: Planned statistical sampling of Residential aged gas meters & Compliance testing | D51: R-RAS | F51: Meter replacement | G51: Refer to sheet 'Input|JGN mapping | I51: 375.917767 | J51: 303.0211658 | K51: 250.8500688 | L51: 299.447803 | M51: 381.6351475 | N51: 419.50345 | O51: 361.6149726 | Q51: 0 | R51: 0 | S51: 0 | T51: 0 | U51: 0 | V51: 0 | W51: 0 | Y51: 0.7733141666 | Z51: 0.2266858334 | AA51: 0 | AC51: Yes | AD51: No | AI51: 1 | AR51: =IF($C51="","",IF(TRIM('Input| JGN Mapping'!$J51)=TRIM('Input| Projects'!AR$9),1,0)) -> 0 | AS51: =IF($C51="","",IF(TRIM('Input| JGN Mapping'!$J51)=TRIM('Input| Projects'!AS$9),1,0)) -> 0 | AT51: =IF($C51="","",IF(TRIM('Input| JGN Mapping'!$J51)=TRIM('Input| Projects'!AT$9),1,0)) -> 0 | AU51: =IF($C51="","",IF(TRIM('Input| JGN Mapping'!$J51)=TRIM('Input| Projects'!AU$9),1,0)) -> 0 | AV51: =IF($C51="","",IF(TRIM('Input| JGN Mapping'!$J51)=TRIM('Input| Projects'!AV$9),1,0)) -> 0 | AW51: =IF($C51="","",IF(TRIM('Input| JGN Mapping'!$J51)=TRIM('Input| Projects'!AW$9),1,0)) -> 0 | AX51: =IF($C51="","",IF(TRIM('Input| JGN Mapping'!$J51)=TRIM('Input| Projects'!AX$9),1,0)) -> 0 | AY51: =IF($C51="","",IF(TRIM('Input| JGN Mapping'!$J51)=TRIM('Input| Projects'!AY$9),1,0)) -> 0 | AZ51: =IF($C51="","",IF(TRIM('Input| JGN Mapping'!$J51)=TRIM('Input| Projects'!AZ$9),1,0)) -> 0 | BA51: =IF($C51="","",IF(TRIM('Input| JGN Mapping'!$J51)=TRIM('Input| Projects'!BA$9),1,0)) -> 0 | BB51: =IF($C51="","",IF(TRIM('Input| JGN Mapping'!$J51)=TRIM('Input| Projects'!BB$9),1,0)) -> 0 | BC51: =IF($C51="","",IF(TRIM('Input| JGN Mapping'!$J51)=TRIM('Input| Projects'!BC$9),1,0)) -> 1 | BD51: =IF($C51="","",IF(TRIM('Input| JGN Mapping'!$J51)=TRIM('Input| Projects'!BD$9),1,0)) -> 0 | BE51: =IF($C51="","",IF(TRIM('Input| JGN Mapping'!$J51)=TRIM('Input| Projects'!BE$9),1,0)) -> 0 | BF51: =IF($C51="","",IF(TRIM('Input| JGN Mapping'!$J51)=TRIM('Input| Projects'!BF$9),1,0)) -> 0 | BG51: =IF($C51="","",IF(TRIM('Input| JGN Mapping'!$J51)=TRIM('Input| Projects'!BG$9),1,0)) -> 0 | BH51: =IF($C51="","",IF(TRIM('Input| JGN Mapping'!$J51)=TRIM('Input| Projects'!BH$9),1,0)) -> 0 | BI51: =IF($C51="","",IF(TRIM('Input| JGN Mapping'!$J51)=TRIM('Input| Projects'!BI$9),1,0)) -> 0 | BJ51: =IF($C51="","",IF(TRIM('Input| JGN Mapping'!$J51)=TRIM('Input| Projects'!BJ$9),1,0)) -> 0 | BK51: =IF($C51="","",IF(TRIM('Input| JGN Mapping'!$J51)=TRIM('Input| Projects'!BK$9),1,0)) -> 0 | BL51: =IF($C51="","",IF(TRIM('Input| JGN Mapping'!$J51)=TRIM('Input| Projects'!BL$9),1,0)) -> 0 | BM51: =IF($C51="","",IF(TRIM('Input| JGN Mapping'!$J51)=TRIM('Input| Projects'!BM$9),1,0)) -> 0 | BN51: =IF($C51="","",IF(TRIM('Input| JGN Mapping'!$J51)=TRIM('Input| Projects'!BN$9),1,0)) -> 0 | BO51: =IF($C51="","",IF(TRIM('Input| JGN Mapping'!$J51)=TRIM('Input| Projects'!BO$9),1,0)) -> 0 | BP51: =IF($C51="","",IF(TRIM('Input| JGN Mapping'!$J51)=TRIM('Input| Projects'!BP$9),1,0)) -> 0 | BQ51: =IF($C51="","",IF(TRIM('Input| JGN Mapping'!$J51)=TRIM('Input| Projects'!BQ$9),1,0)) -> 0 | BR51: =IF($C51="","",IF(TRIM('Input| JGN Mapping'!$J51)=TRIM('Input| Projects'!BR$9),1,0)) -> 0 | BS51: =IF($C51="","",IF(TRIM('Input| JGN Mapping'!$J51)=TRIM('Input| Projects'!BS$9),1,0)) -> 0 | BT51: =IF($C51="","",IF(TRIM('Input| JGN Mapping'!$J51)=TRIM('Input| Projects'!BT$9),1,0)) -> 0 | BU51: =IF($C51="","",IF(TRIM('Input| JGN Mapping'!$J51)=TRIM('Input| Projects'!BU$9),1,0)) -> 0 | BV51: =IF($C51="","",IF(TRIM('Input| JGN Mapping'!$J51)=TRIM('Input| Projects'!BV$9),1,0)) -> 0 | BW51: =IF($C51="","",IF(TRIM('Input| JGN Mapping'!$J51)=TRIM('Input| Projects'!BW$9),1,0)) -> 0 | BX51: =IF($C51="","",IF(TRIM('Input| JGN Mapping'!$J51)=TRIM('Input| Projects'!BX$9),1,0)) -> 0 | BY51: =IF($C51="","",IF(TRIM('Input| JGN Mapping'!$J51)=TRIM('Input| Projects'!BY$9),1,0)) -> 0 | BZ51: =IF($C51="","",IF(TRIM('Input| JGN Mapping'!$J51)=TRIM('Input| Projects'!BZ$9),1,0)) -> 0 | CA51: =IF($C51="","",IF(TRIM('Input| JGN Mapping'!$J51)=TRIM('Input| Projects'!CA$9),1,0)) -> 0 | CB51: =IF($C51="","",IF(TRIM('Input| JGN Mapping'!$J51)=TRIM('Input| Projects'!CB$9),1,0)) -> 0 | CC51: =IF($C51="","",IF(TRIM('Input| JGN Mapping'!$J51)=TRIM('Input| Projects'!CC$9),1,0)) -> 0 | CD51: =IF($C51="","",IF(TRIM('Input| JGN Mapping'!$J51)=TRIM('Input| Projects'!CD$9),1,0)) -> 0 | CE51: =IF($C51="","",IF(TRIM('Input| JGN Mapping'!$J51)=TRIM('Input| Projects'!CE$9),1,0)) -> 0 | CF51: =IF($C51="","",IF(TRIM('Input| JGN Mapping'!$J51)=TRIM('Input| Projects'!CF$9),1,0)) -> 0 | CG51: =IF($C51="","",IF(TRIM('Input| JGN Mapping'!$J51)=TRIM('Input| Projects'!CG$9),1,0)) -> 0 | CH51: =IF($C51="","",IF(TRIM('Input| JGN Mapping'!$J51)=TRIM('Input| Projects'!CH$9),1,0)) -> 0 | CI51: =IF($C51="","",IF(TRIM('Input| JGN Mapping'!$J51)=TRIM('Input| Projects'!CI$9),1,0)) -> 0 | CJ51: =IF($C51="","",IF(TRIM('Input| JGN Mapping'!$J51)=TRIM('Input| Projects'!CJ$9),1,0)) -> 0 | CK51: =IF($C51="","",IF(TRIM('Input| JGN Mapping'!$J51)=TRIM('Input| Projects'!CK$9),1,0)) -> 0 | CL51: =IF($C51="","",IF(TRIM('Input| JGN Mapping'!$J51)=TRIM('Input| Projects'!CL$9),1,0)) -> 0 | CM51: =IF($C51="","",IF(TRIM('Input| JGN Mapping'!$J51)=TRIM('Input| Projects'!CM$9),1,0)) -> 0 | CN51: =IF($C51="","",IF(TRIM('Input| JGN Mapping'!$J51)=TRIM('Input| Projects'!CN$9),1,0)) -> 0 | CO51: =IF($C51="","",IF(TRIM('Input| JGN Mapping'!$J51)=TRIM('Input| Projects'!CO$9),1,0)) -> 0 | CP51: =_xlfn.SWITCH(TRUE, LEN(C51)<1,0, (SUM(AR51:CO51)<>1)*1) -> 0
B52: 43 | C52: Replacement of Defective Residential Gas Meters | D52: R-RAV | F52: Meter replacement | G52: Refer to sheet 'Input|JGN mapping | I52: 1584.912423 | J52: 1584.912423 | K52: 1876.782524 | L52: 1876.782524 | M52: 1876.782524 | N52: 1876.782524 | O52: 1876.782524 | Q52: 0 | R52: 0 | S52: 0 | T52: 0 | U52: 0 | V52: 0 | W52: 0 | Y52: 0.7744929129 | Z52: 0.2255070871 | AA52: 0 | AC52: Yes | AD52: No | AI52: 1 | AR52: =IF($C52="","",IF(TRIM('Input| JGN Mapping'!$J52)=TRIM('Input| Projects'!AR$9),1,0)) -> 0 | AS52: =IF($C52="","",IF(TRIM('Input| JGN Mapping'!$J52)=TRIM('Input| Projects'!AS$9),1,0)) -> 0 | AT52: =IF($C52="","",IF(TRIM('Input| JGN Mapping'!$J52)=TRIM('Input| Projects'!AT$9),1,0)) -> 0 | AU52: =IF($C52="","",IF(TRIM('Input| JGN Mapping'!$J52)=TRIM('Input| Projects'!AU$9),1,0)) -> 0 | AV52: =IF($C52="","",IF(TRIM('Input| JGN Mapping'!$J52)=TRIM('Input| Projects'!AV$9),1,0)) -> 0 | AW52: =IF($C52="","",IF(TRIM('Input| JGN Mapping'!$J52)=TRIM('Input| Projects'!AW$9),1,0)) -> 0 | AX52: =IF($C52="","",IF(TRIM('Input| JGN Mapping'!$J52)=TRIM('Input| Projects'!AX$9),1,0)) -> 0 | AY52: =IF($C52="","",IF(TRIM('Input| JGN Mapping'!$J52)=TRIM('Input| Projects'!AY$9),1,0)) -> 0 | AZ52: =IF($C52="","",IF(TRIM('Input| JGN Mapping'!$J52)=TRIM('Input| Projects'!AZ$9),1,0)) -> 0 | BA52: =IF($C52="","",IF(TRIM('Input| JGN Mapping'!$J52)=TRIM('Input| Projects'!BA$9),1,0)) -> 0 | BB52: =IF($C52="","",IF(TRIM('Input| JGN Mapping'!$J52)=TRIM('Input| Projects'!BB$9),1,0)) -> 0 | BC52: =IF($C52="","",IF(TRIM('Input| JGN Mapping'!$J52)=TRIM('Input| Projects'!BC$9),1,0)) -> 1 | BD52: =IF($C52="","",IF(TRIM('Input| JGN Mapping'!$J52)=TRIM('Input| Projects'!BD$9),1,0)) -> 0 | BE52: =IF($C52="","",IF(TRIM('Input| JGN Mapping'!$J52)=TRIM('Input| Projects'!BE$9),1,0)) -> 0 | BF52: =IF($C52="","",IF(TRIM('Input| JGN Mapping'!$J52)=TRIM('Input| Projects'!BF$9),1,0)) -> 0 | BG52: =IF($C52="","",IF(TRIM('Input| JGN Mapping'!$J52)=TRIM('Input| Projects'!BG$9),1,0)) -> 0 | BH52: =IF($C52="","",IF(TRIM('Input| JGN Mapping'!$J52)=TRIM('Input| Projects'!BH$9),1,0)) -> 0 | BI52: =IF($C52="","",IF(TRIM('Input| JGN Mapping'!$J52)=TRIM('Input| Projects'!BI$9),1,0)) -> 0 | BJ52: =IF($C52="","",IF(TRIM('Input| JGN Mapping'!$J52)=TRIM('Input| Projects'!BJ$9),1,0)) -> 0 | BK52: =IF($C52="","",IF(TRIM('Input| JGN Mapping'!$J52)=TRIM('Input| Projects'!BK$9),1,0)) -> 0 | BL52: =IF($C52="","",IF(TRIM('Input| JGN Mapping'!$J52)=TRIM('Input| Projects'!BL$9),1,0)) -> 0 | BM52: =IF($C52="","",IF(TRIM('Input| JGN Mapping'!$J52)=TRIM('Input| Projects'!BM$9),1,0)) -> 0 | BN52: =IF($C52="","",IF(TRIM('Input| JGN Mapping'!$J52)=TRIM('Input| Projects'!BN$9),1,0)) -> 0 | BO52: =IF($C52="","",IF(TRIM('Input| JGN Mapping'!$J52)=TRIM('Input| Projects'!BO$9),1,0)) -> 0 | BP52: =IF($C52="","",IF(TRIM('Input| JGN Mapping'!$J52)=TRIM('Input| Projects'!BP$9),1,0)) -> 0 | BQ52: =IF($C52="","",IF(TRIM('Input| JGN Mapping'!$J52)=TRIM('Input| Projects'!BQ$9),1,0)) -> 0 | BR52: =IF($C52="","",IF(TRIM('Input| JGN Mapping'!$J52)=TRIM('Input| Projects'!BR$9),1,0)) -> 0 | BS52: =IF($C52="","",IF(TRIM('Input| JGN Mapping'!$J52)=TRIM('Input| Projects'!BS$9),1,0)) -> 0 | BT52: =IF($C52="","",IF(TRIM('Input| JGN Mapping'!$J52)=TRIM('Input| Projects'!BT$9),1,0)) -> 0 | BU52: =IF($C52="","",IF(TRIM('Input| JGN Mapping'!$J52)=TRIM('Input| Projects'!BU$9),1,0)) -> 0 | BV52: =IF($C52="","",IF(TRIM('Input| JGN Mapping'!$J52)=TRIM('Input| Projects'!BV$9),1,0)) -> 0 | BW52: =IF($C52="","",IF(TRIM('Input| JGN Mapping'!$J52)=TRIM('Input| Projects'!BW$9),1,0)) -> 0 | BX52: =IF($C52="","",IF(TRIM('Input| JGN Mapping'!$J52)=TRIM('Input| Projects'!BX$9),1,0)) -> 0 | BY52: =IF($C52="","",IF(TRIM('Input| JGN Mapping'!$J52)=TRIM('Input| Projects'!BY$9),1,0)) -> 0 | BZ52: =IF($C52="","",IF(TRIM('Input| JGN Mapping'!$J52)=TRIM('Input| Projects'!BZ$9),1,0)) -> 0 | CA52: =IF($C52="","",IF(TRIM('Input| JGN Mapping'!$J52)=TRIM('Input| Projects'!CA$9),1,0)) -> 0 | CB52: =IF($C52="","",IF(TRIM('Input| JGN Mapping'!$J52)=TRIM('Input| Projects'!CB$9),1,0)) -> 0 | CC52: =IF($C52="","",IF(TRIM('Input| JGN Mapping'!$J52)=TRIM('Input| Projects'!CC$9),1,0)) -> 0 | CD52: =IF($C52="","",IF(TRIM('Input| JGN Mapping'!$J52)=TRIM('Input| Projects'!CD$9),1,0)) -> 0 | CE52: =IF($C52="","",IF(TRIM('Input| JGN Mapping'!$J52)=TRIM('Input| Projects'!CE$9),1,0)) -> 0 | CF52: =IF($C52="","",IF(TRIM('Input| JGN Mapping'!$J52)=TRIM('Input| Projects'!CF$9),1,0)) -> 0 | CG52: =IF($C52="","",IF(TRIM('Input| JGN Mapping'!$J52)=TRIM('Input| Projects'!CG$9),1,0)) -> 0 | CH52: =IF($C52="","",IF(TRIM('Input| JGN Mapping'!$J52)=TRIM('Input| Projects'!CH$9),1,0)) -> 0 | CI52: =IF($C52="","",IF(TRIM('Input| JGN Mapping'!$J52)=TRIM('Input| Projects'!CI$9),1,0)) -> 0 | CJ52: =IF($C52="","",IF(TRIM('Input| JGN Mapping'!$J52)=TRIM('Input| Projects'!CJ$9),1,0)) -> 0 | CK52: =IF($C52="","",IF(TRIM('Input| JGN Mapping'!$J52)=TRIM('Input| Projects'!CK$9),1,0)) -> 0 | CL52: =IF($C52="","",IF(TRIM('Input| JGN Mapping'!$J52)=TRIM('Input| Projects'!CL$9),1,0)) -> 0 | CM52: =IF($C52="","",IF(TRIM('Input| JGN Mapping'!$J52)=TRIM('Input| Projects'!CM$9),1,0)) -> 0 | CN52: =IF($C52="","",IF(TRIM('Input| JGN Mapping'!$J52)=TRIM('Input| Projects'!CN$9),1,0)) -> 0 | CO52: =IF($C52="","",IF(TRIM('Input| JGN Mapping'!$J52)=TRIM('Input| Projects'!CO$9),1,0)) -> 0 | CP52: =_xlfn.SWITCH(TRUE, LEN(C52)<1,0, (SUM(AR52:CO52)<>1)*1) -> 0
B53: 44 | C53: Planned replacement of Residential aged gas meters | D53: R-RAZ | F53: Meter replacement | G53: Refer to sheet 'Input|JGN mapping | I53: 2431.489466 | J53: 4387.295807 | K53: 3439.609342 | L53: 3576.893672 | M53: 7868.373508 | N53: 12204.5769 | O53: 11634.49311 | Q53: 0 | R53: 0 | S53: 0 | T53: 0 | U53: 0 | V53: 0 | W53: 0 | Y53: 0.778532531 | Z53: 0.221467469 | AA53: 0 | AC53: Yes | AD53: No | AI53: 1 | AR53: =IF($C53="","",IF(TRIM('Input| JGN Mapping'!$J53)=TRIM('Input| Projects'!AR$9),1,0)) -> 0 | AS53: =IF($C53="","",IF(TRIM('Input| JGN Mapping'!$J53)=TRIM('Input| Projects'!AS$9),1,0)) -> 0 | AT53: =IF($C53="","",IF(TRIM('Input| JGN Mapping'!$J53)=TRIM('Input| Projects'!AT$9),1,0)) -> 0 | AU53: =IF($C53="","",IF(TRIM('Input| JGN Mapping'!$J53)=TRIM('Input| Projects'!AU$9),1,0)) -> 0 | AV53: =IF($C53="","",IF(TRIM('Input| JGN Mapping'!$J53)=TRIM('Input| Projects'!AV$9),1,0)) -> 0 | AW53: =IF($C53="","",IF(TRIM('Input| JGN Mapping'!$J53)=TRIM('Input| Projects'!AW$9),1,0)) -> 0 | AX53: =IF($C53="","",IF(TRIM('Input| JGN Mapping'!$J53)=TRIM('Input| Projects'!AX$9),1,0)) -> 0 | AY53: =IF($C53="","",IF(TRIM('Input| JGN Mapping'!$J53)=TRIM('Input| Projects'!AY$9),1,0)) -> 0 | AZ53: =IF($C53="","",IF(TRIM('Input| JGN Mapping'!$J53)=TRIM('Input| Projects'!AZ$9),1,0)) -> 0 | BA53: =IF($C53="","",IF(TRIM('Input| JGN Mapping'!$J53)=TRIM('Input| Projects'!BA$9),1,0)) -> 0 | BB53: =IF($C53="","",IF(TRIM('Input| JGN Mapping'!$J53)=TRIM('Input| Projects'!BB$9),1,0)) -> 0 | BC53: =IF($C53="","",IF(TRIM('Input| JGN Mapping'!$J53)=TRIM('Input| Projects'!BC$9),1,0)) -> 1 | BD53: =IF($C53="","",IF(TRIM('Input| JGN Mapping'!$J53)=TRIM('Input| Projects'!BD$9),1,0)) -> 0 | BE53: =IF($C53="","",IF(TRIM('Input| JGN Mapping'!$J53)=TRIM('Input| Projects'!BE$9),1,0)) -> 0 | BF53: =IF($C53="","",IF(TRIM('Input| JGN Mapping'!$J53)=TRIM('Input| Projects'!BF$9),1,0)) -> 0 | BG53: =IF($C53="","",IF(TRIM('Input| JGN Mapping'!$J53)=TRIM('Input| Projects'!BG$9),1,0)) -> 0 | BH53: =IF($C53="","",IF(TRIM('Input| JGN Mapping'!$J53)=TRIM('Input| Projects'!BH$9),1,0)) -> 0 | BI53: =IF($C53="","",IF(TRIM('Input| JGN Mapping'!$J53)=TRIM('Input| Projects'!BI$9),1,0)) -> 0 | BJ53: =IF($C53="","",IF(TRIM('Input| JGN Mapping'!$J53)=TRIM('Input| Projects'!BJ$9),1,0)) -> 0 | BK53: =IF($C53="","",IF(TRIM('Input| JGN Mapping'!$J53)=TRIM('Input| Projects'!BK$9),1,0)) -> 0 | BL53: =IF($C53="","",IF(TRIM('Input| JGN Mapping'!$J53)=TRIM('Input| Projects'!BL$9),1,0)) -> 0 | BM53: =IF($C53="","",IF(TRIM('Input| JGN Mapping'!$J53)=TRIM('Input| Projects'!BM$9),1,0)) -> 0 | BN53: =IF($C53="","",IF(TRIM('Input| JGN Mapping'!$J53)=TRIM('Input| Projects'!BN$9),1,0)) -> 0 | BO53: =IF($C53="","",IF(TRIM('Input| JGN Mapping'!$J53)=TRIM('Input| Projects'!BO$9),1,0)) -> 0 | BP53: =IF($C53="","",IF(TRIM('Input| JGN Mapping'!$J53)=TRIM('Input| Projects'!BP$9),1,0)) -> 0 | BQ53: =IF($C53="","",IF(TRIM('Input| JGN Mapping'!$J53)=TRIM('Input| Projects'!BQ$9),1,0)) -> 0 | BR53: =IF($C53="","",IF(TRIM('Input| JGN Mapping'!$J53)=TRIM('Input| Projects'!BR$9),1,0)) -> 0 | BS53: =IF($C53="","",IF(TRIM('Input| JGN Mapping'!$J53)=TRIM('Input| Projects'!BS$9),1,0)) -> 0 | BT53: =IF($C53="","",IF(TRIM('Input| JGN Mapping'!$J53)=TRIM('Input| Projects'!BT$9),1,0)) -> 0 | BU53: =IF($C53="","",IF(TRIM('Input| JGN Mapping'!$J53)=TRIM('Input| Projects'!BU$9),1,0)) -> 0 | BV53: =IF($C53="","",IF(TRIM('Input| JGN Mapping'!$J53)=TRIM('Input| Projects'!BV$9),1,0)) -> 0 | BW53: =IF($C53="","",IF(TRIM('Input| JGN Mapping'!$J53)=TRIM('Input| Projects'!BW$9),1,0)) -> 0 | BX53: =IF($C53="","",IF(TRIM('Input| JGN Mapping'!$J53)=TRIM('Input| Projects'!BX$9),1,0)) -> 0 | BY53: =IF($C53="","",IF(TRIM('Input| JGN Mapping'!$J53)=TRIM('Input| Projects'!BY$9),1,0)) -> 0 | BZ53: =IF($C53="","",IF(TRIM('Input| JGN Mapping'!$J53)=TRIM('Input| Projects'!BZ$9),1,0)) -> 0 | CA53: =IF($C53="","",IF(TRIM('Input| JGN Mapping'!$J53)=TRIM('Input| Projects'!CA$9),1,0)) -> 0 | CB53: =IF($C53="","",IF(TRIM('Input| JGN Mapping'!$J53)=TRIM('Input| Projects'!CB$9),1,0)) -> 0 | CC53: =IF($C53="","",IF(TRIM('Input| JGN Mapping'!$J53)=TRIM('Input| Projects'!CC$9),1,0)) -> 0 | CD53: =IF($C53="","",IF(TRIM('Input| JGN Mapping'!$J53)=TRIM('Input| Projects'!CD$9),1,0)) -> 0 | CE53: =IF($C53="","",IF(TRIM('Input| JGN Mapping'!$J53)=TRIM('Input| Projects'!CE$9),1,0)) -> 0 | CF53: =IF($C53="","",IF(TRIM('Input| JGN Mapping'!$J53)=TRIM('Input| Projects'!CF$9),1,0)) -> 0 | CG53: =IF($C53="","",IF(TRIM('Input| JGN Mapping'!$J53)=TRIM('Input| Projects'!CG$9),1,0)) -> 0 | CH53: =IF($C53="","",IF(TRIM('Input| JGN Mapping'!$J53)=TRIM('Input| Projects'!CH$9),1,0)) -> 0 | CI53: =IF($C53="","",IF(TRIM('Input| JGN Mapping'!$J53)=TRIM('Input| Projects'!CI$9),1,0)) -> 0 | CJ53: =IF($C53="","",IF(TRIM('Input| JGN Mapping'!$J53)=TRIM('Input| Projects'!CJ$9),1,0)) -> 0 | CK53: =IF($C53="","",IF(TRIM('Input| JGN Mapping'!$J53)=TRIM('Input| Projects'!CK$9),1,0)) -> 0 | CL53: =IF($C53="","",IF(TRIM('Input| JGN Mapping'!$J53)=TRIM('Input| Projects'!CL$9),1,0)) -> 0 | CM53: =IF($C53="","",IF(TRIM('Input| JGN Mapping'!$J53)=TRIM('Input| Projects'!CM$9),1,0)) -> 0 | CN53: =IF($C53="","",IF(TRIM('Input| JGN Mapping'!$J53)=TRIM('Input| Projects'!CN$9),1,0)) -> 0 | CO53: =IF($C53="","",IF(TRIM('Input| JGN Mapping'!$J53)=TRIM('Input| Projects'!CO$9),1,0)) -> 0 | CP53: =_xlfn.SWITCH(TRUE, LEN(C53)<1,0, (SUM(AR53:CO53)<>1)*1) -> 0
B54: 45 | C54: End of Life Replacement of Difficult to Access Residential Gas Meters | D54: R-RDG | F54: Meter replacement | G54: Refer to sheet 'Input|JGN mapping | I54: 1263.729745 | J54: 2369.593123 | K54: 1180.253286 | L54: 0 | M54: 0 | N54: 0 | O54: 0 | Q54: 0 | R54: 0 | S54: 0 | T54: 0 | U54: 0 | V54: 0 | W54: 0 | Y54: 0.4459594253 | Z54: 0.5540405747 | AA54: 0 | AC54: Yes | AD54: No | AI54: 1 | AR54: =IF($C54="","",IF(TRIM('Input| JGN Mapping'!$J54)=TRIM('Input| Projects'!AR$9),1,0)) -> 0 | AS54: =IF($C54="","",IF(TRIM('Input| JGN Mapping'!$J54)=TRIM('Input| Projects'!AS$9),1,0)) -> 0 | AT54: =IF($C54="","",IF(TRIM('Input| JGN Mapping'!$J54)=TRIM('Input| Projects'!AT$9),1,0)) -> 0 | AU54: =IF($C54="","",IF(TRIM('Input| JGN Mapping'!$J54)=TRIM('Input| Projects'!AU$9),1,0)) -> 0 | AV54: =IF($C54="","",IF(TRIM('Input| JGN Mapping'!$J54)=TRIM('Input| Projects'!AV$9),1,0)) -> 0 | AW54: =IF($C54="","",IF(TRIM('Input| JGN Mapping'!$J54)=TRIM('Input| Projects'!AW$9),1,0)) -> 0 | AX54: =IF($C54="","",IF(TRIM('Input| JGN Mapping'!$J54)=TRIM('Input| Projects'!AX$9),1,0)) -> 0 | AY54: =IF($C54="","",IF(TRIM('Input| JGN Mapping'!$J54)=TRIM('Input| Projects'!AY$9),1,0)) -> 0 | AZ54: =IF($C54="","",IF(TRIM('Input| JGN Mapping'!$J54)=TRIM('Input| Projects'!AZ$9),1,0)) -> 0 | BA54: =IF($C54="","",IF(TRIM('Input| JGN Mapping'!$J54)=TRIM('Input| Projects'!BA$9),1,0)) -> 0 | BB54: =IF($C54="","",IF(TRIM('Input| JGN Mapping'!$J54)=TRIM('Input| Projects'!BB$9),1,0)) -> 0 | BC54: =IF($C54="","",IF(TRIM('Input| JGN Mapping'!$J54)=TRIM('Input| Projects'!BC$9),1,0)) -> 1 | BD54: =IF($C54="","",IF(TRIM('Input| JGN Mapping'!$J54)=TRIM('Input| Projects'!BD$9),1,0)) -> 0 | BE54: =IF($C54="","",IF(TRIM('Input| JGN Mapping'!$J54)=TRIM('Input| Projects'!BE$9),1,0)) -> 0 | BF54: =IF($C54="","",IF(TRIM('Input| JGN Mapping'!$J54)=TRIM('Input| Projects'!BF$9),1,0)) -> 0 | BG54: =IF($C54="","",IF(TRIM('Input| JGN Mapping'!$J54)=TRIM('Input| Projects'!BG$9),1,0)) -> 0 | BH54: =IF($C54="","",IF(TRIM('Input| JGN Mapping'!$J54)=TRIM('Input| Projects'!BH$9),1,0)) -> 0 | BI54: =IF($C54="","",IF(TRIM('Input| JGN Mapping'!$J54)=TRIM('Input| Projects'!BI$9),1,0)) -> 0 | BJ54: =IF($C54="","",IF(TRIM('Input| JGN Mapping'!$J54)=TRIM('Input| Projects'!BJ$9),1,0)) -> 0 | BK54: =IF($C54="","",IF(TRIM('Input| JGN Mapping'!$J54)=TRIM('Input| Projects'!BK$9),1,0)) -> 0 | BL54: =IF($C54="","",IF(TRIM('Input| JGN Mapping'!$J54)=TRIM('Input| Projects'!BL$9),1,0)) -> 0 | BM54: =IF($C54="","",IF(TRIM('Input| JGN Mapping'!$J54)=TRIM('Input| Projects'!BM$9),1,0)) -> 0 | BN54: =IF($C54="","",IF(TRIM('Input| JGN Mapping'!$J54)=TRIM('Input| Projects'!BN$9),1,0)) -> 0 | BO54: =IF($C54="","",IF(TRIM('Input| JGN Mapping'!$J54)=TRIM('Input| Projects'!BO$9),1,0)) -> 0 | BP54: =IF($C54="","",IF(TRIM('Input| JGN Mapping'!$J54)=TRIM('Input| Projects'!BP$9),1,0)) -> 0 | BQ54: =IF($C54="","",IF(TRIM('Input| JGN Mapping'!$J54)=TRIM('Input| Projects'!BQ$9),1,0)) -> 0 | BR54: =IF($C54="","",IF(TRIM('Input| JGN Mapping'!$J54)=TRIM('Input| Projects'!BR$9),1,0)) -> 0 | BS54: =IF($C54="","",IF(TRIM('Input| JGN Mapping'!$J54)=TRIM('Input| Projects'!BS$9),1,0)) -> 0 | BT54: =IF($C54="","",IF(TRIM('Input| JGN Mapping'!$J54)=TRIM('Input| Projects'!BT$9),1,0)) -> 0 | BU54: =IF($C54="","",IF(TRIM('Input| JGN Mapping'!$J54)=TRIM('Input| Projects'!BU$9),1,0)) -> 0 | BV54: =IF($C54="","",IF(TRIM('Input| JGN Mapping'!$J54)=TRIM('Input| Projects'!BV$9),1,0)) -> 0 | BW54: =IF($C54="","",IF(TRIM('Input| JGN Mapping'!$J54)=TRIM('Input| Projects'!BW$9),1,0)) -> 0 | BX54: =IF($C54="","",IF(TRIM('Input| JGN Mapping'!$J54)=TRIM('Input| Projects'!BX$9),1,0)) -> 0 | BY54: =IF($C54="","",IF(TRIM('Input| JGN Mapping'!$J54)=TRIM('Input| Projects'!BY$9),1,0)) -> 0 | BZ54: =IF($C54="","",IF(TRIM('Input| JGN Mapping'!$J54)=TRIM('Input| Projects'!BZ$9),1,0)) -> 0 | CA54: =IF($C54="","",IF(TRIM('Input| JGN Mapping'!$J54)=TRIM('Input| Projects'!CA$9),1,0)) -> 0 | CB54: =IF($C54="","",IF(TRIM('Input| JGN Mapping'!$J54)=TRIM('Input| Projects'!CB$9),1,0)) -> 0 | CC54: =IF($C54="","",IF(TRIM('Input| JGN Mapping'!$J54)=TRIM('Input| Projects'!CC$9),1,0)) -> 0 | CD54: =IF($C54="","",IF(TRIM('Input| JGN Mapping'!$J54)=TRIM('Input| Projects'!CD$9),1,0)) -> 0 | CE54: =IF($C54="","",IF(TRIM('Input| JGN Mapping'!$J54)=TRIM('Input| Projects'!CE$9),1,0)) -> 0 | CF54: =IF($C54="","",IF(TRIM('Input| JGN Mapping'!$J54)=TRIM('Input| Projects'!CF$9),1,0)) -> 0 | CG54: =IF($C54="","",IF(TRIM('Input| JGN Mapping'!$J54)=TRIM('Input| Projects'!CG$9),1,0)) -> 0 | CH54: =IF($C54="","",IF(TRIM('Input| JGN Mapping'!$J54)=TRIM('Input| Projects'!CH$9),1,0)) -> 0 | CI54: =IF($C54="","",IF(TRIM('Input| JGN Mapping'!$J54)=TRIM('Input| Projects'!CI$9),1,0)) -> 0 | CJ54: =IF($C54="","",IF(TRIM('Input| JGN Mapping'!$J54)=TRIM('Input| Projects'!CJ$9),1,0)) -> 0 | CK54: =IF($C54="","",IF(TRIM('Input| JGN Mapping'!$J54)=TRIM('Input| Projects'!CK$9),1,0)) -> 0 | CL54: =IF($C54="","",IF(TRIM('Input| JGN Mapping'!$J54)=TRIM('Input| Projects'!CL$9),1,0)) -> 0 | CM54: =IF($C54="","",IF(TRIM('Input| JGN Mapping'!$J54)=TRIM('Input| Projects'!CM$9),1,0)) -> 0 | CN54: =IF($C54="","",IF(TRIM('Input| JGN Mapping'!$J54)=TRIM('Input| Projects'!CN$9),1,0)) -> 0 | CO54: =IF($C54="","",IF(TRIM('Input| JGN Mapping'!$J54)=TRIM('Input| Projects'!CO$9),1,0)) -> 0 | CP54: =_xlfn.SWITCH(TRUE, LEN(C54)<1,0, (SUM(AR54:CO54)<>1)*1) -> 0
